Workbook

Sheet TOC
B17: =HYPERLINK("#CovidLink",">>> V 1.3: Now including the new COVID-19 Plug In <click here to read more> <<<") -> >>> V 1.3: Now including the new COVID-19 Plug In <click here to read more> <<<
B18: The National Themes, Outcomes and Measures (TOMs) Social Value Measurement Framework is open source and free to use on a Commons Commercial licence. It has been created with input from more than 120 organisations across sectors, under the leadership of the National Social Value Taskforce. It is designed for organisations that want to embed social value into their procurement or measurement activities and it aims to create practical ways to unlock more social value for communities. As such, it is a proactive tool that mobilises resources to tackle societal challenges by facilitating cross sector collaboration and empowering stakeholders. We encourage procuring authorities to use the prioritisation tool within the Procurement Calculator to signpost Measures that they want bidders to focus on to leverage incentives at procurement to mobilise change.
B19: The resources included within this open source toolkit are aimed at creating a minimum reporting standard that allows to compare social value across places and projects. These are designed to be used as a starting point for social value measurement, and to be combined with the appraisal of additional interventions and outcomes as identified through stakeholder engagement or the assessment of project specific opportunities
B20: This document contains the National TOMs 2020 Social Value Procurement and Measurement Calculators. These Calculators allow to combine the National TOMs 2020 Minimum Reporting Standard Measures (or ‘core’ Measures), the Real Estate Plug-In Measures, and libraries of Additional Measures - both for the National TOMs and the Real Estate Sector. They also feature the stakeholder engagement tools – the Needs and Priorities and Stakeholders and Beneficiaries reporting forms. Guidance on the different sets of Measures, and how to use the stakeholder engagement tools can be found on the Guidance tab withing this document, in the National TOMs Framework 2019 Guidance and the Engaging with Stakeholders document. These can all be downloaded from https://socialvalueportal.com/national-toms/ The Real Estate Plug-In TOMs have been developed with contributions from organisations representing the full cycle of a development to reflect the opportunity that exists at every stage from planning to construction and in-use. You can find a full description of the Real Estate Plug-In TOMs in ‘The National TOMs Real Estate Plug-In’ document.
B22: TABLE OF CONTENTS
B23: =HYPERLINK("#"&LISTS!AR3,LISTS!AQ3) -> Guidance
B24: =HYPERLINK("#"&LISTS!AR4,LISTS!AQ4) -> Setting up the TOMs Calculator
B25: =HYPERLINK("#"&LISTS!AR5,LISTS!AQ5) -> Needs and Priorities
B26: =HYPERLINK("#"&LISTS!AR6,LISTS!AQ6) -> The TOMs Calculator for Procurement
B27: =HYPERLINK("#"&LISTS!AR7,LISTS!AQ7) -> Stakeholders Survey
B28: =HYPERLINK("#"&LISTS!AR8,LISTS!AQ8) -> The TOMs Calculator for Measurement
B29: =HYPERLINK("#"&LISTS!AR9,LISTS!AQ9) -> Measures: Definitions and Guidance
B30: =HYPERLINK("#"&LISTS!AR10,LISTS!AQ10) -> Reporting
B32: KEY
C33: Editable Cells
B35: National TOMs - Edition: 2020 v1.3 | F35: The National TOMs Framework 2020 has been updated based on the 2019 version designed by the Social Value Portal for the National Social Value Taskforce. The Framework has been originally designed over the course of more than 18 months of consultation, and has been expanded with input from more than 120 organisations. We would like to thank Social Value UK for their advice on the design of the Framework, and the Great Manchester Combined Authority (GMCA) Research Team (Formerly New Economy) for advising on the Proxy Values in relation to the Unit Cost Database.
B37: For further guidance on the National TOMs 2020 Calculator, please visit:
B38: https://socialvalueportal.com/national-toms
B39: Alternatively, please get in touch with the National TOMs helpdesk at:
B40: support@socialvalueportal.com
B42: Licensing and Copyright
B43: The use of the National TOMs 2020 Calculator, including the values and figures provided or accessed through this Calculator, is covered by the following License:
B44: This work is licensed under a Creative Commons Attribution-NoDerivatives 4.0 International License.
B46: https://creativecommons.org/licenses/by-nc-nd/4.0/
B47: You are free to: Share — copy and redistribute the material in any medium or format.
B48: Under the following terms: Attribution — You must give appropriate credit, provide a link to the license, and indicate if changes were made. You may do so in any reasonable manner, but not in any way that suggests the licensor endorses you or your use. NonCommercial — You may not use the material for commercial purposes. NoDerivatives — If you remix, transform, or build upon the material, you may not distribute the modified material.
B50: Permission is granted for organisations to use the Calculator for the measurement, comparison or evaluation of Social Value, even where this is for commercial advantage. However the Calculator may not be resold as part of a commercial offering to measure, compare or evaluate Social Value. Organisations wishing to include the Calculator as part of a commercial offering (e.g. for consulting purposes) must contact:
B51: support@socialvalueportal.com
B53: Attribution
B54: Please attribute the work as follows:
B55: Title: National TOMs 2020
B56: Author: Social Value Portal Ltd
B57: Source: socialvalueportal.com
B58: License: Creative Commons Attribution-NoDerivatives 4.0 International License (https://creativecommons.org/licenses/by-nd/4.0/)
B60: For permissions that are beyond this public license and those outlined here, please contact:
B61: support@socialvalueportal.com
B63: © 2020 Social Value Portal Some Rights Reserved

Sheet COVID-19 Plug In Introduction
A1: The National TOMs 2020 COVID-19 Plug In
A2: =HYPERLINK("#"&LISTS!$AR$12,LISTS!$AQ$12) -> Back to Table of Contents
A3: This Plug-in contains: 1. COVID-19 contract management provisions for managing existing contracts where the National TOMs 2020 have been already applied; and 2. A set of new COVID-19 measures for new tenders which can be added to or substituted for National TOMs 2020 measures This Plug-in is expected to evolve as we continue to work with stakeholders to identify how Social Value can help to tackle the COVID-19 crisis and further updates are likely. Users should check for latest updates before applying the Plug-in.
A4: COVID-19 is an unprecedented global crisis that is placing tremendous pressure on people, communities and businesses. Dealing with the social and economic effects of COVID-19 calls for both immediate and longer-term responses, so social value at this time is more important than ever. However, COVID-19 has also completely changed the priorities for organisations and the resources available to them. The intention behind the COVID-19 plug-in is to ensure a focus on social value is retained but that the unusual and challenging situation in which both suppliers and commissioners find themselves is recognised. It is not the intention of this Plug-in to impose further obligations on organisations that will already be seriously affected by this crisis but to provide a transparent process to help procuring and reporting organisations monitor how bidders and suppliers can contribute to mitigating the effects of COVID-19 and responding to the emergency. We recommend that both the COVID-19 measures and those in the existing National TOMs are applied with flexibility during these challenging times and with due consideration to the specific context for the contract, the ability of suppliers to deliver and the timescale over which this can take place.
A5: 1. The COVID-19 contract management provisions can be applied to contracts that have already been awarded and include commitments made against the National TOMs 2020 framework which are now in the delivery phase and have been affected by regulations imposed to tackle the COVID-19 crisis or by the wider social and economic effects of the crisis.
A6: 2. The new COVID-19 measures can be included in newly tendered contracts or re-negotiated on existing awarded contracts. Commitments made against earlier versions of the National TOMs (2019 or 2018) can also be revised using the COVID-19 Plug-in.
A7: Please note that the Social Value Proxies provided are based on pre-crisis scenarios and do not reflect the potential effects of COVID-19 on productivity, demand and provision of different services. Measures that are expected to make a material contribution to addressing the immediate crisis have been highlighted in a dedicated column headed "Relevance to COVID-19 crisis response".
A8: It is recommended that the COVID-19 provisions should be effective for social value reporting from 16th March 2020.
A9: Please note that when the COVID-19 Plug-in is used during procurement we recommend that the prioritisation tool is applied to all COVID-19 measures to ensure that they are appropriately weighted.
A10: The National TOMs 2020 COVID-19 Plug In Measures can be selected as a separate set of Measures in the Setup tab.

Sheet Guidance
A1: Using the National TOMs Social Value Calculator
A2: =HYPERLINK("#"&LISTS!$AR$12,LISTS!$AQ$12) -> Back to Table of Contents
A3: Contents
A4: =HYPERLINK("#IntroLink","Introduction to the National TOMs Social Value Calculator ") -> Introduction to the National TOMs Social Value Calculator
A5: =HYPERLINK("#ProcLink","Setting up the Calculator for procurement – step by step") -> Setting up the Calculator for procurement – step by step
A6: =HYPERLINK("#MeasLink","Setting up the Calculator for measurement and contract management – step by step") -> Setting up the Calculator for measurement and contract management – step by step

Sheet Setup
B1: The National TOMs 2020: Themes, Outcomes and Measures
B2: =HYPERLINK("#"&LISTS!$AR$12,LISTS!$AQ$12) -> Back to Table of Contents
A7: TOMs Selection Choices
A8: Include (linked cells must remain unlocked) | B8: TOMs SELECTION
A9: TRUE | B9: National TOMs - Core
A10: TRUE | B10: National TOMs - Additional
A11: TRUE | B11: COVID-19 Measures
A12: TRUE | B12: Real Estate - Core | E12: =IF(COUNTIF(Setup!Z32:Z185,FALSE)<>0," Press Update to Refresh","") -> 
A13: TRUE | B13: Real Estate - Additional
A14: TRUE | B14: Stakeholder Measures*
B15: *Additional Measures based on local priorities may be entered on the 'Needs and Priorities' tab.
B16: ="Number of measures included "&IF(COUNTIF(Setup!Z32:Z185,FALSE)<>0,"(Press Update to Refresh)","") -> Number of measures included | C16: =COUNTIF(Setup!X32:X185,TRUE) -> 154
B18: PROJECT SETUP
B19: TOMs Owner: | C19: Project Owner Name
B20: Project Name: | C20: Example Project
B21: Respondent/Bidder: | C21: Example Bidder
B22: PDF Name (used on export of calculator outputs): | C22: FileName
B23: Definition of Local:
B24: Industry (SIC):
B25: List NT1b: sub-localities for local jobs
B26: LIST NT9a - selected sub-groups for vocational qualifications
B27: LIST NT10a - selected sub-groups for apprenticeships
B28: LIST NT18a - selected sub-localities for local spend | F28: COVID-19 immediate response Measures are highlighted in Orange. Each TOMs 2020 Theme includes one additional Outcome for COVID-19 Measures. | M28: Measures that have been identified as high priority for the immediate response to the crisis have been highlighted.
G30: =IF(COUNTIF(Setup!Z32:Z185,FALSE)<>0,"Press Update to Refresh","") ->  | P30: Setup Controls
B31: Themes | C31: Outcomes | D31: NT Ref | E31: RE Plugin | F31: Measures | G31: Include? | H31: Standard Proxy | I31: Standard Units | J31: Custom Units | K31: Conversion Factor | L31: Value per Custom Unit | M31: Relevance to COVID-19 Crisis Response | N31: Note on inclusion in Procurement vs. Measurement Calculator: | P31: IndividualChoiceOverride | Q31: National TOMs - Core | R31: National TOMs - Additional | S31: COVID-19 Measures | T31: Real Estate Plugin Core | U31: Real Estate Plugin Additional | V31: Stakeholder Generated Additional Measures | W31: UpdateInclude | X31: Include | Y31: Include_UpdateText | Z31: UpdateRequiredCheck | AA31: Theme | AB31: Outcome | AC31: SelectedTheme | AD31: SelectedOutcome | AE31: Proc: TopTheme | AF31: Proc: TopOutcome | AG31: Meas: TopTheme | AH31: Meas: TopOutcome | AJ31: Proc: Order (COVID1-4 removed from Procurement) | AL31: Meas: Order | AM31: Units taken forward | AN31: Proxy taken forward | AO31: Prioritisation required | AP31: Prioritisation (NT Core Only) | AQ31: Attribution (NT Core Only)
A32: 1 | B32: =Setup!AG32 -> Jobs: Promote Local Skills and Employment | C32: =Setup!AH32 -> Retaining jobs and skills during the COVID-19 crisis | D32: =IF(ISBLANK(LISTS!D5),"",LISTS!D5) -> C19-1 | E32: =IF(ISBLANK(LISTS!E5),"",LISTS!E5) ->  | F32: =IF(ISBLANK(LISTS!L5),"",LISTS!L5) -> Safeguarding jobs on contract - Percentage of own staff on contract retained with pre-crisis level pay and hours (to be used at Management/Measurement only - not Procurement) | G32: ✓ | H32: =IF(ISBLANK(LISTS!N5),"",LISTS!N5) -> Record only | I32: =IF(ISBLANK(LISTS!O5),"",LISTS!O5) -> Percentage of own staff on contract retained | J32: - | K32: - | L32: - | M32: high | N32: Please note this Measure should be selected at Procurement --even if it can only be used in the Measurement Calculator - so that bidder know they will be required to report on it at contract management and measurement stage. When selected the Measure will be greyed out in the Procurement Calculator, while it will be active in the Measurement Calculator | P32: =Setup!G32="✓" -> TRUE | Q32: =IF(NOT(ISBLANK(LISTS!F5)),1,0) -> 0 | R32: =IF(NOT(ISBLANK(LISTS!G5)),1,0) -> 0 | S32: =IF(NOT(ISBLANK(LISTS!H5)),1,0) -> 1 | T32: =IF(NOT(ISBLANK(LISTS!I5)),1,0) -> 0 | U32: =IF(NOT(ISBLANK(LISTS!J5)),1,0) -> 0 | V32: =IF(LISTS!K5="y",1,0) -> 0 | W32: =IF($P32<>$X32,$P32,OR(IncNTCore*$Q32,IncNTAdd*$R32,IncCOVID*$S32,IncRE*T32,IncREAdd*U32,IncStAdd*$V32)) -> TRUE | X32: TRUE | Y32: =IF(X32,"✓","✗") -> ✓ | Z32: =(W32=X32) -> TRUE | AA32: =IF(LISTS!B5=0,AA31,LISTS!B5) -> Jobs: Promote Local Skills and Employment | AB32: =IF(LISTS!C5=0,AB31,LISTS!C5) -> Retaining jobs and skills during the COVID-19 crisis | AC32: =IF($X32,AA32,"x") -> Jobs: Promote Local Skills and Employment | AD32: =IF($X32,AB32,"x") -> Retaining jobs and skills during the COVID-19 crisis | AG32: =IF(AND($X32,MATCH(AC32,AC$32:AC$185,0)=Setup!$A32),AA32,"") -> Jobs: Promote Local Skills and Employment | AH32: =IF(AND($X32,MATCH(AD32,AD$32:AD$185,0)=Setup!$A32),AB32,"") -> Retaining jobs and skills during the COVID-19 crisis | AI32: 0 | AJ32: -1 | AK32: =IF(X32,1+AK31,AK31) -> 1 | AL32: =IF($X32,AK32,-1) -> 1 | AM32: =IF(AND(NOT(ISBLANK(Setup!J32)),OR(ISNUMBER(Setup!K32),K32="Enter localised proxy in calculator")),Setup!J32,Setup!I32) -> Percentage of own staff on contract retained | AN32: =IF(ISNUMBER(Setup!H32),IF(AND(NOT(ISBLANK(Setup!J32)),ISNUMBER(Setup!K32)),Setup!H32*Setup!K32,Setup!H32),Setup!H32) -> Record only | AO32: 0 | AP32: =IF(AO32=1,INDEX('Needs and Priorities'!$D$49:$D$96,MATCH(Setup!D32,'Needs and Priorities'!$B$49:$B$96,0)),0) -> 0 | AQ32: =IFERROR(INDEX('Stakeholders Survey'!$K$24:$K$159,MATCH(D32&E32,'Stakeholders Survey'!$M$24:$M$159,0)),0) -> 0
A33: 2 | B33: =Setup!AG33 ->  | C33: =Setup!AH33 ->  | D33: =IF(ISBLANK(LISTS!D6),"",LISTS!D6) -> C19-2 | E33: =IF(ISBLANK(LISTS!E6),"",LISTS!E6) ->  | F33: =IF(ISBLANK(LISTS!L6),"",LISTS!L6) -> Reducing layoffs for own staff on contract that can only partially deliver against their responsibilities as a result of the COVID-19 crisis - Percentage of staff on contract retained with agreed temporarily reduced hours (to be used at Management/Measurement only - not Procurement) | G33: ✓ | H33: =IF(ISBLANK(LISTS!N6),"",LISTS!N6) -> Record only | I33: =IF(ISBLANK(LISTS!O6),"",LISTS!O6) -> Percentage of own staff on contract retained - with reduced hours | J33: - | K33: - | L33: - | M33: high | N33: Please note this Measure should be selected at Procurement --even if it can only be used in the Measurement Calculator - so that bidder know they will be required to report on it at contract management and measurement stage. When selected the Measure will be greyed out in the Procurement Calculator, while it will be active in the Measurement Calculator | P33: =Setup!G33="✓" -> TRUE | Q33: =IF(NOT(ISBLANK(LISTS!F6)),1,0) -> 0 | R33: =IF(NOT(ISBLANK(LISTS!G6)),1,0) -> 0 | S33: =IF(NOT(ISBLANK(LISTS!H6)),1,0) -> 1 | T33: =IF(NOT(ISBLANK(LISTS!I6)),1,0) -> 0 | U33: =IF(NOT(ISBLANK(LISTS!J6)),1,0) -> 0 | V33: =IF(LISTS!K6="y",1,0) -> 0 | W33: TRUE | X33: TRUE | Y33: =IF(X33,"✓","✗") -> ✓ | Z33: =(W33=X33) -> TRUE | AA33: =IF(LISTS!B6=0,AA32,LISTS!B6) -> Jobs: Promote Local Skills and Employment | AB33: =IF(LISTS!C6=0,AB32,LISTS!C6) -> Retaining jobs and skills during the COVID-19 crisis | AC33: =IF($X33,AA33,"x") -> Jobs: Promote Local Skills and Employment | AD33: =IF($X33,AB33,"x") -> Retaining jobs and skills during the COVID-19 crisis | AG33: =IF(AND($X33,MATCH(AC33,AC$32:AC$185,0)=Setup!$A33),AA33,"") ->  | AH33: =IF(AND($X33,MATCH(AD33,AD$32:AD$185,0)=Setup!$A33),AB33,"") ->  | AI33: 0 | AJ33: -1 | AK33: =IF(X33,1+AK32,AK32) -> 2 | AL33: =IF($X33,AK33,-1) -> 2 | AM33: =IF(AND(NOT(ISBLANK(Setup!J33)),OR(ISNUMBER(Setup!K33),K33="Enter localised proxy in calculator")),Setup!J33,Setup!I33) -> Percentage of own staff on contract retained - with reduced hours | AN33: =IF(ISNUMBER(Setup!H33),IF(AND(NOT(ISBLANK(Setup!J33)),ISNUMBER(Setup!K33)),Setup!H33*Setup!K33,Setup!H33),Setup!H33) -> Record only | AO33: 0 | AP33: =IF(AO33=1,INDEX('Needs and Priorities'!$D$49:$D$96,MATCH(Setup!D33,'Needs and Priorities'!$B$49:$B$96,0)),0) -> 0 | AQ33: =IFERROR(INDEX('Stakeholders Survey'!$K$24:$K$159,MATCH(D33&E33,'Stakeholders Survey'!$M$24:$M$159,0)),0) -> 0
A34: 3 | B34: =Setup!AG34 ->  | C34: =Setup!AH34 ->  | D34: =IF(ISBLANK(LISTS!D7),"",LISTS!D7) -> C19-3 | E34: =IF(ISBLANK(LISTS!E7),"",LISTS!E7) ->  | F34: =IF(ISBLANK(LISTS!L7),"",LISTS!L7) -> Reducing layoffs for own staff on contract that can no longer work as a result of the COVID-19 crisis - Percentage of staff on contract furloughed (to be used at Management/Measurement only - not Procurement) | G34: ✓ | H34: =IF(ISBLANK(LISTS!N7),"",LISTS!N7) -> Record only | I34: =IF(ISBLANK(LISTS!O7),"",LISTS!O7) -> Percentage of own staff on contract furloughed | J34: - | K34: - | L34: - | M34: high | N34: Please note this Measure should be selected at Procurement --even if it can only be used in the Measurement Calculator - so that bidder know they will be required to report on it at contract management and measurement stage. When selected the Measure will be greyed out in the Procurement Calculator, while it will be active in the Measurement Calculator | P34: =Setup!G34="✓" -> TRUE | Q34: =IF(NOT(ISBLANK(LISTS!F7)),1,0) -> 0 | R34: =IF(NOT(ISBLANK(LISTS!G7)),1,0) -> 0 | S34: =IF(NOT(ISBLANK(LISTS!H7)),1,0) -> 1 | T34: =IF(NOT(ISBLANK(LISTS!I7)),1,0) -> 0 | U34: =IF(NOT(ISBLANK(LISTS!J7)),1,0) -> 0 | V34: =IF(LISTS!K7="y",1,0) -> 0 | W34: TRUE | X34: TRUE | Y34: ✓ | Z34: TRUE | AA34: =IF(LISTS!B7=0,AA33,LISTS!B7) -> Jobs: Promote Local Skills and Employment | AB34: =IF(LISTS!C7=0,AB33,LISTS!C7) -> Retaining jobs and skills during the COVID-19 crisis | AC34: Jobs: Promote Local Skills and Employment | AD34: Retaining jobs and skills during the COVID-19 crisis | AG34: =IF(AND($X34,MATCH(AC34,AC$32:AC$185,0)=Setup!$A34),AA34,"") ->  | AH34: =IF(AND($X34,MATCH(AD34,AD$32:AD$185,0)=Setup!$A34),AB34,"") ->  | AI34: 0 | AJ34: -1 | AK34: 3 | AL34: 3 | AM34: =IF(AND(NOT(ISBLANK(Setup!J34)),OR(ISNUMBER(Setup!K34),K34="Enter localised proxy in calculator")),Setup!J34,Setup!I34) -> Percentage of own staff on contract furloughed | AN34: =IF(ISNUMBER(Setup!H34),IF(AND(NOT(ISBLANK(Setup!J34)),ISNUMBER(Setup!K34)),Setup!H34*Setup!K34,Setup!H34),Setup!H34) -> Record only | AO34: 0 | AP34: =IF(AO34=1,INDEX('Needs and Priorities'!$D$49:$D$96,MATCH(Setup!D34,'Needs and Priorities'!$B$49:$B$96,0)),0) -> 0 | AQ34: =IFERROR(INDEX('Stakeholders Survey'!$K$24:$K$159,MATCH(D34&E34,'Stakeholders Survey'!$M$24:$M$159,0)),0) -> 0
A35: 4 | B35: =Setup!AG35 ->  | C35: =Setup!AH35 ->  | D35: =IF(ISBLANK(LISTS!D8),"",LISTS!D8) -> C19-4 | E35: =IF(ISBLANK(LISTS!E8),"",LISTS!E8) ->  | F35: =IF(ISBLANK(LISTS!L8),"",LISTS!L8) -> Safeguarding supply chain jobs on contract - Percentage of supply chain staff on contract retained either at pre-crisis level pay and hours or with temporarily altered conditions (e.g. reduced time and pay, to be specified)- (to be used at Management/Measurement only - not Procurement) | G35: ✓ | H35: =IF(ISBLANK(LISTS!N8),"",LISTS!N8) -> Record only | I35: =IF(ISBLANK(LISTS!O8),"",LISTS!O8) -> Percentage of supply chain staff on contract retained | J35: - | K35: - | L35: - | M35: high | N35: Please note this Measure should be selected at Procurement --even if it can only be used in the Measurement Calculator - so that bidder know they will be required to report on it at contract management and measurement stage. When selected the Measure will be greyed out in the Procurement Calculator, while it will be active in the Measurement Calculator | P35: =Setup!G35="✓" -> TRUE | Q35: =IF(NOT(ISBLANK(LISTS!F8)),1,0) -> 0 | R35: =IF(NOT(ISBLANK(LISTS!G8)),1,0) -> 0 | S35: =IF(NOT(ISBLANK(LISTS!H8)),1,0) -> 1 | T35: =IF(NOT(ISBLANK(LISTS!I8)),1,0) -> 0 | U35: =IF(NOT(ISBLANK(LISTS!J8)),1,0) -> 0 | V35: =IF(LISTS!K8="y",1,0) -> 0 | W35: TRUE | X35: TRUE | Y35: =IF(X35,"✓","✗") -> ✓ | Z35: =(W35=X35) -> TRUE | AA35: =IF(LISTS!B8=0,AA34,LISTS!B8) -> Jobs: Promote Local Skills and Employment | AB35: =IF(LISTS!C8=0,AB34,LISTS!C8) -> Retaining jobs and skills during the COVID-19 crisis | AC35: =IF($X35,AA35,"x") -> Jobs: Promote Local Skills and Employment | AD35: =IF($X35,AB35,"x") -> Retaining jobs and skills during the COVID-19 crisis | AG35: =IF(AND($X35,MATCH(AC35,AC$32:AC$185,0)=Setup!$A35),AA35,"") ->  | AH35: =IF(AND($X35,MATCH(AD35,AD$32:AD$185,0)=Setup!$A35),AB35,"") ->  | AI35: 0 | AJ35: -1 | AK35: 4 | AL35: 4 | AM35: =IF(AND(NOT(ISBLANK(Setup!J35)),OR(ISNUMBER(Setup!K35),K35="Enter localised proxy in calculator")),Setup!J35,Setup!I35) -> Percentage of supply chain staff on contract retained | AN35: =IF(ISNUMBER(Setup!H35),IF(AND(NOT(ISBLANK(Setup!J35)),ISNUMBER(Setup!K35)),Setup!H35*Setup!K35,Setup!H35),Setup!H35) -> Record only | AO35: 0 | AP35: =IF(AO35=1,INDEX('Needs and Priorities'!$D$49:$D$96,MATCH(Setup!D35,'Needs and Priorities'!$B$49:$B$96,0)),0) -> 0 | AQ35: =IFERROR(INDEX('Stakeholders Survey'!$K$24:$K$159,MATCH(D35&E35,'Stakeholders Survey'!$M$24:$M$159,0)),0) -> 0
A36: 5 | B36: =Setup!AG36 ->  | C36: =Setup!AH36 -> More local people in employment | D36: =IF(ISBLANK(LISTS!D9),"",LISTS!D9) -> NT1 | E36: =IF(ISBLANK(LISTS!E9),"",LISTS!E9) -> RE1 | F36: =IF(ISBLANK(LISTS!L9),"",LISTS!L9) -> No. of local direct employees (FTE) hired or retained (for re-tendered contracts) on contract for one year or the whole duration of the contract, whichever is shorter | G36: ✓ | H36: =IF(ISBLANK(LISTS!N9),"",LISTS!N9) -> £30,353 - UK value, must be localised to the selected local area | I36: =IF(ISBLANK(LISTS!O9),"",LISTS!O9) -> No. people FTE | K36: Enter localised proxy in calculator | L36: =IF(ISNUMBER(H36),IF(NOT(ISBLANK(J36)),IF(NOT(ISNUMBER(K36)),"Please enter a valid conversion factor","£"&ROUND(H36*K36,2)&"/"&IF(RIGHT(J36,1)="s",LEFT(J36,LEN(J36)-1),J36)),""),"n/a") -> n/a | P36: =Setup!G36="✓" -> TRUE | Q36: =IF(NOT(ISBLANK(LISTS!F9)),1,0) -> 1 | R36: =IF(NOT(ISBLANK(LISTS!G9)),1,0) -> 0 | S36: =IF(NOT(ISBLANK(LISTS!H9)),1,0) -> 0 | T36: =IF(NOT(ISBLANK(LISTS!I9)),1,0) -> 1 | U36: =IF(NOT(ISBLANK(LISTS!J9)),1,0) -> 0 | V36: =IF(LISTS!K9="y",1,0) -> 0 | W36: TRUE | X36: TRUE | Y36: ✓ | Z36: TRUE | AA36: =IF(LISTS!B9=0,AA35,LISTS!B9) -> Jobs: Promote Local Skills and Employment | AB36: =IF(LISTS!C9=0,AB35,LISTS!C9) -> More local people in employment | AC36: Jobs: Promote Local Skills and Employment | AD36: More local people in employment | AE36: =IF(AND($X36,MATCH(AC36,AC$36:AC$185,0)=Setup!$A36-4),AA36,"") -> Jobs: Promote Local Skills and Employment | AF36: =IF(AND($X36,MATCH(AD36,AD$36:AD$185,0)=Setup!$A36-4),AB36,"") -> More local people in employment | AG36: =IF(AND($X36,MATCH(AC36,AC$32:AC$185,0)=Setup!$A36),AA36,"") ->  | AH36: =IF(AND($X36,MATCH(AD36,AD$32:AD$185,0)=Setup!$A36),AB36,"") -> More local people in employment | AI36: =IF(X36,1+AI35,AI35) -> 1 | AJ36: =IF($X36,AI36,-1) -> 1 | AK36: 5 | AL36: 5 | AM36: =IF(AND(NOT(ISBLANK(Setup!J36)),OR(ISNUMBER(Setup!K36),K36="Enter localised proxy in calculator")),Setup!J36,Setup!I36) -> No. people FTE | AN36: =IF(ISNUMBER(Setup!H36),IF(AND(NOT(ISBLANK(Setup!J36)),ISNUMBER(Setup!K36)),Setup!H36*Setup!K36,Setup!H36),Setup!H36) -> £30,353 - UK value, must be localised to the selected local area | AO36: 1 | AP36: =IF(AO36=1,INDEX('Needs and Priorities'!$D$49:$D$96,MATCH(Setup!D36,'Needs and Priorities'!$B$49:$B$96,0)),0) -> 0 | AQ36: =IFERROR(INDEX('Stakeholders Survey'!$K$24:$K$159,MATCH(D36&E36,'Stakeholders Survey'!$M$24:$M$159,0)),0) -> 0
A37: 6 | B37: =Setup!AG37 ->  | C37: =Setup!AH37 ->  | D37: =IF(ISBLANK(LISTS!D10),"",LISTS!D10) -> NT1a | E37: =IF(ISBLANK(LISTS!E10),"",LISTS!E10) ->  | F37: =IF(ISBLANK(LISTS!L10),"",LISTS!L10) -> No. of local direct employees (FTE) which are TUPE transfers retained on contract for one year or the whole duration of the contract, whichever is shorter (re-tendered contracts only - to be used at Measurement) | G37: ✓ | H37: =IF(ISBLANK(LISTS!N10),"",LISTS!N10) -> £30,353 - UK value, must be localised to the selected local area | I37: =IF(ISBLANK(LISTS!O10),"",LISTS!O10) -> No. people FTE | K37: Enter localised proxy in calculator | L37: n/a | P37: =Setup!G37="✓" -> TRUE | Q37: =IF(NOT(ISBLANK(LISTS!F10)),1,0) -> 1 | R37: =IF(NOT(ISBLANK(LISTS!G10)),1,0) -> 0 | S37: =IF(NOT(ISBLANK(LISTS!H10)),1,0) -> 0 | T37: =IF(NOT(ISBLANK(LISTS!I10)),1,0) -> 0 | U37: =IF(NOT(ISBLANK(LISTS!J10)),1,0) -> 0 | V37: =IF(LISTS!K10="y",1,0) -> 0 | W37: TRUE | X37: TRUE | Y37: ✓ | Z37: TRUE | AA37: =IF(LISTS!B10=0,AA36,LISTS!B10) -> Jobs: Promote Local Skills and Employment | AB37: =IF(LISTS!C10=0,AB36,LISTS!C10) -> More local people in employment | AC37: Jobs: Promote Local Skills and Employment | AD37: More local people in employment | AE37: =IF(AND($X37,MATCH(AC37,AC$36:AC$185,0)=Setup!$A37-4),AA37,"") ->  | AF37: =IF(AND($X37,MATCH(AD37,AD$36:AD$185,0)=Setup!$A37-4),AB37,"") ->  | AG37: =IF(AND($X37,MATCH(AC37,AC$32:AC$185,0)=Setup!$A37),AA37,"") ->  | AH37: =IF(AND($X37,MATCH(AD37,AD$32:AD$185,0)=Setup!$A37),AB37,"") ->  | AI37: 2 | AJ37: 2 | AK37: 6 | AL37: 6 | AM37: =IF(AND(NOT(ISBLANK(Setup!J37)),OR(ISNUMBER(Setup!K37),K37="Enter localised proxy in calculator")),Setup!J37,Setup!I37) -> No. people FTE | AN37: =IF(ISNUMBER(Setup!H37),IF(AND(NOT(ISBLANK(Setup!J37)),ISNUMBER(Setup!K37)),Setup!H37*Setup!K37,Setup!H37),Setup!H37) -> £30,353 - UK value, must be localised to the selected local area | AO37: 1 | AP37: =IF(AO37=1,INDEX('Needs and Priorities'!$D$49:$D$96,MATCH(Setup!D37,'Needs and Priorities'!$B$49:$B$96,0)),0) -> 0 | AQ37: =IFERROR(INDEX('Stakeholders Survey'!$K$24:$K$159,MATCH(D37&E37,'Stakeholders Survey'!$M$24:$M$159,0)),0) -> 0
A38: 7 | B38: =Setup!AG38 ->  | C38: =Setup!AH38 ->  | D38: =IF(ISBLANK(LISTS!D11),"",LISTS!D11) -> NT1b | E38: =IF(ISBLANK(LISTS!E11),"",LISTS!E11) -> RE1a | F38: =IF(ISBLANK(LISTS!L11),"",LISTS!L11) -> No. of residents (FTE) from the listed sub-localities employed directly or through the supply chain as a result of your procurement requirements on the contract for one year or the whole duration of the contract, whichever is shorter (see sub-localities listed in 'LISTNT1b') | G38: ✓ | H38: =IF(ISBLANK(LISTS!N11),"",LISTS!N11) -> £30,353 - UK value, must be localised to the selected sub-localities (LIST NT1b) | I38: =IF(ISBLANK(LISTS!O11),"",LISTS!O11) -> No. people FTE | K38: Enter localised proxy in calculator | L38: n/a | P38: =Setup!G38="✓" -> TRUE | Q38: =IF(NOT(ISBLANK(LISTS!F11)),1,0) -> 1 | R38: =IF(NOT(ISBLANK(LISTS!G11)),1,0) -> 0 | S38: =IF(NOT(ISBLANK(LISTS!H11)),1,0) -> 0 | T38: =IF(NOT(ISBLANK(LISTS!I11)),1,0) -> 1 | U38: =IF(NOT(ISBLANK(LISTS!J11)),1,0) -> 0 | V38: =IF(LISTS!K11="y",1,0) -> 0 | W38: TRUE | X38: TRUE | Y38: ✓ | Z38: TRUE | AA38: =IF(LISTS!B11=0,AA37,LISTS!B11) -> Jobs: Promote Local Skills and Employment | AB38: =IF(LISTS!C11=0,AB37,LISTS!C11) -> More local people in employment | AC38: Jobs: Promote Local Skills and Employment | AD38: More local people in employment | AE38: =IF(AND($X38,MATCH(AC38,AC$36:AC$185,0)=Setup!$A38-4),AA38,"") ->  | AF38: =IF(AND($X38,MATCH(AD38,AD$36:AD$185,0)=Setup!$A38-4),AB38,"") ->  | AG38: =IF(AND($X38,MATCH(AC38,AC$32:AC$185,0)=Setup!$A38),AA38,"") ->  | AH38: =IF(AND($X38,MATCH(AD38,AD$32:AD$185,0)=Setup!$A38),AB38,"") ->  | AI38: 3 | AJ38: 3 | AK38: 7 | AL38: 7 | AM38: =IF(AND(NOT(ISBLANK(Setup!J38)),OR(ISNUMBER(Setup!K38),K38="Enter localised proxy in calculator")),Setup!J38,Setup!I38) -> No. people FTE | AN38: =IF(ISNUMBER(Setup!H38),IF(AND(NOT(ISBLANK(Setup!J38)),ISNUMBER(Setup!K38)),Setup!H38*Setup!K38,Setup!H38),Setup!H38) -> £30,353 - UK value, must be localised to the selected sub-localities (LIST NT1b) | AO38: 1 | AP38: =IF(AO38=1,INDEX('Needs and Priorities'!$D$49:$D$96,MATCH(Setup!D38,'Needs and Priorities'!$B$49:$B$96,0)),0) -> 0 | AQ38: =IFERROR(INDEX('Stakeholders Survey'!$K$24:$K$159,MATCH(D38&E38,'Stakeholders Survey'!$M$24:$M$159,0)),0) -> 0
A39: 8 | B39: =Setup!AG39 ->  | C39: =Setup!AH39 ->  | D39: =IF(ISBLANK(LISTS!D12),"",LISTS!D12) -> NT1c | E39: =IF(ISBLANK(LISTS!E12),"",LISTS!E12) -> RE1b | F39: =IF(ISBLANK(LISTS!L12),"",LISTS!L12) -> No. of local people (FTE) on contract for one year or the whole duration of the contract, whichever is shorter, employed through the supply chain as a result of your procurement requirements | G39: ✓ | H39: =IF(ISBLANK(LISTS!N12),"",LISTS!N12) -> £30,353 - UK value, must be localised to the selected local area | I39: =IF(ISBLANK(LISTS!O12),"",LISTS!O12) -> No. people FTE | K39: Enter localised proxy in calculator | L39: =IF(ISNUMBER(H39),IF(NOT(ISBLANK(J39)),IF(NOT(ISNUMBER(K39)),"Please enter a valid conversion factor","£"&ROUND(H39*K39,2)&"/"&IF(RIGHT(J39,1)="s",LEFT(J39,LEN(J39)-1),J39)),""),"n/a") -> n/a | P39: =Setup!G39="✓" -> TRUE | Q39: =IF(NOT(ISBLANK(LISTS!F12)),1,0) -> 1 | R39: =IF(NOT(ISBLANK(LISTS!G12)),1,0) -> 0 | S39: =IF(NOT(ISBLANK(LISTS!H12)),1,0) -> 0 | T39: =IF(NOT(ISBLANK(LISTS!I12)),1,0) -> 1 | U39: =IF(NOT(ISBLANK(LISTS!J12)),1,0) -> 0 | V39: =IF(LISTS!K12="y",1,0) -> 0 | W39: TRUE | X39: TRUE | Y39: ✓ | Z39: TRUE | AA39: =IF(LISTS!B12=0,AA38,LISTS!B12) -> Jobs: Promote Local Skills and Employment | AB39: =IF(LISTS!C12=0,AB38,LISTS!C12) -> More local people in employment | AC39: Jobs: Promote Local Skills and Employment | AD39: More local people in employment | AE39: =IF(AND($X39,MATCH(AC39,AC$36:AC$185,0)=Setup!$A39-4),AA39,"") ->  | AF39: =IF(AND($X39,MATCH(AD39,AD$36:AD$185,0)=Setup!$A39-4),AB39,"") ->  | AG39: =IF(AND($X39,MATCH(AC39,AC$32:AC$185,0)=Setup!$A39),AA39,"") ->  | AH39: =IF(AND($X39,MATCH(AD39,AD$32:AD$185,0)=Setup!$A39),AB39,"") ->  | AI39: 4 | AJ39: 4 | AK39: 8 | AL39: 8 | AM39: =IF(AND(NOT(ISBLANK(Setup!J39)),OR(ISNUMBER(Setup!K39),K39="Enter localised proxy in calculator")),Setup!J39,Setup!I39) -> No. people FTE | AN39: =IF(ISNUMBER(Setup!H39),IF(AND(NOT(ISBLANK(Setup!J39)),ISNUMBER(Setup!K39)),Setup!H39*Setup!K39,Setup!H39),Setup!H39) -> £30,353 - UK value, must be localised to the selected local area | AO39: 1 | AP39: =IF(AO39=1,INDEX('Needs and Priorities'!$D$49:$D$96,MATCH(Setup!D39,'Needs and Priorities'!$B$49:$B$96,0)),0) -> 0 | AQ39: =IFERROR(INDEX('Stakeholders Survey'!$K$24:$K$159,MATCH(D39&E39,'Stakeholders Survey'!$M$24:$M$159,0)),0) -> 0
A40: 9 | B40: =Setup!AG40 ->  | C40: =Setup!AH40 ->  | D40: =IF(ISBLANK(LISTS!D13),"",LISTS!D13) -> NT2 | E40: =IF(ISBLANK(LISTS!E13),"",LISTS!E13) -> RE2 | F40: =IF(ISBLANK(LISTS!L13),"",LISTS!L13) -> Percentage of local employees (FTE) on contract | G40: ✓ | H40: =IF(ISBLANK(LISTS!N13),"",LISTS!N13) -> Record only | I40: =IF(ISBLANK(LISTS!O13),"",LISTS!O13) -> % | J40: - | K40: - | L40: - | P40: =Setup!G40="✓" -> TRUE | Q40: =IF(NOT(ISBLANK(LISTS!F13)),1,0) -> 1 | R40: =IF(NOT(ISBLANK(LISTS!G13)),1,0) -> 0 | S40: =IF(NOT(ISBLANK(LISTS!H13)),1,0) -> 0 | T40: =IF(NOT(ISBLANK(LISTS!I13)),1,0) -> 1 | U40: =IF(NOT(ISBLANK(LISTS!J13)),1,0) -> 0 | V40: =IF(LISTS!K13="y",1,0) -> 0 | W40: TRUE | X40: TRUE | Y40: ✓ | Z40: TRUE | AA40: =IF(LISTS!B13=0,AA39,LISTS!B13) -> Jobs: Promote Local Skills and Employment | AB40: =IF(LISTS!C13=0,AB39,LISTS!C13) -> More local people in employment | AC40: Jobs: Promote Local Skills and Employment | AD40: More local people in employment | AE40: =IF(AND($X40,MATCH(AC40,AC$36:AC$185,0)=Setup!$A40-4),AA40,"") ->  | AF40: =IF(AND($X40,MATCH(AD40,AD$36:AD$185,0)=Setup!$A40-4),AB40,"") ->  | AG40: =IF(AND($X40,MATCH(AC40,AC$32:AC$185,0)=Setup!$A40),AA40,"") ->  | AH40: =IF(AND($X40,MATCH(AD40,AD$32:AD$185,0)=Setup!$A40),AB40,"") ->  | AI40: 5 | AJ40: 5 | AK40: 9 | AL40: 9 | AM40: =IF(AND(NOT(ISBLANK(Setup!J40)),OR(ISNUMBER(Setup!K40),K40="Enter localised proxy in calculator")),Setup!J40,Setup!I40) -> % | AN40: =IF(ISNUMBER(Setup!H40),IF(AND(NOT(ISBLANK(Setup!J40)),ISNUMBER(Setup!K40)),Setup!H40*Setup!K40,Setup!H40),Setup!H40) -> Record only | AO40: 1 | AP40: =IF(AO40=1,INDEX('Needs and Priorities'!$D$49:$D$96,MATCH(Setup!D40,'Needs and Priorities'!$B$49:$B$96,0)),0) -> 0 | AQ40: =IFERROR(INDEX('Stakeholders Survey'!$K$24:$K$159,MATCH(D40&E40,'Stakeholders Survey'!$M$24:$M$159,0)),0) -> 0
A41: 10 | B41: =Setup!AG41 ->  | C41: =Setup!AH41 ->  | D41: =IF(ISBLANK(LISTS!D14),"",LISTS!D14) ->  | E41: =IF(ISBLANK(LISTS!E14),"",LISTS!E14) -> RE3 | F41: =IF(ISBLANK(LISTS!L14),"",LISTS!L14) -> Employer's fairs held to encourage local employment in the area | G41: ✓ | H41: =IF(ISBLANK(LISTS!N14),"",LISTS!N14) -> 1 | I41: =IF(ISBLANK(LISTS!O14),"",LISTS!O14) -> £ | L41: =IF(ISNUMBER(H41),IF(NOT(ISBLANK(J41)),IF(NOT(ISNUMBER(K41)),"Please enter a valid conversion factor","£"&ROUND(H41*K41,2)&"/"&IF(RIGHT(J41,1)="s",LEFT(J41,LEN(J41)-1),J41)),""),"n/a") ->  | P41: =Setup!G41="✓" -> TRUE | Q41: =IF(NOT(ISBLANK(LISTS!F14)),1,0) -> 0 | R41: =IF(NOT(ISBLANK(LISTS!G14)),1,0) -> 0 | S41: =IF(NOT(ISBLANK(LISTS!H14)),1,0) -> 0 | T41: =IF(NOT(ISBLANK(LISTS!I14)),1,0) -> 1 | U41: =IF(NOT(ISBLANK(LISTS!J14)),1,0) -> 0 | V41: =IF(LISTS!K14="y",1,0) -> 0 | W41: TRUE | X41: TRUE | Y41: ✓ | Z41: TRUE | AA41: =IF(LISTS!B14=0,AA40,LISTS!B14) -> Jobs: Promote Local Skills and Employment | AB41: =IF(LISTS!C14=0,AB40,LISTS!C14) -> More local people in employment | AC41: Jobs: Promote Local Skills and Employment | AD41: More local people in employment | AE41: =IF(AND($X41,MATCH(AC41,AC$36:AC$185,0)=Setup!$A41-4),AA41,"") ->  | AF41: =IF(AND($X41,MATCH(AD41,AD$36:AD$185,0)=Setup!$A41-4),AB41,"") ->  | AG41: =IF(AND($X41,MATCH(AC41,AC$32:AC$185,0)=Setup!$A41),AA41,"") ->  | AH41: =IF(AND($X41,MATCH(AD41,AD$32:AD$185,0)=Setup!$A41),AB41,"") ->  | AI41: 6 | AJ41: 6 | AK41: 10 | AL41: 10 | AM41: =IF(AND(NOT(ISBLANK(Setup!J41)),OR(ISNUMBER(Setup!K41),K41="Enter localised proxy in calculator")),Setup!J41,Setup!I41) -> £ | AN41: =IF(ISNUMBER(Setup!H41),IF(AND(NOT(ISBLANK(Setup!J41)),ISNUMBER(Setup!K41)),Setup!H41*Setup!K41,Setup!H41),Setup!H41) -> 1 | AO41: 0 | AP41: =IF(AO41=1,INDEX('Needs and Priorities'!$D$49:$D$96,MATCH(Setup!D41,'Needs and Priorities'!$B$49:$B$96,0)),0) -> 0 | AQ41: =IFERROR(INDEX('Stakeholders Survey'!$K$24:$K$159,MATCH(D41&E41,'Stakeholders Survey'!$M$24:$M$159,0)),0) -> 0
A42: 11 | B42: =Setup!AG42 ->  | C42: =Setup!AH42 -> More opportunities for disadvantaged people | D42: =IF(ISBLANK(LISTS!D15),"",LISTS!D15) -> NT3 | E42: =IF(ISBLANK(LISTS!E15),"",LISTS!E15) -> RE4 | F42: =IF(ISBLANK(LISTS!L15),"",LISTS!L15) -> No. of employees (FTE) hired on the contract who are long term unemployed (unemployed for a year or longer) as a result of a recruitment programme | G42: ✓ | H42: =IF(ISBLANK(LISTS!N15),"",LISTS!N15) -> 18965 | I42: =IF(ISBLANK(LISTS!O15),"",LISTS!O15) -> No. people FTE | P42: =Setup!G42="✓" -> TRUE | Q42: =IF(NOT(ISBLANK(LISTS!F15)),1,0) -> 1 | R42: =IF(NOT(ISBLANK(LISTS!G15)),1,0) -> 0 | S42: =IF(NOT(ISBLANK(LISTS!H15)),1,0) -> 0 | T42: =IF(NOT(ISBLANK(LISTS!I15)),1,0) -> 1 | U42: =IF(NOT(ISBLANK(LISTS!J15)),1,0) -> 0 | V42: =IF(LISTS!K15="y",1,0) -> 0 | W42: TRUE | X42: TRUE | Y42: ✓ | Z42: TRUE | AA42: =IF(LISTS!B15=0,AA41,LISTS!B15) -> Jobs: Promote Local Skills and Employment | AB42: =IF(LISTS!C15=0,AB41,LISTS!C15) -> More opportunities for disadvantaged people | AC42: Jobs: Promote Local Skills and Employment | AD42: More opportunities for disadvantaged people | AE42: =IF(AND($X42,MATCH(AC42,AC$36:AC$185,0)=Setup!$A42-4),AA42,"") ->  | AF42: =IF(AND($X42,MATCH(AD42,AD$36:AD$185,0)=Setup!$A42-4),AB42,"") -> More opportunities for disadvantaged people | AG42: =IF(AND($X42,MATCH(AC42,AC$32:AC$185,0)=Setup!$A42),AA42,"") ->  | AH42: =IF(AND($X42,MATCH(AD42,AD$32:AD$185,0)=Setup!$A42),AB42,"") -> More opportunities for disadvantaged people | AI42: 7 | AJ42: 7 | AK42: 11 | AL42: 11 | AM42: =IF(AND(NOT(ISBLANK(Setup!J42)),OR(ISNUMBER(Setup!K42),K42="Enter localised proxy in calculator")),Setup!J42,Setup!I42) -> No. people FTE | AN42: =IF(ISNUMBER(Setup!H42),IF(AND(NOT(ISBLANK(Setup!J42)),ISNUMBER(Setup!K42)),Setup!H42*Setup!K42,Setup!H42),Setup!H42) -> 18965 | AO42: 1 | AP42: =IF(AO42=1,INDEX('Needs and Priorities'!$D$49:$D$96,MATCH(Setup!D42,'Needs and Priorities'!$B$49:$B$96,0)),0) -> 0 | AQ42: =IFERROR(INDEX('Stakeholders Survey'!$K$24:$K$159,MATCH(D42&E42,'Stakeholders Survey'!$M$24:$M$159,0)),0) -> 0
A43: 12 | B43: =Setup!AG43 ->  | C43: =Setup!AH43 ->  | D43: =IF(ISBLANK(LISTS!D16),"",LISTS!D16) -> NT3a | E43: =IF(ISBLANK(LISTS!E16),"",LISTS!E16) ->  | F43: =IF(ISBLANK(LISTS!L16),"",LISTS!L16) -> No. of armed forces veterans employees (FTE) hired on the contract as a result of a recruitment programme who are long term unemployed (unemployed for a year or longer) and are facing specific barriers to transitioning to civilian employment that do not qualify them as disabled (e.g. long term service) | G43: ✓ | H43: =IF(ISBLANK(LISTS!N16),"",LISTS!N16) -> 18965 | I43: =IF(ISBLANK(LISTS!O16),"",LISTS!O16) -> No. people FTE | P43: =Setup!G43="✓" -> TRUE | Q43: =IF(NOT(ISBLANK(LISTS!F16)),1,0) -> 0 | R43: =IF(NOT(ISBLANK(LISTS!G16)),1,0) -> 1 | S43: =IF(NOT(ISBLANK(LISTS!H16)),1,0) -> 0 | T43: =IF(NOT(ISBLANK(LISTS!I16)),1,0) -> 0 | U43: =IF(NOT(ISBLANK(LISTS!J16)),1,0) -> 0 | V43: =IF(LISTS!K16="y",1,0) -> 0 | W43: TRUE | X43: TRUE | Y43: ✓ | Z43: TRUE | AA43: =IF(LISTS!B16=0,AA42,LISTS!B16) -> Jobs: Promote Local Skills and Employment | AB43: =IF(LISTS!C16=0,AB42,LISTS!C16) -> More opportunities for disadvantaged people | AC43: Jobs: Promote Local Skills and Employment | AD43: More opportunities for disadvantaged people | AE43: =IF(AND($X43,MATCH(AC43,AC$36:AC$185,0)=Setup!$A43-4),AA43,"") ->  | AF43: =IF(AND($X43,MATCH(AD43,AD$36:AD$185,0)=Setup!$A43-4),AB43,"") ->  | AG43: =IF(AND($X43,MATCH(AC43,AC$32:AC$185,0)=Setup!$A43),AA43,"") ->  | AH43: =IF(AND($X43,MATCH(AD43,AD$32:AD$185,0)=Setup!$A43),AB43,"") ->  | AI43: 8 | AJ43: 8 | AK43: 12 | AL43: 12 | AM43: =IF(AND(NOT(ISBLANK(Setup!J43)),OR(ISNUMBER(Setup!K43),K43="Enter localised proxy in calculator")),Setup!J43,Setup!I43) -> No. people FTE | AN43: =IF(ISNUMBER(Setup!H43),IF(AND(NOT(ISBLANK(Setup!J43)),ISNUMBER(Setup!K43)),Setup!H43*Setup!K43,Setup!H43),Setup!H43) -> 18965 | AO43: 0 | AP43: =IF(AO43=1,INDEX('Needs and Priorities'!$D$49:$D$96,MATCH(Setup!D43,'Needs and Priorities'!$B$49:$B$96,0)),0) -> 0 | AQ43: =IFERROR(INDEX('Stakeholders Survey'!$K$24:$K$159,MATCH(D43&E43,'Stakeholders Survey'!$M$24:$M$159,0)),0) -> 0
A44: 13 | B44: =Setup!AG44 ->  | C44: =Setup!AH44 ->  | D44: =IF(ISBLANK(LISTS!D17),"",LISTS!D17) -> NT3b | E44: =IF(ISBLANK(LISTS!E17),"",LISTS!E17) ->  | F44: =IF(ISBLANK(LISTS!L17),"",LISTS!L17) -> No. of homeless employees (FTE) hired on the contract as a result of a recruitment programme | G44: ✓ | H44: =IF(ISBLANK(LISTS!N17),"",LISTS!N17) -> 18965 | I44: =IF(ISBLANK(LISTS!O17),"",LISTS!O17) -> No. people FTE | P44: =Setup!G44="✓" -> TRUE | Q44: =IF(NOT(ISBLANK(LISTS!F17)),1,0) -> 0 | R44: =IF(NOT(ISBLANK(LISTS!G17)),1,0) -> 1 | S44: =IF(NOT(ISBLANK(LISTS!H17)),1,0) -> 0 | T44: =IF(NOT(ISBLANK(LISTS!I17)),1,0) -> 0 | U44: =IF(NOT(ISBLANK(LISTS!J17)),1,0) -> 0 | V44: =IF(LISTS!K17="y",1,0) -> 0 | W44: TRUE | X44: TRUE | Y44: ✓ | Z44: TRUE | AA44: =IF(LISTS!B17=0,AA43,LISTS!B17) -> Jobs: Promote Local Skills and Employment | AB44: =IF(LISTS!C17=0,AB43,LISTS!C17) -> More opportunities for disadvantaged people | AC44: Jobs: Promote Local Skills and Employment | AD44: More opportunities for disadvantaged people | AE44: =IF(AND($X44,MATCH(AC44,AC$36:AC$185,0)=Setup!$A44-4),AA44,"") ->  | AF44: =IF(AND($X44,MATCH(AD44,AD$36:AD$185,0)=Setup!$A44-4),AB44,"") ->  | AG44: =IF(AND($X44,MATCH(AC44,AC$32:AC$185,0)=Setup!$A44),AA44,"") ->  | AH44: =IF(AND($X44,MATCH(AD44,AD$32:AD$185,0)=Setup!$A44),AB44,"") ->  | AI44: 9 | AJ44: 9 | AK44: 13 | AL44: 13 | AM44: =IF(AND(NOT(ISBLANK(Setup!J44)),OR(ISNUMBER(Setup!K44),K44="Enter localised proxy in calculator")),Setup!J44,Setup!I44) -> No. people FTE | AN44: =IF(ISNUMBER(Setup!H44),IF(AND(NOT(ISBLANK(Setup!J44)),ISNUMBER(Setup!K44)),Setup!H44*Setup!K44,Setup!H44),Setup!H44) -> 18965 | AO44: 0 | AP44: =IF(AO44=1,INDEX('Needs and Priorities'!$D$49:$D$96,MATCH(Setup!D44,'Needs and Priorities'!$B$49:$B$96,0)),0) -> 0 | AQ44: =IFERROR(INDEX('Stakeholders Survey'!$K$24:$K$159,MATCH(D44&E44,'Stakeholders Survey'!$M$24:$M$159,0)),0) -> 0
A45: 14 | B45: =Setup!AG45 ->  | C45: =Setup!AH45 ->  | D45: =IF(ISBLANK(LISTS!D18),"",LISTS!D18) -> NT3c | E45: =IF(ISBLANK(LISTS!E18),"",LISTS!E18) ->  | F45: =IF(ISBLANK(LISTS!L18),"",LISTS!L18) -> No. of mothers returning to work (FTE) hired on the contract as a result of a recruitment programme who are long-term unemployed (unemployed for a year or longer) - (when the mother is the primary carer) | G45: ✓ | H45: =IF(ISBLANK(LISTS!N18),"",LISTS!N18) -> 18965 | I45: =IF(ISBLANK(LISTS!O18),"",LISTS!O18) -> No. people FTE | P45: =Setup!G45="✓" -> TRUE | Q45: =IF(NOT(ISBLANK(LISTS!F18)),1,0) -> 0 | R45: =IF(NOT(ISBLANK(LISTS!G18)),1,0) -> 1 | S45: =IF(NOT(ISBLANK(LISTS!H18)),1,0) -> 0 | T45: =IF(NOT(ISBLANK(LISTS!I18)),1,0) -> 0 | U45: =IF(NOT(ISBLANK(LISTS!J18)),1,0) -> 0 | V45: =IF(LISTS!K18="y",1,0) -> 0 | W45: TRUE | X45: TRUE | Y45: ✓ | Z45: TRUE | AA45: =IF(LISTS!B18=0,AA44,LISTS!B18) -> Jobs: Promote Local Skills and Employment | AB45: =IF(LISTS!C18=0,AB44,LISTS!C18) -> More opportunities for disadvantaged people | AC45: Jobs: Promote Local Skills and Employment | AD45: More opportunities for disadvantaged people | AE45: =IF(AND($X45,MATCH(AC45,AC$36:AC$185,0)=Setup!$A45-4),AA45,"") ->  | AF45: =IF(AND($X45,MATCH(AD45,AD$36:AD$185,0)=Setup!$A45-4),AB45,"") ->  | AG45: =IF(AND($X45,MATCH(AC45,AC$32:AC$185,0)=Setup!$A45),AA45,"") ->  | AH45: =IF(AND($X45,MATCH(AD45,AD$32:AD$185,0)=Setup!$A45),AB45,"") ->  | AI45: 10 | AJ45: 10 | AK45: 14 | AL45: 14 | AM45: =IF(AND(NOT(ISBLANK(Setup!J45)),OR(ISNUMBER(Setup!K45),K45="Enter localised proxy in calculator")),Setup!J45,Setup!I45) -> No. people FTE | AN45: =IF(ISNUMBER(Setup!H45),IF(AND(NOT(ISBLANK(Setup!J45)),ISNUMBER(Setup!K45)),Setup!H45*Setup!K45,Setup!H45),Setup!H45) -> 18965 | AO45: 0 | AP45: =IF(AO45=1,INDEX('Needs and Priorities'!$D$49:$D$96,MATCH(Setup!D45,'Needs and Priorities'!$B$49:$B$96,0)),0) -> 0 | AQ45: =IFERROR(INDEX('Stakeholders Survey'!$K$24:$K$159,MATCH(D45&E45,'Stakeholders Survey'!$M$24:$M$159,0)),0) -> 0
A46: 15 | B46: =Setup!AG46 ->  | C46: =Setup!AH46 ->  | D46: =IF(ISBLANK(LISTS!D19),"",LISTS!D19) -> NT3d | E46: =IF(ISBLANK(LISTS!E19),"",LISTS!E19) ->  | F46: =IF(ISBLANK(LISTS!L19),"",LISTS!L19) -> No. of survivors of modern slavery employees (FTE) hired on the contract as a result of a recruitment programme | G46: ✓ | H46: =IF(ISBLANK(LISTS!N19),"",LISTS!N19) -> 18965 | I46: =IF(ISBLANK(LISTS!O19),"",LISTS!O19) -> No. people FTE | P46: =Setup!G46="✓" -> TRUE | Q46: =IF(NOT(ISBLANK(LISTS!F19)),1,0) -> 0 | R46: =IF(NOT(ISBLANK(LISTS!G19)),1,0) -> 1 | S46: =IF(NOT(ISBLANK(LISTS!H19)),1,0) -> 0 | T46: =IF(NOT(ISBLANK(LISTS!I19)),1,0) -> 0 | U46: =IF(NOT(ISBLANK(LISTS!J19)),1,0) -> 0 | V46: =IF(LISTS!K19="y",1,0) -> 0 | W46: TRUE | X46: TRUE | Y46: ✓ | Z46: TRUE | AA46: =IF(LISTS!B19=0,AA45,LISTS!B19) -> Jobs: Promote Local Skills and Employment | AB46: =IF(LISTS!C19=0,AB45,LISTS!C19) -> More opportunities for disadvantaged people | AC46: Jobs: Promote Local Skills and Employment | AD46: More opportunities for disadvantaged people | AE46: =IF(AND($X46,MATCH(AC46,AC$36:AC$185,0)=Setup!$A46-4),AA46,"") ->  | AF46: =IF(AND($X46,MATCH(AD46,AD$36:AD$185,0)=Setup!$A46-4),AB46,"") ->  | AG46: =IF(AND($X46,MATCH(AC46,AC$32:AC$185,0)=Setup!$A46),AA46,"") ->  | AH46: =IF(AND($X46,MATCH(AD46,AD$32:AD$185,0)=Setup!$A46),AB46,"") ->  | AI46: 11 | AJ46: 11 | AK46: 15 | AL46: 15 | AM46: =IF(AND(NOT(ISBLANK(Setup!J46)),OR(ISNUMBER(Setup!K46),K46="Enter localised proxy in calculator")),Setup!J46,Setup!I46) -> No. people FTE | AN46: =IF(ISNUMBER(Setup!H46),IF(AND(NOT(ISBLANK(Setup!J46)),ISNUMBER(Setup!K46)),Setup!H46*Setup!K46,Setup!H46),Setup!H46) -> 18965 | AO46: 0 | AP46: =IF(AO46=1,INDEX('Needs and Priorities'!$D$49:$D$96,MATCH(Setup!D46,'Needs and Priorities'!$B$49:$B$96,0)),0) -> 0 | AQ46: =IFERROR(INDEX('Stakeholders Survey'!$K$24:$K$159,MATCH(D46&E46,'Stakeholders Survey'!$M$24:$M$159,0)),0) -> 0
A47: 16 | B47: =Setup!AG47 ->  | C47: =Setup!AH47 ->  | D47: =IF(ISBLANK(LISTS!D20),"",LISTS!D20) -> NT4 | E47: =IF(ISBLANK(LISTS!E20),"",LISTS!E20) -> RE5 | F47: =IF(ISBLANK(LISTS!L20),"",LISTS!L20) -> No. of employees (FTE) hired on the contract who are Not in Employment, Education, or Training (NEETs) as a result of a recruitment programme | G47: ✓ | H47: =IF(ISBLANK(LISTS!N20),"",LISTS!N20) -> 13636 | I47: =IF(ISBLANK(LISTS!O20),"",LISTS!O20) -> No. people FTE | P47: =Setup!G47="✓" -> TRUE | Q47: =IF(NOT(ISBLANK(LISTS!F20)),1,0) -> 1 | R47: =IF(NOT(ISBLANK(LISTS!G20)),1,0) -> 0 | S47: =IF(NOT(ISBLANK(LISTS!H20)),1,0) -> 0 | T47: =IF(NOT(ISBLANK(LISTS!I20)),1,0) -> 1 | U47: =IF(NOT(ISBLANK(LISTS!J20)),1,0) -> 0 | V47: =IF(LISTS!K20="y",1,0) -> 0 | W47: TRUE | X47: TRUE | Y47: ✓ | Z47: TRUE | AA47: =IF(LISTS!B20=0,AA46,LISTS!B20) -> Jobs: Promote Local Skills and Employment | AB47: =IF(LISTS!C20=0,AB46,LISTS!C20) -> More opportunities for disadvantaged people | AC47: Jobs: Promote Local Skills and Employment | AD47: More opportunities for disadvantaged people | AE47: =IF(AND($X47,MATCH(AC47,AC$36:AC$185,0)=Setup!$A47-4),AA47,"") ->  | AF47: =IF(AND($X47,MATCH(AD47,AD$36:AD$185,0)=Setup!$A47-4),AB47,"") ->  | AG47: =IF(AND($X47,MATCH(AC47,AC$32:AC$185,0)=Setup!$A47),AA47,"") ->  | AH47: =IF(AND($X47,MATCH(AD47,AD$32:AD$185,0)=Setup!$A47),AB47,"") ->  | AI47: 12 | AJ47: 12 | AK47: 16 | AL47: 16 | AM47: =IF(AND(NOT(ISBLANK(Setup!J47)),OR(ISNUMBER(Setup!K47),K47="Enter localised proxy in calculator")),Setup!J47,Setup!I47) -> No. people FTE | AN47: =IF(ISNUMBER(Setup!H47),IF(AND(NOT(ISBLANK(Setup!J47)),ISNUMBER(Setup!K47)),Setup!H47*Setup!K47,Setup!H47),Setup!H47) -> 13636 | AO47: 1 | AP47: =IF(AO47=1,INDEX('Needs and Priorities'!$D$49:$D$96,MATCH(Setup!D47,'Needs and Priorities'!$B$49:$B$96,0)),0) -> 0 | AQ47: =IFERROR(INDEX('Stakeholders Survey'!$K$24:$K$159,MATCH(D47&E47,'Stakeholders Survey'!$M$24:$M$159,0)),0) -> 0
A48: 17 | B48: =Setup!AG48 ->  | C48: =Setup!AH48 ->  | D48: =IF(ISBLANK(LISTS!D21),"",LISTS!D21) -> NT4a | E48: =IF(ISBLANK(LISTS!E21),"",LISTS!E21) ->  | F48: =IF(ISBLANK(LISTS!L21),"",LISTS!L21) -> No. of 16-25 y.o. care leavers (FTE) hired on the contract as a result of a recruitment programme | G48: ✓ | H48: =IF(ISBLANK(LISTS!N21),"",LISTS!N21) -> 13636 | I48: =IF(ISBLANK(LISTS!O21),"",LISTS!O21) -> No. people FTE | P48: =Setup!G48="✓" -> TRUE | Q48: =IF(NOT(ISBLANK(LISTS!F21)),1,0) -> 0 | R48: =IF(NOT(ISBLANK(LISTS!G21)),1,0) -> 1 | S48: =IF(NOT(ISBLANK(LISTS!H21)),1,0) -> 0 | T48: =IF(NOT(ISBLANK(LISTS!I21)),1,0) -> 0 | U48: =IF(NOT(ISBLANK(LISTS!J21)),1,0) -> 0 | V48: =IF(LISTS!K21="y",1,0) -> 0 | W48: TRUE | X48: TRUE | Y48: ✓ | Z48: TRUE | AA48: =IF(LISTS!B21=0,AA47,LISTS!B21) -> Jobs: Promote Local Skills and Employment | AB48: =IF(LISTS!C21=0,AB47,LISTS!C21) -> More opportunities for disadvantaged people | AC48: Jobs: Promote Local Skills and Employment | AD48: More opportunities for disadvantaged people | AE48: =IF(AND($X48,MATCH(AC48,AC$36:AC$185,0)=Setup!$A48-4),AA48,"") ->  | AF48: =IF(AND($X48,MATCH(AD48,AD$36:AD$185,0)=Setup!$A48-4),AB48,"") ->  | AG48: =IF(AND($X48,MATCH(AC48,AC$32:AC$185,0)=Setup!$A48),AA48,"") ->  | AH48: =IF(AND($X48,MATCH(AD48,AD$32:AD$185,0)=Setup!$A48),AB48,"") ->  | AI48: 13 | AJ48: 13 | AK48: 17 | AL48: 17 | AM48: =IF(AND(NOT(ISBLANK(Setup!J48)),OR(ISNUMBER(Setup!K48),K48="Enter localised proxy in calculator")),Setup!J48,Setup!I48) -> No. people FTE | AN48: =IF(ISNUMBER(Setup!H48),IF(AND(NOT(ISBLANK(Setup!J48)),ISNUMBER(Setup!K48)),Setup!H48*Setup!K48,Setup!H48),Setup!H48) -> 13636 | AO48: 0 | AP48: =IF(AO48=1,INDEX('Needs and Priorities'!$D$49:$D$96,MATCH(Setup!D48,'Needs and Priorities'!$B$49:$B$96,0)),0) -> 0 | AQ48: =IFERROR(INDEX('Stakeholders Survey'!$K$24:$K$159,MATCH(D48&E48,'Stakeholders Survey'!$M$24:$M$159,0)),0) -> 0
A49: 18 | B49: =Setup!AG49 ->  | C49: =Setup!AH49 ->  | D49: =IF(ISBLANK(LISTS!D22),"",LISTS!D22) -> NT5 | E49: =IF(ISBLANK(LISTS!E22),"",LISTS!E22) -> RE6 | F49: =IF(ISBLANK(LISTS!L22),"",LISTS!L22) -> No. of 18+ y.o. employees (FTE) hired on the contract who are rehabilitating or ex offenders as a result of a recruitment programme | G49: ✓ | H49: =IF(ISBLANK(LISTS!N22),"",LISTS!N22) -> 23119 | I49: =IF(ISBLANK(LISTS!O22),"",LISTS!O22) -> No. people FTE | P49: =Setup!G49="✓" -> TRUE | Q49: =IF(NOT(ISBLANK(LISTS!F22)),1,0) -> 1 | R49: =IF(NOT(ISBLANK(LISTS!G22)),1,0) -> 0 | S49: =IF(NOT(ISBLANK(LISTS!H22)),1,0) -> 0 | T49: =IF(NOT(ISBLANK(LISTS!I22)),1,0) -> 1 | U49: =IF(NOT(ISBLANK(LISTS!J22)),1,0) -> 0 | V49: =IF(LISTS!K22="y",1,0) -> 0 | W49: TRUE | X49: TRUE | Y49: ✓ | Z49: TRUE | AA49: =IF(LISTS!B22=0,AA48,LISTS!B22) -> Jobs: Promote Local Skills and Employment | AB49: =IF(LISTS!C22=0,AB48,LISTS!C22) -> More opportunities for disadvantaged people | AC49: Jobs: Promote Local Skills and Employment | AD49: More opportunities for disadvantaged people | AE49: =IF(AND($X49,MATCH(AC49,AC$36:AC$185,0)=Setup!$A49-4),AA49,"") ->  | AF49: =IF(AND($X49,MATCH(AD49,AD$36:AD$185,0)=Setup!$A49-4),AB49,"") ->  | AG49: =IF(AND($X49,MATCH(AC49,AC$32:AC$185,0)=Setup!$A49),AA49,"") ->  | AH49: =IF(AND($X49,MATCH(AD49,AD$32:AD$185,0)=Setup!$A49),AB49,"") ->  | AI49: 14 | AJ49: 14 | AK49: 18 | AL49: 18 | AM49: =IF(AND(NOT(ISBLANK(Setup!J49)),OR(ISNUMBER(Setup!K49),K49="Enter localised proxy in calculator")),Setup!J49,Setup!I49) -> No. people FTE | AN49: =IF(ISNUMBER(Setup!H49),IF(AND(NOT(ISBLANK(Setup!J49)),ISNUMBER(Setup!K49)),Setup!H49*Setup!K49,Setup!H49),Setup!H49) -> 23119 | AO49: 1 | AP49: =IF(AO49=1,INDEX('Needs and Priorities'!$D$49:$D$96,MATCH(Setup!D49,'Needs and Priorities'!$B$49:$B$96,0)),0) -> 0 | AQ49: =IFERROR(INDEX('Stakeholders Survey'!$K$24:$K$159,MATCH(D49&E49,'Stakeholders Survey'!$M$24:$M$159,0)),0) -> 0
A50: 19 | B50: =Setup!AG50 ->  | C50: =Setup!AH50 ->  | D50: =IF(ISBLANK(LISTS!D23),"",LISTS!D23) -> NT5a | E50: =IF(ISBLANK(LISTS!E23),"",LISTS!E23) ->  | F50: =IF(ISBLANK(LISTS!L23),"",LISTS!L23) -> No. of 18-24 y.o. employees (FTE) hired on the contract who are rehabilitating young offenders as a result of a recruitment programme | G50: ✓ | H50: =IF(ISBLANK(LISTS!N23),"",LISTS!N23) -> 22162 | I50: =IF(ISBLANK(LISTS!O23),"",LISTS!O23) -> No. people FTE | P50: =Setup!G50="✓" -> TRUE | Q50: =IF(NOT(ISBLANK(LISTS!F23)),1,0) -> 0 | R50: =IF(NOT(ISBLANK(LISTS!G23)),1,0) -> 1 | S50: =IF(NOT(ISBLANK(LISTS!H23)),1,0) -> 0 | T50: =IF(NOT(ISBLANK(LISTS!I23)),1,0) -> 0 | U50: =IF(NOT(ISBLANK(LISTS!J23)),1,0) -> 0 | V50: =IF(LISTS!K23="y",1,0) -> 0 | W50: TRUE | X50: TRUE | Y50: ✓ | Z50: TRUE | AA50: =IF(LISTS!B23=0,AA49,LISTS!B23) -> Jobs: Promote Local Skills and Employment | AB50: =IF(LISTS!C23=0,AB49,LISTS!C23) -> More opportunities for disadvantaged people | AC50: Jobs: Promote Local Skills and Employment | AD50: More opportunities for disadvantaged people | AE50: =IF(AND($X50,MATCH(AC50,AC$36:AC$185,0)=Setup!$A50-4),AA50,"") ->  | AF50: =IF(AND($X50,MATCH(AD50,AD$36:AD$185,0)=Setup!$A50-4),AB50,"") ->  | AG50: =IF(AND($X50,MATCH(AC50,AC$32:AC$185,0)=Setup!$A50),AA50,"") ->  | AH50: =IF(AND($X50,MATCH(AD50,AD$32:AD$185,0)=Setup!$A50),AB50,"") ->  | AI50: 15 | AJ50: 15 | AK50: 19 | AL50: 19 | AM50: =IF(AND(NOT(ISBLANK(Setup!J50)),OR(ISNUMBER(Setup!K50),K50="Enter localised proxy in calculator")),Setup!J50,Setup!I50) -> No. people FTE | AN50: =IF(ISNUMBER(Setup!H50),IF(AND(NOT(ISBLANK(Setup!J50)),ISNUMBER(Setup!K50)),Setup!H50*Setup!K50,Setup!H50),Setup!H50) -> 22162 | AO50: 0 | AP50: =IF(AO50=1,INDEX('Needs and Priorities'!$D$49:$D$96,MATCH(Setup!D50,'Needs and Priorities'!$B$49:$B$96,0)),0) -> 0 | AQ50: =IFERROR(INDEX('Stakeholders Survey'!$K$24:$K$159,MATCH(D50&E50,'Stakeholders Survey'!$M$24:$M$159,0)),0) -> 0
A51: 20 | B51: =Setup!AG51 ->  | C51: =Setup!AH51 ->  | D51: =IF(ISBLANK(LISTS!D24),"",LISTS!D24) -> NT6 | E51: =IF(ISBLANK(LISTS!E24),"",LISTS!E24) -> RE7 | F51: =IF(ISBLANK(LISTS!L24),"",LISTS!L24) -> No. of disabled employees (FTE) hired on the contract as a result of a recruitment programme | G51: ✓ | H51: =IF(ISBLANK(LISTS!N24),"",LISTS!N24) -> 15166 | I51: =IF(ISBLANK(LISTS!O24),"",LISTS!O24) -> No. people FTE | P51: =Setup!G51="✓" -> TRUE | Q51: =IF(NOT(ISBLANK(LISTS!F24)),1,0) -> 1 | R51: =IF(NOT(ISBLANK(LISTS!G24)),1,0) -> 0 | S51: =IF(NOT(ISBLANK(LISTS!H24)),1,0) -> 0 | T51: =IF(NOT(ISBLANK(LISTS!I24)),1,0) -> 1 | U51: =IF(NOT(ISBLANK(LISTS!J24)),1,0) -> 0 | V51: =IF(LISTS!K24="y",1,0) -> 0 | W51: TRUE | X51: TRUE | Y51: ✓ | Z51: TRUE | AA51: =IF(LISTS!B24=0,AA50,LISTS!B24) -> Jobs: Promote Local Skills and Employment | AB51: =IF(LISTS!C24=0,AB50,LISTS!C24) -> More opportunities for disadvantaged people | AC51: Jobs: Promote Local Skills and Employment | AD51: More opportunities for disadvantaged people | AE51: =IF(AND($X51,MATCH(AC51,AC$36:AC$185,0)=Setup!$A51-4),AA51,"") ->  | AF51: =IF(AND($X51,MATCH(AD51,AD$36:AD$185,0)=Setup!$A51-4),AB51,"") ->  | AG51: =IF(AND($X51,MATCH(AC51,AC$32:AC$185,0)=Setup!$A51),AA51,"") ->  | AH51: =IF(AND($X51,MATCH(AD51,AD$32:AD$185,0)=Setup!$A51),AB51,"") ->  | AI51: 16 | AJ51: 16 | AK51: 20 | AL51: 20 | AM51: =IF(AND(NOT(ISBLANK(Setup!J51)),OR(ISNUMBER(Setup!K51),K51="Enter localised proxy in calculator")),Setup!J51,Setup!I51) -> No. people FTE | AN51: =IF(ISNUMBER(Setup!H51),IF(AND(NOT(ISBLANK(Setup!J51)),ISNUMBER(Setup!K51)),Setup!H51*Setup!K51,Setup!H51),Setup!H51) -> 15166 | AO51: 1 | AP51: =IF(AO51=1,INDEX('Needs and Priorities'!$D$49:$D$96,MATCH(Setup!D51,'Needs and Priorities'!$B$49:$B$96,0)),0) -> 0 | AQ51: =IFERROR(INDEX('Stakeholders Survey'!$K$24:$K$159,MATCH(D51&E51,'Stakeholders Survey'!$M$24:$M$159,0)),0) -> 0
A52: 21 | B52: =Setup!AG52 ->  | C52: =Setup!AH52 ->  | D52: =IF(ISBLANK(LISTS!D25),"",LISTS!D25) -> NT6a | E52: =IF(ISBLANK(LISTS!E25),"",LISTS!E25) ->  | F52: =IF(ISBLANK(LISTS!L25),"",LISTS!L25) -> No. of armed forces veterans employees (FTE) hired on the contract as a result of a recruitment programme who are disabled and are facing specific barriers to transitioning to civilian employment (e.g. physical injury, medical discharge, psychological condition) No. of armed forces veterans employees (FTE) hired on the contract as a result of a recruitment programme | G52: ✓ | H52: =IF(ISBLANK(LISTS!N25),"",LISTS!N25) -> 15166 | I52: =IF(ISBLANK(LISTS!O25),"",LISTS!O25) -> No. people FTE | P52: =Setup!G52="✓" -> TRUE | Q52: =IF(NOT(ISBLANK(LISTS!F25)),1,0) -> 0 | R52: =IF(NOT(ISBLANK(LISTS!G25)),1,0) -> 1 | S52: =IF(NOT(ISBLANK(LISTS!H25)),1,0) -> 0 | T52: =IF(NOT(ISBLANK(LISTS!I25)),1,0) -> 0 | U52: =IF(NOT(ISBLANK(LISTS!J25)),1,0) -> 0 | V52: =IF(LISTS!K25="y",1,0) -> 0 | W52: TRUE | X52: TRUE | Y52: ✓ | Z52: TRUE | AA52: =IF(LISTS!B25=0,AA51,LISTS!B25) -> Jobs: Promote Local Skills and Employment | AB52: =IF(LISTS!C25=0,AB51,LISTS!C25) -> More opportunities for disadvantaged people | AC52: Jobs: Promote Local Skills and Employment | AD52: More opportunities for disadvantaged people | AE52: =IF(AND($X52,MATCH(AC52,AC$36:AC$185,0)=Setup!$A52-4),AA52,"") ->  | AF52: =IF(AND($X52,MATCH(AD52,AD$36:AD$185,0)=Setup!$A52-4),AB52,"") ->  | AG52: =IF(AND($X52,MATCH(AC52,AC$32:AC$185,0)=Setup!$A52),AA52,"") ->  | AH52: =IF(AND($X52,MATCH(AD52,AD$32:AD$185,0)=Setup!$A52),AB52,"") ->  | AI52: 17 | AJ52: 17 | AK52: 21 | AL52: 21 | AM52: =IF(AND(NOT(ISBLANK(Setup!J52)),OR(ISNUMBER(Setup!K52),K52="Enter localised proxy in calculator")),Setup!J52,Setup!I52) -> No. people FTE | AN52: =IF(ISNUMBER(Setup!H52),IF(AND(NOT(ISBLANK(Setup!J52)),ISNUMBER(Setup!K52)),Setup!H52*Setup!K52,Setup!H52),Setup!H52) -> 15166 | AO52: 0 | AP52: =IF(AO52=1,INDEX('Needs and Priorities'!$D$49:$D$96,MATCH(Setup!D52,'Needs and Priorities'!$B$49:$B$96,0)),0) -> 0 | AQ52: =IFERROR(INDEX('Stakeholders Survey'!$K$24:$K$159,MATCH(D52&E52,'Stakeholders Survey'!$M$24:$M$159,0)),0) -> 0
A53: 22 | B53: =Setup!AG53 ->  | C53: =Setup!AH53 ->  | D53: =IF(ISBLANK(LISTS!D26),"",LISTS!D26) ->  | E53: =IF(ISBLANK(LISTS!E26),"",LISTS!E26) -> RE57 | F53: =IF(ISBLANK(LISTS!L26),"",LISTS!L26) -> Percentage of women (FTE) hired on the contract | G53: ✓ | H53: =IF(ISBLANK(LISTS!N26),"",LISTS!N26) -> Record only | I53: =IF(ISBLANK(LISTS!O26),"",LISTS!O26) -> % | J53: - | K53: - | L53: - | P53: =Setup!G53="✓" -> TRUE | Q53: =IF(NOT(ISBLANK(LISTS!F26)),1,0) -> 0 | R53: =IF(NOT(ISBLANK(LISTS!G26)),1,0) -> 0 | S53: =IF(NOT(ISBLANK(LISTS!H26)),1,0) -> 0 | T53: =IF(NOT(ISBLANK(LISTS!I26)),1,0) -> 1 | U53: =IF(NOT(ISBLANK(LISTS!J26)),1,0) -> 0 | V53: =IF(LISTS!K26="y",1,0) -> 0 | W53: TRUE | X53: TRUE | Y53: ✓ | Z53: TRUE | AA53: =IF(LISTS!B26=0,AA52,LISTS!B26) -> Jobs: Promote Local Skills and Employment | AB53: =IF(LISTS!C26=0,AB52,LISTS!C26) -> More opportunities for disadvantaged people | AC53: Jobs: Promote Local Skills and Employment | AD53: More opportunities for disadvantaged people | AE53: =IF(AND($X53,MATCH(AC53,AC$36:AC$185,0)=Setup!$A53-4),AA53,"") ->  | AF53: =IF(AND($X53,MATCH(AD53,AD$36:AD$185,0)=Setup!$A53-4),AB53,"") ->  | AG53: =IF(AND($X53,MATCH(AC53,AC$32:AC$185,0)=Setup!$A53),AA53,"") ->  | AH53: =IF(AND($X53,MATCH(AD53,AD$32:AD$185,0)=Setup!$A53),AB53,"") ->  | AI53: 18 | AJ53: 18 | AK53: 22 | AL53: 22 | AM53: =IF(AND(NOT(ISBLANK(Setup!J53)),OR(ISNUMBER(Setup!K53),K53="Enter localised proxy in calculator")),Setup!J53,Setup!I53) -> % | AN53: =IF(ISNUMBER(Setup!H53),IF(AND(NOT(ISBLANK(Setup!J53)),ISNUMBER(Setup!K53)),Setup!H53*Setup!K53,Setup!H53),Setup!H53) -> Record only | AO53: 0 | AP53: =IF(AO53=1,INDEX('Needs and Priorities'!$D$49:$D$96,MATCH(Setup!D53,'Needs and Priorities'!$B$49:$B$96,0)),0) -> 0 | AQ53: =IFERROR(INDEX('Stakeholders Survey'!$K$24:$K$159,MATCH(D53&E53,'Stakeholders Survey'!$M$24:$M$159,0)),0) -> 0
A54: 23 | B54: =Setup!AG54 ->  | C54: =Setup!AH54 ->  | D54: =IF(ISBLANK(LISTS!D27),"",LISTS!D27) ->  | E54: =IF(ISBLANK(LISTS!E27),"",LISTS!E27) -> RE58 | F54: =IF(ISBLANK(LISTS!L27),"",LISTS!L27) -> Percentage of employees (FTE) BAME hired on the contract | G54: ✓ | H54: =IF(ISBLANK(LISTS!N27),"",LISTS!N27) -> Record only | I54: =IF(ISBLANK(LISTS!O27),"",LISTS!O27) -> % | J54: - | K54: - | L54: - | P54: =Setup!G54="✓" -> TRUE | Q54: =IF(NOT(ISBLANK(LISTS!F27)),1,0) -> 0 | R54: =IF(NOT(ISBLANK(LISTS!G27)),1,0) -> 0 | S54: =IF(NOT(ISBLANK(LISTS!H27)),1,0) -> 0 | T54: =IF(NOT(ISBLANK(LISTS!I27)),1,0) -> 1 | U54: =IF(NOT(ISBLANK(LISTS!J27)),1,0) -> 0 | V54: =IF(LISTS!K27="y",1,0) -> 0 | W54: TRUE | X54: TRUE | Y54: ✓ | Z54: TRUE | AA54: =IF(LISTS!B27=0,AA53,LISTS!B27) -> Jobs: Promote Local Skills and Employment | AB54: =IF(LISTS!C27=0,AB53,LISTS!C27) -> More opportunities for disadvantaged people | AC54: Jobs: Promote Local Skills and Employment | AD54: More opportunities for disadvantaged people | AE54: =IF(AND($X54,MATCH(AC54,AC$36:AC$185,0)=Setup!$A54-4),AA54,"") ->  | AF54: =IF(AND($X54,MATCH(AD54,AD$36:AD$185,0)=Setup!$A54-4),AB54,"") ->  | AG54: =IF(AND($X54,MATCH(AC54,AC$32:AC$185,0)=Setup!$A54),AA54,"") ->  | AH54: =IF(AND($X54,MATCH(AD54,AD$32:AD$185,0)=Setup!$A54),AB54,"") ->  | AI54: 19 | AJ54: 19 | AK54: 23 | AL54: 23 | AM54: =IF(AND(NOT(ISBLANK(Setup!J54)),OR(ISNUMBER(Setup!K54),K54="Enter localised proxy in calculator")),Setup!J54,Setup!I54) -> % | AN54: =IF(ISNUMBER(Setup!H54),IF(AND(NOT(ISBLANK(Setup!J54)),ISNUMBER(Setup!K54)),Setup!H54*Setup!K54,Setup!H54),Setup!H54) -> Record only | AO54: 0 | AP54: =IF(AO54=1,INDEX('Needs and Priorities'!$D$49:$D$96,MATCH(Setup!D54,'Needs and Priorities'!$B$49:$B$96,0)),0) -> 0 | AQ54: =IFERROR(INDEX('Stakeholders Survey'!$K$24:$K$159,MATCH(D54&E54,'Stakeholders Survey'!$M$24:$M$159,0)),0) -> 0
A55: 24 | B55: =Setup!AG55 ->  | C55: =Setup!AH55 ->  | D55: =IF(ISBLANK(LISTS!D28),"",LISTS!D28) ->  | E55: =IF(ISBLANK(LISTS!E28),"",LISTS!E28) -> RE71 | F55: =IF(ISBLANK(LISTS!L28),"",LISTS!L28) -> Specific initiatives or recruitment programmes for women run for the contract (Y/N) | G55: ✓ | H55: =IF(ISBLANK(LISTS!N28),"",LISTS!N28) -> Record only | I55: =IF(ISBLANK(LISTS!O28),"",LISTS!O28) -> Y/N - Provide description | J55: - | K55: - | L55: - | P55: =Setup!G55="✓" -> TRUE | Q55: =IF(NOT(ISBLANK(LISTS!F28)),1,0) -> 0 | R55: =IF(NOT(ISBLANK(LISTS!G28)),1,0) -> 0 | S55: =IF(NOT(ISBLANK(LISTS!H28)),1,0) -> 0 | T55: =IF(NOT(ISBLANK(LISTS!I28)),1,0) -> 0 | U55: =IF(NOT(ISBLANK(LISTS!J28)),1,0) -> 1 | V55: =IF(LISTS!K28="y",1,0) -> 0 | W55: TRUE | X55: TRUE | Y55: ✓ | Z55: TRUE | AA55: =IF(LISTS!B28=0,AA54,LISTS!B28) -> Jobs: Promote Local Skills and Employment | AB55: =IF(LISTS!C28=0,AB54,LISTS!C28) -> More opportunities for disadvantaged people | AC55: Jobs: Promote Local Skills and Employment | AD55: More opportunities for disadvantaged people | AE55: =IF(AND($X55,MATCH(AC55,AC$36:AC$185,0)=Setup!$A55-4),AA55,"") ->  | AF55: =IF(AND($X55,MATCH(AD55,AD$36:AD$185,0)=Setup!$A55-4),AB55,"") ->  | AG55: =IF(AND($X55,MATCH(AC55,AC$32:AC$185,0)=Setup!$A55),AA55,"") ->  | AH55: =IF(AND($X55,MATCH(AD55,AD$32:AD$185,0)=Setup!$A55),AB55,"") ->  | AI55: 20 | AJ55: 20 | AK55: 24 | AL55: 24 | AM55: =IF(AND(NOT(ISBLANK(Setup!J55)),OR(ISNUMBER(Setup!K55),K55="Enter localised proxy in calculator")),Setup!J55,Setup!I55) -> Y/N - Provide description | AN55: =IF(ISNUMBER(Setup!H55),IF(AND(NOT(ISBLANK(Setup!J55)),ISNUMBER(Setup!K55)),Setup!H55*Setup!K55,Setup!H55),Setup!H55) -> Record only | AO55: 0 | AP55: =IF(AO55=1,INDEX('Needs and Priorities'!$D$49:$D$96,MATCH(Setup!D55,'Needs and Priorities'!$B$49:$B$96,0)),0) -> 0 | AQ55: =IFERROR(INDEX('Stakeholders Survey'!$K$24:$K$159,MATCH(D55&E55,'Stakeholders Survey'!$M$24:$M$159,0)),0) -> 0
A56: 25 | B56: =Setup!AG56 ->  | C56: =Setup!AH56 ->  | D56: =IF(ISBLANK(LISTS!D29),"",LISTS!D29) ->  | E56: =IF(ISBLANK(LISTS!E29),"",LISTS!E29) -> RE72 | F56: =IF(ISBLANK(LISTS!L29),"",LISTS!L29) -> Specific initiatives or recruitment programmes for BAME run for the contract (Y/N) | G56: ✓ | H56: =IF(ISBLANK(LISTS!N29),"",LISTS!N29) -> Record only | I56: =IF(ISBLANK(LISTS!O29),"",LISTS!O29) -> Y/N - Provide description | J56: - | K56: - | L56: - | P56: =Setup!G56="✓" -> TRUE | Q56: =IF(NOT(ISBLANK(LISTS!F29)),1,0) -> 0 | R56: =IF(NOT(ISBLANK(LISTS!G29)),1,0) -> 0 | S56: =IF(NOT(ISBLANK(LISTS!H29)),1,0) -> 0 | T56: =IF(NOT(ISBLANK(LISTS!I29)),1,0) -> 0 | U56: =IF(NOT(ISBLANK(LISTS!J29)),1,0) -> 1 | V56: =IF(LISTS!K29="y",1,0) -> 0 | W56: TRUE | X56: TRUE | Y56: ✓ | Z56: TRUE | AA56: =IF(LISTS!B29=0,AA55,LISTS!B29) -> Jobs: Promote Local Skills and Employment | AB56: =IF(LISTS!C29=0,AB55,LISTS!C29) -> More opportunities for disadvantaged people | AC56: Jobs: Promote Local Skills and Employment | AD56: More opportunities for disadvantaged people | AE56: =IF(AND($X56,MATCH(AC56,AC$36:AC$185,0)=Setup!$A56-4),AA56,"") ->  | AF56: =IF(AND($X56,MATCH(AD56,AD$36:AD$185,0)=Setup!$A56-4),AB56,"") ->  | AG56: =IF(AND($X56,MATCH(AC56,AC$32:AC$185,0)=Setup!$A56),AA56,"") ->  | AH56: =IF(AND($X56,MATCH(AD56,AD$32:AD$185,0)=Setup!$A56),AB56,"") ->  | AI56: 21 | AJ56: 21 | AK56: 25 | AL56: 25 | AM56: =IF(AND(NOT(ISBLANK(Setup!J56)),OR(ISNUMBER(Setup!K56),K56="Enter localised proxy in calculator")),Setup!J56,Setup!I56) -> Y/N - Provide description | AN56: =IF(ISNUMBER(Setup!H56),IF(AND(NOT(ISBLANK(Setup!J56)),ISNUMBER(Setup!K56)),Setup!H56*Setup!K56,Setup!H56),Setup!H56) -> Record only | AO56: 0 | AP56: =IF(AO56=1,INDEX('Needs and Priorities'!$D$49:$D$96,MATCH(Setup!D56,'Needs and Priorities'!$B$49:$B$96,0)),0) -> 0 | AQ56: =IFERROR(INDEX('Stakeholders Survey'!$K$24:$K$159,MATCH(D56&E56,'Stakeholders Survey'!$M$24:$M$159,0)),0) -> 0
A57: 26 | B57: =Setup!AG57 ->  | C57: =Setup!AH57 ->  | D57: =IF(ISBLANK(LISTS!D30),"",LISTS!D30) -> NT7 | E57: =IF(ISBLANK(LISTS!E30),"",LISTS!E30) -> RE8 | F57: =IF(ISBLANK(LISTS!L30),"",LISTS!L30) -> No. of hours of support into work provided to unemployed people through career mentoring, including mock interviews, CV advice, and careers guidance -(over 24 y.o.) | G57: ✓ | H57: =IF(ISBLANK(LISTS!N30),"",LISTS!N30) -> 125.62 | I57: =IF(ISBLANK(LISTS!O30),"",LISTS!O30) -> No. hrs (total session duration)*no. attendees | L57: =IF(ISNUMBER(H57),IF(NOT(ISBLANK(J57)),IF(NOT(ISNUMBER(K57)),"Please enter a valid conversion factor","£"&ROUND(H57*K57,2)&"/"&IF(RIGHT(J57,1)="s",LEFT(J57,LEN(J57)-1),J57)),""),"n/a") ->  | P57: =Setup!G57="✓" -> TRUE | Q57: =IF(NOT(ISBLANK(LISTS!F30)),1,0) -> 1 | R57: =IF(NOT(ISBLANK(LISTS!G30)),1,0) -> 0 | S57: =IF(NOT(ISBLANK(LISTS!H30)),1,0) -> 0 | T57: =IF(NOT(ISBLANK(LISTS!I30)),1,0) -> 1 | U57: =IF(NOT(ISBLANK(LISTS!J30)),1,0) -> 0 | V57: =IF(LISTS!K30="y",1,0) -> 0 | W57: TRUE | X57: TRUE | Y57: ✓ | Z57: TRUE | AA57: =IF(LISTS!B30=0,AA56,LISTS!B30) -> Jobs: Promote Local Skills and Employment | AB57: =IF(LISTS!C30=0,AB56,LISTS!C30) -> More opportunities for disadvantaged people | AC57: Jobs: Promote Local Skills and Employment | AD57: More opportunities for disadvantaged people | AE57: =IF(AND($X57,MATCH(AC57,AC$36:AC$185,0)=Setup!$A57-4),AA57,"") ->  | AF57: =IF(AND($X57,MATCH(AD57,AD$36:AD$185,0)=Setup!$A57-4),AB57,"") ->  | AG57: =IF(AND($X57,MATCH(AC57,AC$32:AC$185,0)=Setup!$A57),AA57,"") ->  | AH57: =IF(AND($X57,MATCH(AD57,AD$32:AD$185,0)=Setup!$A57),AB57,"") ->  | AI57: 22 | AJ57: 22 | AK57: 26 | AL57: 26 | AM57: =IF(AND(NOT(ISBLANK(Setup!J57)),OR(ISNUMBER(Setup!K57),K57="Enter localised proxy in calculator")),Setup!J57,Setup!I57) -> No. hrs (total session duration)*no. attendees | AN57: =IF(ISNUMBER(Setup!H57),IF(AND(NOT(ISBLANK(Setup!J57)),ISNUMBER(Setup!K57)),Setup!H57*Setup!K57,Setup!H57),Setup!H57) -> 125.62 | AO57: 1 | AP57: =IF(AO57=1,INDEX('Needs and Priorities'!$D$49:$D$96,MATCH(Setup!D57,'Needs and Priorities'!$B$49:$B$96,0)),0) -> 0 | AQ57: =IFERROR(INDEX('Stakeholders Survey'!$K$24:$K$159,MATCH(D57&E57,'Stakeholders Survey'!$M$24:$M$159,0)),0) -> 0
A58: 27 | B58: =Setup!AG58 ->  | C58: =Setup!AH58 -> Improved skills | D58: =IF(ISBLANK(LISTS!D31),"",LISTS!D31) -> NT8 | E58: =IF(ISBLANK(LISTS!E31),"",LISTS!E31) -> RE9 | F58: =IF(ISBLANK(LISTS!L31),"",LISTS!L31) -> No. of staff hours spent on local school and college visits e.g. delivering careers talks, curriculum support, literacy support, safety talks (including preparation time) | G58: ✓ | H58: =IF(ISBLANK(LISTS!N31),"",LISTS!N31) -> 16.07 | I58: =IF(ISBLANK(LISTS!O31),"",LISTS!O31) -> No. staff hours | P58: =Setup!G58="✓" -> TRUE | Q58: =IF(NOT(ISBLANK(LISTS!F31)),1,0) -> 1 | R58: =IF(NOT(ISBLANK(LISTS!G31)),1,0) -> 0 | S58: =IF(NOT(ISBLANK(LISTS!H31)),1,0) -> 0 | T58: =IF(NOT(ISBLANK(LISTS!I31)),1,0) -> 1 | U58: =IF(NOT(ISBLANK(LISTS!J31)),1,0) -> 0 | V58: =IF(LISTS!K31="y",1,0) -> 0 | W58: TRUE | X58: TRUE | Y58: ✓ | Z58: TRUE | AA58: =IF(LISTS!B31=0,AA57,LISTS!B31) -> Jobs: Promote Local Skills and Employment | AB58: =IF(LISTS!C31=0,AB57,LISTS!C31) -> Improved skills | AC58: Jobs: Promote Local Skills and Employment | AD58: Improved skills | AE58: =IF(AND($X58,MATCH(AC58,AC$36:AC$185,0)=Setup!$A58-4),AA58,"") ->  | AF58: =IF(AND($X58,MATCH(AD58,AD$36:AD$185,0)=Setup!$A58-4),AB58,"") -> Improved skills | AG58: =IF(AND($X58,MATCH(AC58,AC$32:AC$185,0)=Setup!$A58),AA58,"") ->  | AH58: =IF(AND($X58,MATCH(AD58,AD$32:AD$185,0)=Setup!$A58),AB58,"") -> Improved skills | AI58: 23 | AJ58: 23 | AK58: 27 | AL58: 27 | AM58: =IF(AND(NOT(ISBLANK(Setup!J58)),OR(ISNUMBER(Setup!K58),K58="Enter localised proxy in calculator")),Setup!J58,Setup!I58) -> No. staff hours | AN58: =IF(ISNUMBER(Setup!H58),IF(AND(NOT(ISBLANK(Setup!J58)),ISNUMBER(Setup!K58)),Setup!H58*Setup!K58,Setup!H58),Setup!H58) -> 16.07 | AO58: 1 | AP58: =IF(AO58=1,INDEX('Needs and Priorities'!$D$49:$D$96,MATCH(Setup!D58,'Needs and Priorities'!$B$49:$B$96,0)),0) -> 0 | AQ58: =IFERROR(INDEX('Stakeholders Survey'!$K$24:$K$159,MATCH(D58&E58,'Stakeholders Survey'!$M$24:$M$159,0)),0) -> 0
A59: 28 | B59: =Setup!AG59 ->  | C59: =Setup!AH59 ->  | D59: =IF(ISBLANK(LISTS!D32),"",LISTS!D32) ->  | E59: =IF(ISBLANK(LISTS!E32),"",LISTS!E32) -> RE10 | F59: =IF(ISBLANK(LISTS!L32),"",LISTS!L32) -> No. site visits for school children or local residents | G59: ✓ | H59: =IF(ISBLANK(LISTS!N32),"",LISTS!N32) -> 64.28 | I59: =IF(ISBLANK(LISTS!O32),"",LISTS!O32) -> No. of visits | P59: =Setup!G59="✓" -> TRUE | Q59: =IF(NOT(ISBLANK(LISTS!F32)),1,0) -> 0 | R59: =IF(NOT(ISBLANK(LISTS!G32)),1,0) -> 0 | S59: =IF(NOT(ISBLANK(LISTS!H32)),1,0) -> 0 | T59: =IF(NOT(ISBLANK(LISTS!I32)),1,0) -> 1 | U59: =IF(NOT(ISBLANK(LISTS!J32)),1,0) -> 0 | V59: =IF(LISTS!K32="y",1,0) -> 0 | W59: TRUE | X59: TRUE | Y59: ✓ | Z59: TRUE | AA59: =IF(LISTS!B32=0,AA58,LISTS!B32) -> Jobs: Promote Local Skills and Employment | AB59: =IF(LISTS!C32=0,AB58,LISTS!C32) -> Improved skills | AC59: Jobs: Promote Local Skills and Employment | AD59: Improved skills | AE59: =IF(AND($X59,MATCH(AC59,AC$36:AC$185,0)=Setup!$A59-4),AA59,"") ->  | AF59: =IF(AND($X59,MATCH(AD59,AD$36:AD$185,0)=Setup!$A59-4),AB59,"") ->  | AG59: =IF(AND($X59,MATCH(AC59,AC$32:AC$185,0)=Setup!$A59),AA59,"") ->  | AH59: =IF(AND($X59,MATCH(AD59,AD$32:AD$185,0)=Setup!$A59),AB59,"") ->  | AI59: 24 | AJ59: 24 | AK59: 28 | AL59: 28 | AM59: =IF(AND(NOT(ISBLANK(Setup!J59)),OR(ISNUMBER(Setup!K59),K59="Enter localised proxy in calculator")),Setup!J59,Setup!I59) -> No. of visits | AN59: =IF(ISNUMBER(Setup!H59),IF(AND(NOT(ISBLANK(Setup!J59)),ISNUMBER(Setup!K59)),Setup!H59*Setup!K59,Setup!H59),Setup!H59) -> 64.28 | AO59: 0 | AP59: =IF(AO59=1,INDEX('Needs and Priorities'!$D$49:$D$96,MATCH(Setup!D59,'Needs and Priorities'!$B$49:$B$96,0)),0) -> 0 | AQ59: =IFERROR(INDEX('Stakeholders Survey'!$K$24:$K$159,MATCH(D59&E59,'Stakeholders Survey'!$M$24:$M$159,0)),0) -> 0
A60: 29 | B60: =Setup!AG60 ->  | C60: =Setup!AH60 ->  | D60: =IF(ISBLANK(LISTS!D33),"",LISTS!D33) -> NT9 | E60: =IF(ISBLANK(LISTS!E33),"",LISTS!E33) -> RE11 | F60: =IF(ISBLANK(LISTS!L33),"",LISTS!L33) -> No. of weeks of training opportunities on the contract (BTEC, City & Guilds, NVQ, HNC) that have either been completed during the year, or that will be supported by the organisation until completion in the following years - Level 2,3, or 4+ | G60: ✓ | H60: =IF(ISBLANK(LISTS!N33),"",LISTS!N33) -> 258.45 | I60: =IF(ISBLANK(LISTS!O33),"",LISTS!O33) -> No. weeks | P60: =Setup!G60="✓" -> TRUE | Q60: =IF(NOT(ISBLANK(LISTS!F33)),1,0) -> 1 | R60: =IF(NOT(ISBLANK(LISTS!G33)),1,0) -> 0 | S60: =IF(NOT(ISBLANK(LISTS!H33)),1,0) -> 0 | T60: =IF(NOT(ISBLANK(LISTS!I33)),1,0) -> 1 | U60: =IF(NOT(ISBLANK(LISTS!J33)),1,0) -> 0 | V60: =IF(LISTS!K33="y",1,0) -> 0 | W60: TRUE | X60: TRUE | Y60: ✓ | Z60: TRUE | AA60: =IF(LISTS!B33=0,AA59,LISTS!B33) -> Jobs: Promote Local Skills and Employment | AB60: =IF(LISTS!C33=0,AB59,LISTS!C33) -> Improved skills | AC60: Jobs: Promote Local Skills and Employment | AD60: Improved skills | AE60: =IF(AND($X60,MATCH(AC60,AC$36:AC$185,0)=Setup!$A60-4),AA60,"") ->  | AF60: =IF(AND($X60,MATCH(AD60,AD$36:AD$185,0)=Setup!$A60-4),AB60,"") ->  | AG60: =IF(AND($X60,MATCH(AC60,AC$32:AC$185,0)=Setup!$A60),AA60,"") ->  | AH60: =IF(AND($X60,MATCH(AD60,AD$32:AD$185,0)=Setup!$A60),AB60,"") ->  | AI60: 25 | AJ60: 25 | AK60: 29 | AL60: 29 | AM60: =IF(AND(NOT(ISBLANK(Setup!J60)),OR(ISNUMBER(Setup!K60),K60="Enter localised proxy in calculator")),Setup!J60,Setup!I60) -> No. weeks | AN60: =IF(ISNUMBER(Setup!H60),IF(AND(NOT(ISBLANK(Setup!J60)),ISNUMBER(Setup!K60)),Setup!H60*Setup!K60,Setup!H60),Setup!H60) -> 258.45 | AO60: 1 | AP60: =IF(AO60=1,INDEX('Needs and Priorities'!$D$49:$D$96,MATCH(Setup!D60,'Needs and Priorities'!$B$49:$B$96,0)),0) -> 0 | AQ60: =IFERROR(INDEX('Stakeholders Survey'!$K$24:$K$159,MATCH(D60&E60,'Stakeholders Survey'!$M$24:$M$159,0)),0) -> 0
A61: 30 | B61: =Setup!AG61 ->  | C61: =Setup!AH61 ->  | D61: =IF(ISBLANK(LISTS!D34),"",LISTS!D34) -> NT10 | E61: =IF(ISBLANK(LISTS!E34),"",LISTS!E34) -> RE12 | F61: =IF(ISBLANK(LISTS!L34),"",LISTS!L34) -> No. of weeks of apprenticeships on the contract that have either been completed during the year, or that will be supported by the organisation until completion in the following years - Level 2,3, or 4+ | G61: ✓ | H61: =IF(ISBLANK(LISTS!N34),"",LISTS!N34) -> 207.4 | I61: =IF(ISBLANK(LISTS!O34),"",LISTS!O34) -> No. weeks | P61: =Setup!G61="✓" -> TRUE | Q61: =IF(NOT(ISBLANK(LISTS!F34)),1,0) -> 1 | R61: =IF(NOT(ISBLANK(LISTS!G34)),1,0) -> 0 | S61: =IF(NOT(ISBLANK(LISTS!H34)),1,0) -> 0 | T61: =IF(NOT(ISBLANK(LISTS!I34)),1,0) -> 1 | U61: =IF(NOT(ISBLANK(LISTS!J34)),1,0) -> 0 | V61: =IF(LISTS!K34="y",1,0) -> 0 | W61: TRUE | X61: TRUE | Y61: ✓ | Z61: TRUE | AA61: =IF(LISTS!B34=0,AA60,LISTS!B34) -> Jobs: Promote Local Skills and Employment | AB61: =IF(LISTS!C34=0,AB60,LISTS!C34) -> Improved skills | AC61: Jobs: Promote Local Skills and Employment | AD61: Improved skills | AE61: =IF(AND($X61,MATCH(AC61,AC$36:AC$185,0)=Setup!$A61-4),AA61,"") ->  | AF61: =IF(AND($X61,MATCH(AD61,AD$36:AD$185,0)=Setup!$A61-4),AB61,"") ->  | AG61: =IF(AND($X61,MATCH(AC61,AC$32:AC$185,0)=Setup!$A61),AA61,"") ->  | AH61: =IF(AND($X61,MATCH(AD61,AD$32:AD$185,0)=Setup!$A61),AB61,"") ->  | AI61: 26 | AJ61: 26 | AK61: 30 | AL61: 30 | AM61: =IF(AND(NOT(ISBLANK(Setup!J61)),OR(ISNUMBER(Setup!K61),K61="Enter localised proxy in calculator")),Setup!J61,Setup!I61) -> No. weeks | AN61: =IF(ISNUMBER(Setup!H61),IF(AND(NOT(ISBLANK(Setup!J61)),ISNUMBER(Setup!K61)),Setup!H61*Setup!K61,Setup!H61),Setup!H61) -> 207.4 | AO61: 1 | AP61: =IF(AO61=1,INDEX('Needs and Priorities'!$D$49:$D$96,MATCH(Setup!D61,'Needs and Priorities'!$B$49:$B$96,0)),0) -> 0 | AQ61: =IFERROR(INDEX('Stakeholders Survey'!$K$24:$K$159,MATCH(D61&E61,'Stakeholders Survey'!$M$24:$M$159,0)),0) -> 0
A62: 31 | B62: =Setup!AG62 ->  | C62: =Setup!AH62 -> Improved skills for disadvantaged people | D62: =IF(ISBLANK(LISTS!D35),"",LISTS!D35) -> NT9a | E62: =IF(ISBLANK(LISTS!E35),"",LISTS!E35) ->  | F62: =IF(ISBLANK(LISTS!L35),"",LISTS!L35) -> No. of weeks of training opportunities on the contract (BTEC, City & Guilds, NVQ, HNC) that have either been completed during the year, or that will be supported by the organisation until completion in the following years - Level 2,3, or 4+ - delivered for groups specified in 'LISTNT9a' (e.g. NEETs, under-represented gender and ethnic groups, disabled, homeless, rehabilitating young offenders) | G62: ✓ | H62: =IF(ISBLANK(LISTS!N35),"",LISTS!N35) -> 258.45 | I62: =IF(ISBLANK(LISTS!O35),"",LISTS!O35) -> No. weeks | P62: =Setup!G62="✓" -> TRUE | Q62: =IF(NOT(ISBLANK(LISTS!F35)),1,0) -> 0 | R62: =IF(NOT(ISBLANK(LISTS!G35)),1,0) -> 1 | S62: =IF(NOT(ISBLANK(LISTS!H35)),1,0) -> 0 | T62: =IF(NOT(ISBLANK(LISTS!I35)),1,0) -> 0 | U62: =IF(NOT(ISBLANK(LISTS!J35)),1,0) -> 0 | V62: =IF(LISTS!K35="y",1,0) -> 0 | W62: TRUE | X62: TRUE | Y62: ✓ | Z62: TRUE | AA62: =IF(LISTS!B35=0,AA61,LISTS!B35) -> Jobs: Promote Local Skills and Employment | AB62: =IF(LISTS!C35=0,AB61,LISTS!C35) -> Improved skills for disadvantaged people | AC62: Jobs: Promote Local Skills and Employment | AD62: Improved skills for disadvantaged people | AE62: =IF(AND($X62,MATCH(AC62,AC$36:AC$185,0)=Setup!$A62-4),AA62,"") ->  | AF62: =IF(AND($X62,MATCH(AD62,AD$36:AD$185,0)=Setup!$A62-4),AB62,"") -> Improved skills for disadvantaged people | AG62: =IF(AND($X62,MATCH(AC62,AC$32:AC$185,0)=Setup!$A62),AA62,"") ->  | AH62: =IF(AND($X62,MATCH(AD62,AD$32:AD$185,0)=Setup!$A62),AB62,"") -> Improved skills for disadvantaged people | AI62: 27 | AJ62: 27 | AK62: 31 | AL62: 31 | AM62: =IF(AND(NOT(ISBLANK(Setup!J62)),OR(ISNUMBER(Setup!K62),K62="Enter localised proxy in calculator")),Setup!J62,Setup!I62) -> No. weeks | AN62: =IF(ISNUMBER(Setup!H62),IF(AND(NOT(ISBLANK(Setup!J62)),ISNUMBER(Setup!K62)),Setup!H62*Setup!K62,Setup!H62),Setup!H62) -> 258.45 | AO62: 0 | AP62: =IF(AO62=1,INDEX('Needs and Priorities'!$D$49:$D$96,MATCH(Setup!D62,'Needs and Priorities'!$B$49:$B$96,0)),0) -> 0 | AQ62: =IFERROR(INDEX('Stakeholders Survey'!$K$24:$K$159,MATCH(D62&E62,'Stakeholders Survey'!$M$24:$M$159,0)),0) -> 0
A63: 32 | B63: =Setup!AG63 ->  | C63: =Setup!AH63 ->  | D63: =IF(ISBLANK(LISTS!D36),"",LISTS!D36) -> NT10a | E63: =IF(ISBLANK(LISTS!E36),"",LISTS!E36) ->  | F63: =IF(ISBLANK(LISTS!L36),"",LISTS!L36) -> No. of weeks of apprenticeships on the contract that have either been completed during the year, or that will be supported by the organisation to completion in the following years - Level 2,3, or 4+ - delivered for groups specified in 'LIST NT10a' (e.g. NEETs, under-represented gender and ethnic groups, disabled, homeless, rehabilitating young offenders) | G63: ✓ | H63: =IF(ISBLANK(LISTS!N36),"",LISTS!N36) -> 207.4 | I63: =IF(ISBLANK(LISTS!O36),"",LISTS!O36) -> No. weeks | P63: =Setup!G63="✓" -> TRUE | Q63: =IF(NOT(ISBLANK(LISTS!F36)),1,0) -> 0 | R63: =IF(NOT(ISBLANK(LISTS!G36)),1,0) -> 1 | S63: =IF(NOT(ISBLANK(LISTS!H36)),1,0) -> 0 | T63: =IF(NOT(ISBLANK(LISTS!I36)),1,0) -> 0 | U63: =IF(NOT(ISBLANK(LISTS!J36)),1,0) -> 0 | V63: =IF(LISTS!K36="y",1,0) -> 0 | W63: TRUE | X63: TRUE | Y63: ✓ | Z63: TRUE | AA63: =IF(LISTS!B36=0,AA62,LISTS!B36) -> Jobs: Promote Local Skills and Employment | AB63: =IF(LISTS!C36=0,AB62,LISTS!C36) -> Improved skills for disadvantaged people | AC63: Jobs: Promote Local Skills and Employment | AD63: Improved skills for disadvantaged people | AE63: =IF(AND($X63,MATCH(AC63,AC$36:AC$185,0)=Setup!$A63-4),AA63,"") ->  | AF63: =IF(AND($X63,MATCH(AD63,AD$36:AD$185,0)=Setup!$A63-4),AB63,"") ->  | AG63: =IF(AND($X63,MATCH(AC63,AC$32:AC$185,0)=Setup!$A63),AA63,"") ->  | AH63: =IF(AND($X63,MATCH(AD63,AD$32:AD$185,0)=Setup!$A63),AB63,"") ->  | AI63: 28 | AJ63: 28 | AK63: 32 | AL63: 32 | AM63: =IF(AND(NOT(ISBLANK(Setup!J63)),OR(ISNUMBER(Setup!K63),K63="Enter localised proxy in calculator")),Setup!J63,Setup!I63) -> No. weeks | AN63: =IF(ISNUMBER(Setup!H63),IF(AND(NOT(ISBLANK(Setup!J63)),ISNUMBER(Setup!K63)),Setup!H63*Setup!K63,Setup!H63),Setup!H63) -> 207.4 | AO63: 0 | AP63: =IF(AO63=1,INDEX('Needs and Priorities'!$D$49:$D$96,MATCH(Setup!D63,'Needs and Priorities'!$B$49:$B$96,0)),0) -> 0 | AQ63: =IFERROR(INDEX('Stakeholders Survey'!$K$24:$K$159,MATCH(D63&E63,'Stakeholders Survey'!$M$24:$M$159,0)),0) -> 0
A64: 33 | B64: =Setup!AG64 ->  | C64: =Setup!AH64 -> Improved skills for a low carbon transition | D64: =IF(ISBLANK(LISTS!D37),"",LISTS!D37) -> NT54 | E64: =IF(ISBLANK(LISTS!E37),"",LISTS!E37) ->  | F64: =IF(ISBLANK(LISTS!L37),"",LISTS!L37) -> Support a ‘just transition’ for workers by supporting those in ‘traditional’ high carbon industries to retrain | G64: ✓ | H64: =IF(ISBLANK(LISTS!N37),"",LISTS!N37) -> 125.62 | I64: =IF(ISBLANK(LISTS!O37),"",LISTS!O37) -> No. hrs (total session duration)*no. attendees | P64: =Setup!G64="✓" -> TRUE | Q64: =IF(NOT(ISBLANK(LISTS!F37)),1,0) -> 0 | R64: =IF(NOT(ISBLANK(LISTS!G37)),1,0) -> 1 | S64: =IF(NOT(ISBLANK(LISTS!H37)),1,0) -> 0 | T64: =IF(NOT(ISBLANK(LISTS!I37)),1,0) -> 0 | U64: =IF(NOT(ISBLANK(LISTS!J37)),1,0) -> 0 | V64: =IF(LISTS!K37="y",1,0) -> 0 | W64: =IF($P64<>$X64,$P64,OR(IncNTCore*$Q64,IncNTAdd*$R64,IncCOVID*$S64,IncRE*T64,IncREAdd*U64,IncStAdd*$V64)) -> TRUE | X64: TRUE | Y64: ✓ | Z64: TRUE | AA64: =IF(LISTS!B37=0,AA63,LISTS!B37) -> Jobs: Promote Local Skills and Employment | AB64: =IF(LISTS!C37=0,AB63,LISTS!C37) -> Improved skills for a low carbon transition | AC64: Jobs: Promote Local Skills and Employment | AD64: Improved skills for a low carbon transition | AE64: =IF(AND($X64,MATCH(AC64,AC$36:AC$185,0)=Setup!$A64-4),AA64,"") ->  | AF64: =IF(AND($X64,MATCH(AD64,AD$36:AD$185,0)=Setup!$A64-4),AB64,"") -> Improved skills for a low carbon transition | AG64: =IF(AND($X64,MATCH(AC64,AC$32:AC$185,0)=Setup!$A64),AA64,"") ->  | AH64: =IF(AND($X64,MATCH(AD64,AD$32:AD$185,0)=Setup!$A64),AB64,"") -> Improved skills for a low carbon transition | AI64: 29 | AJ64: 29 | AK64: 33 | AL64: 33 | AM64: =IF(AND(NOT(ISBLANK(Setup!J64)),OR(ISNUMBER(Setup!K64),K64="Enter localised proxy in calculator")),Setup!J64,Setup!I64) -> No. hrs (total session duration)*no. attendees | AN64: =IF(ISNUMBER(Setup!H64),IF(AND(NOT(ISBLANK(Setup!J64)),ISNUMBER(Setup!K64)),Setup!H64*Setup!K64,Setup!H64),Setup!H64) -> 125.62 | AO64: 0 | AP64: =IF(AO64=1,INDEX('Needs and Priorities'!$D$49:$D$96,MATCH(Setup!D64,'Needs and Priorities'!$B$49:$B$96,0)),0) -> 0 | AQ64: =IFERROR(INDEX('Stakeholders Survey'!$K$24:$K$159,MATCH(D64&E64,'Stakeholders Survey'!$M$24:$M$159,0)),0) -> 0
A65: 34 | B65: =Setup!AG65 ->  | C65: =Setup!AH65 ->  | D65: =IF(ISBLANK(LISTS!D38),"",LISTS!D38) -> NT10b | E65: =IF(ISBLANK(LISTS!E38),"",LISTS!E38) ->  | F65: =IF(ISBLANK(LISTS!L38),"",LISTS!L38) -> No. weeks on the contract of apprenticeships relating to the low carbon economy - opportunities either to be completed during the year, or that will be supported by the organisation to completion in the following years - Level 2,3, or 4+ | G65: ✓ | H65: =IF(ISBLANK(LISTS!N38),"",LISTS!N38) -> 207.4 | I65: =IF(ISBLANK(LISTS!O38),"",LISTS!O38) -> No. weeks | P65: =Setup!G65="✓" -> TRUE | Q65: =IF(NOT(ISBLANK(LISTS!F38)),1,0) -> 0 | R65: =IF(NOT(ISBLANK(LISTS!G38)),1,0) -> 1 | S65: =IF(NOT(ISBLANK(LISTS!H38)),1,0) -> 0 | T65: =IF(NOT(ISBLANK(LISTS!I38)),1,0) -> 0 | U65: =IF(NOT(ISBLANK(LISTS!J38)),1,0) -> 0 | V65: =IF(LISTS!K38="y",1,0) -> 0 | W65: TRUE | X65: TRUE | Y65: ✓ | Z65: TRUE | AA65: =IF(LISTS!B38=0,AA64,LISTS!B38) -> Jobs: Promote Local Skills and Employment | AB65: =IF(LISTS!C38=0,AB64,LISTS!C38) -> Improved skills for a low carbon transition | AC65: Jobs: Promote Local Skills and Employment | AD65: Improved skills for a low carbon transition | AE65: =IF(AND($X65,MATCH(AC65,AC$36:AC$185,0)=Setup!$A65-4),AA65,"") ->  | AF65: =IF(AND($X65,MATCH(AD65,AD$36:AD$185,0)=Setup!$A65-4),AB65,"") ->  | AG65: =IF(AND($X65,MATCH(AC65,AC$32:AC$185,0)=Setup!$A65),AA65,"") ->  | AH65: =IF(AND($X65,MATCH(AD65,AD$32:AD$185,0)=Setup!$A65),AB65,"") ->  | AI65: 30 | AJ65: 30 | AK65: 34 | AL65: 34 | AM65: =IF(AND(NOT(ISBLANK(Setup!J65)),OR(ISNUMBER(Setup!K65),K65="Enter localised proxy in calculator")),Setup!J65,Setup!I65) -> No. weeks | AN65: =IF(ISNUMBER(Setup!H65),IF(AND(NOT(ISBLANK(Setup!J65)),ISNUMBER(Setup!K65)),Setup!H65*Setup!K65,Setup!H65),Setup!H65) -> 207.4 | AO65: 0 | AP65: =IF(AO65=1,INDEX('Needs and Priorities'!$D$49:$D$96,MATCH(Setup!D65,'Needs and Priorities'!$B$49:$B$96,0)),0) -> 0 | AQ65: =IFERROR(INDEX('Stakeholders Survey'!$K$24:$K$159,MATCH(D65&E65,'Stakeholders Survey'!$M$24:$M$159,0)),0) -> 0
A66: 35 | B66: =Setup!AG66 ->  | C66: =Setup!AH66 -> Improved employability of young people | D66: =IF(ISBLANK(LISTS!D39),"",LISTS!D39) -> NT11 | E66: =IF(ISBLANK(LISTS!E39),"",LISTS!E39) -> RE13 | F66: =IF(ISBLANK(LISTS!L39),"",LISTS!L39) -> No. of hours dedicated to support young people into work (e.g. CV advice, mock interviews, careers guidance) - (under 24 y.o.) | G66: ✓ | H66: =IF(ISBLANK(LISTS!N39),"",LISTS!N39) -> 125.62 | I66: =IF(ISBLANK(LISTS!O39),"",LISTS!O39) -> No. hrs (total session duration)*no. attendees | P66: =Setup!G66="✓" -> TRUE | Q66: =IF(NOT(ISBLANK(LISTS!F39)),1,0) -> 1 | R66: =IF(NOT(ISBLANK(LISTS!G39)),1,0) -> 0 | S66: =IF(NOT(ISBLANK(LISTS!H39)),1,0) -> 0 | T66: =IF(NOT(ISBLANK(LISTS!I39)),1,0) -> 1 | U66: =IF(NOT(ISBLANK(LISTS!J39)),1,0) -> 0 | V66: =IF(LISTS!K39="y",1,0) -> 0 | W66: TRUE | X66: TRUE | Y66: ✓ | Z66: TRUE | AA66: =IF(LISTS!B39=0,AA65,LISTS!B39) -> Jobs: Promote Local Skills and Employment | AB66: =IF(LISTS!C39=0,AB65,LISTS!C39) -> Improved employability of young people | AC66: Jobs: Promote Local Skills and Employment | AD66: Improved employability of young people | AE66: =IF(AND($X66,MATCH(AC66,AC$36:AC$185,0)=Setup!$A66-4),AA66,"") ->  | AF66: =IF(AND($X66,MATCH(AD66,AD$36:AD$185,0)=Setup!$A66-4),AB66,"") -> Improved employability of young people | AG66: =IF(AND($X66,MATCH(AC66,AC$32:AC$185,0)=Setup!$A66),AA66,"") ->  | AH66: =IF(AND($X66,MATCH(AD66,AD$32:AD$185,0)=Setup!$A66),AB66,"") -> Improved employability of young people | AI66: 31 | AJ66: 31 | AK66: 35 | AL66: 35 | AM66: =IF(AND(NOT(ISBLANK(Setup!J66)),OR(ISNUMBER(Setup!K66),K66="Enter localised proxy in calculator")),Setup!J66,Setup!I66) -> No. hrs (total session duration)*no. attendees | AN66: =IF(ISNUMBER(Setup!H66),IF(AND(NOT(ISBLANK(Setup!J66)),ISNUMBER(Setup!K66)),Setup!H66*Setup!K66,Setup!H66),Setup!H66) -> 125.62 | AO66: 1 | AP66: =IF(AO66=1,INDEX('Needs and Priorities'!$D$49:$D$96,MATCH(Setup!D66,'Needs and Priorities'!$B$49:$B$96,0)),0) -> 0 | AQ66: =IFERROR(INDEX('Stakeholders Survey'!$K$24:$K$159,MATCH(D66&E66,'Stakeholders Survey'!$M$24:$M$159,0)),0) -> 0
A67: 36 | B67: =Setup!AG67 ->  | C67: =Setup!AH67 ->  | D67: =IF(ISBLANK(LISTS!D40),"",LISTS!D40) -> NT12 | E67: =IF(ISBLANK(LISTS!E40),"",LISTS!E40) -> RE15 | F67: =IF(ISBLANK(LISTS!L40),"",LISTS!L40) -> No. of weeks spent on meaningful work placements or pre-employment course; 1-6 weeks student placements (unpaid) | G67: ✓ | H67: =IF(ISBLANK(LISTS!N40),"",LISTS!N40) -> 158.23 | I67: =IF(ISBLANK(LISTS!O40),"",LISTS!O40) -> No. weeks | P67: =Setup!G67="✓" -> TRUE | Q67: =IF(NOT(ISBLANK(LISTS!F40)),1,0) -> 1 | R67: =IF(NOT(ISBLANK(LISTS!G40)),1,0) -> 0 | S67: =IF(NOT(ISBLANK(LISTS!H40)),1,0) -> 0 | T67: =IF(NOT(ISBLANK(LISTS!I40)),1,0) -> 1 | U67: =IF(NOT(ISBLANK(LISTS!J40)),1,0) -> 0 | V67: =IF(LISTS!K40="y",1,0) -> 0 | W67: TRUE | X67: TRUE | Y67: ✓ | Z67: TRUE | AA67: =IF(LISTS!B40=0,AA66,LISTS!B40) -> Jobs: Promote Local Skills and Employment | AB67: =IF(LISTS!C40=0,AB66,LISTS!C40) -> Improved employability of young people | AC67: Jobs: Promote Local Skills and Employment | AD67: Improved employability of young people | AE67: =IF(AND($X67,MATCH(AC67,AC$36:AC$185,0)=Setup!$A67-4),AA67,"") ->  | AF67: =IF(AND($X67,MATCH(AD67,AD$36:AD$185,0)=Setup!$A67-4),AB67,"") ->  | AG67: =IF(AND($X67,MATCH(AC67,AC$32:AC$185,0)=Setup!$A67),AA67,"") ->  | AH67: =IF(AND($X67,MATCH(AD67,AD$32:AD$185,0)=Setup!$A67),AB67,"") ->  | AI67: 32 | AJ67: 32 | AK67: 36 | AL67: 36 | AM67: =IF(AND(NOT(ISBLANK(Setup!J67)),OR(ISNUMBER(Setup!K67),K67="Enter localised proxy in calculator")),Setup!J67,Setup!I67) -> No. weeks | AN67: =IF(ISNUMBER(Setup!H67),IF(AND(NOT(ISBLANK(Setup!J67)),ISNUMBER(Setup!K67)),Setup!H67*Setup!K67,Setup!H67),Setup!H67) -> 158.23 | AO67: 1 | AP67: =IF(AO67=1,INDEX('Needs and Priorities'!$D$49:$D$96,MATCH(Setup!D67,'Needs and Priorities'!$B$49:$B$96,0)),0) -> 0 | AQ67: =IFERROR(INDEX('Stakeholders Survey'!$K$24:$K$159,MATCH(D67&E67,'Stakeholders Survey'!$M$24:$M$159,0)),0) -> 0
A68: 37 | B68: =Setup!AG68 ->  | C68: =Setup!AH68 ->  | D68: =IF(ISBLANK(LISTS!D41),"",LISTS!D41) -> NT13 | E68: =IF(ISBLANK(LISTS!E41),"",LISTS!E41) -> RE16 | F68: =IF(ISBLANK(LISTS!L41),"",LISTS!L41) -> Meaningful work placements that pay Minimum or National Living wage according to eligibility - 6 weeks or more (internships) | G68: ✓ | H68: =IF(ISBLANK(LISTS!N41),"",LISTS!N41) -> 158.23 | I68: =IF(ISBLANK(LISTS!O41),"",LISTS!O41) -> No. weeks | P68: =Setup!G68="✓" -> TRUE | Q68: =IF(NOT(ISBLANK(LISTS!F41)),1,0) -> 1 | R68: =IF(NOT(ISBLANK(LISTS!G41)),1,0) -> 0 | S68: =IF(NOT(ISBLANK(LISTS!H41)),1,0) -> 0 | T68: =IF(NOT(ISBLANK(LISTS!I41)),1,0) -> 1 | U68: =IF(NOT(ISBLANK(LISTS!J41)),1,0) -> 0 | V68: =IF(LISTS!K41="y",1,0) -> 0 | W68: TRUE | X68: TRUE | Y68: ✓ | Z68: TRUE | AA68: =IF(LISTS!B41=0,AA67,LISTS!B41) -> Jobs: Promote Local Skills and Employment | AB68: =IF(LISTS!C41=0,AB67,LISTS!C41) -> Improved employability of young people | AC68: Jobs: Promote Local Skills and Employment | AD68: Improved employability of young people | AE68: =IF(AND($X68,MATCH(AC68,AC$36:AC$185,0)=Setup!$A68-4),AA68,"") ->  | AF68: =IF(AND($X68,MATCH(AD68,AD$36:AD$185,0)=Setup!$A68-4),AB68,"") ->  | AG68: =IF(AND($X68,MATCH(AC68,AC$32:AC$185,0)=Setup!$A68),AA68,"") ->  | AH68: =IF(AND($X68,MATCH(AD68,AD$32:AD$185,0)=Setup!$A68),AB68,"") ->  | AI68: =IF(X68,1+AI67,AI67) -> 33 | AJ68: =IF($X68,AI68,-1) -> 33 | AK68: 37 | AL68: 37 | AM68: =IF(AND(NOT(ISBLANK(Setup!J68)),OR(ISNUMBER(Setup!K68),K68="Enter localised proxy in calculator")),Setup!J68,Setup!I68) -> No. weeks | AN68: =IF(ISNUMBER(Setup!H68),IF(AND(NOT(ISBLANK(Setup!J68)),ISNUMBER(Setup!K68)),Setup!H68*Setup!K68,Setup!H68),Setup!H68) -> 158.23 | AO68: 1 | AP68: =IF(AO68=1,INDEX('Needs and Priorities'!$D$49:$D$96,MATCH(Setup!D68,'Needs and Priorities'!$B$49:$B$96,0)),0) -> 0 | AQ68: =IFERROR(INDEX('Stakeholders Survey'!$K$24:$K$159,MATCH(D68&E68,'Stakeholders Survey'!$M$24:$M$159,0)),0) -> 0
A69: 38 | B69: =Setup!AG69 ->  | C69: =Setup!AH69 ->  | D69: =IF(ISBLANK(LISTS!D42),"",LISTS!D42) -> NT13a | E69: =IF(ISBLANK(LISTS!E42),"",LISTS!E42) ->  | F69: =IF(ISBLANK(LISTS!L42),"",LISTS!L42) -> Meaningful work placements that pay Real Living wage according to eligibility - 6 weeks or more (internships) | G69: ✓ | H69: =IF(ISBLANK(LISTS!N42),"",LISTS!N42) -> 315 | I69: =IF(ISBLANK(LISTS!O42),"",LISTS!O42) -> No. weeks | P69: =Setup!G69="✓" -> TRUE | Q69: =IF(NOT(ISBLANK(LISTS!F42)),1,0) -> 0 | R69: =IF(NOT(ISBLANK(LISTS!G42)),1,0) -> 1 | S69: =IF(NOT(ISBLANK(LISTS!H42)),1,0) -> 0 | T69: =IF(NOT(ISBLANK(LISTS!I42)),1,0) -> 0 | U69: =IF(NOT(ISBLANK(LISTS!J42)),1,0) -> 0 | V69: =IF(LISTS!K42="y",1,0) -> 0 | W69: TRUE | X69: TRUE | Y69: ✓ | Z69: TRUE | AA69: =IF(LISTS!B42=0,AA68,LISTS!B42) -> Jobs: Promote Local Skills and Employment | AB69: =IF(LISTS!C42=0,AB68,LISTS!C42) -> Improved employability of young people | AC69: Jobs: Promote Local Skills and Employment | AD69: Improved employability of young people | AE69: =IF(AND($X69,MATCH(AC69,AC$36:AC$185,0)=Setup!$A69-4),AA69,"") ->  | AF69: =IF(AND($X69,MATCH(AD69,AD$36:AD$185,0)=Setup!$A69-4),AB69,"") ->  | AG69: =IF(AND($X69,MATCH(AC69,AC$32:AC$185,0)=Setup!$A69),AA69,"") ->  | AH69: =IF(AND($X69,MATCH(AD69,AD$32:AD$185,0)=Setup!$A69),AB69,"") ->  | AI69: 34 | AJ69: 34 | AK69: 38 | AL69: 38 | AM69: =IF(AND(NOT(ISBLANK(Setup!J69)),OR(ISNUMBER(Setup!K69),K69="Enter localised proxy in calculator")),Setup!J69,Setup!I69) -> No. weeks | AN69: =IF(ISNUMBER(Setup!H69),IF(AND(NOT(ISBLANK(Setup!J69)),ISNUMBER(Setup!K69)),Setup!H69*Setup!K69,Setup!H69),Setup!H69) -> 315 | AO69: 0 | AP69: =IF(AO69=1,INDEX('Needs and Priorities'!$D$49:$D$96,MATCH(Setup!D69,'Needs and Priorities'!$B$49:$B$96,0)),0) -> 0 | AQ69: =IFERROR(INDEX('Stakeholders Survey'!$K$24:$K$159,MATCH(D69&E69,'Stakeholders Survey'!$M$24:$M$159,0)),0) -> 0
A70: 39 | B70: =Setup!AG70 ->  | C70: =Setup!AH70 ->  | D70: =IF(ISBLANK(LISTS!D43),"",LISTS!D43) ->  | E70: =IF(ISBLANK(LISTS!E43),"",LISTS!E43) -> RE14 | F70: =IF(ISBLANK(LISTS!L43),"",LISTS!L43) -> Employment taster days for those interested in working in the real estate and construction industry | G70: ✓ | H70: =IF(ISBLANK(LISTS!N43),"",LISTS!N43) -> 1 | I70: =IF(ISBLANK(LISTS!O43),"",LISTS!O43) -> £ | P70: =Setup!G70="✓" -> TRUE | Q70: =IF(NOT(ISBLANK(LISTS!F43)),1,0) -> 0 | R70: =IF(NOT(ISBLANK(LISTS!G43)),1,0) -> 0 | S70: =IF(NOT(ISBLANK(LISTS!H43)),1,0) -> 0 | T70: =IF(NOT(ISBLANK(LISTS!I43)),1,0) -> 1 | U70: =IF(NOT(ISBLANK(LISTS!J43)),1,0) -> 0 | V70: =IF(LISTS!K43="y",1,0) -> 0 | W70: TRUE | X70: TRUE | Y70: ✓ | Z70: TRUE | AA70: =IF(LISTS!B43=0,AA69,LISTS!B43) -> Jobs: Promote Local Skills and Employment | AB70: =IF(LISTS!C43=0,AB69,LISTS!C43) -> Improved employability of young people | AC70: Jobs: Promote Local Skills and Employment | AD70: Improved employability of young people | AE70: =IF(AND($X70,MATCH(AC70,AC$36:AC$185,0)=Setup!$A70-4),AA70,"") ->  | AF70: =IF(AND($X70,MATCH(AD70,AD$36:AD$185,0)=Setup!$A70-4),AB70,"") ->  | AG70: =IF(AND($X70,MATCH(AC70,AC$32:AC$185,0)=Setup!$A70),AA70,"") ->  | AH70: =IF(AND($X70,MATCH(AD70,AD$32:AD$185,0)=Setup!$A70),AB70,"") ->  | AI70: 35 | AJ70: 35 | AK70: 39 | AL70: 39 | AM70: =IF(AND(NOT(ISBLANK(Setup!J70)),OR(ISNUMBER(Setup!K70),K70="Enter localised proxy in calculator")),Setup!J70,Setup!I70) -> £ | AN70: =IF(ISNUMBER(Setup!H70),IF(AND(NOT(ISBLANK(Setup!J70)),ISNUMBER(Setup!K70)),Setup!H70*Setup!K70,Setup!H70),Setup!H70) -> 1 | AO70: 0 | AP70: =IF(AO70=1,INDEX('Needs and Priorities'!$D$49:$D$96,MATCH(Setup!D70,'Needs and Priorities'!$B$49:$B$96,0)),0) -> 0 | AQ70: =IFERROR(INDEX('Stakeholders Survey'!$K$24:$K$159,MATCH(D70&E70,'Stakeholders Survey'!$M$24:$M$159,0)),0) -> 0
A71: 40 | B71: =Setup!AG71 -> Growth: Supporting Growth of Responsible Regional Business | C71: =Setup!AH71 -> Supporting workers, SMEs and VCSEs to face the COVID-19 crisis | D71: =IF(ISBLANK(LISTS!D44),"",LISTS!D44) -> C19-5 | E71: =IF(ISBLANK(LISTS!E44),"",LISTS!E44) ->  | F71: =IF(ISBLANK(LISTS!L44),"",LISTS!L44) -> Provide support for SMEs and VCSEs to respond to the COVID-19 crisis and maintain business operations - hours of expert support provided by staff | G71: ✓ | H71: =IF(ISBLANK(LISTS!N44),"",LISTS!N44) -> 96.11 | I71: =IF(ISBLANK(LISTS!O44),"",LISTS!O44) -> No. staff expert hours | L71: =IF(ISNUMBER(H71),IF(NOT(ISBLANK(J71)),IF(NOT(ISNUMBER(K71)),"Please enter a valid conversion factor","£"&ROUND(H71*K71,2)&"/"&IF(RIGHT(J71,1)="s",LEFT(J71,LEN(J71)-1),J71)),""),"n/a") ->  | M71: high | P71: =Setup!G71="✓" -> TRUE | Q71: =IF(NOT(ISBLANK(LISTS!F44)),1,0) -> 0 | R71: =IF(NOT(ISBLANK(LISTS!G44)),1,0) -> 0 | S71: =IF(NOT(ISBLANK(LISTS!H44)),1,0) -> 1 | T71: =IF(NOT(ISBLANK(LISTS!I44)),1,0) -> 0 | U71: =IF(NOT(ISBLANK(LISTS!J44)),1,0) -> 0 | V71: =IF(LISTS!K44="y",1,0) -> 0 | W71: TRUE | X71: TRUE | Y71: ✓ | Z71: TRUE | AA71: =IF(LISTS!B44=0,AA70,LISTS!B44) -> Growth: Supporting Growth of Responsible Regional Business | AB71: =IF(LISTS!C44=0,AB70,LISTS!C44) -> Supporting workers, SMEs and VCSEs to face the COVID-19 crisis | AC71: =IF($X71,AA71,"x") -> Growth: Supporting Growth of Responsible Regional Business | AD71: =IF($X71,AB71,"x") -> Supporting workers, SMEs and VCSEs to face the COVID-19 crisis | AE71: =IF(AND($X71,MATCH(AC71,AC$36:AC$185,0)=Setup!$A71-4),AA71,"") -> Growth: Supporting Growth of Responsible Regional Business | AF71: =IF(AND($X71,MATCH(AD71,AD$36:AD$185,0)=Setup!$A71-4),AB71,"") -> Supporting workers, SMEs and VCSEs to face the COVID-19 crisis | AG71: =IF(AND($X71,MATCH(AC71,AC$32:AC$185,0)=Setup!$A71),AA71,"") -> Growth: Supporting Growth of Responsible Regional Business | AH71: =IF(AND($X71,MATCH(AD71,AD$32:AD$185,0)=Setup!$A71),AB71,"") -> Supporting workers, SMEs and VCSEs to face the COVID-19 crisis | AI71: 36 | AJ71: 36 | AK71: 40 | AL71: 40 | AM71: =IF(AND(NOT(ISBLANK(Setup!J71)),OR(ISNUMBER(Setup!K71),K71="Enter localised proxy in calculator")),Setup!J71,Setup!I71) -> No. staff expert hours | AN71: =IF(ISNUMBER(Setup!H71),IF(AND(NOT(ISBLANK(Setup!J71)),ISNUMBER(Setup!K71)),Setup!H71*Setup!K71,Setup!H71),Setup!H71) -> 96.11 | AO71: 0 | AP71: =IF(AO71=1,INDEX('Needs and Priorities'!$D$49:$D$96,MATCH(Setup!D71,'Needs and Priorities'!$B$49:$B$96,0)),0) -> 0 | AQ71: =IFERROR(INDEX('Stakeholders Survey'!$K$24:$K$159,MATCH(D71&E71,'Stakeholders Survey'!$M$24:$M$159,0)),0) -> 0
A72: 41 | B72: =Setup!AG72 ->  | C72: =Setup!AH72 ->  | D72: =IF(ISBLANK(LISTS!D45),"",LISTS!D45) -> C19-6 | E72: =IF(ISBLANK(LISTS!E45),"",LISTS!E45) ->  | F72: =IF(ISBLANK(LISTS!L45),"",LISTS!L45) -> Percentage of invoices on the contract paid to SMEs and VCSEs within 30 days | G72: ✓ | H72: =IF(ISBLANK(LISTS!N45),"",LISTS!N45) -> % | I72: =IF(ISBLANK(LISTS!O45),"",LISTS!O45) -> Record Only | J72: - | K72: - | L72: - | M72: high | P72: =Setup!G72="✓" -> TRUE | Q72: =IF(NOT(ISBLANK(LISTS!F46)),1,0) -> 0 | R72: =IF(NOT(ISBLANK(LISTS!G46)),1,0) -> 0 | S72: =IF(NOT(ISBLANK(LISTS!H46)),1,0) -> 1 | T72: =IF(NOT(ISBLANK(LISTS!I46)),1,0) -> 0 | U72: =IF(NOT(ISBLANK(LISTS!J46)),1,0) -> 0 | V72: =IF(LISTS!K46="y",1,0) -> 0 | W72: TRUE | X72: TRUE | Y72: ✓ | Z72: TRUE | AA72: =IF(LISTS!B46=0,AA71,LISTS!B46) -> Growth: Supporting Growth of Responsible Regional Business | AB72: =IF(LISTS!C46=0,AB71,LISTS!C46) -> Supporting workers, SMEs and VCSEs to face the COVID-19 crisis | AC72: Growth: Supporting Growth of Responsible Regional Business | AD72: Supporting workers, SMEs and VCSEs to face the COVID-19 crisis | AE72: =IF(AND($X72,MATCH(AC72,AC$36:AC$185,0)=Setup!$A72-4),AA72,"") ->  | AF72: =IF(AND($X72,MATCH(AD72,AD$36:AD$185,0)=Setup!$A72-4),AB72,"") ->  | AG72: =IF(AND($X72,MATCH(AC72,AC$32:AC$185,0)=Setup!$A72),AA72,"") ->  | AH72: =IF(AND($X72,MATCH(AD72,AD$32:AD$185,0)=Setup!$A72),AB72,"") ->  | AI72: 37 | AJ72: 37 | AK72: 41 | AL72: 41 | AM72: =IF(AND(NOT(ISBLANK(Setup!J72)),OR(ISNUMBER(Setup!K72),K72="Enter localised proxy in calculator")),Setup!J72,Setup!I72) -> Record Only | AN72: =IF(ISNUMBER(Setup!H72),IF(AND(NOT(ISBLANK(Setup!J72)),ISNUMBER(Setup!K72)),Setup!H72*Setup!K72,Setup!H72),Setup!H72) -> % | AO72: 0 | AP72: =IF(AO72=1,INDEX('Needs and Priorities'!$D$49:$D$96,MATCH(Setup!D72,'Needs and Priorities'!$B$49:$B$96,0)),0) -> 0 | AQ72: =IFERROR(INDEX('Stakeholders Survey'!$K$24:$K$159,MATCH(D72&E72,'Stakeholders Survey'!$M$24:$M$159,0)),0) -> 0
A73: 42 | B73: =Setup!AG73 ->  | C73: =Setup!AH73 ->  | D73: =IF(ISBLANK(LISTS!D46),"",LISTS!D46) -> C19-7 | E73: =IF(ISBLANK(LISTS!E46),"",LISTS!E46) ->  | F73: =IF(ISBLANK(LISTS!L46),"",LISTS!L46) -> Do you have a policy or a strategy to provide support to staff working remotely or on furlough around mental health and wellbeing? | G73: ✓ | H73: =IF(ISBLANK(LISTS!N46),"",LISTS!N46) -> Record only | I73: =IF(ISBLANK(LISTS!O46),"",LISTS!O46) -> Y/N (Provide documents) | J73: - | K73: - | L73: - | M73: high | P73: =Setup!G73="✓" -> TRUE | Q73: =IF(NOT(ISBLANK(LISTS!F47)),1,0) -> 0 | R73: =IF(NOT(ISBLANK(LISTS!G47)),1,0) -> 0 | S73: =IF(NOT(ISBLANK(LISTS!H47)),1,0) -> 1 | T73: =IF(NOT(ISBLANK(LISTS!I47)),1,0) -> 0 | U73: =IF(NOT(ISBLANK(LISTS!J47)),1,0) -> 0 | V73: =IF(LISTS!K47="y",1,0) -> 0 | W73: TRUE | X73: TRUE | Y73: =IF(X73,"✓","✗") -> ✓ | Z73: =(W73=X73) -> TRUE | AA73: =IF(LISTS!B47=0,AA72,LISTS!B47) -> Growth: Supporting Growth of Responsible Regional Business | AB73: =IF(LISTS!C47=0,AB72,LISTS!C47) -> Supporting workers, SMEs and VCSEs to face the COVID-19 crisis | AC73: =IF($X73,AA73,"x") -> Growth: Supporting Growth of Responsible Regional Business | AD73: =IF($X73,AB73,"x") -> Supporting workers, SMEs and VCSEs to face the COVID-19 crisis | AE73: =IF(AND($X73,MATCH(AC73,AC$36:AC$185,0)=Setup!$A73-4),AA73,"") ->  | AF73: =IF(AND($X73,MATCH(AD73,AD$36:AD$185,0)=Setup!$A73-4),AB73,"") ->  | AG73: =IF(AND($X73,MATCH(AC73,AC$32:AC$185,0)=Setup!$A73),AA73,"") ->  | AH73: =IF(AND($X73,MATCH(AD73,AD$32:AD$185,0)=Setup!$A73),AB73,"") ->  | AI73: 38 | AJ73: 38 | AK73: 42 | AL73: 42 | AM73: =IF(AND(NOT(ISBLANK(Setup!J73)),OR(ISNUMBER(Setup!K73),K73="Enter localised proxy in calculator")),Setup!J73,Setup!I73) -> Y/N (Provide documents) | AN73: =IF(ISNUMBER(Setup!H73),IF(AND(NOT(ISBLANK(Setup!J73)),ISNUMBER(Setup!K73)),Setup!H73*Setup!K73,Setup!H73),Setup!H73) -> Record only | AO73: 0 | AP73: =IF(AO73=1,INDEX('Needs and Priorities'!$D$49:$D$96,MATCH(Setup!D73,'Needs and Priorities'!$B$49:$B$96,0)),0) -> 0 | AQ73: =IFERROR(INDEX('Stakeholders Survey'!$K$24:$K$159,MATCH(D73&E73,'Stakeholders Survey'!$M$24:$M$159,0)),0) -> 0
A74: 43 | B74: =Setup!AG74 ->  | C74: =Setup!AH74 ->  | D74: =IF(ISBLANK(LISTS!D47),"",LISTS!D47) -> C19-8 | E74: =IF(ISBLANK(LISTS!E47),"",LISTS!E47) ->  | F74: =IF(ISBLANK(LISTS!L47),"",LISTS!L47) -> Initiatives to provide support to staff working remotely or on furlough around mental health and wellbeing | G74: ✓ | H74: =IF(ISBLANK(LISTS!N47),"",LISTS!N47) -> 1 | I74: =IF(ISBLANK(LISTS!O47),"",LISTS!O47) -> £ | M74: high | P74: =Setup!G74="✓" -> TRUE | Q74: =IF(NOT(ISBLANK(LISTS!F48)),1,0) -> 0 | R74: =IF(NOT(ISBLANK(LISTS!G48)),1,0) -> 0 | S74: =IF(NOT(ISBLANK(LISTS!H48)),1,0) -> 1 | T74: =IF(NOT(ISBLANK(LISTS!I48)),1,0) -> 0 | U74: =IF(NOT(ISBLANK(LISTS!J48)),1,0) -> 0 | V74: =IF(LISTS!K48="y",1,0) -> 0 | W74: TRUE | X74: TRUE | Y74: ✓ | Z74: TRUE | AA74: =IF(LISTS!B48=0,AA73,LISTS!B48) -> Growth: Supporting Growth of Responsible Regional Business | AB74: =IF(LISTS!C48=0,AB73,LISTS!C48) -> Supporting workers, SMEs and VCSEs to face the COVID-19 crisis | AC74: Growth: Supporting Growth of Responsible Regional Business | AD74: Supporting workers, SMEs and VCSEs to face the COVID-19 crisis | AE74: =IF(AND($X74,MATCH(AC74,AC$36:AC$185,0)=Setup!$A74-4),AA74,"") ->  | AF74: =IF(AND($X74,MATCH(AD74,AD$36:AD$185,0)=Setup!$A74-4),AB74,"") ->  | AG74: =IF(AND($X74,MATCH(AC74,AC$32:AC$185,0)=Setup!$A74),AA74,"") ->  | AH74: =IF(AND($X74,MATCH(AD74,AD$32:AD$185,0)=Setup!$A74),AB74,"") ->  | AI74: 39 | AJ74: 39 | AK74: 43 | AL74: 43 | AM74: =IF(AND(NOT(ISBLANK(Setup!J74)),OR(ISNUMBER(Setup!K74),K74="Enter localised proxy in calculator")),Setup!J74,Setup!I74) -> £ | AN74: =IF(ISNUMBER(Setup!H74),IF(AND(NOT(ISBLANK(Setup!J74)),ISNUMBER(Setup!K74)),Setup!H74*Setup!K74,Setup!H74),Setup!H74) -> 1 | AO74: 0 | AP74: =IF(AO74=1,INDEX('Needs and Priorities'!$D$49:$D$96,MATCH(Setup!D74,'Needs and Priorities'!$B$49:$B$96,0)),0) -> 0 | AQ74: =IFERROR(INDEX('Stakeholders Survey'!$K$24:$K$159,MATCH(D74&E74,'Stakeholders Survey'!$M$24:$M$159,0)),0) -> 0
A75: 44 | B75: =Setup!AG75 ->  | C75: =Setup!AH75 ->  | D75: =IF(ISBLANK(LISTS!D48),"",LISTS!D48) -> C19-9 | E75: =IF(ISBLANK(LISTS!E48),"",LISTS!E48) ->  | F75: =IF(ISBLANK(LISTS!L48),"",LISTS!L48) -> Do you have a policy or a strategy to provide safe virtual spaces to staff, including guidance around cyber security and around remote and virtual working best practice. (Provide strategy or policy document ) | G75: ✓ | H75: =IF(ISBLANK(LISTS!N48),"",LISTS!N48) -> Record only | I75: =IF(ISBLANK(LISTS!O48),"",LISTS!O48) -> Y/N (Provide documents) | J75: - | K75: - | L75: - | M75: high | P75: =Setup!G75="✓" -> TRUE | Q75: =IF(NOT(ISBLANK(LISTS!F48)),1,0) -> 0 | R75: =IF(NOT(ISBLANK(LISTS!G48)),1,0) -> 0 | S75: =IF(NOT(ISBLANK(LISTS!H48)),1,0) -> 1 | T75: =IF(NOT(ISBLANK(LISTS!I48)),1,0) -> 0 | U75: =IF(NOT(ISBLANK(LISTS!J48)),1,0) -> 0 | V75: =IF(LISTS!K48="y",1,0) -> 0 | W75: TRUE | X75: TRUE | Y75: ✓ | Z75: TRUE | AA75: =IF(LISTS!B48=0,AA74,LISTS!B48) -> Growth: Supporting Growth of Responsible Regional Business | AB75: =IF(LISTS!C48=0,AB74,LISTS!C48) -> Supporting workers, SMEs and VCSEs to face the COVID-19 crisis | AC75: Growth: Supporting Growth of Responsible Regional Business | AD75: Supporting workers, SMEs and VCSEs to face the COVID-19 crisis | AE75: =IF(AND($X75,MATCH(AC75,AC$36:AC$185,0)=Setup!$A75-4),AA75,"") ->  | AF75: =IF(AND($X75,MATCH(AD75,AD$36:AD$185,0)=Setup!$A75-4),AB75,"") ->  | AG75: =IF(AND($X75,MATCH(AC75,AC$32:AC$185,0)=Setup!$A75),AA75,"") ->  | AH75: =IF(AND($X75,MATCH(AD75,AD$32:AD$185,0)=Setup!$A75),AB75,"") ->  | AI75: 40 | AJ75: 40 | AK75: 44 | AL75: 44 | AM75: =IF(AND(NOT(ISBLANK(Setup!J75)),OR(ISNUMBER(Setup!K75),K75="Enter localised proxy in calculator")),Setup!J75,Setup!I75) -> Y/N (Provide documents) | AN75: =IF(ISNUMBER(Setup!H75),IF(AND(NOT(ISBLANK(Setup!J75)),ISNUMBER(Setup!K75)),Setup!H75*Setup!K75,Setup!H75),Setup!H75) -> Record only | AO75: 0 | AP75: =IF(AO75=1,INDEX('Needs and Priorities'!$D$49:$D$96,MATCH(Setup!D75,'Needs and Priorities'!$B$49:$B$96,0)),0) -> 0 | AQ75: =IFERROR(INDEX('Stakeholders Survey'!$K$24:$K$159,MATCH(D75&E75,'Stakeholders Survey'!$M$24:$M$159,0)),0) -> 0
A76: 45 | B76: =Setup!AG76 ->  | C76: =Setup!AH76 ->  | D76: =IF(ISBLANK(LISTS!D49),"",LISTS!D49) -> C19-10 | E76: =IF(ISBLANK(LISTS!E49),"",LISTS!E49) ->  | F76: =IF(ISBLANK(LISTS!L49),"",LISTS!L49) -> Initiatives to provide safe virtual spaces to staff, including guidance around cyber security and around remote and virtual working best practice. (Provide initiatives' description) | G76: ✓ | H76: =IF(ISBLANK(LISTS!N49),"",LISTS!N49) -> 1 | I76: =IF(ISBLANK(LISTS!O49),"",LISTS!O49) -> £ | M76: high | P76: =Setup!G76="✓" -> TRUE | Q76: =IF(NOT(ISBLANK(LISTS!F49)),1,0) -> 0 | R76: =IF(NOT(ISBLANK(LISTS!G49)),1,0) -> 0 | S76: =IF(NOT(ISBLANK(LISTS!H49)),1,0) -> 1 | T76: =IF(NOT(ISBLANK(LISTS!I49)),1,0) -> 0 | U76: =IF(NOT(ISBLANK(LISTS!J49)),1,0) -> 0 | V76: =IF(LISTS!K49="y",1,0) -> 0 | W76: TRUE | X76: TRUE | Y76: ✓ | Z76: TRUE | AA76: =IF(LISTS!B49=0,AA75,LISTS!B49) -> Growth: Supporting Growth of Responsible Regional Business | AB76: =IF(LISTS!C49=0,AB75,LISTS!C49) -> Supporting workers, SMEs and VCSEs to face the COVID-19 crisis | AC76: Growth: Supporting Growth of Responsible Regional Business | AD76: Supporting workers, SMEs and VCSEs to face the COVID-19 crisis | AE76: =IF(AND($X76,MATCH(AC76,AC$36:AC$185,0)=Setup!$A76-4),AA76,"") ->  | AF76: =IF(AND($X76,MATCH(AD76,AD$36:AD$185,0)=Setup!$A76-4),AB76,"") ->  | AG76: =IF(AND($X76,MATCH(AC76,AC$32:AC$185,0)=Setup!$A76),AA76,"") ->  | AH76: =IF(AND($X76,MATCH(AD76,AD$32:AD$185,0)=Setup!$A76),AB76,"") ->  | AI76: 41 | AJ76: 41 | AK76: 45 | AL76: 45 | AM76: =IF(AND(NOT(ISBLANK(Setup!J76)),OR(ISNUMBER(Setup!K76),K76="Enter localised proxy in calculator")),Setup!J76,Setup!I76) -> £ | AN76: =IF(ISNUMBER(Setup!H76),IF(AND(NOT(ISBLANK(Setup!J76)),ISNUMBER(Setup!K76)),Setup!H76*Setup!K76,Setup!H76),Setup!H76) -> 1 | AO76: 0 | AP76: =IF(AO76=1,INDEX('Needs and Priorities'!$D$49:$D$96,MATCH(Setup!D76,'Needs and Priorities'!$B$49:$B$96,0)),0) -> 0 | AQ76: =IFERROR(INDEX('Stakeholders Survey'!$K$24:$K$159,MATCH(D76&E76,'Stakeholders Survey'!$M$24:$M$159,0)),0) -> 0
A77: 46 | B77: =Setup!AG77 ->  | C77: =Setup!AH77 ->  | D77: =IF(ISBLANK(LISTS!D50),"",LISTS!D50) -> C19-11 | E77: =IF(ISBLANK(LISTS!E50),"",LISTS!E50) ->  | F77: =IF(ISBLANK(LISTS!L50),"",LISTS!L50) -> Initiatives to further support staff delivering essential work as defined by the UK government, both within the company and the supply chain (e.g. providing food delivery and mental health support services, etc.) | G77: ✓ | H77: =IF(ISBLANK(LISTS!N50),"",LISTS!N50) -> 1 | I77: =IF(ISBLANK(LISTS!O50),"",LISTS!O50) -> £ | M77: high | P77: =Setup!G77="✓" -> TRUE | Q77: =IF(NOT(ISBLANK(LISTS!F50)),1,0) -> 0 | R77: =IF(NOT(ISBLANK(LISTS!G50)),1,0) -> 0 | S77: =IF(NOT(ISBLANK(LISTS!H50)),1,0) -> 1 | T77: =IF(NOT(ISBLANK(LISTS!I50)),1,0) -> 0 | U77: =IF(NOT(ISBLANK(LISTS!J50)),1,0) -> 0 | V77: =IF(LISTS!K50="y",1,0) -> 0 | W77: TRUE | X77: TRUE | Y77: ✓ | Z77: TRUE | AA77: =IF(LISTS!B50=0,AA76,LISTS!B50) -> Growth: Supporting Growth of Responsible Regional Business | AB77: =IF(LISTS!C50=0,AB76,LISTS!C50) -> Supporting workers, SMEs and VCSEs to face the COVID-19 crisis | AC77: Growth: Supporting Growth of Responsible Regional Business | AD77: Supporting workers, SMEs and VCSEs to face the COVID-19 crisis | AE77: =IF(AND($X77,MATCH(AC77,AC$36:AC$185,0)=Setup!$A77-4),AA77,"") ->  | AF77: =IF(AND($X77,MATCH(AD77,AD$36:AD$185,0)=Setup!$A77-4),AB77,"") ->  | AG77: =IF(AND($X77,MATCH(AC77,AC$32:AC$185,0)=Setup!$A77),AA77,"") ->  | AH77: =IF(AND($X77,MATCH(AD77,AD$32:AD$185,0)=Setup!$A77),AB77,"") ->  | AI77: 42 | AJ77: 42 | AK77: 46 | AL77: 46 | AM77: =IF(AND(NOT(ISBLANK(Setup!J77)),OR(ISNUMBER(Setup!K77),K77="Enter localised proxy in calculator")),Setup!J77,Setup!I77) -> £ | AN77: =IF(ISNUMBER(Setup!H77),IF(AND(NOT(ISBLANK(Setup!J77)),ISNUMBER(Setup!K77)),Setup!H77*Setup!K77,Setup!H77),Setup!H77) -> 1 | AO77: 0 | AP77: =IF(AO77=1,INDEX('Needs and Priorities'!$D$49:$D$96,MATCH(Setup!D77,'Needs and Priorities'!$B$49:$B$96,0)),0) -> 0 | AQ77: =IFERROR(INDEX('Stakeholders Survey'!$K$24:$K$159,MATCH(D77&E77,'Stakeholders Survey'!$M$24:$M$159,0)),0) -> 0
A78: 47 | B78: =Setup!AG78 ->  | C78: =Setup!AH78 ->  | D78: =IF(ISBLANK(LISTS!D51),"",LISTS!D51) -> C19-12 | E78: =IF(ISBLANK(LISTS!E51),"",LISTS!E51) ->  | F78: =IF(ISBLANK(LISTS!L51),"",LISTS!L51) -> Initiatives to further support own and supply chain staff from vulnerable groups to reduce economic impact of the crisis (e.g. offering financial support measures, advise on how to access support from the government, pro bono food deliveries and mental health support services, etc) | G78: ✓ | H78: =IF(ISBLANK(LISTS!N51),"",LISTS!N51) -> 1 | I78: =IF(ISBLANK(LISTS!O51),"",LISTS!O51) -> £ | M78: high | P78: =Setup!G78="✓" -> TRUE | Q78: =IF(NOT(ISBLANK(LISTS!F51)),1,0) -> 0 | R78: =IF(NOT(ISBLANK(LISTS!G51)),1,0) -> 0 | S78: =IF(NOT(ISBLANK(LISTS!H51)),1,0) -> 1 | T78: =IF(NOT(ISBLANK(LISTS!I51)),1,0) -> 0 | U78: =IF(NOT(ISBLANK(LISTS!J51)),1,0) -> 0 | V78: =IF(LISTS!K51="y",1,0) -> 0 | W78: TRUE | X78: TRUE | Y78: ✓ | Z78: TRUE | AA78: =IF(LISTS!B51=0,AA77,LISTS!B51) -> Growth: Supporting Growth of Responsible Regional Business | AB78: =IF(LISTS!C51=0,AB77,LISTS!C51) -> Supporting workers, SMEs and VCSEs to face the COVID-19 crisis | AC78: Growth: Supporting Growth of Responsible Regional Business | AD78: Supporting workers, SMEs and VCSEs to face the COVID-19 crisis | AE78: =IF(AND($X78,MATCH(AC78,AC$36:AC$185,0)=Setup!$A78-4),AA78,"") ->  | AF78: =IF(AND($X78,MATCH(AD78,AD$36:AD$185,0)=Setup!$A78-4),AB78,"") ->  | AG78: =IF(AND($X78,MATCH(AC78,AC$32:AC$185,0)=Setup!$A78),AA78,"") ->  | AH78: =IF(AND($X78,MATCH(AD78,AD$32:AD$185,0)=Setup!$A78),AB78,"") ->  | AI78: 43 | AJ78: 43 | AK78: 47 | AL78: 47 | AM78: =IF(AND(NOT(ISBLANK(Setup!J78)),OR(ISNUMBER(Setup!K78),K78="Enter localised proxy in calculator")),Setup!J78,Setup!I78) -> £ | AN78: =IF(ISNUMBER(Setup!H78),IF(AND(NOT(ISBLANK(Setup!J78)),ISNUMBER(Setup!K78)),Setup!H78*Setup!K78,Setup!H78),Setup!H78) -> 1 | AO78: 0 | AP78: =IF(AO78=1,INDEX('Needs and Priorities'!$D$49:$D$96,MATCH(Setup!D78,'Needs and Priorities'!$B$49:$B$96,0)),0) -> 0 | AQ78: =IFERROR(INDEX('Stakeholders Survey'!$K$24:$K$159,MATCH(D78&E78,'Stakeholders Survey'!$M$24:$M$159,0)),0) -> 0
A79: 48 | B79: =Setup!AG79 ->  | C79: =Setup!AH79 ->  | D79: =IF(ISBLANK(LISTS!D52),"",LISTS!D52) -> C19-13 | E79: =IF(ISBLANK(LISTS!E52),"",LISTS!E52) ->  | F79: =IF(ISBLANK(LISTS!L52),"",LISTS!L52) -> Percentage of contractors engaged with to implement COVID-19 response measures as outlined in the TOMs 2020 COVID-19 Plug In and contract management notes. | G79: ✓ | H79: =IF(ISBLANK(LISTS!N52),"",LISTS!N52) -> Record only | I79: =IF(ISBLANK(LISTS!O52),"",LISTS!O52) -> % of contractors within the contract's supply chain | J79: - | K79: - | L79: - | M79: high | P79: =Setup!G79="✓" -> TRUE | Q79: =IF(NOT(ISBLANK(LISTS!F52)),1,0) -> 0 | R79: =IF(NOT(ISBLANK(LISTS!G52)),1,0) -> 0 | S79: =IF(NOT(ISBLANK(LISTS!H52)),1,0) -> 1 | T79: =IF(NOT(ISBLANK(LISTS!I52)),1,0) -> 0 | U79: =IF(NOT(ISBLANK(LISTS!J52)),1,0) -> 0 | V79: =IF(LISTS!K52="y",1,0) -> 0 | W79: TRUE | X79: TRUE | Y79: ✓ | Z79: TRUE | AA79: =IF(LISTS!B52=0,AA78,LISTS!B52) -> Growth: Supporting Growth of Responsible Regional Business | AB79: =IF(LISTS!C52=0,AB78,LISTS!C52) -> Supporting workers, SMEs and VCSEs to face the COVID-19 crisis | AC79: Growth: Supporting Growth of Responsible Regional Business | AD79: Supporting workers, SMEs and VCSEs to face the COVID-19 crisis | AE79: =IF(AND($X79,MATCH(AC79,AC$36:AC$185,0)=Setup!$A79-4),AA79,"") ->  | AF79: =IF(AND($X79,MATCH(AD79,AD$36:AD$185,0)=Setup!$A79-4),AB79,"") ->  | AG79: =IF(AND($X79,MATCH(AC79,AC$32:AC$185,0)=Setup!$A79),AA79,"") ->  | AH79: =IF(AND($X79,MATCH(AD79,AD$32:AD$185,0)=Setup!$A79),AB79,"") ->  | AI79: 44 | AJ79: 44 | AK79: 48 | AL79: 48 | AM79: =IF(AND(NOT(ISBLANK(Setup!J79)),OR(ISNUMBER(Setup!K79),K79="Enter localised proxy in calculator")),Setup!J79,Setup!I79) -> % of contractors within the contract's supply chain | AN79: =IF(ISNUMBER(Setup!H79),IF(AND(NOT(ISBLANK(Setup!J79)),ISNUMBER(Setup!K79)),Setup!H79*Setup!K79,Setup!H79),Setup!H79) -> Record only | AO79: 0 | AP79: =IF(AO79=1,INDEX('Needs and Priorities'!$D$49:$D$96,MATCH(Setup!D79,'Needs and Priorities'!$B$49:$B$96,0)),0) -> 0 | AQ79: =IFERROR(INDEX('Stakeholders Survey'!$K$24:$K$159,MATCH(D79&E79,'Stakeholders Survey'!$M$24:$M$159,0)),0) -> 0
A80: 49 | B80: =Setup!AG80 ->  | C80: =Setup!AH80 -> More opportunities for local MSMEs and VCSEs | D80: =IF(ISBLANK(LISTS!D53),"",LISTS!D53) -> NT14 | E80: =IF(ISBLANK(LISTS!E53),"",LISTS!E53) ->  | F80: =IF(ISBLANK(LISTS!L53),"",LISTS!L53) -> Total amount (£) spent with VCSEs within your supply chain | G80: ✓ | H80: =IF(ISBLANK(LISTS!N53),"",LISTS!N53) -> 0.11875 | I80: =IF(ISBLANK(LISTS!O53),"",LISTS!O53) -> £ | M80: high | P80: =Setup!G80="✓" -> TRUE | Q80: =IF(NOT(ISBLANK(LISTS!F53)),1,0) -> 1 | R80: =IF(NOT(ISBLANK(LISTS!G53)),1,0) -> 0 | S80: =IF(NOT(ISBLANK(LISTS!H53)),1,0) -> 0 | T80: =IF(NOT(ISBLANK(LISTS!I53)),1,0) -> 0 | U80: =IF(NOT(ISBLANK(LISTS!J53)),1,0) -> 0 | V80: =IF(LISTS!K53="y",1,0) -> 0 | W80: TRUE | X80: TRUE | Y80: ✓ | Z80: TRUE | AA80: =IF(LISTS!B53=0,AA79,LISTS!B53) -> Growth: Supporting Growth of Responsible Regional Business | AB80: =IF(LISTS!C53=0,AB79,LISTS!C53) -> More opportunities for local MSMEs and VCSEs | AC80: Growth: Supporting Growth of Responsible Regional Business | AD80: More opportunities for local MSMEs and VCSEs | AE80: =IF(AND($X80,MATCH(AC80,AC$36:AC$185,0)=Setup!$A80-4),AA80,"") ->  | AF80: =IF(AND($X80,MATCH(AD80,AD$36:AD$185,0)=Setup!$A80-4),AB80,"") -> More opportunities for local MSMEs and VCSEs | AG80: =IF(AND($X80,MATCH(AC80,AC$32:AC$185,0)=Setup!$A80),AA80,"") ->  | AH80: =IF(AND($X80,MATCH(AD80,AD$32:AD$185,0)=Setup!$A80),AB80,"") -> More opportunities for local MSMEs and VCSEs | AI80: 45 | AJ80: 45 | AK80: 49 | AL80: 49 | AM80: =IF(AND(NOT(ISBLANK(Setup!J80)),OR(ISNUMBER(Setup!K80),K80="Enter localised proxy in calculator")),Setup!J80,Setup!I80) -> £ | AN80: =IF(ISNUMBER(Setup!H80),IF(AND(NOT(ISBLANK(Setup!J80)),ISNUMBER(Setup!K80)),Setup!H80*Setup!K80,Setup!H80),Setup!H80) -> 0.11875 | AO80: 1 | AP80: =IF(AO80=1,INDEX('Needs and Priorities'!$D$49:$D$96,MATCH(Setup!D80,'Needs and Priorities'!$B$49:$B$96,0)),0) -> 0 | AQ80: =IFERROR(INDEX('Stakeholders Survey'!$K$24:$K$159,MATCH(D80&E80,'Stakeholders Survey'!$M$24:$M$159,0)),0) -> 0
A81: 50 | B81: =Setup!AG81 ->  | C81: =Setup!AH81 ->  | D81: =IF(ISBLANK(LISTS!D54),"",LISTS!D54) -> NT15 | E81: =IF(ISBLANK(LISTS!E54),"",LISTS!E54) -> RE18 | F81: =IF(ISBLANK(LISTS!L54),"",LISTS!L54) -> Provision of expert business advice to VCSEs and MSMEs (e.g. financial advice / legal advice / HR advice/HSE) | G81: ✓ | H81: =IF(ISBLANK(LISTS!N54),"",LISTS!N54) -> 96.11 | I81: =IF(ISBLANK(LISTS!O54),"",LISTS!O54) -> No. staff expert hours | M81: high | P81: =Setup!G81="✓" -> TRUE | Q81: =IF(NOT(ISBLANK(LISTS!F54)),1,0) -> 1 | R81: =IF(NOT(ISBLANK(LISTS!G54)),1,0) -> 0 | S81: =IF(NOT(ISBLANK(LISTS!H54)),1,0) -> 0 | T81: =IF(NOT(ISBLANK(LISTS!I54)),1,0) -> 1 | U81: =IF(NOT(ISBLANK(LISTS!J54)),1,0) -> 0 | V81: =IF(LISTS!K54="y",1,0) -> 0 | W81: TRUE | X81: TRUE | Y81: ✓ | Z81: TRUE | AA81: =IF(LISTS!B54=0,AA80,LISTS!B54) -> Growth: Supporting Growth of Responsible Regional Business | AB81: =IF(LISTS!C54=0,AB80,LISTS!C54) -> More opportunities for local MSMEs and VCSEs | AC81: Growth: Supporting Growth of Responsible Regional Business | AD81: More opportunities for local MSMEs and VCSEs | AE81: =IF(AND($X81,MATCH(AC81,AC$36:AC$185,0)=Setup!$A81-4),AA81,"") ->  | AF81: =IF(AND($X81,MATCH(AD81,AD$36:AD$185,0)=Setup!$A81-4),AB81,"") ->  | AG81: =IF(AND($X81,MATCH(AC81,AC$32:AC$185,0)=Setup!$A81),AA81,"") ->  | AH81: =IF(AND($X81,MATCH(AD81,AD$32:AD$185,0)=Setup!$A81),AB81,"") ->  | AI81: 46 | AJ81: 46 | AK81: 50 | AL81: 50 | AM81: =IF(AND(NOT(ISBLANK(Setup!J81)),OR(ISNUMBER(Setup!K81),K81="Enter localised proxy in calculator")),Setup!J81,Setup!I81) -> No. staff expert hours | AN81: =IF(ISNUMBER(Setup!H81),IF(AND(NOT(ISBLANK(Setup!J81)),ISNUMBER(Setup!K81)),Setup!H81*Setup!K81,Setup!H81),Setup!H81) -> 96.11 | AO81: 1 | AP81: =IF(AO81=1,INDEX('Needs and Priorities'!$D$49:$D$96,MATCH(Setup!D81,'Needs and Priorities'!$B$49:$B$96,0)),0) -> 0 | AQ81: =IFERROR(INDEX('Stakeholders Survey'!$K$24:$K$159,MATCH(D81&E81,'Stakeholders Survey'!$M$24:$M$159,0)),0) -> 0
A82: 51 | B82: =Setup!AG82 ->  | C82: =Setup!AH82 ->  | D82: =IF(ISBLANK(LISTS!D55),"",LISTS!D55) -> NT15a | E82: =IF(ISBLANK(LISTS!E55),"",LISTS!E55) -> RE18a | F82: =IF(ISBLANK(LISTS!L55),"",LISTS!L55) -> Provision of expert business advice to help VCSEs and MSMEs achieve net zero carbon by 2030 | G82: ✓ | H82: =IF(ISBLANK(LISTS!N55),"",LISTS!N55) -> 96.11 | I82: =IF(ISBLANK(LISTS!O55),"",LISTS!O55) -> No. staff expert hours | P82: =Setup!G82="✓" -> TRUE | Q82: =IF(NOT(ISBLANK(LISTS!F55)),1,0) -> 0 | R82: =IF(NOT(ISBLANK(LISTS!G55)),1,0) -> 1 | S82: =IF(NOT(ISBLANK(LISTS!H55)),1,0) -> 0 | T82: =IF(NOT(ISBLANK(LISTS!I55)),1,0) -> 1 | U82: =IF(NOT(ISBLANK(LISTS!J55)),1,0) -> 0 | V82: =IF(LISTS!K55="y",1,0) -> 0 | W82: TRUE | X82: TRUE | Y82: ✓ | Z82: TRUE | AA82: =IF(LISTS!B55=0,AA81,LISTS!B55) -> Growth: Supporting Growth of Responsible Regional Business | AB82: =IF(LISTS!C55=0,AB81,LISTS!C55) -> More opportunities for local MSMEs and VCSEs | AC82: Growth: Supporting Growth of Responsible Regional Business | AD82: More opportunities for local MSMEs and VCSEs | AE82: =IF(AND($X82,MATCH(AC82,AC$36:AC$185,0)=Setup!$A82-4),AA82,"") ->  | AF82: =IF(AND($X82,MATCH(AD82,AD$36:AD$185,0)=Setup!$A82-4),AB82,"") ->  | AG82: =IF(AND($X82,MATCH(AC82,AC$32:AC$185,0)=Setup!$A82),AA82,"") ->  | AH82: =IF(AND($X82,MATCH(AD82,AD$32:AD$185,0)=Setup!$A82),AB82,"") ->  | AI82: 47 | AJ82: 47 | AK82: 51 | AL82: 51 | AM82: =IF(AND(NOT(ISBLANK(Setup!J82)),OR(ISNUMBER(Setup!K82),K82="Enter localised proxy in calculator")),Setup!J82,Setup!I82) -> No. staff expert hours | AN82: =IF(ISNUMBER(Setup!H82),IF(AND(NOT(ISBLANK(Setup!J82)),ISNUMBER(Setup!K82)),Setup!H82*Setup!K82,Setup!H82),Setup!H82) -> 96.11 | AO82: 0 | AP82: =IF(AO82=1,INDEX('Needs and Priorities'!$D$49:$D$96,MATCH(Setup!D82,'Needs and Priorities'!$B$49:$B$96,0)),0) -> 0 | AQ82: =IFERROR(INDEX('Stakeholders Survey'!$K$24:$K$159,MATCH(D82&E82,'Stakeholders Survey'!$M$24:$M$159,0)),0) -> 0
A83: 52 | B83: =Setup!AG83 ->  | C83: =Setup!AH83 ->  | D83: =IF(ISBLANK(LISTS!D56),"",LISTS!D56) -> NT16 | E83: =IF(ISBLANK(LISTS!E56),"",LISTS!E56) -> RE19 | F83: =IF(ISBLANK(LISTS!L56),"",LISTS!L56) -> Equipment or resources donated to VCSEs (£ equivalent value) | G83: ✓ | H83: =IF(ISBLANK(LISTS!N56),"",LISTS!N56) -> 1 | I83: =IF(ISBLANK(LISTS!O56),"",LISTS!O56) -> £ | M83: high | P83: =Setup!G83="✓" -> TRUE | Q83: =IF(NOT(ISBLANK(LISTS!F56)),1,0) -> 1 | R83: =IF(NOT(ISBLANK(LISTS!G56)),1,0) -> 0 | S83: =IF(NOT(ISBLANK(LISTS!H56)),1,0) -> 0 | T83: =IF(NOT(ISBLANK(LISTS!I56)),1,0) -> 1 | U83: =IF(NOT(ISBLANK(LISTS!J56)),1,0) -> 0 | V83: =IF(LISTS!K56="y",1,0) -> 0 | W83: TRUE | X83: TRUE | Y83: ✓ | Z83: TRUE | AA83: =IF(LISTS!B56=0,AA82,LISTS!B56) -> Growth: Supporting Growth of Responsible Regional Business | AB83: =IF(LISTS!C56=0,AB82,LISTS!C56) -> More opportunities for local MSMEs and VCSEs | AC83: Growth: Supporting Growth of Responsible Regional Business | AD83: More opportunities for local MSMEs and VCSEs | AE83: =IF(AND($X83,MATCH(AC83,AC$36:AC$185,0)=Setup!$A83-4),AA83,"") ->  | AF83: =IF(AND($X83,MATCH(AD83,AD$36:AD$185,0)=Setup!$A83-4),AB83,"") ->  | AG83: =IF(AND($X83,MATCH(AC83,AC$32:AC$185,0)=Setup!$A83),AA83,"") ->  | AH83: =IF(AND($X83,MATCH(AD83,AD$32:AD$185,0)=Setup!$A83),AB83,"") ->  | AI83: 48 | AJ83: 48 | AK83: 52 | AL83: 52 | AM83: =IF(AND(NOT(ISBLANK(Setup!J83)),OR(ISNUMBER(Setup!K83),K83="Enter localised proxy in calculator")),Setup!J83,Setup!I83) -> £ | AN83: =IF(ISNUMBER(Setup!H83),IF(AND(NOT(ISBLANK(Setup!J83)),ISNUMBER(Setup!K83)),Setup!H83*Setup!K83,Setup!H83),Setup!H83) -> 1 | AO83: 1 | AP83: =IF(AO83=1,INDEX('Needs and Priorities'!$D$49:$D$96,MATCH(Setup!D83,'Needs and Priorities'!$B$49:$B$96,0)),0) -> 0 | AQ83: =IFERROR(INDEX('Stakeholders Survey'!$K$24:$K$159,MATCH(D83&E83,'Stakeholders Survey'!$M$24:$M$159,0)),0) -> 0
A84: 53 | B84: =Setup!AG84 ->  | C84: =Setup!AH84 ->  | D84: =IF(ISBLANK(LISTS!D57),"",LISTS!D57) -> NT17 | E84: =IF(ISBLANK(LISTS!E57),"",LISTS!E57) -> RE20 | F84: =IF(ISBLANK(LISTS!L57),"",LISTS!L57) -> Number of voluntary hours donated to support VCSEs (excludes expert business advice) | G84: ✓ | H84: =IF(ISBLANK(LISTS!N57),"",LISTS!N57) -> 16.07 | I84: =IF(ISBLANK(LISTS!O57),"",LISTS!O57) -> No. staff volunteering hours | M84: high | P84: =Setup!G84="✓" -> TRUE | Q84: =IF(NOT(ISBLANK(LISTS!F57)),1,0) -> 1 | R84: =IF(NOT(ISBLANK(LISTS!G57)),1,0) -> 0 | S84: =IF(NOT(ISBLANK(LISTS!H57)),1,0) -> 0 | T84: =IF(NOT(ISBLANK(LISTS!I57)),1,0) -> 1 | U84: =IF(NOT(ISBLANK(LISTS!J57)),1,0) -> 0 | V84: =IF(LISTS!K57="y",1,0) -> 0 | W84: TRUE | X84: TRUE | Y84: ✓ | Z84: TRUE | AA84: =IF(LISTS!B57=0,AA83,LISTS!B57) -> Growth: Supporting Growth of Responsible Regional Business | AB84: =IF(LISTS!C57=0,AB83,LISTS!C57) -> More opportunities for local MSMEs and VCSEs | AC84: Growth: Supporting Growth of Responsible Regional Business | AD84: More opportunities for local MSMEs and VCSEs | AE84: =IF(AND($X84,MATCH(AC84,AC$36:AC$185,0)=Setup!$A84-4),AA84,"") ->  | AF84: =IF(AND($X84,MATCH(AD84,AD$36:AD$185,0)=Setup!$A84-4),AB84,"") ->  | AG84: =IF(AND($X84,MATCH(AC84,AC$32:AC$185,0)=Setup!$A84),AA84,"") ->  | AH84: =IF(AND($X84,MATCH(AD84,AD$32:AD$185,0)=Setup!$A84),AB84,"") ->  | AI84: 49 | AJ84: 49 | AK84: 53 | AL84: 53 | AM84: =IF(AND(NOT(ISBLANK(Setup!J84)),OR(ISNUMBER(Setup!K84),K84="Enter localised proxy in calculator")),Setup!J84,Setup!I84) -> No. staff volunteering hours | AN84: =IF(ISNUMBER(Setup!H84),IF(AND(NOT(ISBLANK(Setup!J84)),ISNUMBER(Setup!K84)),Setup!H84*Setup!K84,Setup!H84),Setup!H84) -> 16.07 | AO84: 1 | AP84: =IF(AO84=1,INDEX('Needs and Priorities'!$D$49:$D$96,MATCH(Setup!D84,'Needs and Priorities'!$B$49:$B$96,0)),0) -> 0 | AQ84: =IFERROR(INDEX('Stakeholders Survey'!$K$24:$K$159,MATCH(D84&E84,'Stakeholders Survey'!$M$24:$M$159,0)),0) -> 0
A85: 54 | B85: =Setup!AG85 ->  | C85: =Setup!AH85 ->  | D85: =IF(ISBLANK(LISTS!D58),"",LISTS!D58) -> NT18 | E85: =IF(ISBLANK(LISTS!E58),"",LISTS!E58) -> RE22 | F85: =IF(ISBLANK(LISTS!L58),"",LISTS!L58) -> Total amount (£) spent in LOCAL supply chain through the contract | G85: ✓ | H85: =IF(ISBLANK(LISTS!N58),"",LISTS!N58) -> £0.751 - multiplier for Birmingham, CONSTRUCTION - needs to be customised by industry and local area | I85: =IF(ISBLANK(LISTS!O58),"",LISTS!O58) -> £ | K85: Enter localised proxy in calculator | L85: n/a | P85: =Setup!G85="✓" -> TRUE | Q85: =IF(NOT(ISBLANK(LISTS!F58)),1,0) -> 1 | R85: =IF(NOT(ISBLANK(LISTS!G58)),1,0) -> 0 | S85: =IF(NOT(ISBLANK(LISTS!H58)),1,0) -> 0 | T85: =IF(NOT(ISBLANK(LISTS!I58)),1,0) -> 1 | U85: =IF(NOT(ISBLANK(LISTS!J58)),1,0) -> 0 | V85: =IF(LISTS!K58="y",1,0) -> 0 | W85: TRUE | X85: TRUE | Y85: ✓ | Z85: TRUE | AA85: =IF(LISTS!B58=0,AA84,LISTS!B58) -> Growth: Supporting Growth of Responsible Regional Business | AB85: =IF(LISTS!C58=0,AB84,LISTS!C58) -> More opportunities for local MSMEs and VCSEs | AC85: Growth: Supporting Growth of Responsible Regional Business | AD85: More opportunities for local MSMEs and VCSEs | AE85: =IF(AND($X85,MATCH(AC85,AC$36:AC$185,0)=Setup!$A85-4),AA85,"") ->  | AF85: =IF(AND($X85,MATCH(AD85,AD$36:AD$185,0)=Setup!$A85-4),AB85,"") ->  | AG85: =IF(AND($X85,MATCH(AC85,AC$32:AC$185,0)=Setup!$A85),AA85,"") ->  | AH85: =IF(AND($X85,MATCH(AD85,AD$32:AD$185,0)=Setup!$A85),AB85,"") ->  | AI85: 50 | AJ85: 50 | AK85: 54 | AL85: 54 | AM85: =IF(AND(NOT(ISBLANK(Setup!J85)),OR(ISNUMBER(Setup!K85),K85="Enter localised proxy in calculator")),Setup!J85,Setup!I85) -> £ | AN85: =IF(ISNUMBER(Setup!H85),IF(AND(NOT(ISBLANK(Setup!J85)),ISNUMBER(Setup!K85)),Setup!H85*Setup!K85,Setup!H85),Setup!H85) -> £0.751 - multiplier for Birmingham, CONSTRUCTION - needs to be customised by industry and local area | AO85: 1 | AP85: =IF(AO85=1,INDEX('Needs and Priorities'!$D$49:$D$96,MATCH(Setup!D85,'Needs and Priorities'!$B$49:$B$96,0)),0) -> 0 | AQ85: =IFERROR(INDEX('Stakeholders Survey'!$K$24:$K$159,MATCH(D85&E85,'Stakeholders Survey'!$M$24:$M$159,0)),0) -> 0
A86: 55 | B86: =Setup!AG86 ->  | C86: =Setup!AH86 ->  | D86: =IF(ISBLANK(LISTS!D59),"",LISTS!D59) -> NT18a | E86: =IF(ISBLANK(LISTS!E59),"",LISTS!E59) -> RE22a | F86: =IF(ISBLANK(LISTS!L59),"",LISTS!L59) -> Total amount (£) spent through the contract in specified sub-localities (e.g. high deprivation areas) - please refer to list NT18a for the qualifying areas | G86: ✓ | H86: =IF(ISBLANK(LISTS!N59),"",LISTS!N59) -> £0.751 - multiplier for Birmingham, CONSTRUCTION - needs to be customised by industry and selected sub-localities (as in LIST NT18a) | I86: =IF(ISBLANK(LISTS!O59),"",LISTS!O59) -> £ | K86: Enter localised proxy in calculator | L86: n/a | M86: high | P86: =Setup!G86="✓" -> TRUE | Q86: =IF(NOT(ISBLANK(LISTS!F59)),1,0) -> 1 | R86: =IF(NOT(ISBLANK(LISTS!G59)),1,0) -> 0 | S86: =IF(NOT(ISBLANK(LISTS!H59)),1,0) -> 0 | T86: =IF(NOT(ISBLANK(LISTS!I59)),1,0) -> 1 | U86: =IF(NOT(ISBLANK(LISTS!J59)),1,0) -> 0 | V86: =IF(LISTS!K59="y",1,0) -> 0 | W86: TRUE | X86: TRUE | Y86: ✓ | Z86: TRUE | AA86: =IF(LISTS!B59=0,AA85,LISTS!B59) -> Growth: Supporting Growth of Responsible Regional Business | AB86: =IF(LISTS!C59=0,AB85,LISTS!C59) -> More opportunities for local MSMEs and VCSEs | AC86: Growth: Supporting Growth of Responsible Regional Business | AD86: More opportunities for local MSMEs and VCSEs | AE86: =IF(AND($X86,MATCH(AC86,AC$36:AC$185,0)=Setup!$A86-4),AA86,"") ->  | AF86: =IF(AND($X86,MATCH(AD86,AD$36:AD$185,0)=Setup!$A86-4),AB86,"") ->  | AG86: =IF(AND($X86,MATCH(AC86,AC$32:AC$185,0)=Setup!$A86),AA86,"") ->  | AH86: =IF(AND($X86,MATCH(AD86,AD$32:AD$185,0)=Setup!$A86),AB86,"") ->  | AI86: 51 | AJ86: 51 | AK86: 55 | AL86: 55 | AM86: =IF(AND(NOT(ISBLANK(Setup!J86)),OR(ISNUMBER(Setup!K86),K86="Enter localised proxy in calculator")),Setup!J86,Setup!I86) -> £ | AN86: =IF(ISNUMBER(Setup!H86),IF(AND(NOT(ISBLANK(Setup!J86)),ISNUMBER(Setup!K86)),Setup!H86*Setup!K86,Setup!H86),Setup!H86) -> £0.751 - multiplier for Birmingham, CONSTRUCTION - needs to be customised by industry and selected sub-localities (as in LIST NT18a) | AO86: 1 | AP86: =IF(AO86=1,INDEX('Needs and Priorities'!$D$49:$D$96,MATCH(Setup!D86,'Needs and Priorities'!$B$49:$B$96,0)),0) -> 0 | AQ86: =IFERROR(INDEX('Stakeholders Survey'!$K$24:$K$159,MATCH(D86&E86,'Stakeholders Survey'!$M$24:$M$159,0)),0) -> 0
A87: 56 | B87: =Setup!AG87 ->  | C87: =Setup!AH87 ->  | D87: =IF(ISBLANK(LISTS!D60),"",LISTS!D60) -> NT19 | E87: =IF(ISBLANK(LISTS!E60),"",LISTS!E60) -> RE23 | F87: =IF(ISBLANK(LISTS!L60),"",LISTS!L60) -> Total amount (£) spent through contract with LOCAL micro, small and medium enterprises (MSMEs) | G87: ✓ | H87: =IF(ISBLANK(LISTS!N60),"",LISTS!N60) -> £0.751 - multiplier for Birmingham, CONSTRUCTION - needs to be customised by industry and locality | I87: =IF(ISBLANK(LISTS!O60),"",LISTS!O60) -> £ | K87: Enter localised proxy in calculator | L87: n/a | M87: high | P87: =Setup!G87="✓" -> TRUE | Q87: =IF(NOT(ISBLANK(LISTS!F60)),1,0) -> 1 | R87: =IF(NOT(ISBLANK(LISTS!G60)),1,0) -> 0 | S87: =IF(NOT(ISBLANK(LISTS!H60)),1,0) -> 0 | T87: =IF(NOT(ISBLANK(LISTS!I60)),1,0) -> 1 | U87: =IF(NOT(ISBLANK(LISTS!J60)),1,0) -> 0 | V87: =IF(LISTS!K60="y",1,0) -> 0 | W87: TRUE | X87: TRUE | Y87: ✓ | Z87: TRUE | AA87: =IF(LISTS!B60=0,AA86,LISTS!B60) -> Growth: Supporting Growth of Responsible Regional Business | AB87: =IF(LISTS!C60=0,AB86,LISTS!C60) -> More opportunities for local MSMEs and VCSEs | AC87: Growth: Supporting Growth of Responsible Regional Business | AD87: More opportunities for local MSMEs and VCSEs | AE87: =IF(AND($X87,MATCH(AC87,AC$36:AC$185,0)=Setup!$A87-4),AA87,"") ->  | AF87: =IF(AND($X87,MATCH(AD87,AD$36:AD$185,0)=Setup!$A87-4),AB87,"") ->  | AG87: =IF(AND($X87,MATCH(AC87,AC$32:AC$185,0)=Setup!$A87),AA87,"") ->  | AH87: =IF(AND($X87,MATCH(AD87,AD$32:AD$185,0)=Setup!$A87),AB87,"") ->  | AI87: 52 | AJ87: 52 | AK87: 56 | AL87: 56 | AM87: =IF(AND(NOT(ISBLANK(Setup!J87)),OR(ISNUMBER(Setup!K87),K87="Enter localised proxy in calculator")),Setup!J87,Setup!I87) -> £ | AN87: =IF(ISNUMBER(Setup!H87),IF(AND(NOT(ISBLANK(Setup!J87)),ISNUMBER(Setup!K87)),Setup!H87*Setup!K87,Setup!H87),Setup!H87) -> £0.751 - multiplier for Birmingham, CONSTRUCTION - needs to be customised by industry and locality | AO87: 1 | AP87: =IF(AO87=1,INDEX('Needs and Priorities'!$D$49:$D$96,MATCH(Setup!D87,'Needs and Priorities'!$B$49:$B$96,0)),0) -> 0 | AQ87: =IFERROR(INDEX('Stakeholders Survey'!$K$24:$K$159,MATCH(D87&E87,'Stakeholders Survey'!$M$24:$M$159,0)),0) -> 0
A88: 57 | B88: =Setup!AG88 ->  | C88: =Setup!AH88 ->  | D88: =IF(ISBLANK(LISTS!D61),"",LISTS!D61) -> NT19a | E88: =IF(ISBLANK(LISTS!E61),"",LISTS!E61) ->  | F88: =IF(ISBLANK(LISTS!L61),"",LISTS!L61) -> Total amount (£) spent with local Micro and Small enterprises within your supply chain through the contract | G88: ✓ | H88: =IF(ISBLANK(LISTS!N61),"",LISTS!N61) -> £0.751 - multiplier for Birmingham, CONSTRUCTION - needs to be customised by industry and locality | I88: =IF(ISBLANK(LISTS!O61),"",LISTS!O61) -> £ | K88: Enter localised proxy in calculator | L88: n/a | P88: =Setup!G88="✓" -> TRUE | Q88: =IF(NOT(ISBLANK(LISTS!F61)),1,0) -> 0 | R88: =IF(NOT(ISBLANK(LISTS!G61)),1,0) -> 1 | S88: =IF(NOT(ISBLANK(LISTS!H61)),1,0) -> 0 | T88: =IF(NOT(ISBLANK(LISTS!I61)),1,0) -> 0 | U88: =IF(NOT(ISBLANK(LISTS!J61)),1,0) -> 0 | V88: =IF(LISTS!K61="y",1,0) -> 0 | W88: TRUE | X88: TRUE | Y88: ✓ | Z88: TRUE | AA88: =IF(LISTS!B61=0,AA87,LISTS!B61) -> Growth: Supporting Growth of Responsible Regional Business | AB88: =IF(LISTS!C61=0,AB87,LISTS!C61) -> More opportunities for local MSMEs and VCSEs | AC88: Growth: Supporting Growth of Responsible Regional Business | AD88: More opportunities for local MSMEs and VCSEs | AE88: =IF(AND($X88,MATCH(AC88,AC$36:AC$185,0)=Setup!$A88-4),AA88,"") ->  | AF88: =IF(AND($X88,MATCH(AD88,AD$36:AD$185,0)=Setup!$A88-4),AB88,"") ->  | AG88: =IF(AND($X88,MATCH(AC88,AC$32:AC$185,0)=Setup!$A88),AA88,"") ->  | AH88: =IF(AND($X88,MATCH(AD88,AD$32:AD$185,0)=Setup!$A88),AB88,"") ->  | AI88: 53 | AJ88: 53 | AK88: 57 | AL88: 57 | AM88: =IF(AND(NOT(ISBLANK(Setup!J88)),OR(ISNUMBER(Setup!K88),K88="Enter localised proxy in calculator")),Setup!J88,Setup!I88) -> £ | AN88: =IF(ISNUMBER(Setup!H88),IF(AND(NOT(ISBLANK(Setup!J88)),ISNUMBER(Setup!K88)),Setup!H88*Setup!K88,Setup!H88),Setup!H88) -> £0.751 - multiplier for Birmingham, CONSTRUCTION - needs to be customised by industry and locality | AO88: 0 | AP88: =IF(AO88=1,INDEX('Needs and Priorities'!$D$49:$D$96,MATCH(Setup!D88,'Needs and Priorities'!$B$49:$B$96,0)),0) -> 0 | AQ88: =IFERROR(INDEX('Stakeholders Survey'!$K$24:$K$159,MATCH(D88&E88,'Stakeholders Survey'!$M$24:$M$159,0)),0) -> 0
A89: 58 | B89: =Setup!AG89 ->  | C89: =Setup!AH89 ->  | D89: =IF(ISBLANK(LISTS!D62),"",LISTS!D62) ->  | E89: =IF(ISBLANK(LISTS!E62),"",LISTS!E62) -> RE73 | F89: =IF(ISBLANK(LISTS!L62),"",LISTS!L62) -> No. of opportunities created for local MSMEs to respond to tenders for de-carbonisation work on the contract | G89: ✓ | H89: =IF(ISBLANK(LISTS!N62),"",LISTS!N62) -> Record only | I89: =IF(ISBLANK(LISTS!O62),"",LISTS!O62) -> No. opportunities | J89: - | K89: - | L89: - | P89: =Setup!G89="✓" -> TRUE | Q89: =IF(NOT(ISBLANK(LISTS!F62)),1,0) -> 0 | R89: =IF(NOT(ISBLANK(LISTS!G62)),1,0) -> 0 | S89: =IF(NOT(ISBLANK(LISTS!H62)),1,0) -> 0 | T89: =IF(NOT(ISBLANK(LISTS!I62)),1,0) -> 0 | U89: =IF(NOT(ISBLANK(LISTS!J62)),1,0) -> 1 | V89: =IF(LISTS!K62="y",1,0) -> 0 | W89: TRUE | X89: TRUE | Y89: ✓ | Z89: TRUE | AA89: =IF(LISTS!B62=0,AA88,LISTS!B62) -> Growth: Supporting Growth of Responsible Regional Business | AB89: =IF(LISTS!C62=0,AB88,LISTS!C62) -> More opportunities for local MSMEs and VCSEs | AC89: Growth: Supporting Growth of Responsible Regional Business | AD89: More opportunities for local MSMEs and VCSEs | AE89: =IF(AND($X89,MATCH(AC89,AC$36:AC$185,0)=Setup!$A89-4),AA89,"") ->  | AF89: =IF(AND($X89,MATCH(AD89,AD$36:AD$185,0)=Setup!$A89-4),AB89,"") ->  | AG89: =IF(AND($X89,MATCH(AC89,AC$32:AC$185,0)=Setup!$A89),AA89,"") ->  | AH89: =IF(AND($X89,MATCH(AD89,AD$32:AD$185,0)=Setup!$A89),AB89,"") ->  | AI89: 54 | AJ89: 54 | AK89: 58 | AL89: 58 | AM89: =IF(AND(NOT(ISBLANK(Setup!J89)),OR(ISNUMBER(Setup!K89),K89="Enter localised proxy in calculator")),Setup!J89,Setup!I89) -> No. opportunities | AN89: =IF(ISNUMBER(Setup!H89),IF(AND(NOT(ISBLANK(Setup!J89)),ISNUMBER(Setup!K89)),Setup!H89*Setup!K89,Setup!H89),Setup!H89) -> Record only | AO89: 0 | AP89: =IF(AO89=1,INDEX('Needs and Priorities'!$D$49:$D$96,MATCH(Setup!D89,'Needs and Priorities'!$B$49:$B$96,0)),0) -> 0 | AQ89: =IFERROR(INDEX('Stakeholders Survey'!$K$24:$K$159,MATCH(D89&E89,'Stakeholders Survey'!$M$24:$M$159,0)),0) -> 0
A90: 59 | B90: =Setup!AG90 ->  | C90: =Setup!AH90 ->  | D90: =IF(ISBLANK(LISTS!D63),"",LISTS!D63) ->  | E90: =IF(ISBLANK(LISTS!E63),"",LISTS!E63) -> RE21 | F90: =IF(ISBLANK(LISTS!L63),"",LISTS!L63) -> Meet the buyer' events held to highlight local supply chain opportunities | G90: ✓ | H90: =IF(ISBLANK(LISTS!N63),"",LISTS!N63) -> 1 | I90: =IF(ISBLANK(LISTS!O63),"",LISTS!O63) -> £ | L90: =IF(ISNUMBER(H90),IF(NOT(ISBLANK(J90)),IF(NOT(ISNUMBER(K90)),"Please enter a valid conversion factor","£"&ROUND(H90*K90,2)&"/"&IF(RIGHT(J90,1)="s",LEFT(J90,LEN(J90)-1),J90)),""),"n/a") ->  | P90: =Setup!G90="✓" -> TRUE | Q90: =IF(NOT(ISBLANK(LISTS!F63)),1,0) -> 0 | R90: =IF(NOT(ISBLANK(LISTS!G63)),1,0) -> 0 | S90: =IF(NOT(ISBLANK(LISTS!H63)),1,0) -> 0 | T90: =IF(NOT(ISBLANK(LISTS!I63)),1,0) -> 1 | U90: =IF(NOT(ISBLANK(LISTS!J63)),1,0) -> 0 | V90: =IF(LISTS!K63="y",1,0) -> 0 | W90: TRUE | X90: TRUE | Y90: ✓ | Z90: TRUE | AA90: =IF(LISTS!B63=0,AA89,LISTS!B63) -> Growth: Supporting Growth of Responsible Regional Business | AB90: =IF(LISTS!C63=0,AB89,LISTS!C63) -> More opportunities for local MSMEs and VCSEs | AC90: Growth: Supporting Growth of Responsible Regional Business | AD90: More opportunities for local MSMEs and VCSEs | AE90: =IF(AND($X90,MATCH(AC90,AC$36:AC$185,0)=Setup!$A90-4),AA90,"") ->  | AF90: =IF(AND($X90,MATCH(AD90,AD$36:AD$185,0)=Setup!$A90-4),AB90,"") ->  | AG90: =IF(AND($X90,MATCH(AC90,AC$32:AC$185,0)=Setup!$A90),AA90,"") ->  | AH90: =IF(AND($X90,MATCH(AD90,AD$32:AD$185,0)=Setup!$A90),AB90,"") ->  | AI90: 55 | AJ90: 55 | AK90: 59 | AL90: 59 | AM90: =IF(AND(NOT(ISBLANK(Setup!J90)),OR(ISNUMBER(Setup!K90),K90="Enter localised proxy in calculator")),Setup!J90,Setup!I90) -> £ | AN90: =IF(ISNUMBER(Setup!H90),IF(AND(NOT(ISBLANK(Setup!J90)),ISNUMBER(Setup!K90)),Setup!H90*Setup!K90,Setup!H90),Setup!H90) -> 1 | AO90: 0 | AP90: =IF(AO90=1,INDEX('Needs and Priorities'!$D$49:$D$96,MATCH(Setup!D90,'Needs and Priorities'!$B$49:$B$96,0)),0) -> 0 | AQ90: =IFERROR(INDEX('Stakeholders Survey'!$K$24:$K$159,MATCH(D90&E90,'Stakeholders Survey'!$M$24:$M$159,0)),0) -> 0
A91: 60 | B91: =Setup!AG91 ->  | C91: =Setup!AH91 -> Improving staff wellbeing and mental health | D91: =IF(ISBLANK(LISTS!D64),"",LISTS!D64) -> NT20 | E91: =IF(ISBLANK(LISTS!E64),"",LISTS!E64) -> RE24 | F91: =IF(ISBLANK(LISTS!L64),"",LISTS!L64) -> No. of employees on the contract that have been provided access for at least 12 months to multidimensional wellbeing programmes that include flexible working time arrangements; healthy nutrition options; physical health programmes; a health risk appraisal questionnaire; access to health and wellbeing resources (e.g. a tailored health improvement web portal; wellness literature; and seminars and workshops focused on identified wellness issues) | G91: ✓ | H91: =IF(ISBLANK(LISTS!N64),"",LISTS!N64) -> 124.3 | I91: =IF(ISBLANK(LISTS!O64),"",LISTS!O64) -> No. employees provided access | J91: - | K91: - | L91: - | M91: high | P91: =Setup!G91="✓" -> TRUE | Q91: =IF(NOT(ISBLANK(LISTS!F64)),1,0) -> 1 | R91: =IF(NOT(ISBLANK(LISTS!G64)),1,0) -> 0 | S91: =IF(NOT(ISBLANK(LISTS!H64)),1,0) -> 0 | T91: =IF(NOT(ISBLANK(LISTS!I64)),1,0) -> 1 | U91: =IF(NOT(ISBLANK(LISTS!J64)),1,0) -> 0 | V91: =IF(LISTS!K64="y",1,0) -> 0 | W91: TRUE | X91: TRUE | Y91: ✓ | Z91: TRUE | AA91: =IF(LISTS!B64=0,AA90,LISTS!B64) -> Growth: Supporting Growth of Responsible Regional Business | AB91: =IF(LISTS!C64=0,AB90,LISTS!C64) -> Improving staff wellbeing and mental health | AC91: Growth: Supporting Growth of Responsible Regional Business | AD91: Improving staff wellbeing and mental health | AE91: =IF(AND($X91,MATCH(AC91,AC$36:AC$185,0)=Setup!$A91-4),AA91,"") ->  | AF91: =IF(AND($X91,MATCH(AD91,AD$36:AD$185,0)=Setup!$A91-4),AB91,"") -> Improving staff wellbeing and mental health | AG91: =IF(AND($X91,MATCH(AC91,AC$32:AC$185,0)=Setup!$A91),AA91,"") ->  | AH91: =IF(AND($X91,MATCH(AD91,AD$32:AD$185,0)=Setup!$A91),AB91,"") -> Improving staff wellbeing and mental health | AI91: 56 | AJ91: 56 | AK91: 60 | AL91: 60 | AM91: =IF(AND(NOT(ISBLANK(Setup!J91)),OR(ISNUMBER(Setup!K91),K91="Enter localised proxy in calculator")),Setup!J91,Setup!I91) -> No. employees provided access | AN91: =IF(ISNUMBER(Setup!H91),IF(AND(NOT(ISBLANK(Setup!J91)),ISNUMBER(Setup!K91)),Setup!H91*Setup!K91,Setup!H91),Setup!H91) -> 124.3 | AO91: 1 | AP91: =IF(AO91=1,INDEX('Needs and Priorities'!$D$49:$D$96,MATCH(Setup!D91,'Needs and Priorities'!$B$49:$B$96,0)),0) -> 0 | AQ91: =IFERROR(INDEX('Stakeholders Survey'!$K$24:$K$159,MATCH(D91&E91,'Stakeholders Survey'!$M$24:$M$159,0)),0) -> 0
A92: 61 | B92: =Setup!AG92 ->  | C92: =Setup!AH92 ->  | D92: =IF(ISBLANK(LISTS!D65),"",LISTS!D65) -> NT55 | E92: =IF(ISBLANK(LISTS!E65),"",LISTS!E65) ->  | F92: =IF(ISBLANK(LISTS!L65),"",LISTS!L65) -> No. of employees provided with workplace screening (e.g. questionnaire) and support (e.g. at least six session of cognitive behavioural therapy) for anxiety and depression | G92: ✓ | H92: =IF(ISBLANK(LISTS!N65),"",LISTS!N65) -> 135.11 | I92: =IF(ISBLANK(LISTS!O65),"",LISTS!O65) -> No. employees provided access | J92: - | K92: - | L92: - | P92: =Setup!G92="✓" -> TRUE | Q92: =IF(NOT(ISBLANK(LISTS!F65)),1,0) -> 0 | R92: =IF(NOT(ISBLANK(LISTS!G65)),1,0) -> 1 | S92: =IF(NOT(ISBLANK(LISTS!H65)),1,0) -> 0 | T92: =IF(NOT(ISBLANK(LISTS!I65)),1,0) -> 0 | U92: =IF(NOT(ISBLANK(LISTS!J65)),1,0) -> 0 | V92: =IF(LISTS!K65="y",1,0) -> 0 | W92: TRUE | X92: TRUE | Y92: ✓ | Z92: TRUE | AA92: =IF(LISTS!B65=0,AA91,LISTS!B65) -> Growth: Supporting Growth of Responsible Regional Business | AB92: =IF(LISTS!C65=0,AB91,LISTS!C65) -> Improving staff wellbeing and mental health | AC92: Growth: Supporting Growth of Responsible Regional Business | AD92: Improving staff wellbeing and mental health | AE92: =IF(AND($X92,MATCH(AC92,AC$36:AC$185,0)=Setup!$A92-4),AA92,"") ->  | AF92: =IF(AND($X92,MATCH(AD92,AD$36:AD$185,0)=Setup!$A92-4),AB92,"") ->  | AG92: =IF(AND($X92,MATCH(AC92,AC$32:AC$185,0)=Setup!$A92),AA92,"") ->  | AH92: =IF(AND($X92,MATCH(AD92,AD$32:AD$185,0)=Setup!$A92),AB92,"") ->  | AI92: 57 | AJ92: 57 | AK92: 61 | AL92: 61 | AM92: =IF(AND(NOT(ISBLANK(Setup!J92)),OR(ISNUMBER(Setup!K92),K92="Enter localised proxy in calculator")),Setup!J92,Setup!I92) -> No. employees provided access | AN92: =IF(ISNUMBER(Setup!H92),IF(AND(NOT(ISBLANK(Setup!J92)),ISNUMBER(Setup!K92)),Setup!H92*Setup!K92,Setup!H92),Setup!H92) -> 135.11 | AO92: 0 | AP92: =IF(AO92=1,INDEX('Needs and Priorities'!$D$49:$D$96,MATCH(Setup!D92,'Needs and Priorities'!$B$49:$B$96,0)),0) -> 0 | AQ92: =IFERROR(INDEX('Stakeholders Survey'!$K$24:$K$159,MATCH(D92&E92,'Stakeholders Survey'!$M$24:$M$159,0)),0) -> 0
A93: 62 | B93: =Setup!AG93 ->  | C93: =Setup!AH93 ->  | D93: =IF(ISBLANK(LISTS!D66),"",LISTS!D66) ->  | E93: =IF(ISBLANK(LISTS!E66),"",LISTS!E66) -> RE59 | F93: =IF(ISBLANK(LISTS!L66),"",LISTS!L66) -> No. of employees provided with workplace screening (e.g. questionnaire) and support (e.g. six session of cognitive behavioural therapy) for anxiety and depression (Construction) | G93: ✓ | H93: =IF(ISBLANK(LISTS!N66),"",LISTS!N66) -> 383 | I93: =IF(ISBLANK(LISTS!O66),"",LISTS!O66) -> No. employees provided access | J93: - | K93: - | L93: - | P93: =Setup!G93="✓" -> TRUE | Q93: =IF(NOT(ISBLANK(LISTS!F66)),1,0) -> 0 | R93: =IF(NOT(ISBLANK(LISTS!G66)),1,0) -> 0 | S93: =IF(NOT(ISBLANK(LISTS!H66)),1,0) -> 0 | T93: =IF(NOT(ISBLANK(LISTS!I66)),1,0) -> 1 | U93: =IF(NOT(ISBLANK(LISTS!J66)),1,0) -> 0 | V93: =IF(LISTS!K66="y",1,0) -> 0 | W93: TRUE | X93: TRUE | Y93: ✓ | Z93: TRUE | AA93: =IF(LISTS!B66=0,AA92,LISTS!B66) -> Growth: Supporting Growth of Responsible Regional Business | AB93: =IF(LISTS!C66=0,AB92,LISTS!C66) -> Improving staff wellbeing and mental health | AC93: Growth: Supporting Growth of Responsible Regional Business | AD93: Improving staff wellbeing and mental health | AE93: =IF(AND($X93,MATCH(AC93,AC$36:AC$185,0)=Setup!$A93-4),AA93,"") ->  | AF93: =IF(AND($X93,MATCH(AD93,AD$36:AD$185,0)=Setup!$A93-4),AB93,"") ->  | AG93: =IF(AND($X93,MATCH(AC93,AC$32:AC$185,0)=Setup!$A93),AA93,"") ->  | AH93: =IF(AND($X93,MATCH(AD93,AD$32:AD$185,0)=Setup!$A93),AB93,"") ->  | AI93: 58 | AJ93: 58 | AK93: 62 | AL93: 62 | AM93: =IF(AND(NOT(ISBLANK(Setup!J93)),OR(ISNUMBER(Setup!K93),K93="Enter localised proxy in calculator")),Setup!J93,Setup!I93) -> No. employees provided access | AN93: =IF(ISNUMBER(Setup!H93),IF(AND(NOT(ISBLANK(Setup!J93)),ISNUMBER(Setup!K93)),Setup!H93*Setup!K93,Setup!H93),Setup!H93) -> 383 | AO93: 0 | AP93: =IF(AO93=1,INDEX('Needs and Priorities'!$D$49:$D$96,MATCH(Setup!D93,'Needs and Priorities'!$B$49:$B$96,0)),0) -> 0 | AQ93: =IFERROR(INDEX('Stakeholders Survey'!$K$24:$K$159,MATCH(D93&E93,'Stakeholders Survey'!$M$24:$M$159,0)),0) -> 0
A94: 63 | B94: =Setup!AG94 ->  | C94: =Setup!AH94 ->  | D94: =IF(ISBLANK(LISTS!D67),"",LISTS!D67) -> NT39 | E94: =IF(ISBLANK(LISTS!E67),"",LISTS!E67) ->  | F94: =IF(ISBLANK(LISTS!L67),"",LISTS!L67) -> Mental Health campaigns for staff on the contract to create community of acceptance, remove stigma around mental health | G94: ✓ | H94: =IF(ISBLANK(LISTS!N67),"",LISTS!N67) -> 1 | I94: =IF(ISBLANK(LISTS!O67),"",LISTS!O67) -> £ | L94: =IF(ISNUMBER(H94),IF(NOT(ISBLANK(J94)),IF(NOT(ISNUMBER(K94)),"Please enter a valid conversion factor","£"&ROUND(H94*K94,2)&"/"&IF(RIGHT(J94,1)="s",LEFT(J94,LEN(J94)-1),J94)),""),"n/a") ->  | M94: high | P94: =Setup!G94="✓" -> TRUE | Q94: =IF(NOT(ISBLANK(LISTS!F67)),1,0) -> 1 | R94: =IF(NOT(ISBLANK(LISTS!G67)),1,0) -> 0 | S94: =IF(NOT(ISBLANK(LISTS!H67)),1,0) -> 0 | T94: =IF(NOT(ISBLANK(LISTS!I67)),1,0) -> 0 | U94: =IF(NOT(ISBLANK(LISTS!J67)),1,0) -> 0 | V94: =IF(LISTS!K67="y",1,0) -> 0 | W94: TRUE | X94: TRUE | Y94: ✓ | Z94: TRUE | AA94: =IF(LISTS!B67=0,AA93,LISTS!B67) -> Growth: Supporting Growth of Responsible Regional Business | AB94: =IF(LISTS!C67=0,AB93,LISTS!C67) -> Improving staff wellbeing and mental health | AC94: Growth: Supporting Growth of Responsible Regional Business | AD94: Improving staff wellbeing and mental health | AE94: =IF(AND($X94,MATCH(AC94,AC$36:AC$185,0)=Setup!$A94-4),AA94,"") ->  | AF94: =IF(AND($X94,MATCH(AD94,AD$36:AD$185,0)=Setup!$A94-4),AB94,"") ->  | AG94: =IF(AND($X94,MATCH(AC94,AC$32:AC$185,0)=Setup!$A94),AA94,"") ->  | AH94: =IF(AND($X94,MATCH(AD94,AD$32:AD$185,0)=Setup!$A94),AB94,"") ->  | AI94: 59 | AJ94: 59 | AK94: 63 | AL94: 63 | AM94: =IF(AND(NOT(ISBLANK(Setup!J94)),OR(ISNUMBER(Setup!K94),K94="Enter localised proxy in calculator")),Setup!J94,Setup!I94) -> £ | AN94: =IF(ISNUMBER(Setup!H94),IF(AND(NOT(ISBLANK(Setup!J94)),ISNUMBER(Setup!K94)),Setup!H94*Setup!K94,Setup!H94),Setup!H94) -> 1 | AO94: 1 | AP94: =IF(AO94=1,INDEX('Needs and Priorities'!$D$49:$D$96,MATCH(Setup!D94,'Needs and Priorities'!$B$49:$B$96,0)),0) -> 0 | AQ94: =IFERROR(INDEX('Stakeholders Survey'!$K$24:$K$159,MATCH(D94&E94,'Stakeholders Survey'!$M$24:$M$159,0)),0) -> 0
A95: 64 | B95: =Setup!AG95 ->  | C95: =Setup!AH95 ->  | D95: =IF(ISBLANK(LISTS!D68),"",LISTS!D68) -> NT56 | E95: =IF(ISBLANK(LISTS!E68),"",LISTS!E68) ->  | F95: =IF(ISBLANK(LISTS!L68),"",LISTS!L68) -> Percentage of suppliers to Tier 2 in the supply chain to deliver the contract (including the prime contractor) that will implement the mental health core standards for all companies and also the mental health enhanced standards for companies with more than 500 employees, as set out in Thriving at Work: the Stevenson Farmer Review on Mental Health and Employers | G95: ✓ | H95: =IF(ISBLANK(LISTS!N68),"",LISTS!N68) -> Record only | I95: =IF(ISBLANK(LISTS!O68),"",LISTS!O68) -> % | L95: =IF(ISNUMBER(H95),IF(NOT(ISBLANK(J95)),IF(NOT(ISNUMBER(K95)),"Please enter a valid conversion factor","£"&ROUND(H95*K95,2)&"/"&IF(RIGHT(J95,1)="s",LEFT(J95,LEN(J95)-1),J95)),""),"n/a") -> n/a | P95: =Setup!G95="✓" -> TRUE | Q95: =IF(NOT(ISBLANK(LISTS!F68)),1,0) -> 0 | R95: =IF(NOT(ISBLANK(LISTS!G68)),1,0) -> 1 | S95: =IF(NOT(ISBLANK(LISTS!H68)),1,0) -> 0 | T95: =IF(NOT(ISBLANK(LISTS!I68)),1,0) -> 0 | U95: =IF(NOT(ISBLANK(LISTS!J68)),1,0) -> 0 | V95: =IF(LISTS!K68="y",1,0) -> 0 | W95: TRUE | X95: TRUE | Y95: ✓ | Z95: TRUE | AA95: =IF(LISTS!B68=0,AA94,LISTS!B68) -> Growth: Supporting Growth of Responsible Regional Business | AB95: =IF(LISTS!C68=0,AB94,LISTS!C68) -> Improving staff wellbeing and mental health | AC95: Growth: Supporting Growth of Responsible Regional Business | AD95: Improving staff wellbeing and mental health | AE95: =IF(AND($X95,MATCH(AC95,AC$36:AC$185,0)=Setup!$A95-4),AA95,"") ->  | AF95: =IF(AND($X95,MATCH(AD95,AD$36:AD$185,0)=Setup!$A95-4),AB95,"") ->  | AG95: =IF(AND($X95,MATCH(AC95,AC$32:AC$185,0)=Setup!$A95),AA95,"") ->  | AH95: =IF(AND($X95,MATCH(AD95,AD$32:AD$185,0)=Setup!$A95),AB95,"") ->  | AI95: 60 | AJ95: 60 | AK95: 64 | AL95: 64 | AM95: =IF(AND(NOT(ISBLANK(Setup!J95)),OR(ISNUMBER(Setup!K95),K95="Enter localised proxy in calculator")),Setup!J95,Setup!I95) -> % | AN95: =IF(ISNUMBER(Setup!H95),IF(AND(NOT(ISBLANK(Setup!J95)),ISNUMBER(Setup!K95)),Setup!H95*Setup!K95,Setup!H95),Setup!H95) -> Record only | AO95: 0 | AP95: =IF(AO95=1,INDEX('Needs and Priorities'!$D$49:$D$96,MATCH(Setup!D95,'Needs and Priorities'!$B$49:$B$96,0)),0) -> 0 | AQ95: =IFERROR(INDEX('Stakeholders Survey'!$K$24:$K$159,MATCH(D95&E95,'Stakeholders Survey'!$M$24:$M$159,0)),0) -> 0
A96: 65 | B96: =Setup!AG96 ->  | C96: =Setup!AH96 ->  | D96: =IF(ISBLANK(LISTS!D69),"",LISTS!D69) -> NT21 | E96: =IF(ISBLANK(LISTS!E69),"",LISTS!E69) -> RE25 | F96: =IF(ISBLANK(LISTS!L69),"",LISTS!L69) -> Equality, diversity and inclusion training provided both for staff and supply chain staff | G96: ✓ | H96: =IF(ISBLANK(LISTS!N69),"",LISTS!N69) -> 96.11 | I96: =IF(ISBLANK(LISTS!O69),"",LISTS!O69) -> No. hrs (total session duration)*no. attendees | L96: =IF(ISNUMBER(H96),IF(NOT(ISBLANK(J96)),IF(NOT(ISNUMBER(K96)),"Please enter a valid conversion factor","£"&ROUND(H96*K96,2)&"/"&IF(RIGHT(J96,1)="s",LEFT(J96,LEN(J96)-1),J96)),""),"n/a") ->  | P96: =Setup!G96="✓" -> TRUE | Q96: =IF(NOT(ISBLANK(LISTS!F69)),1,0) -> 1 | R96: =IF(NOT(ISBLANK(LISTS!G69)),1,0) -> 0 | S96: =IF(NOT(ISBLANK(LISTS!H69)),1,0) -> 0 | T96: =IF(NOT(ISBLANK(LISTS!I69)),1,0) -> 1 | U96: =IF(NOT(ISBLANK(LISTS!J69)),1,0) -> 0 | V96: =IF(LISTS!K69="y",1,0) -> 0 | W96: =IF($P96<>$X96,$P96,OR(IncNTCore*$Q96,IncNTAdd*$R96,IncCOVID*$S96,IncRE*T96,IncREAdd*U96,IncStAdd*$V96)) -> TRUE | X96: TRUE | Y96: ✓ | Z96: TRUE | AA96: =IF(LISTS!B69=0,AA95,LISTS!B69) -> Growth: Supporting Growth of Responsible Regional Business | AB96: =IF(LISTS!C69=0,AB95,LISTS!C69) -> Improving staff wellbeing and mental health | AC96: Growth: Supporting Growth of Responsible Regional Business | AD96: Improving staff wellbeing and mental health | AE96: =IF(AND($X96,MATCH(AC96,AC$36:AC$185,0)=Setup!$A96-4),AA96,"") ->  | AF96: =IF(AND($X96,MATCH(AD96,AD$36:AD$185,0)=Setup!$A96-4),AB96,"") ->  | AG96: =IF(AND($X96,MATCH(AC96,AC$32:AC$185,0)=Setup!$A96),AA96,"") ->  | AH96: =IF(AND($X96,MATCH(AD96,AD$32:AD$185,0)=Setup!$A96),AB96,"") ->  | AI96: 61 | AJ96: 61 | AK96: 65 | AL96: 65 | AM96: =IF(AND(NOT(ISBLANK(Setup!J96)),OR(ISNUMBER(Setup!K96),K96="Enter localised proxy in calculator")),Setup!J96,Setup!I96) -> No. hrs (total session duration)*no. attendees | AN96: =IF(ISNUMBER(Setup!H96),IF(AND(NOT(ISBLANK(Setup!J96)),ISNUMBER(Setup!K96)),Setup!H96*Setup!K96,Setup!H96),Setup!H96) -> 96.11 | AO96: 1 | AP96: =IF(AO96=1,INDEX('Needs and Priorities'!$D$49:$D$96,MATCH(Setup!D96,'Needs and Priorities'!$B$49:$B$96,0)),0) -> 0 | AQ96: =IFERROR(INDEX('Stakeholders Survey'!$K$24:$K$159,MATCH(D96&E96,'Stakeholders Survey'!$M$24:$M$159,0)),0) -> 0
A97: 66 | B97: =Setup!AG97 ->  | C97: =Setup!AH97 -> Reducing inequalities | D97: =IF(ISBLANK(LISTS!D70),"",LISTS!D70) -> NT57 | E97: =IF(ISBLANK(LISTS!E70),"",LISTS!E70) ->  | F97: =IF(ISBLANK(LISTS!L70),"",LISTS!L70) -> Prime contractor's median gender salary pay gap for staff - Small and Medium enterprises | G97: ✓ | H97: =IF(ISBLANK(LISTS!N70),"",LISTS!N70) -> % | I97: =IF(ISBLANK(LISTS!O70),"",LISTS!O70) -> Median gender pay gap | J97: - | K97: - | L97: - | P97: =Setup!G97="✓" -> TRUE | Q97: =IF(NOT(ISBLANK(LISTS!F70)),1,0) -> 0 | R97: =IF(NOT(ISBLANK(LISTS!G70)),1,0) -> 1 | S97: =IF(NOT(ISBLANK(LISTS!H70)),1,0) -> 0 | T97: =IF(NOT(ISBLANK(LISTS!I70)),1,0) -> 0 | U97: =IF(NOT(ISBLANK(LISTS!J70)),1,0) -> 0 | V97: =IF(LISTS!K70="y",1,0) -> 0 | W97: TRUE | X97: TRUE | Y97: ✓ | Z97: TRUE | AA97: =IF(LISTS!B70=0,AA96,LISTS!B70) -> Growth: Supporting Growth of Responsible Regional Business | AB97: =IF(LISTS!C70=0,AB96,LISTS!C70) -> Reducing inequalities | AC97: Growth: Supporting Growth of Responsible Regional Business | AD97: Reducing inequalities | AE97: =IF(AND($X97,MATCH(AC97,AC$36:AC$185,0)=Setup!$A97-4),AA97,"") ->  | AF97: =IF(AND($X97,MATCH(AD97,AD$36:AD$185,0)=Setup!$A97-4),AB97,"") -> Reducing inequalities | AG97: =IF(AND($X97,MATCH(AC97,AC$32:AC$185,0)=Setup!$A97),AA97,"") ->  | AH97: =IF(AND($X97,MATCH(AD97,AD$32:AD$185,0)=Setup!$A97),AB97,"") -> Reducing inequalities | AI97: 62 | AJ97: 62 | AK97: =IF(X97,1+AK96,AK96) -> 66 | AL97: =IF($X97,AK97,-1) -> 66 | AM97: =IF(AND(NOT(ISBLANK(Setup!J97)),OR(ISNUMBER(Setup!K97),K97="Enter localised proxy in calculator")),Setup!J97,Setup!I97) -> Median gender pay gap | AN97: =IF(ISNUMBER(Setup!H97),IF(AND(NOT(ISBLANK(Setup!J97)),ISNUMBER(Setup!K97)),Setup!H97*Setup!K97,Setup!H97),Setup!H97) -> % | AO97: 0 | AP97: =IF(AO97=1,INDEX('Needs and Priorities'!$D$49:$D$96,MATCH(Setup!D97,'Needs and Priorities'!$B$49:$B$96,0)),0) -> 0 | AQ97: =IFERROR(INDEX('Stakeholders Survey'!$K$24:$K$159,MATCH(D97&E97,'Stakeholders Survey'!$M$24:$M$159,0)),0) -> 0
A98: 67 | B98: =Setup!AG98 ->  | C98: =Setup!AH98 ->  | D98: =IF(ISBLANK(LISTS!D71),"",LISTS!D71) -> NT40 | E98: =IF(ISBLANK(LISTS!E71),"",LISTS!E71) ->  | F98: =IF(ISBLANK(LISTS!L71),"",LISTS!L71) -> Number and type of initiatives to be put in place to reduce the gender pay gap for staff employed in relation to the contract (describe and document initiatives) | G98: ✓ | H98: =IF(ISBLANK(LISTS!N71),"",LISTS!N71) -> 1 | I98: =IF(ISBLANK(LISTS!O71),"",LISTS!O71) -> £ | L98: =IF(ISNUMBER(H98),IF(NOT(ISBLANK(J98)),IF(NOT(ISNUMBER(K98)),"Please enter a valid conversion factor","£"&ROUND(H98*K98,2)&"/"&IF(RIGHT(J98,1)="s",LEFT(J98,LEN(J98)-1),J98)),""),"n/a") ->  | P98: =Setup!G98="✓" -> TRUE | Q98: =IF(NOT(ISBLANK(LISTS!F71)),1,0) -> 1 | R98: =IF(NOT(ISBLANK(LISTS!G71)),1,0) -> 0 | S98: =IF(NOT(ISBLANK(LISTS!H71)),1,0) -> 0 | T98: =IF(NOT(ISBLANK(LISTS!I71)),1,0) -> 0 | U98: =IF(NOT(ISBLANK(LISTS!J71)),1,0) -> 0 | V98: =IF(LISTS!K71="y",1,0) -> 0 | W98: TRUE | X98: TRUE | Y98: ✓ | Z98: TRUE | AA98: =IF(LISTS!B71=0,AA97,LISTS!B71) -> Growth: Supporting Growth of Responsible Regional Business | AB98: =IF(LISTS!C71=0,AB97,LISTS!C71) -> Reducing inequalities | AC98: Growth: Supporting Growth of Responsible Regional Business | AD98: Reducing inequalities | AE98: =IF(AND($X98,MATCH(AC98,AC$36:AC$185,0)=Setup!$A98-4),AA98,"") ->  | AF98: =IF(AND($X98,MATCH(AD98,AD$36:AD$185,0)=Setup!$A98-4),AB98,"") ->  | AG98: =IF(AND($X98,MATCH(AC98,AC$32:AC$185,0)=Setup!$A98),AA98,"") ->  | AH98: =IF(AND($X98,MATCH(AD98,AD$32:AD$185,0)=Setup!$A98),AB98,"") ->  | AI98: 63 | AJ98: 63 | AK98: 67 | AL98: 67 | AM98: =IF(AND(NOT(ISBLANK(Setup!J98)),OR(ISNUMBER(Setup!K98),K98="Enter localised proxy in calculator")),Setup!J98,Setup!I98) -> £ | AN98: =IF(ISNUMBER(Setup!H98),IF(AND(NOT(ISBLANK(Setup!J98)),ISNUMBER(Setup!K98)),Setup!H98*Setup!K98,Setup!H98),Setup!H98) -> 1 | AO98: 1 | AP98: =IF(AO98=1,INDEX('Needs and Priorities'!$D$49:$D$96,MATCH(Setup!D98,'Needs and Priorities'!$B$49:$B$96,0)),0) -> 0 | AQ98: =IFERROR(INDEX('Stakeholders Survey'!$K$24:$K$159,MATCH(D98&E98,'Stakeholders Survey'!$M$24:$M$159,0)),0) -> 0
A99: 68 | B99: =Setup!AG99 ->  | C99: =Setup!AH99 ->  | D99: =IF(ISBLANK(LISTS!D72),"",LISTS!D72) -> NT41 | E99: =IF(ISBLANK(LISTS!E72),"",LISTS!E72) ->  | F99: =IF(ISBLANK(LISTS!L72),"",LISTS!L72) -> Percentage of staff on contract that is paid at least the relevant Real Living wage as specified by Living Wage foundation | G99: ✓ | H99: =IF(ISBLANK(LISTS!N72),"",LISTS!N72) -> Record only | I99: =IF(ISBLANK(LISTS!O72),"",LISTS!O72) -> % | J99: - | K99: - | L99: - | P99: =Setup!G99="✓" -> TRUE | Q99: =IF(NOT(ISBLANK(LISTS!F72)),1,0) -> 1 | R99: =IF(NOT(ISBLANK(LISTS!G72)),1,0) -> 0 | S99: =IF(NOT(ISBLANK(LISTS!H72)),1,0) -> 0 | T99: =IF(NOT(ISBLANK(LISTS!I72)),1,0) -> 0 | U99: =IF(NOT(ISBLANK(LISTS!J72)),1,0) -> 0 | V99: =IF(LISTS!K72="y",1,0) -> 0 | W99: TRUE | X99: TRUE | Y99: =IF(X99,"✓","✗") -> ✓ | Z99: =(W99=X99) -> TRUE | AA99: =IF(LISTS!B72=0,AA98,LISTS!B72) -> Growth: Supporting Growth of Responsible Regional Business | AB99: =IF(LISTS!C72=0,AB98,LISTS!C72) -> Reducing inequalities | AC99: =IF($X99,AA99,"x") -> Growth: Supporting Growth of Responsible Regional Business | AD99: =IF($X99,AB99,"x") -> Reducing inequalities | AE99: =IF(AND($X99,MATCH(AC99,AC$36:AC$185,0)=Setup!$A99-4),AA99,"") ->  | AF99: =IF(AND($X99,MATCH(AD99,AD$36:AD$185,0)=Setup!$A99-4),AB99,"") ->  | AG99: =IF(AND($X99,MATCH(AC99,AC$32:AC$185,0)=Setup!$A99),AA99,"") ->  | AH99: =IF(AND($X99,MATCH(AD99,AD$32:AD$185,0)=Setup!$A99),AB99,"") ->  | AI99: 64 | AJ99: 64 | AK99: 68 | AL99: 68 | AM99: =IF(AND(NOT(ISBLANK(Setup!J99)),OR(ISNUMBER(Setup!K99),K99="Enter localised proxy in calculator")),Setup!J99,Setup!I99) -> % | AN99: =IF(ISNUMBER(Setup!H99),IF(AND(NOT(ISBLANK(Setup!J99)),ISNUMBER(Setup!K99)),Setup!H99*Setup!K99,Setup!H99),Setup!H99) -> Record only | AO99: 1 | AP99: =IF(AO99=1,INDEX('Needs and Priorities'!$D$49:$D$96,MATCH(Setup!D99,'Needs and Priorities'!$B$49:$B$96,0)),0) -> 0 | AQ99: =IFERROR(INDEX('Stakeholders Survey'!$K$24:$K$159,MATCH(D99&E99,'Stakeholders Survey'!$M$24:$M$159,0)),0) -> 0
A100: 69 | B100: =Setup!AG100 ->  | C100: =Setup!AH100 ->  | D100: =IF(ISBLANK(LISTS!D73),"",LISTS!D73) -> NT42 | E100: =IF(ISBLANK(LISTS!E73),"",LISTS!E73) ->  | F100: =IF(ISBLANK(LISTS!L73),"",LISTS!L73) -> Percentage of contractors in the supply chain required (or supported if they are micro and small business) to pay at least Real Living wage | G100: ✓ | H100: =IF(ISBLANK(LISTS!N73),"",LISTS!N73) -> Record only | I100: =IF(ISBLANK(LISTS!O73),"",LISTS!O73) -> % | J100: - | K100: - | L100: - | P100: =Setup!G100="✓" -> TRUE | Q100: =IF(NOT(ISBLANK(LISTS!F73)),1,0) -> 1 | R100: =IF(NOT(ISBLANK(LISTS!G73)),1,0) -> 0 | S100: =IF(NOT(ISBLANK(LISTS!H73)),1,0) -> 0 | T100: =IF(NOT(ISBLANK(LISTS!I73)),1,0) -> 0 | U100: =IF(NOT(ISBLANK(LISTS!J73)),1,0) -> 0 | V100: =IF(LISTS!K73="y",1,0) -> 0 | W100: TRUE | X100: TRUE | Y100: ✓ | Z100: TRUE | AA100: =IF(LISTS!B73=0,AA99,LISTS!B73) -> Growth: Supporting Growth of Responsible Regional Business | AB100: =IF(LISTS!C73=0,AB99,LISTS!C73) -> Reducing inequalities | AC100: Growth: Supporting Growth of Responsible Regional Business | AD100: Reducing inequalities | AE100: =IF(AND($X100,MATCH(AC100,AC$36:AC$185,0)=Setup!$A100-4),AA100,"") ->  | AF100: =IF(AND($X100,MATCH(AD100,AD$36:AD$185,0)=Setup!$A100-4),AB100,"") ->  | AG100: =IF(AND($X100,MATCH(AC100,AC$32:AC$185,0)=Setup!$A100),AA100,"") ->  | AH100: =IF(AND($X100,MATCH(AD100,AD$32:AD$185,0)=Setup!$A100),AB100,"") ->  | AI100: =IF(X100,1+AI99,AI99) -> 65 | AJ100: =IF($X100,AI100,-1) -> 65 | AK100: 69 | AL100: 69 | AM100: =IF(AND(NOT(ISBLANK(Setup!J100)),OR(ISNUMBER(Setup!K100),K100="Enter localised proxy in calculator")),Setup!J100,Setup!I100) -> % | AN100: =IF(ISNUMBER(Setup!H100),IF(AND(NOT(ISBLANK(Setup!J100)),ISNUMBER(Setup!K100)),Setup!H100*Setup!K100,Setup!H100),Setup!H100) -> Record only | AO100: 1 | AP100: =IF(AO100=1,INDEX('Needs and Priorities'!$D$49:$D$96,MATCH(Setup!D100,'Needs and Priorities'!$B$49:$B$96,0)),0) -> 0 | AQ100: =IFERROR(INDEX('Stakeholders Survey'!$K$24:$K$159,MATCH(D100&E100,'Stakeholders Survey'!$M$24:$M$159,0)),0) -> 0
A101: 70 | B101: =Setup!AG101 ->  | C101: =Setup!AH101 ->  | D101: =IF(ISBLANK(LISTS!D74),"",LISTS!D74) -> NT58 | E101: =IF(ISBLANK(LISTS!E74),"",LISTS!E74) ->  | F101: =IF(ISBLANK(LISTS!L74),"",LISTS!L74) -> Number of employees FTE on contract to have pay raise to Real living wage or higher (on a renewed contract or TUPE) | G101: ✓ | H101: =IF(ISBLANK(LISTS!N74),"",LISTS!N74) -> 1396 | I101: =IF(ISBLANK(LISTS!O74),"",LISTS!O74) -> No. people (FTE) | J101: - | K101: - | L101: - | P101: =Setup!G101="✓" -> TRUE | Q101: =IF(NOT(ISBLANK(LISTS!F74)),1,0) -> 0 | R101: =IF(NOT(ISBLANK(LISTS!G74)),1,0) -> 1 | S101: =IF(NOT(ISBLANK(LISTS!H74)),1,0) -> 0 | T101: =IF(NOT(ISBLANK(LISTS!I74)),1,0) -> 0 | U101: =IF(NOT(ISBLANK(LISTS!J74)),1,0) -> 0 | V101: =IF(LISTS!K74="y",1,0) -> 0 | W101: TRUE | X101: TRUE | Y101: ✓ | Z101: TRUE | AA101: =IF(LISTS!B74=0,AA100,LISTS!B74) -> Growth: Supporting Growth of Responsible Regional Business | AB101: =IF(LISTS!C74=0,AB100,LISTS!C74) -> Reducing inequalities | AC101: Growth: Supporting Growth of Responsible Regional Business | AD101: Reducing inequalities | AE101: =IF(AND($X101,MATCH(AC101,AC$36:AC$185,0)=Setup!$A101-4),AA101,"") ->  | AF101: =IF(AND($X101,MATCH(AD101,AD$36:AD$185,0)=Setup!$A101-4),AB101,"") ->  | AG101: =IF(AND($X101,MATCH(AC101,AC$32:AC$185,0)=Setup!$A101),AA101,"") ->  | AH101: =IF(AND($X101,MATCH(AD101,AD$32:AD$185,0)=Setup!$A101),AB101,"") ->  | AI101: 66 | AJ101: 66 | AK101: 70 | AL101: 70 | AM101: =IF(AND(NOT(ISBLANK(Setup!J101)),OR(ISNUMBER(Setup!K101),K101="Enter localised proxy in calculator")),Setup!J101,Setup!I101) -> No. people (FTE) | AN101: =IF(ISNUMBER(Setup!H101),IF(AND(NOT(ISBLANK(Setup!J101)),ISNUMBER(Setup!K101)),Setup!H101*Setup!K101,Setup!H101),Setup!H101) -> 1396 | AO101: 0 | AP101: =IF(AO101=1,INDEX('Needs and Priorities'!$D$49:$D$96,MATCH(Setup!D101,'Needs and Priorities'!$B$49:$B$96,0)),0) -> 0 | AQ101: =IFERROR(INDEX('Stakeholders Survey'!$K$24:$K$159,MATCH(D101&E101,'Stakeholders Survey'!$M$24:$M$159,0)),0) -> 0
A102: 71 | B102: =Setup!AG102 ->  | C102: =Setup!AH102 -> Ethical Procurement is promoted | D102: =IF(ISBLANK(LISTS!D75),"",LISTS!D75) -> NT22 | E102: =IF(ISBLANK(LISTS!E75),"",LISTS!E75) -> RE26 | F102: =IF(ISBLANK(LISTS!L75),"",LISTS!L75) -> Percentage of procurement contracts that includes commitments to ethical procurement, including to verify modern slavery and other relevant requirements. | G102: ✓ | H102: =IF(ISBLANK(LISTS!N75),"",LISTS!N75) -> Record only | I102: =IF(ISBLANK(LISTS!O75),"",LISTS!O75) -> % | J102: - | K102: - | L102: - | P102: =Setup!G102="✓" -> TRUE | Q102: =IF(NOT(ISBLANK(LISTS!F75)),1,0) -> 1 | R102: =IF(NOT(ISBLANK(LISTS!G75)),1,0) -> 0 | S102: =IF(NOT(ISBLANK(LISTS!H75)),1,0) -> 0 | T102: =IF(NOT(ISBLANK(LISTS!I75)),1,0) -> 1 | U102: =IF(NOT(ISBLANK(LISTS!J75)),1,0) -> 0 | V102: =IF(LISTS!K75="y",1,0) -> 0 | W102: TRUE | X102: TRUE | Y102: ✓ | Z102: TRUE | AA102: =IF(LISTS!B75=0,AA101,LISTS!B75) -> Growth: Supporting Growth of Responsible Regional Business | AB102: =IF(LISTS!C75=0,AB101,LISTS!C75) -> Ethical Procurement is promoted | AC102: Growth: Supporting Growth of Responsible Regional Business | AD102: Ethical Procurement is promoted | AE102: =IF(AND($X102,MATCH(AC102,AC$36:AC$185,0)=Setup!$A102-4),AA102,"") ->  | AF102: =IF(AND($X102,MATCH(AD102,AD$36:AD$185,0)=Setup!$A102-4),AB102,"") -> Ethical Procurement is promoted | AG102: =IF(AND($X102,MATCH(AC102,AC$32:AC$185,0)=Setup!$A102),AA102,"") ->  | AH102: =IF(AND($X102,MATCH(AD102,AD$32:AD$185,0)=Setup!$A102),AB102,"") -> Ethical Procurement is promoted | AI102: 67 | AJ102: 67 | AK102: 71 | AL102: 71 | AM102: =IF(AND(NOT(ISBLANK(Setup!J102)),OR(ISNUMBER(Setup!K102),K102="Enter localised proxy in calculator")),Setup!J102,Setup!I102) -> % | AN102: =IF(ISNUMBER(Setup!H102),IF(AND(NOT(ISBLANK(Setup!J102)),ISNUMBER(Setup!K102)),Setup!H102*Setup!K102,Setup!H102),Setup!H102) -> Record only | AO102: 1 | AP102: =IF(AO102=1,INDEX('Needs and Priorities'!$D$49:$D$96,MATCH(Setup!D102,'Needs and Priorities'!$B$49:$B$96,0)),0) -> 0 | AQ102: =IFERROR(INDEX('Stakeholders Survey'!$K$24:$K$159,MATCH(D102&E102,'Stakeholders Survey'!$M$24:$M$159,0)),0) -> 0
A103: 72 | B103: =Setup!AG103 ->  | C103: =Setup!AH103 ->  | D103: =IF(ISBLANK(LISTS!D76),"",LISTS!D76) -> NT43 | E103: =IF(ISBLANK(LISTS!E76),"",LISTS!E76) ->  | F103: =IF(ISBLANK(LISTS!L76),"",LISTS!L76) -> Number and type of initiatives throughout the supply chain to identify and manage the risks of modern slavery occurring (i.e. supply chain mapping, staff training, contract management) in relation to the contract (describe and document initiatives) | G103: ✓ | H103: =IF(ISBLANK(LISTS!N76),"",LISTS!N76) -> 1 | I103: =IF(ISBLANK(LISTS!O76),"",LISTS!O76) -> £ | L103: =IF(ISNUMBER(H103),IF(NOT(ISBLANK(J103)),IF(NOT(ISNUMBER(K103)),"Please enter a valid conversion factor","£"&ROUND(H103*K103,2)&"/"&IF(RIGHT(J103,1)="s",LEFT(J103,LEN(J103)-1),J103)),""),"n/a") ->  | P103: =Setup!G103="✓" -> TRUE | Q103: =IF(NOT(ISBLANK(LISTS!F76)),1,0) -> 1 | R103: =IF(NOT(ISBLANK(LISTS!G76)),1,0) -> 0 | S103: =IF(NOT(ISBLANK(LISTS!H76)),1,0) -> 0 | T103: =IF(NOT(ISBLANK(LISTS!I76)),1,0) -> 0 | U103: =IF(NOT(ISBLANK(LISTS!J76)),1,0) -> 0 | V103: =IF(LISTS!K76="y",1,0) -> 0 | W103: TRUE | X103: TRUE | Y103: ✓ | Z103: TRUE | AA103: =IF(LISTS!B76=0,AA102,LISTS!B76) -> Growth: Supporting Growth of Responsible Regional Business | AB103: =IF(LISTS!C76=0,AB102,LISTS!C76) -> Ethical Procurement is promoted | AC103: Growth: Supporting Growth of Responsible Regional Business | AD103: Ethical Procurement is promoted | AE103: =IF(AND($X103,MATCH(AC103,AC$36:AC$185,0)=Setup!$A103-4),AA103,"") ->  | AF103: =IF(AND($X103,MATCH(AD103,AD$36:AD$185,0)=Setup!$A103-4),AB103,"") ->  | AG103: =IF(AND($X103,MATCH(AC103,AC$32:AC$185,0)=Setup!$A103),AA103,"") ->  | AH103: =IF(AND($X103,MATCH(AD103,AD$32:AD$185,0)=Setup!$A103),AB103,"") ->  | AI103: 68 | AJ103: 68 | AK103: 72 | AL103: 72 | AM103: =IF(AND(NOT(ISBLANK(Setup!J103)),OR(ISNUMBER(Setup!K103),K103="Enter localised proxy in calculator")),Setup!J103,Setup!I103) -> £ | AN103: =IF(ISNUMBER(Setup!H103),IF(AND(NOT(ISBLANK(Setup!J103)),ISNUMBER(Setup!K103)),Setup!H103*Setup!K103,Setup!H103),Setup!H103) -> 1 | AO103: 1 | AP103: =IF(AO103=1,INDEX('Needs and Priorities'!$D$49:$D$96,MATCH(Setup!D103,'Needs and Priorities'!$B$49:$B$96,0)),0) -> 0 | AQ103: =IFERROR(INDEX('Stakeholders Survey'!$K$24:$K$159,MATCH(D103&E103,'Stakeholders Survey'!$M$24:$M$159,0)),0) -> 0
A104: 73 | B104: =Setup!AG104 ->  | C104: =Setup!AH104 ->  | D104: =IF(ISBLANK(LISTS!D77),"",LISTS!D77) -> NT59 | E104: =IF(ISBLANK(LISTS!E77),"",LISTS!E77) ->  | F104: =IF(ISBLANK(LISTS!L77),"",LISTS!L77) -> Number of supply chain audits to be undertaken in the supply chain, to identify and manage the risk of modern slavery occurring in relation to the contract | G104: ✓ | H104: =IF(ISBLANK(LISTS!N77),"",LISTS!N77) -> Record only | I104: =IF(ISBLANK(LISTS!O77),"",LISTS!O77) -> No. audits | J104: - | K104: - | L104: - | P104: =Setup!G104="✓" -> TRUE | Q104: =IF(NOT(ISBLANK(LISTS!F77)),1,0) -> 0 | R104: =IF(NOT(ISBLANK(LISTS!G77)),1,0) -> 1 | S104: =IF(NOT(ISBLANK(LISTS!H77)),1,0) -> 0 | T104: =IF(NOT(ISBLANK(LISTS!I77)),1,0) -> 0 | U104: =IF(NOT(ISBLANK(LISTS!J77)),1,0) -> 0 | V104: =IF(LISTS!K77="y",1,0) -> 0 | W104: TRUE | X104: TRUE | Y104: ✓ | Z104: TRUE | AA104: =IF(LISTS!B77=0,AA103,LISTS!B77) -> Growth: Supporting Growth of Responsible Regional Business | AB104: =IF(LISTS!C77=0,AB103,LISTS!C77) -> Ethical Procurement is promoted | AC104: Growth: Supporting Growth of Responsible Regional Business | AD104: Ethical Procurement is promoted | AE104: =IF(AND($X104,MATCH(AC104,AC$36:AC$185,0)=Setup!$A104-4),AA104,"") ->  | AF104: =IF(AND($X104,MATCH(AD104,AD$36:AD$185,0)=Setup!$A104-4),AB104,"") ->  | AG104: =IF(AND($X104,MATCH(AC104,AC$32:AC$185,0)=Setup!$A104),AA104,"") ->  | AH104: =IF(AND($X104,MATCH(AD104,AD$32:AD$185,0)=Setup!$A104),AB104,"") ->  | AI104: 69 | AJ104: 69 | AK104: 73 | AL104: 73 | AM104: =IF(AND(NOT(ISBLANK(Setup!J104)),OR(ISNUMBER(Setup!K104),K104="Enter localised proxy in calculator")),Setup!J104,Setup!I104) -> No. audits | AN104: =IF(ISNUMBER(Setup!H104),IF(AND(NOT(ISBLANK(Setup!J104)),ISNUMBER(Setup!K104)),Setup!H104*Setup!K104,Setup!H104),Setup!H104) -> Record only | AO104: 0 | AP104: =IF(AO104=1,INDEX('Needs and Priorities'!$D$49:$D$96,MATCH(Setup!D104,'Needs and Priorities'!$B$49:$B$96,0)),0) -> 0 | AQ104: =IFERROR(INDEX('Stakeholders Survey'!$K$24:$K$159,MATCH(D104&E104,'Stakeholders Survey'!$M$24:$M$159,0)),0) -> 0
A105: 74 | B105: =Setup!AG105 ->  | C105: =Setup!AH105 ->  | D105: =IF(ISBLANK(LISTS!D78),"",LISTS!D78) -> NT60 | E105: =IF(ISBLANK(LISTS!E78),"",LISTS!E78) ->  | F105: =IF(ISBLANK(LISTS!L78),"",LISTS!L78) -> Number of people employed in the supply chain to identify and manage the risk of modern slavery occurring in the supply chain, in relation to the contract | G105: ✓ | H105: =IF(ISBLANK(LISTS!N78),"",LISTS!N78) -> £30,353 - UK value, must be localised to the selected sub-localities | I105: =IF(ISBLANK(LISTS!O78),"",LISTS!O78) -> No. people (FTE) | K105: Enter localised proxy in calculator | L105: =IF(ISNUMBER(H105),IF(NOT(ISBLANK(J105)),IF(NOT(ISNUMBER(K105)),"Please enter a valid conversion factor","£"&ROUND(H105*K105,2)&"/"&IF(RIGHT(J105,1)="s",LEFT(J105,LEN(J105)-1),J105)),""),"n/a") -> n/a | P105: =Setup!G105="✓" -> TRUE | Q105: =IF(NOT(ISBLANK(LISTS!F78)),1,0) -> 0 | R105: =IF(NOT(ISBLANK(LISTS!G78)),1,0) -> 1 | S105: =IF(NOT(ISBLANK(LISTS!H78)),1,0) -> 0 | T105: =IF(NOT(ISBLANK(LISTS!I78)),1,0) -> 0 | U105: =IF(NOT(ISBLANK(LISTS!J78)),1,0) -> 0 | V105: =IF(LISTS!K78="y",1,0) -> 0 | W105: TRUE | X105: TRUE | Y105: ✓ | Z105: TRUE | AA105: =IF(LISTS!B78=0,AA104,LISTS!B78) -> Growth: Supporting Growth of Responsible Regional Business | AB105: =IF(LISTS!C78=0,AB104,LISTS!C78) -> Ethical Procurement is promoted | AC105: Growth: Supporting Growth of Responsible Regional Business | AD105: Ethical Procurement is promoted | AE105: =IF(AND($X105,MATCH(AC105,AC$36:AC$185,0)=Setup!$A105-4),AA105,"") ->  | AF105: =IF(AND($X105,MATCH(AD105,AD$36:AD$185,0)=Setup!$A105-4),AB105,"") ->  | AG105: =IF(AND($X105,MATCH(AC105,AC$32:AC$185,0)=Setup!$A105),AA105,"") ->  | AH105: =IF(AND($X105,MATCH(AD105,AD$32:AD$185,0)=Setup!$A105),AB105,"") ->  | AI105: 70 | AJ105: 70 | AK105: 74 | AL105: 74 | AM105: =IF(AND(NOT(ISBLANK(Setup!J105)),OR(ISNUMBER(Setup!K105),K105="Enter localised proxy in calculator")),Setup!J105,Setup!I105) -> No. people (FTE) | AN105: =IF(ISNUMBER(Setup!H105),IF(AND(NOT(ISBLANK(Setup!J105)),ISNUMBER(Setup!K105)),Setup!H105*Setup!K105,Setup!H105),Setup!H105) -> £30,353 - UK value, must be localised to the selected sub-localities | AO105: 0 | AP105: =IF(AO105=1,INDEX('Needs and Priorities'!$D$49:$D$96,MATCH(Setup!D105,'Needs and Priorities'!$B$49:$B$96,0)),0) -> 0 | AQ105: =IFERROR(INDEX('Stakeholders Survey'!$K$24:$K$159,MATCH(D105&E105,'Stakeholders Survey'!$M$24:$M$159,0)),0) -> 0
A106: 75 | B106: =Setup!AG106 ->  | C106: =Setup!AH106 ->  | D106: =IF(ISBLANK(LISTS!D79),"",LISTS!D79) -> NT61 | E106: =IF(ISBLANK(LISTS!E79),"",LISTS!E79) -> RE60 | F106: =IF(ISBLANK(LISTS!L79),"",LISTS!L79) -> Percentage of invoices on the contract paid within 30 days | G106: ✓ | H106: =IF(ISBLANK(LISTS!N79),"",LISTS!N79) -> Record Only | I106: =IF(ISBLANK(LISTS!O79),"",LISTS!O79) -> % | J106: - | K106: - | L106: - | P106: =Setup!G106="✓" -> TRUE | Q106: =IF(NOT(ISBLANK(LISTS!F79)),1,0) -> 0 | R106: =IF(NOT(ISBLANK(LISTS!G79)),1,0) -> 1 | S106: =IF(NOT(ISBLANK(LISTS!H79)),1,0) -> 0 | T106: =IF(NOT(ISBLANK(LISTS!I79)),1,0) -> 1 | U106: =IF(NOT(ISBLANK(LISTS!J79)),1,0) -> 0 | V106: =IF(LISTS!K79="y",1,0) -> 0 | W106: TRUE | X106: TRUE | Y106: ✓ | Z106: TRUE | AA106: =IF(LISTS!B79=0,AA105,LISTS!B79) -> Growth: Supporting Growth of Responsible Regional Business | AB106: =IF(LISTS!C79=0,AB105,LISTS!C79) -> Ethical Procurement is promoted | AC106: Growth: Supporting Growth of Responsible Regional Business | AD106: Ethical Procurement is promoted | AE106: =IF(AND($X106,MATCH(AC106,AC$36:AC$185,0)=Setup!$A106-4),AA106,"") ->  | AF106: =IF(AND($X106,MATCH(AD106,AD$36:AD$185,0)=Setup!$A106-4),AB106,"") ->  | AG106: =IF(AND($X106,MATCH(AC106,AC$32:AC$185,0)=Setup!$A106),AA106,"") ->  | AH106: =IF(AND($X106,MATCH(AD106,AD$32:AD$185,0)=Setup!$A106),AB106,"") ->  | AI106: 71 | AJ106: 71 | AK106: 75 | AL106: 75 | AM106: =IF(AND(NOT(ISBLANK(Setup!J106)),OR(ISNUMBER(Setup!K106),K106="Enter localised proxy in calculator")),Setup!J106,Setup!I106) -> % | AN106: =IF(ISNUMBER(Setup!H106),IF(AND(NOT(ISBLANK(Setup!J106)),ISNUMBER(Setup!K106)),Setup!H106*Setup!K106,Setup!H106),Setup!H106) -> Record Only | AO106: 0 | AP106: =IF(AO106=1,INDEX('Needs and Priorities'!$D$49:$D$96,MATCH(Setup!D106,'Needs and Priorities'!$B$49:$B$96,0)),0) -> 0 | AQ106: =IFERROR(INDEX('Stakeholders Survey'!$K$24:$K$159,MATCH(D106&E106,'Stakeholders Survey'!$M$24:$M$159,0)),0) -> 0
A107: 76 | B107: =Setup!AG107 ->  | C107: =Setup!AH107 -> Cyber security risks are reduced | D107: =IF(ISBLANK(LISTS!D80),"",LISTS!D80) -> NT62 | E107: =IF(ISBLANK(LISTS!E80),"",LISTS!E80) ->  | F107: =IF(ISBLANK(LISTS!L80),"",LISTS!L80) -> Number and type of initiatives in place, to Tier 2 in the supply chain, to protect against cyber security risks in the delivery of the contract - Number of staff to receive training on identifying and managing cyber security risks in relation to the delivery of the contract. (describe and document initiatives) | G107: ✓ | H107: =IF(ISBLANK(LISTS!N80),"",LISTS!N80) -> Record only | I107: =IF(ISBLANK(LISTS!O80),"",LISTS!O80) -> Y/N - Provide description | J107: - | K107: - | L107: - | P107: =Setup!G107="✓" -> TRUE | Q107: =IF(NOT(ISBLANK(LISTS!F80)),1,0) -> 0 | R107: =IF(NOT(ISBLANK(LISTS!G80)),1,0) -> 1 | S107: =IF(NOT(ISBLANK(LISTS!H80)),1,0) -> 0 | T107: =IF(NOT(ISBLANK(LISTS!I80)),1,0) -> 0 | U107: =IF(NOT(ISBLANK(LISTS!J80)),1,0) -> 0 | V107: =IF(LISTS!K80="y",1,0) -> 0 | W107: TRUE | X107: TRUE | Y107: ✓ | Z107: TRUE | AA107: =IF(LISTS!B80=0,AA106,LISTS!B80) -> Growth: Supporting Growth of Responsible Regional Business | AB107: =IF(LISTS!C80=0,AB106,LISTS!C80) -> Cyber security risks are reduced | AC107: Growth: Supporting Growth of Responsible Regional Business | AD107: Cyber security risks are reduced | AE107: =IF(AND($X107,MATCH(AC107,AC$36:AC$185,0)=Setup!$A107-4),AA107,"") ->  | AF107: =IF(AND($X107,MATCH(AD107,AD$36:AD$185,0)=Setup!$A107-4),AB107,"") -> Cyber security risks are reduced | AG107: =IF(AND($X107,MATCH(AC107,AC$32:AC$185,0)=Setup!$A107),AA107,"") ->  | AH107: =IF(AND($X107,MATCH(AD107,AD$32:AD$185,0)=Setup!$A107),AB107,"") -> Cyber security risks are reduced | AI107: 72 | AJ107: 72 | AK107: 76 | AL107: 76 | AM107: =IF(AND(NOT(ISBLANK(Setup!J107)),OR(ISNUMBER(Setup!K107),K107="Enter localised proxy in calculator")),Setup!J107,Setup!I107) -> Y/N - Provide description | AN107: =IF(ISNUMBER(Setup!H107),IF(AND(NOT(ISBLANK(Setup!J107)),ISNUMBER(Setup!K107)),Setup!H107*Setup!K107,Setup!H107),Setup!H107) -> Record only | AO107: 0 | AP107: =IF(AO107=1,INDEX('Needs and Priorities'!$D$49:$D$96,MATCH(Setup!D107,'Needs and Priorities'!$B$49:$B$96,0)),0) -> 0 | AQ107: =IFERROR(INDEX('Stakeholders Survey'!$K$24:$K$159,MATCH(D107&E107,'Stakeholders Survey'!$M$24:$M$159,0)),0) -> 0
A108: 77 | B108: =Setup!AG108 ->  | C108: =Setup!AH108 -> Social Value embedded in the supply chain | D108: =IF(ISBLANK(LISTS!D81),"",LISTS!D81) -> NT23 | E108: =IF(ISBLANK(LISTS!E81),"",LISTS!E81) -> RE27 | F108: =IF(ISBLANK(LISTS!L81),"",LISTS!L81) -> Percentage of contracts with the supply chain on which Social Value commitments, measurement and monitoring are required | G108: ✓ | H108: =IF(ISBLANK(LISTS!N81),"",LISTS!N81) -> Record only | I108: =IF(ISBLANK(LISTS!O81),"",LISTS!O81) -> % | J108: - | K108: - | L108: - | P108: =Setup!G108="✓" -> TRUE | Q108: =IF(NOT(ISBLANK(LISTS!F81)),1,0) -> 1 | R108: =IF(NOT(ISBLANK(LISTS!G81)),1,0) -> 0 | S108: =IF(NOT(ISBLANK(LISTS!H81)),1,0) -> 0 | T108: =IF(NOT(ISBLANK(LISTS!I81)),1,0) -> 1 | U108: =IF(NOT(ISBLANK(LISTS!J81)),1,0) -> 0 | V108: =IF(LISTS!K81="y",1,0) -> 0 | W108: TRUE | X108: TRUE | Y108: ✓ | Z108: TRUE | AA108: =IF(LISTS!B81=0,AA107,LISTS!B81) -> Growth: Supporting Growth of Responsible Regional Business | AB108: =IF(LISTS!C81=0,AB107,LISTS!C81) -> Social Value embedded in the supply chain | AC108: Growth: Supporting Growth of Responsible Regional Business | AD108: Social Value embedded in the supply chain | AE108: =IF(AND($X108,MATCH(AC108,AC$36:AC$185,0)=Setup!$A108-4),AA108,"") ->  | AF108: =IF(AND($X108,MATCH(AD108,AD$36:AD$185,0)=Setup!$A108-4),AB108,"") -> Social Value embedded in the supply chain | AG108: =IF(AND($X108,MATCH(AC108,AC$32:AC$185,0)=Setup!$A108),AA108,"") ->  | AH108: =IF(AND($X108,MATCH(AD108,AD$32:AD$185,0)=Setup!$A108),AB108,"") -> Social Value embedded in the supply chain | AI108: 73 | AJ108: 73 | AK108: 77 | AL108: 77 | AM108: =IF(AND(NOT(ISBLANK(Setup!J108)),OR(ISNUMBER(Setup!K108),K108="Enter localised proxy in calculator")),Setup!J108,Setup!I108) -> % | AN108: =IF(ISNUMBER(Setup!H108),IF(AND(NOT(ISBLANK(Setup!J108)),ISNUMBER(Setup!K108)),Setup!H108*Setup!K108,Setup!H108),Setup!H108) -> Record only | AO108: 1 | AP108: =IF(AO108=1,INDEX('Needs and Priorities'!$D$49:$D$96,MATCH(Setup!D108,'Needs and Priorities'!$B$49:$B$96,0)),0) -> 0 | AQ108: =IFERROR(INDEX('Stakeholders Survey'!$K$24:$K$159,MATCH(D108&E108,'Stakeholders Survey'!$M$24:$M$159,0)),0) -> 0
A109: 78 | B109: =Setup!AG109 -> Social: Healthier, Safer and more Resilient Communities | C109: =Setup!AH109 -> Supporting communities to deal with the COVID-19 crisis | D109: =IF(ISBLANK(LISTS!D82),"",LISTS!D82) -> C19-14 | E109: =IF(ISBLANK(LISTS!E82),"",LISTS!E82) ->  | F109: =IF(ISBLANK(LISTS!L82),"",LISTS!L82) -> Do you have in place a strategy to provide guidance on best practice social behaviour in COVID-19 times to own and supply chain staff? | G109: ✓ | H109: =IF(ISBLANK(LISTS!N82),"",LISTS!N82) -> Record only | I109: =IF(ISBLANK(LISTS!O82),"",LISTS!O82) -> Y/N (Provide documents) | J109: - | K109: - | L109: - | M109: high | P109: =Setup!G109="✓" -> TRUE | Q109: =IF(NOT(ISBLANK(LISTS!F82)),1,0) -> 0 | R109: =IF(NOT(ISBLANK(LISTS!G82)),1,0) -> 0 | S109: =IF(NOT(ISBLANK(LISTS!H82)),1,0) -> 1 | T109: =IF(NOT(ISBLANK(LISTS!I82)),1,0) -> 0 | U109: =IF(NOT(ISBLANK(LISTS!J82)),1,0) -> 0 | V109: =IF(LISTS!K82="y",1,0) -> 0 | W109: TRUE | X109: TRUE | Y109: ✓ | Z109: TRUE | AA109: =IF(LISTS!B82=0,AA108,LISTS!B82) -> Social: Healthier, Safer and more Resilient Communities | AB109: =IF(LISTS!C82=0,AB108,LISTS!C82) -> Supporting communities to deal with the COVID-19 crisis | AC109: Social: Healthier, Safer and more Resilient Communities | AD109: Supporting communities to deal with the COVID-19 crisis | AE109: =IF(AND($X109,MATCH(AC109,AC$36:AC$185,0)=Setup!$A109-4),AA109,"") -> Social: Healthier, Safer and more Resilient Communities | AF109: =IF(AND($X109,MATCH(AD109,AD$36:AD$185,0)=Setup!$A109-4),AB109,"") -> Supporting communities to deal with the COVID-19 crisis | AG109: =IF(AND($X109,MATCH(AC109,AC$32:AC$185,0)=Setup!$A109),AA109,"") -> Social: Healthier, Safer and more Resilient Communities | AH109: =IF(AND($X109,MATCH(AD109,AD$32:AD$185,0)=Setup!$A109),AB109,"") -> Supporting communities to deal with the COVID-19 crisis | AI109: 74 | AJ109: 74 | AK109: 78 | AL109: 78 | AM109: =IF(AND(NOT(ISBLANK(Setup!J109)),OR(ISNUMBER(Setup!K109),K109="Enter localised proxy in calculator")),Setup!J109,Setup!I109) -> Y/N (Provide documents) | AN109: =IF(ISNUMBER(Setup!H109),IF(AND(NOT(ISBLANK(Setup!J109)),ISNUMBER(Setup!K109)),Setup!H109*Setup!K109,Setup!H109),Setup!H109) -> Record only | AO109: 0 | AP109: =IF(AO109=1,INDEX('Needs and Priorities'!$D$49:$D$96,MATCH(Setup!D109,'Needs and Priorities'!$B$49:$B$96,0)),0) -> 0 | AQ109: =IFERROR(INDEX('Stakeholders Survey'!$K$24:$K$159,MATCH(D109&E109,'Stakeholders Survey'!$M$24:$M$159,0)),0) -> 0
A110: 79 | B110: =Setup!AG110 ->  | C110: =Setup!AH110 ->  | D110: =IF(ISBLANK(LISTS!D83),"",LISTS!D83) -> C19-15 | E110: =IF(ISBLANK(LISTS!E83),"",LISTS!E83) ->  | F110: =IF(ISBLANK(LISTS!L83),"",LISTS!L83) -> Enable and encourage staff on the contract to safely volunteer within their community or participate in local support networks - particularly to help people in most vulnerable groups (at risk categories), people self-isolating and local essential workers. | G110: ✓ | H110: =IF(ISBLANK(LISTS!N83),"",LISTS!N83) -> 16.07 | I110: =IF(ISBLANK(LISTS!O83),"",LISTS!O83) -> No. staff volunteering hours | L110: =IF(ISNUMBER(H110),IF(NOT(ISBLANK(J110)),IF(NOT(ISNUMBER(K110)),"Please enter a valid conversion factor","£"&ROUND(H110*K110,2)&"/"&IF(RIGHT(J110,1)="s",LEFT(J110,LEN(J110)-1),J110)),""),"n/a") ->  | M110: high | P110: =Setup!G110="✓" -> TRUE | Q110: =IF(NOT(ISBLANK(LISTS!F83)),1,0) -> 0 | R110: =IF(NOT(ISBLANK(LISTS!G83)),1,0) -> 0 | S110: =IF(NOT(ISBLANK(LISTS!H83)),1,0) -> 1 | T110: =IF(NOT(ISBLANK(LISTS!I83)),1,0) -> 0 | U110: =IF(NOT(ISBLANK(LISTS!J83)),1,0) -> 0 | V110: =IF(LISTS!K83="y",1,0) -> 0 | W110: TRUE | X110: TRUE | Y110: ✓ | Z110: TRUE | AA110: =IF(LISTS!B83=0,AA109,LISTS!B83) -> Social: Healthier, Safer and more Resilient Communities | AB110: =IF(LISTS!C83=0,AB109,LISTS!C83) -> Supporting communities to deal with the COVID-19 crisis | AC110: Social: Healthier, Safer and more Resilient Communities | AD110: Supporting communities to deal with the COVID-19 crisis | AE110: =IF(AND($X110,MATCH(AC110,AC$36:AC$185,0)=Setup!$A110-4),AA110,"") ->  | AF110: =IF(AND($X110,MATCH(AD110,AD$36:AD$185,0)=Setup!$A110-4),AB110,"") ->  | AG110: =IF(AND($X110,MATCH(AC110,AC$32:AC$185,0)=Setup!$A110),AA110,"") ->  | AH110: =IF(AND($X110,MATCH(AD110,AD$32:AD$185,0)=Setup!$A110),AB110,"") ->  | AI110: 75 | AJ110: 75 | AK110: 79 | AL110: 79 | AM110: =IF(AND(NOT(ISBLANK(Setup!J110)),OR(ISNUMBER(Setup!K110),K110="Enter localised proxy in calculator")),Setup!J110,Setup!I110) -> No. staff volunteering hours | AN110: =IF(ISNUMBER(Setup!H110),IF(AND(NOT(ISBLANK(Setup!J110)),ISNUMBER(Setup!K110)),Setup!H110*Setup!K110,Setup!H110),Setup!H110) -> 16.07 | AO110: 0 | AP110: =IF(AO110=1,INDEX('Needs and Priorities'!$D$49:$D$96,MATCH(Setup!D110,'Needs and Priorities'!$B$49:$B$96,0)),0) -> 0 | AQ110: =IFERROR(INDEX('Stakeholders Survey'!$K$24:$K$159,MATCH(D110&E110,'Stakeholders Survey'!$M$24:$M$159,0)),0) -> 0
A111: 80 | B111: =Setup!AG111 ->  | C111: =Setup!AH111 ->  | D111: =IF(ISBLANK(LISTS!D84),"",LISTS!D84) -> C19-16 | E111: =IF(ISBLANK(LISTS!E84),"",LISTS!E84) ->  | F111: =IF(ISBLANK(LISTS!L84),"",LISTS!L84) -> Direct support from your organisation to local authorities or VCSEs in the local area for the contract to deliver the services to support people in most vulnerable groups (at risk categories), people self-isolating and local essential work force - (food delivery, mental health support, etc.) | G111: ✓ | H111: =IF(ISBLANK(LISTS!N84),"",LISTS!N84) -> 1 | I111: =IF(ISBLANK(LISTS!O84),"",LISTS!O84) -> £ invested - including staff time (volunteering valued at £16.07 per hours, expert time valued at £96.11 per hour) and materials, equipment or other resources | M111: high | P111: =Setup!G111="✓" -> TRUE | Q111: =IF(NOT(ISBLANK(LISTS!F84)),1,0) -> 0 | R111: =IF(NOT(ISBLANK(LISTS!G84)),1,0) -> 0 | S111: =IF(NOT(ISBLANK(LISTS!H84)),1,0) -> 1 | T111: =IF(NOT(ISBLANK(LISTS!I84)),1,0) -> 0 | U111: =IF(NOT(ISBLANK(LISTS!J84)),1,0) -> 0 | V111: =IF(LISTS!K84="y",1,0) -> 0 | W111: TRUE | X111: TRUE | Y111: ✓ | Z111: TRUE | AA111: =IF(LISTS!B84=0,AA110,LISTS!B84) -> Social: Healthier, Safer and more Resilient Communities | AB111: =IF(LISTS!C84=0,AB110,LISTS!C84) -> Supporting communities to deal with the COVID-19 crisis | AC111: Social: Healthier, Safer and more Resilient Communities | AD111: Supporting communities to deal with the COVID-19 crisis | AE111: =IF(AND($X111,MATCH(AC111,AC$36:AC$185,0)=Setup!$A111-4),AA111,"") ->  | AF111: =IF(AND($X111,MATCH(AD111,AD$36:AD$185,0)=Setup!$A111-4),AB111,"") ->  | AG111: =IF(AND($X111,MATCH(AC111,AC$32:AC$185,0)=Setup!$A111),AA111,"") ->  | AH111: =IF(AND($X111,MATCH(AD111,AD$32:AD$185,0)=Setup!$A111),AB111,"") ->  | AI111: 76 | AJ111: 76 | AK111: 80 | AL111: 80 | AM111: =IF(AND(NOT(ISBLANK(Setup!J111)),OR(ISNUMBER(Setup!K111),K111="Enter localised proxy in calculator")),Setup!J111,Setup!I111) -> £ invested - including staff time (volunteering valued at £16.07 per hours, expert time valued at £96.11 per hour) and materials, equipment or other resources | AN111: =IF(ISNUMBER(Setup!H111),IF(AND(NOT(ISBLANK(Setup!J111)),ISNUMBER(Setup!K111)),Setup!H111*Setup!K111,Setup!H111),Setup!H111) -> 1 | AO111: 0 | AP111: =IF(AO111=1,INDEX('Needs and Priorities'!$D$49:$D$96,MATCH(Setup!D111,'Needs and Priorities'!$B$49:$B$96,0)),0) -> 0 | AQ111: =IFERROR(INDEX('Stakeholders Survey'!$K$24:$K$159,MATCH(D111&E111,'Stakeholders Survey'!$M$24:$M$159,0)),0) -> 0
A112: 81 | B112: =Setup!AG112 ->  | C112: =Setup!AH112 ->  | D112: =IF(ISBLANK(LISTS!D85),"",LISTS!D85) -> C19-17 | E112: =IF(ISBLANK(LISTS!E85),"",LISTS!E85) ->  | F112: =IF(ISBLANK(LISTS!L85),"",LISTS!L85) -> Funding of campaigns to increase the understanding of the importance of following behavioural norms as specified by the government and public health institutions, recognition and appreciation of the social value provided by essential services (NHS, food retail, transportation, etc.) - targeted towards staff and the general public | G112: ✓ | H112: =IF(ISBLANK(LISTS!N85),"",LISTS!N85) -> 1 | I112: =IF(ISBLANK(LISTS!O85),"",LISTS!O85) -> £ invested | M112: high | P112: =Setup!G112="✓" -> TRUE | Q112: =IF(NOT(ISBLANK(LISTS!F85)),1,0) -> 0 | R112: =IF(NOT(ISBLANK(LISTS!G85)),1,0) -> 0 | S112: =IF(NOT(ISBLANK(LISTS!H85)),1,0) -> 1 | T112: =IF(NOT(ISBLANK(LISTS!I85)),1,0) -> 0 | U112: =IF(NOT(ISBLANK(LISTS!J85)),1,0) -> 0 | V112: =IF(LISTS!K85="y",1,0) -> 0 | W112: TRUE | X112: TRUE | Y112: ✓ | Z112: TRUE | AA112: =IF(LISTS!B85=0,AA111,LISTS!B85) -> Social: Healthier, Safer and more Resilient Communities | AB112: =IF(LISTS!C85=0,AB111,LISTS!C85) -> Supporting communities to deal with the COVID-19 crisis | AC112: Social: Healthier, Safer and more Resilient Communities | AD112: Supporting communities to deal with the COVID-19 crisis | AE112: =IF(AND($X112,MATCH(AC112,AC$36:AC$185,0)=Setup!$A112-4),AA112,"") ->  | AF112: =IF(AND($X112,MATCH(AD112,AD$36:AD$185,0)=Setup!$A112-4),AB112,"") ->  | AG112: =IF(AND($X112,MATCH(AC112,AC$32:AC$185,0)=Setup!$A112),AA112,"") ->  | AH112: =IF(AND($X112,MATCH(AD112,AD$32:AD$185,0)=Setup!$A112),AB112,"") ->  | AI112: 77 | AJ112: 77 | AK112: 81 | AL112: 81 | AM112: =IF(AND(NOT(ISBLANK(Setup!J112)),OR(ISNUMBER(Setup!K112),K112="Enter localised proxy in calculator")),Setup!J112,Setup!I112) -> £ invested | AN112: =IF(ISNUMBER(Setup!H112),IF(AND(NOT(ISBLANK(Setup!J112)),ISNUMBER(Setup!K112)),Setup!H112*Setup!K112,Setup!H112),Setup!H112) -> 1 | AO112: 0 | AP112: =IF(AO112=1,INDEX('Needs and Priorities'!$D$49:$D$96,MATCH(Setup!D112,'Needs and Priorities'!$B$49:$B$96,0)),0) -> 0 | AQ112: =IFERROR(INDEX('Stakeholders Survey'!$K$24:$K$159,MATCH(D112&E112,'Stakeholders Survey'!$M$24:$M$159,0)),0) -> 0
A113: 82 | B113: =Setup!AG113 ->  | C113: =Setup!AH113 -> Crime is reduced | D113: =IF(ISBLANK(LISTS!D86),"",LISTS!D86) -> NT24 | E113: =IF(ISBLANK(LISTS!E86),"",LISTS!E86) -> RE28 | F113: =IF(ISBLANK(LISTS!L86),"",LISTS!L86) -> Initiatives aimed at reducing crime (e.g. support for local youth groups, lighting for public spaces, private security, etc.) | G113: ✓ | H113: =IF(ISBLANK(LISTS!N86),"",LISTS!N86) -> 1 | I113: =IF(ISBLANK(LISTS!O86),"",LISTS!O86) -> £ | L113: =IF(ISNUMBER(H113),IF(NOT(ISBLANK(J113)),IF(NOT(ISNUMBER(K113)),"Please enter a valid conversion factor","£"&ROUND(H113*K113,2)&"/"&IF(RIGHT(J113,1)="s",LEFT(J113,LEN(J113)-1),J113)),""),"n/a") ->  | P113: =Setup!G113="✓" -> TRUE | Q113: =IF(NOT(ISBLANK(LISTS!F86)),1,0) -> 0 | R113: =IF(NOT(ISBLANK(LISTS!G86)),1,0) -> 1 | S113: =IF(NOT(ISBLANK(LISTS!H86)),1,0) -> 0 | T113: =IF(NOT(ISBLANK(LISTS!I86)),1,0) -> 0 | U113: =IF(NOT(ISBLANK(LISTS!J86)),1,0) -> 1 | V113: =IF(LISTS!K86="y",1,0) -> 0 | W113: TRUE | X113: TRUE | Y113: ✓ | Z113: TRUE | AA113: =IF(LISTS!B86=0,AA112,LISTS!B86) -> Social: Healthier, Safer and more Resilient Communities | AB113: =IF(LISTS!C86=0,AB112,LISTS!C86) -> Crime is reduced | AC113: Social: Healthier, Safer and more Resilient Communities | AD113: Crime is reduced | AE113: =IF(AND($X113,MATCH(AC113,AC$36:AC$185,0)=Setup!$A113-4),AA113,"") ->  | AF113: =IF(AND($X113,MATCH(AD113,AD$36:AD$185,0)=Setup!$A113-4),AB113,"") -> Crime is reduced | AG113: =IF(AND($X113,MATCH(AC113,AC$32:AC$185,0)=Setup!$A113),AA113,"") ->  | AH113: =IF(AND($X113,MATCH(AD113,AD$32:AD$185,0)=Setup!$A113),AB113,"") -> Crime is reduced | AI113: 78 | AJ113: 78 | AK113: 82 | AL113: 82 | AM113: =IF(AND(NOT(ISBLANK(Setup!J113)),OR(ISNUMBER(Setup!K113),K113="Enter localised proxy in calculator")),Setup!J113,Setup!I113) -> £ | AN113: =IF(ISNUMBER(Setup!H113),IF(AND(NOT(ISBLANK(Setup!J113)),ISNUMBER(Setup!K113)),Setup!H113*Setup!K113,Setup!H113),Setup!H113) -> 1 | AO113: 0 | AP113: =IF(AO113=1,INDEX('Needs and Priorities'!$D$49:$D$96,MATCH(Setup!D113,'Needs and Priorities'!$B$49:$B$96,0)),0) -> 0 | AQ113: =IFERROR(INDEX('Stakeholders Survey'!$K$24:$K$159,MATCH(D113&E113,'Stakeholders Survey'!$M$24:$M$159,0)),0) -> 0
A114: 83 | B114: =Setup!AG114 ->  | C114: =Setup!AH114 -> Creating a healthier community | D114: =IF(ISBLANK(LISTS!D87),"",LISTS!D87) -> NT25 | E114: =IF(ISBLANK(LISTS!E87),"",LISTS!E87) -> RE29 | F114: =IF(ISBLANK(LISTS!L87),"",LISTS!L87) -> Initiatives to be taken to tackle homelessness (supporting temporary housing schemes, etc.) | G114: ✓ | H114: =IF(ISBLANK(LISTS!N87),"",LISTS!N87) -> 1 | I114: =IF(ISBLANK(LISTS!O87),"",LISTS!O87) -> £ | P114: =Setup!G114="✓" -> TRUE | Q114: =IF(NOT(ISBLANK(LISTS!F87)),1,0) -> 0 | R114: =IF(NOT(ISBLANK(LISTS!G87)),1,0) -> 1 | S114: =IF(NOT(ISBLANK(LISTS!H87)),1,0) -> 0 | T114: =IF(NOT(ISBLANK(LISTS!I87)),1,0) -> 0 | U114: =IF(NOT(ISBLANK(LISTS!J87)),1,0) -> 1 | V114: =IF(LISTS!K87="y",1,0) -> 0 | W114: TRUE | X114: TRUE | Y114: ✓ | Z114: TRUE | AA114: =IF(LISTS!B87=0,AA113,LISTS!B87) -> Social: Healthier, Safer and more Resilient Communities | AB114: =IF(LISTS!C87=0,AB113,LISTS!C87) -> Creating a healthier community | AC114: Social: Healthier, Safer and more Resilient Communities | AD114: Creating a healthier community | AE114: =IF(AND($X114,MATCH(AC114,AC$36:AC$185,0)=Setup!$A114-4),AA114,"") ->  | AF114: =IF(AND($X114,MATCH(AD114,AD$36:AD$185,0)=Setup!$A114-4),AB114,"") -> Creating a healthier community | AG114: =IF(AND($X114,MATCH(AC114,AC$32:AC$185,0)=Setup!$A114),AA114,"") ->  | AH114: =IF(AND($X114,MATCH(AD114,AD$32:AD$185,0)=Setup!$A114),AB114,"") -> Creating a healthier community | AI114: 79 | AJ114: 79 | AK114: 83 | AL114: 83 | AM114: =IF(AND(NOT(ISBLANK(Setup!J114)),OR(ISNUMBER(Setup!K114),K114="Enter localised proxy in calculator")),Setup!J114,Setup!I114) -> £ | AN114: =IF(ISNUMBER(Setup!H114),IF(AND(NOT(ISBLANK(Setup!J114)),ISNUMBER(Setup!K114)),Setup!H114*Setup!K114,Setup!H114),Setup!H114) -> 1 | AO114: 0 | AP114: =IF(AO114=1,INDEX('Needs and Priorities'!$D$49:$D$96,MATCH(Setup!D114,'Needs and Priorities'!$B$49:$B$96,0)),0) -> 0 | AQ114: =IFERROR(INDEX('Stakeholders Survey'!$K$24:$K$159,MATCH(D114&E114,'Stakeholders Survey'!$M$24:$M$159,0)),0) -> 0
A115: 84 | B115: =Setup!AG115 ->  | C115: =Setup!AH115 ->  | D115: =IF(ISBLANK(LISTS!D88),"",LISTS!D88) -> NT63 | E115: =IF(ISBLANK(LISTS!E88),"",LISTS!E88) ->  | F115: =IF(ISBLANK(LISTS!L88),"",LISTS!L88) -> Initiatives to support rough sleepers - including training for security and night staff, opening up facilities spaces (e.g. showers or additional beds when temperature drops) after hours | G115: ✓ | H115: =IF(ISBLANK(LISTS!N88),"",LISTS!N88) -> 1 | I115: =IF(ISBLANK(LISTS!O88),"",LISTS!O88) -> £ | P115: =Setup!G115="✓" -> TRUE | Q115: =IF(NOT(ISBLANK(LISTS!F88)),1,0) -> 0 | R115: =IF(NOT(ISBLANK(LISTS!G88)),1,0) -> 1 | S115: =IF(NOT(ISBLANK(LISTS!H88)),1,0) -> 0 | T115: =IF(NOT(ISBLANK(LISTS!I88)),1,0) -> 0 | U115: =IF(NOT(ISBLANK(LISTS!J88)),1,0) -> 0 | V115: =IF(LISTS!K88="y",1,0) -> 0 | W115: TRUE | X115: TRUE | Y115: ✓ | Z115: TRUE | AA115: =IF(LISTS!B88=0,AA114,LISTS!B88) -> Social: Healthier, Safer and more Resilient Communities | AB115: =IF(LISTS!C88=0,AB114,LISTS!C88) -> Creating a healthier community | AC115: Social: Healthier, Safer and more Resilient Communities | AD115: Creating a healthier community | AE115: =IF(AND($X115,MATCH(AC115,AC$36:AC$185,0)=Setup!$A115-4),AA115,"") ->  | AF115: =IF(AND($X115,MATCH(AD115,AD$36:AD$185,0)=Setup!$A115-4),AB115,"") ->  | AG115: =IF(AND($X115,MATCH(AC115,AC$32:AC$185,0)=Setup!$A115),AA115,"") ->  | AH115: =IF(AND($X115,MATCH(AD115,AD$32:AD$185,0)=Setup!$A115),AB115,"") ->  | AI115: 80 | AJ115: 80 | AK115: 84 | AL115: 84 | AM115: =IF(AND(NOT(ISBLANK(Setup!J115)),OR(ISNUMBER(Setup!K115),K115="Enter localised proxy in calculator")),Setup!J115,Setup!I115) -> £ | AN115: =IF(ISNUMBER(Setup!H115),IF(AND(NOT(ISBLANK(Setup!J115)),ISNUMBER(Setup!K115)),Setup!H115*Setup!K115,Setup!H115),Setup!H115) -> 1 | AO115: 0 | AP115: =IF(AO115=1,INDEX('Needs and Priorities'!$D$49:$D$96,MATCH(Setup!D115,'Needs and Priorities'!$B$49:$B$96,0)),0) -> 0 | AQ115: =IFERROR(INDEX('Stakeholders Survey'!$K$24:$K$159,MATCH(D115&E115,'Stakeholders Survey'!$M$24:$M$159,0)),0) -> 0
A116: 85 | B116: =Setup!AG116 ->  | C116: =Setup!AH116 ->  | D116: =IF(ISBLANK(LISTS!D89),"",LISTS!D89) -> NT26 | E116: =IF(ISBLANK(LISTS!E89),"",LISTS!E89) -> RE30 | F116: =IF(ISBLANK(LISTS!L89),"",LISTS!L89) -> Initiatives taken or supported to engage people in health interventions (e.g. stop smoking, obesity, alcoholism, drugs, etc.) or wellbeing initiatives in the community, including physical activities for adults and children | G116: ✓ | H116: =IF(ISBLANK(LISTS!N89),"",LISTS!N89) -> 1 | I116: =IF(ISBLANK(LISTS!O89),"",LISTS!O89) -> £ invested including staff time | M116: high | P116: =Setup!G116="✓" -> TRUE | Q116: =IF(NOT(ISBLANK(LISTS!F89)),1,0) -> 1 | R116: =IF(NOT(ISBLANK(LISTS!G89)),1,0) -> 0 | S116: =IF(NOT(ISBLANK(LISTS!H89)),1,0) -> 0 | T116: =IF(NOT(ISBLANK(LISTS!I89)),1,0) -> 1 | U116: =IF(NOT(ISBLANK(LISTS!J89)),1,0) -> 0 | V116: =IF(LISTS!K89="y",1,0) -> 0 | W116: TRUE | X116: TRUE | Y116: ✓ | Z116: TRUE | AA116: =IF(LISTS!B89=0,AA115,LISTS!B89) -> Social: Healthier, Safer and more Resilient Communities | AB116: =IF(LISTS!C89=0,AB115,LISTS!C89) -> Creating a healthier community | AC116: Social: Healthier, Safer and more Resilient Communities | AD116: Creating a healthier community | AE116: =IF(AND($X116,MATCH(AC116,AC$36:AC$185,0)=Setup!$A116-4),AA116,"") ->  | AF116: =IF(AND($X116,MATCH(AD116,AD$36:AD$185,0)=Setup!$A116-4),AB116,"") ->  | AG116: =IF(AND($X116,MATCH(AC116,AC$32:AC$185,0)=Setup!$A116),AA116,"") ->  | AH116: =IF(AND($X116,MATCH(AD116,AD$32:AD$185,0)=Setup!$A116),AB116,"") ->  | AI116: 81 | AJ116: 81 | AK116: 85 | AL116: 85 | AM116: =IF(AND(NOT(ISBLANK(Setup!J116)),OR(ISNUMBER(Setup!K116),K116="Enter localised proxy in calculator")),Setup!J116,Setup!I116) -> £ invested including staff time | AN116: =IF(ISNUMBER(Setup!H116),IF(AND(NOT(ISBLANK(Setup!J116)),ISNUMBER(Setup!K116)),Setup!H116*Setup!K116,Setup!H116),Setup!H116) -> 1 | AO116: 1 | AP116: =IF(AO116=1,INDEX('Needs and Priorities'!$D$49:$D$96,MATCH(Setup!D116,'Needs and Priorities'!$B$49:$B$96,0)),0) -> 0 | AQ116: =IFERROR(INDEX('Stakeholders Survey'!$K$24:$K$159,MATCH(D116&E116,'Stakeholders Survey'!$M$24:$M$159,0)),0) -> 0
A117: 86 | B117: =Setup!AG117 ->  | C117: =Setup!AH117 -> Vulnerable people are helped to live independently | D117: =IF(ISBLANK(LISTS!D90),"",LISTS!D90) -> NT27 | E117: =IF(ISBLANK(LISTS!E90),"",LISTS!E90) -> RE31 | F117: =IF(ISBLANK(LISTS!L90),"",LISTS!L90) -> Initiatives to be taken to support older, disabled and vulnerable people to build stronger community networks (e.g. befriending schemes, digital inclusion clubs) | G117: ✓ | H117: =IF(ISBLANK(LISTS!N90),"",LISTS!N90) -> 1 | I117: =IF(ISBLANK(LISTS!O90),"",LISTS!O90) -> £ invested including staff time | M117: high | P117: =Setup!G117="✓" -> TRUE | Q117: =IF(NOT(ISBLANK(LISTS!F90)),1,0) -> 1 | R117: =IF(NOT(ISBLANK(LISTS!G90)),1,0) -> 0 | S117: =IF(NOT(ISBLANK(LISTS!H90)),1,0) -> 0 | T117: =IF(NOT(ISBLANK(LISTS!I90)),1,0) -> 1 | U117: =IF(NOT(ISBLANK(LISTS!J90)),1,0) -> 0 | V117: =IF(LISTS!K90="y",1,0) -> 0 | W117: TRUE | X117: TRUE | Y117: ✓ | Z117: TRUE | AA117: =IF(LISTS!B90=0,AA116,LISTS!B90) -> Social: Healthier, Safer and more Resilient Communities | AB117: =IF(LISTS!C90=0,AB116,LISTS!C90) -> Vulnerable people are helped to live independently | AC117: Social: Healthier, Safer and more Resilient Communities | AD117: Vulnerable people are helped to live independently | AE117: =IF(AND($X117,MATCH(AC117,AC$36:AC$185,0)=Setup!$A117-4),AA117,"") ->  | AF117: =IF(AND($X117,MATCH(AD117,AD$36:AD$185,0)=Setup!$A117-4),AB117,"") -> Vulnerable people are helped to live independently | AG117: =IF(AND($X117,MATCH(AC117,AC$32:AC$185,0)=Setup!$A117),AA117,"") ->  | AH117: =IF(AND($X117,MATCH(AD117,AD$32:AD$185,0)=Setup!$A117),AB117,"") -> Vulnerable people are helped to live independently | AI117: 82 | AJ117: 82 | AK117: 86 | AL117: 86 | AM117: =IF(AND(NOT(ISBLANK(Setup!J117)),OR(ISNUMBER(Setup!K117),K117="Enter localised proxy in calculator")),Setup!J117,Setup!I117) -> £ invested including staff time | AN117: =IF(ISNUMBER(Setup!H117),IF(AND(NOT(ISBLANK(Setup!J117)),ISNUMBER(Setup!K117)),Setup!H117*Setup!K117,Setup!H117),Setup!H117) -> 1 | AO117: 1 | AP117: =IF(AO117=1,INDEX('Needs and Priorities'!$D$49:$D$96,MATCH(Setup!D117,'Needs and Priorities'!$B$49:$B$96,0)),0) -> 0 | AQ117: =IFERROR(INDEX('Stakeholders Survey'!$K$24:$K$159,MATCH(D117&E117,'Stakeholders Survey'!$M$24:$M$159,0)),0) -> 0
A118: 87 | B118: =Setup!AG118 ->  | C118: =Setup!AH118 -> More working with the Community | D118: =IF(ISBLANK(LISTS!D91),"",LISTS!D91) -> NT28 | E118: =IF(ISBLANK(LISTS!E91),"",LISTS!E91) -> RE32 | F118: =IF(ISBLANK(LISTS!L91),"",LISTS!L91) -> Donations or in-kind contributions to local community projects (£ & materials) | G118: ✓ | H118: =IF(ISBLANK(LISTS!N91),"",LISTS!N91) -> 1 | I118: =IF(ISBLANK(LISTS!O91),"",LISTS!O91) -> £ value | M118: high | P118: =Setup!G118="✓" -> TRUE | Q118: =IF(NOT(ISBLANK(LISTS!F91)),1,0) -> 1 | R118: =IF(NOT(ISBLANK(LISTS!G91)),1,0) -> 0 | S118: =IF(NOT(ISBLANK(LISTS!H91)),1,0) -> 0 | T118: =IF(NOT(ISBLANK(LISTS!I91)),1,0) -> 1 | U118: =IF(NOT(ISBLANK(LISTS!J91)),1,0) -> 0 | V118: =IF(LISTS!K91="y",1,0) -> 0 | W118: TRUE | X118: TRUE | Y118: ✓ | Z118: TRUE | AA118: =IF(LISTS!B91=0,AA117,LISTS!B91) -> Social: Healthier, Safer and more Resilient Communities | AB118: =IF(LISTS!C91=0,AB117,LISTS!C91) -> More working with the Community | AC118: Social: Healthier, Safer and more Resilient Communities | AD118: More working with the Community | AE118: =IF(AND($X118,MATCH(AC118,AC$36:AC$185,0)=Setup!$A118-4),AA118,"") ->  | AF118: =IF(AND($X118,MATCH(AD118,AD$36:AD$185,0)=Setup!$A118-4),AB118,"") -> More working with the Community | AG118: =IF(AND($X118,MATCH(AC118,AC$32:AC$185,0)=Setup!$A118),AA118,"") ->  | AH118: =IF(AND($X118,MATCH(AD118,AD$32:AD$185,0)=Setup!$A118),AB118,"") -> More working with the Community | AI118: 83 | AJ118: 83 | AK118: 87 | AL118: 87 | AM118: =IF(AND(NOT(ISBLANK(Setup!J118)),OR(ISNUMBER(Setup!K118),K118="Enter localised proxy in calculator")),Setup!J118,Setup!I118) -> £ value | AN118: =IF(ISNUMBER(Setup!H118),IF(AND(NOT(ISBLANK(Setup!J118)),ISNUMBER(Setup!K118)),Setup!H118*Setup!K118,Setup!H118),Setup!H118) -> 1 | AO118: 1 | AP118: =IF(AO118=1,INDEX('Needs and Priorities'!$D$49:$D$96,MATCH(Setup!D118,'Needs and Priorities'!$B$49:$B$96,0)),0) -> 0 | AQ118: =IFERROR(INDEX('Stakeholders Survey'!$K$24:$K$159,MATCH(D118&E118,'Stakeholders Survey'!$M$24:$M$159,0)),0) -> 0
A119: 88 | B119: =Setup!AG119 ->  | C119: =Setup!AH119 ->  | D119: =IF(ISBLANK(LISTS!D92),"",LISTS!D92) -> NT29 | E119: =IF(ISBLANK(LISTS!E92),"",LISTS!E92) -> RE33 | F119: =IF(ISBLANK(LISTS!L92),"",LISTS!L92) -> No. of hours volunteering time provided to support local community projects | G119: ✓ | H119: =IF(ISBLANK(LISTS!N92),"",LISTS!N92) -> 16.07 | I119: =IF(ISBLANK(LISTS!O92),"",LISTS!O92) -> No. staff volunteering hours | M119: high | P119: =Setup!G119="✓" -> TRUE | Q119: =IF(NOT(ISBLANK(LISTS!F92)),1,0) -> 1 | R119: =IF(NOT(ISBLANK(LISTS!G92)),1,0) -> 0 | S119: =IF(NOT(ISBLANK(LISTS!H92)),1,0) -> 0 | T119: =IF(NOT(ISBLANK(LISTS!I92)),1,0) -> 1 | U119: =IF(NOT(ISBLANK(LISTS!J92)),1,0) -> 0 | V119: =IF(LISTS!K92="y",1,0) -> 0 | W119: TRUE | X119: TRUE | Y119: ✓ | Z119: TRUE | AA119: =IF(LISTS!B92=0,AA118,LISTS!B92) -> Social: Healthier, Safer and more Resilient Communities | AB119: =IF(LISTS!C92=0,AB118,LISTS!C92) -> More working with the Community | AC119: Social: Healthier, Safer and more Resilient Communities | AD119: More working with the Community | AE119: =IF(AND($X119,MATCH(AC119,AC$36:AC$185,0)=Setup!$A119-4),AA119,"") ->  | AF119: =IF(AND($X119,MATCH(AD119,AD$36:AD$185,0)=Setup!$A119-4),AB119,"") ->  | AG119: =IF(AND($X119,MATCH(AC119,AC$32:AC$185,0)=Setup!$A119),AA119,"") ->  | AH119: =IF(AND($X119,MATCH(AD119,AD$32:AD$185,0)=Setup!$A119),AB119,"") ->  | AI119: 84 | AJ119: 84 | AK119: 88 | AL119: 88 | AM119: =IF(AND(NOT(ISBLANK(Setup!J119)),OR(ISNUMBER(Setup!K119),K119="Enter localised proxy in calculator")),Setup!J119,Setup!I119) -> No. staff volunteering hours | AN119: =IF(ISNUMBER(Setup!H119),IF(AND(NOT(ISBLANK(Setup!J119)),ISNUMBER(Setup!K119)),Setup!H119*Setup!K119,Setup!H119),Setup!H119) -> 16.07 | AO119: 1 | AP119: =IF(AO119=1,INDEX('Needs and Priorities'!$D$49:$D$96,MATCH(Setup!D119,'Needs and Priorities'!$B$49:$B$96,0)),0) -> 0 | AQ119: =IFERROR(INDEX('Stakeholders Survey'!$K$24:$K$159,MATCH(D119&E119,'Stakeholders Survey'!$M$24:$M$159,0)),0) -> 0
A120: 89 | B120: =Setup!AG120 ->  | C120: =Setup!AH120 ->  | D120: =IF(ISBLANK(LISTS!D93),"",LISTS!D93) -> NT30 | E120: =IF(ISBLANK(LISTS!E93),"",LISTS!E93) -> RE34 | F120: =IF(ISBLANK(LISTS!L93),"",LISTS!L93) -> Support provided to help local community draw up their own Community Charter or Stakeholder Plan | G120: ✓ | H120: =IF(ISBLANK(LISTS!N93),"",LISTS!N93) -> 1 | I120: =IF(ISBLANK(LISTS!O93),"",LISTS!O93) -> £ invested including staff time | P120: =Setup!G120="✓" -> TRUE | Q120: =IF(NOT(ISBLANK(LISTS!F93)),1,0) -> 0 | R120: =IF(NOT(ISBLANK(LISTS!G93)),1,0) -> 1 | S120: =IF(NOT(ISBLANK(LISTS!H93)),1,0) -> 0 | T120: =IF(NOT(ISBLANK(LISTS!I93)),1,0) -> 1 | U120: =IF(NOT(ISBLANK(LISTS!J93)),1,0) -> 0 | V120: =IF(LISTS!K93="y",1,0) -> 0 | W120: TRUE | X120: TRUE | Y120: ✓ | Z120: TRUE | AA120: =IF(LISTS!B93=0,AA119,LISTS!B93) -> Social: Healthier, Safer and more Resilient Communities | AB120: =IF(LISTS!C93=0,AB119,LISTS!C93) -> More working with the Community | AC120: Social: Healthier, Safer and more Resilient Communities | AD120: More working with the Community | AE120: =IF(AND($X120,MATCH(AC120,AC$36:AC$185,0)=Setup!$A120-4),AA120,"") ->  | AF120: =IF(AND($X120,MATCH(AD120,AD$36:AD$185,0)=Setup!$A120-4),AB120,"") ->  | AG120: =IF(AND($X120,MATCH(AC120,AC$32:AC$185,0)=Setup!$A120),AA120,"") ->  | AH120: =IF(AND($X120,MATCH(AD120,AD$32:AD$185,0)=Setup!$A120),AB120,"") ->  | AI120: 85 | AJ120: 85 | AK120: 89 | AL120: 89 | AM120: =IF(AND(NOT(ISBLANK(Setup!J120)),OR(ISNUMBER(Setup!K120),K120="Enter localised proxy in calculator")),Setup!J120,Setup!I120) -> £ invested including staff time | AN120: =IF(ISNUMBER(Setup!H120),IF(AND(NOT(ISBLANK(Setup!J120)),ISNUMBER(Setup!K120)),Setup!H120*Setup!K120,Setup!H120),Setup!H120) -> 1 | AO120: 0 | AP120: =IF(AO120=1,INDEX('Needs and Priorities'!$D$49:$D$96,MATCH(Setup!D120,'Needs and Priorities'!$B$49:$B$96,0)),0) -> 0 | AQ120: =IFERROR(INDEX('Stakeholders Survey'!$K$24:$K$159,MATCH(D120&E120,'Stakeholders Survey'!$M$24:$M$159,0)),0) -> 0
A121: 90 | B121: =Setup!AG121 ->  | C121: =Setup!AH121 -> Our Occupiers are more satisfied | D121: =IF(ISBLANK(LISTS!D94),"",LISTS!D94) ->  | E121: =IF(ISBLANK(LISTS!E94),"",LISTS!E94) -> RE35 | F121: =IF(ISBLANK(LISTS!L94),"",LISTS!L94) -> Occupier satisfaction score (NPS) | G121: ✓ | H121: =IF(ISBLANK(LISTS!N94),"",LISTS!N94) -> Record only | I121: =IF(ISBLANK(LISTS!O94),"",LISTS!O94) -> No. | J121: - | K121: - | L121: - | P121: =Setup!G121="✓" -> TRUE | Q121: =IF(NOT(ISBLANK(LISTS!F94)),1,0) -> 0 | R121: =IF(NOT(ISBLANK(LISTS!G94)),1,0) -> 0 | S121: =IF(NOT(ISBLANK(LISTS!H94)),1,0) -> 0 | T121: =IF(NOT(ISBLANK(LISTS!I94)),1,0) -> 0 | U121: =IF(NOT(ISBLANK(LISTS!J94)),1,0) -> 1 | V121: =IF(LISTS!K94="y",1,0) -> 0 | W121: TRUE | X121: TRUE | Y121: ✓ | Z121: TRUE | AA121: =IF(LISTS!B94=0,AA120,LISTS!B94) -> Social: Healthier, Safer and more Resilient Communities | AB121: =IF(LISTS!C94=0,AB120,LISTS!C94) -> Our Occupiers are more satisfied | AC121: Social: Healthier, Safer and more Resilient Communities | AD121: Our Occupiers are more satisfied | AE121: =IF(AND($X121,MATCH(AC121,AC$36:AC$185,0)=Setup!$A121-4),AA121,"") ->  | AF121: =IF(AND($X121,MATCH(AD121,AD$36:AD$185,0)=Setup!$A121-4),AB121,"") -> Our Occupiers are more satisfied | AG121: =IF(AND($X121,MATCH(AC121,AC$32:AC$185,0)=Setup!$A121),AA121,"") ->  | AH121: =IF(AND($X121,MATCH(AD121,AD$32:AD$185,0)=Setup!$A121),AB121,"") -> Our Occupiers are more satisfied | AI121: 86 | AJ121: 86 | AK121: 90 | AL121: 90 | AM121: =IF(AND(NOT(ISBLANK(Setup!J121)),OR(ISNUMBER(Setup!K121),K121="Enter localised proxy in calculator")),Setup!J121,Setup!I121) -> No. | AN121: =IF(ISNUMBER(Setup!H121),IF(AND(NOT(ISBLANK(Setup!J121)),ISNUMBER(Setup!K121)),Setup!H121*Setup!K121,Setup!H121),Setup!H121) -> Record only | AO121: 0 | AP121: =IF(AO121=1,INDEX('Needs and Priorities'!$D$49:$D$96,MATCH(Setup!D121,'Needs and Priorities'!$B$49:$B$96,0)),0) -> 0 | AQ121: =IFERROR(INDEX('Stakeholders Survey'!$K$24:$K$159,MATCH(D121&E121,'Stakeholders Survey'!$M$24:$M$159,0)),0) -> 0
A122: 91 | B122: =Setup!AG122 ->  | C122: =Setup!AH122 ->  | D122: =IF(ISBLANK(LISTS!D95),"",LISTS!D95) ->  | E122: =IF(ISBLANK(LISTS!E95),"",LISTS!E95) -> RE36 | F122: =IF(ISBLANK(LISTS!L95),"",LISTS!L95) -> A Post Occupancy Evaluation has been carried out | G122: ✓ | H122: =IF(ISBLANK(LISTS!N95),"",LISTS!N95) -> Record only | I122: =IF(ISBLANK(LISTS!O95),"",LISTS!O95) -> Record Only Yes/No | J122: - | K122: - | L122: - | P122: =Setup!G122="✓" -> TRUE | Q122: =IF(NOT(ISBLANK(LISTS!F95)),1,0) -> 0 | R122: =IF(NOT(ISBLANK(LISTS!G95)),1,0) -> 0 | S122: =IF(NOT(ISBLANK(LISTS!H95)),1,0) -> 0 | T122: =IF(NOT(ISBLANK(LISTS!I95)),1,0) -> 0 | U122: =IF(NOT(ISBLANK(LISTS!J95)),1,0) -> 1 | V122: =IF(LISTS!K95="y",1,0) -> 0 | W122: TRUE | X122: TRUE | Y122: ✓ | Z122: TRUE | AA122: =IF(LISTS!B95=0,AA121,LISTS!B95) -> Social: Healthier, Safer and more Resilient Communities | AB122: =IF(LISTS!C95=0,AB121,LISTS!C95) -> Our Occupiers are more satisfied | AC122: Social: Healthier, Safer and more Resilient Communities | AD122: Our Occupiers are more satisfied | AE122: =IF(AND($X122,MATCH(AC122,AC$36:AC$185,0)=Setup!$A122-4),AA122,"") ->  | AF122: =IF(AND($X122,MATCH(AD122,AD$36:AD$185,0)=Setup!$A122-4),AB122,"") ->  | AG122: =IF(AND($X122,MATCH(AC122,AC$32:AC$185,0)=Setup!$A122),AA122,"") ->  | AH122: =IF(AND($X122,MATCH(AD122,AD$32:AD$185,0)=Setup!$A122),AB122,"") ->  | AI122: 87 | AJ122: 87 | AK122: 91 | AL122: 91 | AM122: =IF(AND(NOT(ISBLANK(Setup!J122)),OR(ISNUMBER(Setup!K122),K122="Enter localised proxy in calculator")),Setup!J122,Setup!I122) -> Record Only Yes/No | AN122: =IF(ISNUMBER(Setup!H122),IF(AND(NOT(ISBLANK(Setup!J122)),ISNUMBER(Setup!K122)),Setup!H122*Setup!K122,Setup!H122),Setup!H122) -> Record only | AO122: 0 | AP122: =IF(AO122=1,INDEX('Needs and Priorities'!$D$49:$D$96,MATCH(Setup!D122,'Needs and Priorities'!$B$49:$B$96,0)),0) -> 0 | AQ122: =IFERROR(INDEX('Stakeholders Survey'!$K$24:$K$159,MATCH(D122&E122,'Stakeholders Survey'!$M$24:$M$159,0)),0) -> 0
A123: 92 | B123: =Setup!AG123 -> Environment: Decarbonising and Safeguarding our World | C123: =Setup!AH123 -> COVID-19 environmental response | D123: =IF(ISBLANK(LISTS!D96),"",LISTS!D96) -> C19-18 | E123: =IF(ISBLANK(LISTS!E96),"",LISTS!E96) ->  | F123: =IF(ISBLANK(LISTS!L96),"",LISTS!L96) -> Initiatives to provide or support appropriate collection for discarded gloves and masks | G123: ✓ | H123: =IF(ISBLANK(LISTS!N96),"",LISTS!N96) -> 1 | I123: =IF(ISBLANK(LISTS!O96),"",LISTS!O96) -> £ spent - including staff time (please describe the initiatives) | L123: =IF(ISNUMBER(H123),IF(NOT(ISBLANK(J123)),IF(NOT(ISNUMBER(K123)),"Please enter a valid conversion factor","£"&ROUND(H123*K123,2)&"/"&IF(RIGHT(J123,1)="s",LEFT(J123,LEN(J123)-1),J123)),""),"n/a") ->  | M123: high | P123: =Setup!G123="✓" -> TRUE | Q123: =IF(NOT(ISBLANK(LISTS!F96)),1,0) -> 0 | R123: =IF(NOT(ISBLANK(LISTS!G96)),1,0) -> 0 | S123: =IF(NOT(ISBLANK(LISTS!H96)),1,0) -> 1 | T123: =IF(NOT(ISBLANK(LISTS!I96)),1,0) -> 0 | U123: =IF(NOT(ISBLANK(LISTS!J96)),1,0) -> 0 | V123: =IF(LISTS!K96="y",1,0) -> 0 | W123: TRUE | X123: TRUE | Y123: ✓ | Z123: TRUE | AA123: =IF(LISTS!B96=0,AA122,LISTS!B96) -> Environment: Decarbonising and Safeguarding our World | AB123: =IF(LISTS!C96=0,AB122,LISTS!C96) -> COVID-19 environmental response | AC123: Environment: Decarbonising and Safeguarding our World | AD123: COVID-19 environmental response | AE123: =IF(AND($X123,MATCH(AC123,AC$36:AC$185,0)=Setup!$A123-4),AA123,"") -> Environment: Decarbonising and Safeguarding our World | AF123: =IF(AND($X123,MATCH(AD123,AD$36:AD$185,0)=Setup!$A123-4),AB123,"") -> COVID-19 environmental response | AG123: =IF(AND($X123,MATCH(AC123,AC$32:AC$185,0)=Setup!$A123),AA123,"") -> Environment: Decarbonising and Safeguarding our World | AH123: =IF(AND($X123,MATCH(AD123,AD$32:AD$185,0)=Setup!$A123),AB123,"") -> COVID-19 environmental response | AI123: 88 | AJ123: 88 | AK123: 92 | AL123: 92 | AM123: =IF(AND(NOT(ISBLANK(Setup!J123)),OR(ISNUMBER(Setup!K123),K123="Enter localised proxy in calculator")),Setup!J123,Setup!I123) -> £ spent - including staff time (please describe the initiatives) | AN123: =IF(ISNUMBER(Setup!H123),IF(AND(NOT(ISBLANK(Setup!J123)),ISNUMBER(Setup!K123)),Setup!H123*Setup!K123,Setup!H123),Setup!H123) -> 1 | AO123: 0 | AP123: =IF(AO123=1,INDEX('Needs and Priorities'!$D$49:$D$96,MATCH(Setup!D123,'Needs and Priorities'!$B$49:$B$96,0)),0) -> 0 | AQ123: =IFERROR(INDEX('Stakeholders Survey'!$K$24:$K$159,MATCH(D123&E123,'Stakeholders Survey'!$M$24:$M$159,0)),0) -> 0
A124: 93 | B124: =Setup!AG124 ->  | C124: =Setup!AH124 -> Carbon emissions are reduced | D124: =IF(ISBLANK(LISTS!D97),"",LISTS!D97) -> NT31 | E124: =IF(ISBLANK(LISTS!E97),"",LISTS!E97) ->  | F124: =IF(ISBLANK(LISTS!L97),"",LISTS!L97) -> Savings in CO2 emissions on contract achieved through de-carbonisation (specify how these are to be achieved) | G124: ✓ | H124: =IF(ISBLANK(LISTS!N97),"",LISTS!N97) -> 69.35 | I124: =IF(ISBLANK(LISTS!O97),"",LISTS!O97) -> Tonnes CO2e | L124: =IF(ISNUMBER(H124),IF(NOT(ISBLANK(J124)),IF(NOT(ISNUMBER(K124)),"Please enter a valid conversion factor","£"&ROUND(H124*K124,2)&"/"&IF(RIGHT(J124,1)="s",LEFT(J124,LEN(J124)-1),J124)),""),"n/a") ->  | P124: =Setup!G124="✓" -> TRUE | Q124: =IF(NOT(ISBLANK(LISTS!F97)),1,0) -> 1 | R124: =IF(NOT(ISBLANK(LISTS!G97)),1,0) -> 0 | S124: =IF(NOT(ISBLANK(LISTS!H97)),1,0) -> 0 | T124: =IF(NOT(ISBLANK(LISTS!I97)),1,0) -> 0 | U124: =IF(NOT(ISBLANK(LISTS!J97)),1,0) -> 0 | V124: =IF(LISTS!K97="y",1,0) -> 0 | W124: TRUE | X124: TRUE | Y124: ✓ | Z124: TRUE | AA124: =IF(LISTS!B97=0,AA123,LISTS!B97) -> Environment: Decarbonising and Safeguarding our World | AB124: =IF(LISTS!C97=0,AB123,LISTS!C97) -> Carbon emissions are reduced | AC124: Environment: Decarbonising and Safeguarding our World | AD124: Carbon emissions are reduced | AE124: =IF(AND($X124,MATCH(AC124,AC$36:AC$185,0)=Setup!$A124-4),AA124,"") ->  | AF124: =IF(AND($X124,MATCH(AD124,AD$36:AD$185,0)=Setup!$A124-4),AB124,"") -> Carbon emissions are reduced | AG124: =IF(AND($X124,MATCH(AC124,AC$32:AC$185,0)=Setup!$A124),AA124,"") ->  | AH124: =IF(AND($X124,MATCH(AD124,AD$32:AD$185,0)=Setup!$A124),AB124,"") -> Carbon emissions are reduced | AI124: 89 | AJ124: 89 | AK124: 93 | AL124: 93 | AM124: =IF(AND(NOT(ISBLANK(Setup!J124)),OR(ISNUMBER(Setup!K124),K124="Enter localised proxy in calculator")),Setup!J124,Setup!I124) -> Tonnes CO2e | AN124: =IF(ISNUMBER(Setup!H124),IF(AND(NOT(ISBLANK(Setup!J124)),ISNUMBER(Setup!K124)),Setup!H124*Setup!K124,Setup!H124),Setup!H124) -> 69.35 | AO124: 1 | AP124: =IF(AO124=1,INDEX('Needs and Priorities'!$D$49:$D$96,MATCH(Setup!D124,'Needs and Priorities'!$B$49:$B$96,0)),0) -> 0 | AQ124: =IFERROR(INDEX('Stakeholders Survey'!$K$24:$K$159,MATCH(D124&E124,'Stakeholders Survey'!$M$24:$M$159,0)),0) -> 0
A125: 94 | B125: =Setup!AG125 ->  | C125: =Setup!AH125 ->  | D125: =IF(ISBLANK(LISTS!D98),"",LISTS!D98) -> NT44 | E125: =IF(ISBLANK(LISTS!E98),"",LISTS!E98) ->  | F125: =IF(ISBLANK(LISTS!L98),"",LISTS!L98) -> Policy and programme to achieve net zero carbon by 2030 including monitoring plan with specific milestones (issued or to be issued by the end of 2020) | G125: ✓ | H125: =IF(ISBLANK(LISTS!N98),"",LISTS!N98) -> Record only | I125: =IF(ISBLANK(LISTS!O98),"",LISTS!O98) -> Y/N - Provide relevant documents | J125: - | K125: - | L125: - | P125: =Setup!G125="✓" -> TRUE | Q125: =IF(NOT(ISBLANK(LISTS!F98)),1,0) -> 1 | R125: =IF(NOT(ISBLANK(LISTS!G98)),1,0) -> 0 | S125: =IF(NOT(ISBLANK(LISTS!H98)),1,0) -> 0 | T125: =IF(NOT(ISBLANK(LISTS!I98)),1,0) -> 0 | U125: =IF(NOT(ISBLANK(LISTS!J98)),1,0) -> 0 | V125: =IF(LISTS!K98="y",1,0) -> 0 | W125: TRUE | X125: TRUE | Y125: ✓ | Z125: TRUE | AA125: =IF(LISTS!B98=0,AA124,LISTS!B98) -> Environment: Decarbonising and Safeguarding our World | AB125: =IF(LISTS!C98=0,AB124,LISTS!C98) -> Carbon emissions are reduced | AC125: Environment: Decarbonising and Safeguarding our World | AD125: Carbon emissions are reduced | AE125: =IF(AND($X125,MATCH(AC125,AC$36:AC$185,0)=Setup!$A125-4),AA125,"") ->  | AF125: =IF(AND($X125,MATCH(AD125,AD$36:AD$185,0)=Setup!$A125-4),AB125,"") ->  | AG125: =IF(AND($X125,MATCH(AC125,AC$32:AC$185,0)=Setup!$A125),AA125,"") ->  | AH125: =IF(AND($X125,MATCH(AD125,AD$32:AD$185,0)=Setup!$A125),AB125,"") ->  | AI125: 90 | AJ125: 90 | AK125: 94 | AL125: 94 | AM125: =IF(AND(NOT(ISBLANK(Setup!J125)),OR(ISNUMBER(Setup!K125),K125="Enter localised proxy in calculator")),Setup!J125,Setup!I125) -> Y/N - Provide relevant documents | AN125: =IF(ISNUMBER(Setup!H125),IF(AND(NOT(ISBLANK(Setup!J125)),ISNUMBER(Setup!K125)),Setup!H125*Setup!K125,Setup!H125),Setup!H125) -> Record only | AO125: 1 | AP125: =IF(AO125=1,INDEX('Needs and Priorities'!$D$49:$D$96,MATCH(Setup!D125,'Needs and Priorities'!$B$49:$B$96,0)),0) -> 0 | AQ125: =IFERROR(INDEX('Stakeholders Survey'!$K$24:$K$159,MATCH(D125&E125,'Stakeholders Survey'!$M$24:$M$159,0)),0) -> 0
A126: 95 | B126: =Setup!AG126 ->  | C126: =Setup!AH126 ->  | D126: =IF(ISBLANK(LISTS!D99),"",LISTS!D99) -> NT64 | E126: =IF(ISBLANK(LISTS!E99),"",LISTS!E99) ->  | F126: =IF(ISBLANK(LISTS!L99),"",LISTS!L99) -> Contribution made on the contract to own carbon offset fund (when it has been demonstrated said carbon cannot emission cannot be reduced within the contract's timeframe) | G126: ✓ | H126: =IF(ISBLANK(LISTS!N99),"",LISTS!N99) -> 1 | I126: =IF(ISBLANK(LISTS!O99),"",LISTS!O99) -> £ | L126: =IF(ISNUMBER(H126),IF(NOT(ISBLANK(J126)),IF(NOT(ISNUMBER(K126)),"Please enter a valid conversion factor","£"&ROUND(H126*K126,2)&"/"&IF(RIGHT(J126,1)="s",LEFT(J126,LEN(J126)-1),J126)),""),"n/a") ->  | P126: =Setup!G126="✓" -> TRUE | Q126: =IF(NOT(ISBLANK(LISTS!F99)),1,0) -> 0 | R126: =IF(NOT(ISBLANK(LISTS!G99)),1,0) -> 1 | S126: =IF(NOT(ISBLANK(LISTS!H99)),1,0) -> 0 | T126: =IF(NOT(ISBLANK(LISTS!I99)),1,0) -> 0 | U126: =IF(NOT(ISBLANK(LISTS!J99)),1,0) -> 0 | V126: =IF(LISTS!K99="y",1,0) -> 0 | W126: TRUE | X126: TRUE | Y126: ✓ | Z126: TRUE | AA126: =IF(LISTS!B99=0,AA125,LISTS!B99) -> Environment: Decarbonising and Safeguarding our World | AB126: =IF(LISTS!C99=0,AB125,LISTS!C99) -> Carbon emissions are reduced | AC126: Environment: Decarbonising and Safeguarding our World | AD126: Carbon emissions are reduced | AE126: =IF(AND($X126,MATCH(AC126,AC$36:AC$185,0)=Setup!$A126-4),AA126,"") ->  | AF126: =IF(AND($X126,MATCH(AD126,AD$36:AD$185,0)=Setup!$A126-4),AB126,"") ->  | AG126: =IF(AND($X126,MATCH(AC126,AC$32:AC$185,0)=Setup!$A126),AA126,"") ->  | AH126: =IF(AND($X126,MATCH(AD126,AD$32:AD$185,0)=Setup!$A126),AB126,"") ->  | AI126: 91 | AJ126: 91 | AK126: 95 | AL126: 95 | AM126: =IF(AND(NOT(ISBLANK(Setup!J126)),OR(ISNUMBER(Setup!K126),K126="Enter localised proxy in calculator")),Setup!J126,Setup!I126) -> £ | AN126: =IF(ISNUMBER(Setup!H126),IF(AND(NOT(ISBLANK(Setup!J126)),ISNUMBER(Setup!K126)),Setup!H126*Setup!K126,Setup!H126),Setup!H126) -> 1 | AO126: 0 | AP126: =IF(AO126=1,INDEX('Needs and Priorities'!$D$49:$D$96,MATCH(Setup!D126,'Needs and Priorities'!$B$49:$B$96,0)),0) -> 0 | AQ126: =IFERROR(INDEX('Stakeholders Survey'!$K$24:$K$159,MATCH(D126&E126,'Stakeholders Survey'!$M$24:$M$159,0)),0) -> 0
A127: 96 | B127: =Setup!AG127 ->  | C127: =Setup!AH127 ->  | D127: =IF(ISBLANK(LISTS!D100),"",LISTS!D100) ->  | E127: =IF(ISBLANK(LISTS!E100),"",LISTS!E100) -> RE39 | F127: =IF(ISBLANK(LISTS!L100),"",LISTS!L100) -> Carbon savings from energy efficiency measures on site (e.g. increased use of renewables) | G127: ✓ | H127: =IF(ISBLANK(LISTS!N100),"",LISTS!N100) -> 69.35 | I127: =IF(ISBLANK(LISTS!O100),"",LISTS!O100) -> Tonnes CO2e | L127: =IF(ISNUMBER(H127),IF(NOT(ISBLANK(J127)),IF(NOT(ISNUMBER(K127)),"Please enter a valid conversion factor","£"&ROUND(H127*K127,2)&"/"&IF(RIGHT(J127,1)="s",LEFT(J127,LEN(J127)-1),J127)),""),"n/a") ->  | P127: =Setup!G127="✓" -> TRUE | Q127: =IF(NOT(ISBLANK(LISTS!F100)),1,0) -> 0 | R127: =IF(NOT(ISBLANK(LISTS!G100)),1,0) -> 0 | S127: =IF(NOT(ISBLANK(LISTS!H100)),1,0) -> 0 | T127: =IF(NOT(ISBLANK(LISTS!I100)),1,0) -> 1 | U127: =IF(NOT(ISBLANK(LISTS!J100)),1,0) -> 0 | V127: =IF(LISTS!K100="y",1,0) -> 0 | W127: TRUE | X127: TRUE | Y127: ✓ | Z127: TRUE | AA127: =IF(LISTS!B100=0,AA126,LISTS!B100) -> Environment: Decarbonising and Safeguarding our World | AB127: =IF(LISTS!C100=0,AB126,LISTS!C100) -> Carbon emissions are reduced | AC127: Environment: Decarbonising and Safeguarding our World | AD127: Carbon emissions are reduced | AE127: =IF(AND($X127,MATCH(AC127,AC$36:AC$185,0)=Setup!$A127-4),AA127,"") ->  | AF127: =IF(AND($X127,MATCH(AD127,AD$36:AD$185,0)=Setup!$A127-4),AB127,"") ->  | AG127: =IF(AND($X127,MATCH(AC127,AC$32:AC$185,0)=Setup!$A127),AA127,"") ->  | AH127: =IF(AND($X127,MATCH(AD127,AD$32:AD$185,0)=Setup!$A127),AB127,"") ->  | AI127: 92 | AJ127: 92 | AK127: 96 | AL127: 96 | AM127: =IF(AND(NOT(ISBLANK(Setup!J127)),OR(ISNUMBER(Setup!K127),K127="Enter localised proxy in calculator")),Setup!J127,Setup!I127) -> Tonnes CO2e | AN127: =IF(ISNUMBER(Setup!H127),IF(AND(NOT(ISBLANK(Setup!J127)),ISNUMBER(Setup!K127)),Setup!H127*Setup!K127,Setup!H127),Setup!H127) -> 69.35 | AO127: 0 | AP127: =IF(AO127=1,INDEX('Needs and Priorities'!$D$49:$D$96,MATCH(Setup!D127,'Needs and Priorities'!$B$49:$B$96,0)),0) -> 0 | AQ127: =IFERROR(INDEX('Stakeholders Survey'!$K$24:$K$159,MATCH(D127&E127,'Stakeholders Survey'!$M$24:$M$159,0)),0) -> 0
A128: 97 | B128: =Setup!AG128 ->  | C128: =Setup!AH128 ->  | D128: =IF(ISBLANK(LISTS!D101),"",LISTS!D101) ->  | E128: =IF(ISBLANK(LISTS!E101),"",LISTS!E101) -> RE40 | F128: =IF(ISBLANK(LISTS!L101),"",LISTS!L101) -> Embodied Carbon reductions in CO2e emissions against baseline | G128: ✓ | H128: =IF(ISBLANK(LISTS!N101),"",LISTS!N101) -> 69.35 | I128: =IF(ISBLANK(LISTS!O101),"",LISTS!O101) -> Tonnes CO2e | L128: =IF(ISNUMBER(H128),IF(NOT(ISBLANK(J128)),IF(NOT(ISNUMBER(K128)),"Please enter a valid conversion factor","£"&ROUND(H128*K128,2)&"/"&IF(RIGHT(J128,1)="s",LEFT(J128,LEN(J128)-1),J128)),""),"n/a") ->  | P128: =Setup!G128="✓" -> TRUE | Q128: =IF(NOT(ISBLANK(LISTS!F101)),1,0) -> 0 | R128: =IF(NOT(ISBLANK(LISTS!G101)),1,0) -> 0 | S128: =IF(NOT(ISBLANK(LISTS!H101)),1,0) -> 0 | T128: =IF(NOT(ISBLANK(LISTS!I101)),1,0) -> 1 | U128: =IF(NOT(ISBLANK(LISTS!J101)),1,0) -> 0 | V128: =IF(LISTS!K101="y",1,0) -> 0 | W128: =IF($P128<>$X128,$P128,OR(IncNTCore*$Q128,IncNTAdd*$R128,IncCOVID*$S128,IncRE*T128,IncREAdd*U128,IncStAdd*$V128)) -> TRUE | X128: TRUE | Y128: ✓ | Z128: TRUE | AA128: =IF(LISTS!B101=0,AA127,LISTS!B101) -> Environment: Decarbonising and Safeguarding our World | AB128: =IF(LISTS!C101=0,AB127,LISTS!C101) -> Carbon emissions are reduced | AC128: Environment: Decarbonising and Safeguarding our World | AD128: Carbon emissions are reduced | AE128: =IF(AND($X128,MATCH(AC128,AC$36:AC$185,0)=Setup!$A128-4),AA128,"") ->  | AF128: =IF(AND($X128,MATCH(AD128,AD$36:AD$185,0)=Setup!$A128-4),AB128,"") ->  | AG128: =IF(AND($X128,MATCH(AC128,AC$32:AC$185,0)=Setup!$A128),AA128,"") ->  | AH128: =IF(AND($X128,MATCH(AD128,AD$32:AD$185,0)=Setup!$A128),AB128,"") ->  | AI128: 93 | AJ128: 93 | AK128: 97 | AL128: 97 | AM128: =IF(AND(NOT(ISBLANK(Setup!J128)),OR(ISNUMBER(Setup!K128),K128="Enter localised proxy in calculator")),Setup!J128,Setup!I128) -> Tonnes CO2e | AN128: =IF(ISNUMBER(Setup!H128),IF(AND(NOT(ISBLANK(Setup!J128)),ISNUMBER(Setup!K128)),Setup!H128*Setup!K128,Setup!H128),Setup!H128) -> 69.35 | AO128: 0 | AP128: =IF(AO128=1,INDEX('Needs and Priorities'!$D$49:$D$96,MATCH(Setup!D128,'Needs and Priorities'!$B$49:$B$96,0)),0) -> 0 | AQ128: =IFERROR(INDEX('Stakeholders Survey'!$K$24:$K$159,MATCH(D128&E128,'Stakeholders Survey'!$M$24:$M$159,0)),0) -> 0
A129: 98 | B129: =Setup!AG129 ->  | C129: =Setup!AH129 ->  | D129: =IF(ISBLANK(LISTS!D102),"",LISTS!D102) ->  | E129: =IF(ISBLANK(LISTS!E102),"",LISTS!E102) -> RE61 | F129: =IF(ISBLANK(LISTS!L102),"",LISTS!L102) -> Offset embodied carbon emissions from construction material | G129: ✓ | H129: =IF(ISBLANK(LISTS!N102),"",LISTS!N102) -> 69.35 | I129: =IF(ISBLANK(LISTS!O102),"",LISTS!O102) -> Tonnes CO2e | L129: =IF(ISNUMBER(H129),IF(NOT(ISBLANK(J129)),IF(NOT(ISNUMBER(K129)),"Please enter a valid conversion factor","£"&ROUND(H129*K129,2)&"/"&IF(RIGHT(J129,1)="s",LEFT(J129,LEN(J129)-1),J129)),""),"n/a") ->  | P129: =Setup!G129="✓" -> TRUE | Q129: =IF(NOT(ISBLANK(LISTS!F102)),1,0) -> 0 | R129: =IF(NOT(ISBLANK(LISTS!G102)),1,0) -> 0 | S129: =IF(NOT(ISBLANK(LISTS!H102)),1,0) -> 0 | T129: =IF(NOT(ISBLANK(LISTS!I102)),1,0) -> 1 | U129: =IF(NOT(ISBLANK(LISTS!J102)),1,0) -> 0 | V129: =IF(LISTS!K102="y",1,0) -> 0 | W129: TRUE | X129: TRUE | Y129: ✓ | Z129: TRUE | AA129: =IF(LISTS!B102=0,AA128,LISTS!B102) -> Environment: Decarbonising and Safeguarding our World | AB129: =IF(LISTS!C102=0,AB128,LISTS!C102) -> Carbon emissions are reduced | AC129: Environment: Decarbonising and Safeguarding our World | AD129: Carbon emissions are reduced | AE129: =IF(AND($X129,MATCH(AC129,AC$36:AC$185,0)=Setup!$A129-4),AA129,"") ->  | AF129: =IF(AND($X129,MATCH(AD129,AD$36:AD$185,0)=Setup!$A129-4),AB129,"") ->  | AG129: =IF(AND($X129,MATCH(AC129,AC$32:AC$185,0)=Setup!$A129),AA129,"") ->  | AH129: =IF(AND($X129,MATCH(AD129,AD$32:AD$185,0)=Setup!$A129),AB129,"") ->  | AI129: 94 | AJ129: 94 | AK129: 98 | AL129: 98 | AM129: =IF(AND(NOT(ISBLANK(Setup!J129)),OR(ISNUMBER(Setup!K129),K129="Enter localised proxy in calculator")),Setup!J129,Setup!I129) -> Tonnes CO2e | AN129: =IF(ISNUMBER(Setup!H129),IF(AND(NOT(ISBLANK(Setup!J129)),ISNUMBER(Setup!K129)),Setup!H129*Setup!K129,Setup!H129),Setup!H129) -> 69.35 | AO129: 0 | AP129: =IF(AO129=1,INDEX('Needs and Priorities'!$D$49:$D$96,MATCH(Setup!D129,'Needs and Priorities'!$B$49:$B$96,0)),0) -> 0 | AQ129: =IFERROR(INDEX('Stakeholders Survey'!$K$24:$K$159,MATCH(D129&E129,'Stakeholders Survey'!$M$24:$M$159,0)),0) -> 0
A130: 99 | B130: =Setup!AG130 ->  | C130: =Setup!AH130 ->  | D130: =IF(ISBLANK(LISTS!D103),"",LISTS!D103) ->  | E130: =IF(ISBLANK(LISTS!E103),"",LISTS!E103) -> RE62 | F130: =IF(ISBLANK(LISTS!L103),"",LISTS!L103) -> Carbon offset fund payments against new developments (payments into external carbon offset funds e.g. through S106) | G130: ✓ | H130: =IF(ISBLANK(LISTS!N103),"",LISTS!N103) -> 1 | I130: =IF(ISBLANK(LISTS!O103),"",LISTS!O103) -> £ | L130: =IF(ISNUMBER(H130),IF(NOT(ISBLANK(J130)),IF(NOT(ISNUMBER(K130)),"Please enter a valid conversion factor","£"&ROUND(H130*K130,2)&"/"&IF(RIGHT(J130,1)="s",LEFT(J130,LEN(J130)-1),J130)),""),"n/a") ->  | P130: =Setup!G130="✓" -> TRUE | Q130: =IF(NOT(ISBLANK(LISTS!F103)),1,0) -> 0 | R130: =IF(NOT(ISBLANK(LISTS!G103)),1,0) -> 0 | S130: =IF(NOT(ISBLANK(LISTS!H103)),1,0) -> 0 | T130: =IF(NOT(ISBLANK(LISTS!I103)),1,0) -> 1 | U130: =IF(NOT(ISBLANK(LISTS!J103)),1,0) -> 0 | V130: =IF(LISTS!K103="y",1,0) -> 0 | W130: TRUE | X130: TRUE | Y130: ✓ | Z130: TRUE | AA130: =IF(LISTS!B103=0,AA129,LISTS!B103) -> Environment: Decarbonising and Safeguarding our World | AB130: =IF(LISTS!C103=0,AB129,LISTS!C103) -> Carbon emissions are reduced | AC130: Environment: Decarbonising and Safeguarding our World | AD130: Carbon emissions are reduced | AE130: =IF(AND($X130,MATCH(AC130,AC$36:AC$185,0)=Setup!$A130-4),AA130,"") ->  | AF130: =IF(AND($X130,MATCH(AD130,AD$36:AD$185,0)=Setup!$A130-4),AB130,"") ->  | AG130: =IF(AND($X130,MATCH(AC130,AC$32:AC$185,0)=Setup!$A130),AA130,"") ->  | AH130: =IF(AND($X130,MATCH(AD130,AD$32:AD$185,0)=Setup!$A130),AB130,"") ->  | AI130: 95 | AJ130: 95 | AK130: 99 | AL130: 99 | AM130: =IF(AND(NOT(ISBLANK(Setup!J130)),OR(ISNUMBER(Setup!K130),K130="Enter localised proxy in calculator")),Setup!J130,Setup!I130) -> £ | AN130: =IF(ISNUMBER(Setup!H130),IF(AND(NOT(ISBLANK(Setup!J130)),ISNUMBER(Setup!K130)),Setup!H130*Setup!K130,Setup!H130),Setup!H130) -> 1 | AO130: 0 | AP130: =IF(AO130=1,INDEX('Needs and Priorities'!$D$49:$D$96,MATCH(Setup!D130,'Needs and Priorities'!$B$49:$B$96,0)),0) -> 0 | AQ130: =IFERROR(INDEX('Stakeholders Survey'!$K$24:$K$159,MATCH(D130&E130,'Stakeholders Survey'!$M$24:$M$159,0)),0) -> 0
A131: 100 | B131: =Setup!AG131 ->  | C131: =Setup!AH131 ->  | D131: =IF(ISBLANK(LISTS!D104),"",LISTS!D104) -> NT45 | E131: =IF(ISBLANK(LISTS!E104),"",LISTS!E104) ->  | F131: =IF(ISBLANK(LISTS!L104),"",LISTS!L104) -> Carbon Certification (Carbon Trust Standard, Planet Mark or equivalent independently verified) - achieved or to achieve for current year | G131: ✓ | H131: =IF(ISBLANK(LISTS!N104),"",LISTS!N104) -> Record only | I131: =IF(ISBLANK(LISTS!O104),"",LISTS!O104) -> Y/N - Provide documents | J131: - | K131: - | L131: - | P131: =Setup!G131="✓" -> TRUE | Q131: =IF(NOT(ISBLANK(LISTS!F104)),1,0) -> 1 | R131: =IF(NOT(ISBLANK(LISTS!G104)),1,0) -> 0 | S131: =IF(NOT(ISBLANK(LISTS!H104)),1,0) -> 0 | T131: =IF(NOT(ISBLANK(LISTS!I104)),1,0) -> 0 | U131: =IF(NOT(ISBLANK(LISTS!J104)),1,0) -> 0 | V131: =IF(LISTS!K104="y",1,0) -> 0 | W131: TRUE | X131: TRUE | Y131: ✓ | Z131: TRUE | AA131: =IF(LISTS!B104=0,AA130,LISTS!B104) -> Environment: Decarbonising and Safeguarding our World | AB131: =IF(LISTS!C104=0,AB130,LISTS!C104) -> Carbon emissions are reduced | AC131: Environment: Decarbonising and Safeguarding our World | AD131: Carbon emissions are reduced | AE131: =IF(AND($X131,MATCH(AC131,AC$36:AC$185,0)=Setup!$A131-4),AA131,"") ->  | AF131: =IF(AND($X131,MATCH(AD131,AD$36:AD$185,0)=Setup!$A131-4),AB131,"") ->  | AG131: =IF(AND($X131,MATCH(AC131,AC$32:AC$185,0)=Setup!$A131),AA131,"") ->  | AH131: =IF(AND($X131,MATCH(AD131,AD$32:AD$185,0)=Setup!$A131),AB131,"") ->  | AI131: 96 | AJ131: 96 | AK131: 100 | AL131: 100 | AM131: =IF(AND(NOT(ISBLANK(Setup!J131)),OR(ISNUMBER(Setup!K131),K131="Enter localised proxy in calculator")),Setup!J131,Setup!I131) -> Y/N - Provide documents | AN131: =IF(ISNUMBER(Setup!H131),IF(AND(NOT(ISBLANK(Setup!J131)),ISNUMBER(Setup!K131)),Setup!H131*Setup!K131,Setup!H131),Setup!H131) -> Record only | AO131: 1 | AP131: =IF(AO131=1,INDEX('Needs and Priorities'!$D$49:$D$96,MATCH(Setup!D131,'Needs and Priorities'!$B$49:$B$96,0)),0) -> 0 | AQ131: =IFERROR(INDEX('Stakeholders Survey'!$K$24:$K$159,MATCH(D131&E131,'Stakeholders Survey'!$M$24:$M$159,0)),0) -> 0
A132: 101 | B132: =Setup!AG132 ->  | C132: =Setup!AH132 ->  | D132: =IF(ISBLANK(LISTS!D105),"",LISTS!D105) ->  | E132: =IF(ISBLANK(LISTS!E105),"",LISTS!E105) -> RE37 | F132: =IF(ISBLANK(LISTS!L105),"",LISTS!L105) -> Carbon reductions through energy efficiency measures or renewables - building operations - (e.g. REEB benchmark or 3 year baseline) | G132: ✓ | H132: =IF(ISBLANK(LISTS!N105),"",LISTS!N105) -> 69.35 | I132: =IF(ISBLANK(LISTS!O105),"",LISTS!O105) -> Tonnes CO2e | L132: =IF(ISNUMBER(H132),IF(NOT(ISBLANK(J132)),IF(NOT(ISNUMBER(K132)),"Please enter a valid conversion factor","£"&ROUND(H132*K132,2)&"/"&IF(RIGHT(J132,1)="s",LEFT(J132,LEN(J132)-1),J132)),""),"n/a") ->  | P132: =Setup!G132="✓" -> TRUE | Q132: =IF(NOT(ISBLANK(LISTS!F105)),1,0) -> 0 | R132: =IF(NOT(ISBLANK(LISTS!G105)),1,0) -> 0 | S132: =IF(NOT(ISBLANK(LISTS!H105)),1,0) -> 0 | T132: =IF(NOT(ISBLANK(LISTS!I105)),1,0) -> 0 | U132: =IF(NOT(ISBLANK(LISTS!J105)),1,0) -> 1 | V132: =IF(LISTS!K105="y",1,0) -> 0 | W132: TRUE | X132: TRUE | Y132: ✓ | Z132: TRUE | AA132: =IF(LISTS!B105=0,AA131,LISTS!B105) -> Environment: Decarbonising and Safeguarding our World | AB132: =IF(LISTS!C105=0,AB131,LISTS!C105) -> Carbon emissions are reduced | AC132: Environment: Decarbonising and Safeguarding our World | AD132: Carbon emissions are reduced | AE132: =IF(AND($X132,MATCH(AC132,AC$36:AC$185,0)=Setup!$A132-4),AA132,"") ->  | AF132: =IF(AND($X132,MATCH(AD132,AD$36:AD$185,0)=Setup!$A132-4),AB132,"") ->  | AG132: =IF(AND($X132,MATCH(AC132,AC$32:AC$185,0)=Setup!$A132),AA132,"") ->  | AH132: =IF(AND($X132,MATCH(AD132,AD$32:AD$185,0)=Setup!$A132),AB132,"") ->  | AI132: =IF(X132,1+AI131,AI131) -> 97 | AJ132: =IF($X132,AI132,-1) -> 97 | AK132: 101 | AL132: 101 | AM132: =IF(AND(NOT(ISBLANK(Setup!J132)),OR(ISNUMBER(Setup!K132),K132="Enter localised proxy in calculator")),Setup!J132,Setup!I132) -> Tonnes CO2e | AN132: =IF(ISNUMBER(Setup!H132),IF(AND(NOT(ISBLANK(Setup!J132)),ISNUMBER(Setup!K132)),Setup!H132*Setup!K132,Setup!H132),Setup!H132) -> 69.35 | AO132: 0 | AP132: =IF(AO132=1,INDEX('Needs and Priorities'!$D$49:$D$96,MATCH(Setup!D132,'Needs and Priorities'!$B$49:$B$96,0)),0) -> 0 | AQ132: =IFERROR(INDEX('Stakeholders Survey'!$K$24:$K$159,MATCH(D132&E132,'Stakeholders Survey'!$M$24:$M$159,0)),0) -> 0
A133: 102 | B133: =Setup!AG133 ->  | C133: =Setup!AH133 ->  | D133: =IF(ISBLANK(LISTS!D106),"",LISTS!D106) ->  | E133: =IF(ISBLANK(LISTS!E106),"",LISTS!E106) -> RE38 | F133: =IF(ISBLANK(LISTS!L106),"",LISTS!L106) -> Percentage of buildings meeting target (Building use less energy and are more energy efficient) | G133: ✓ | H133: =IF(ISBLANK(LISTS!N106),"",LISTS!N106) -> Record only | I133: =IF(ISBLANK(LISTS!O106),"",LISTS!O106) -> % | J133: - | K133: - | L133: - | P133: =Setup!G133="✓" -> TRUE | Q133: =IF(NOT(ISBLANK(LISTS!F106)),1,0) -> 0 | R133: =IF(NOT(ISBLANK(LISTS!G106)),1,0) -> 0 | S133: =IF(NOT(ISBLANK(LISTS!H106)),1,0) -> 0 | T133: =IF(NOT(ISBLANK(LISTS!I106)),1,0) -> 0 | U133: =IF(NOT(ISBLANK(LISTS!J106)),1,0) -> 1 | V133: =IF(LISTS!K106="y",1,0) -> 0 | W133: TRUE | X133: TRUE | Y133: ✓ | Z133: TRUE | AA133: =IF(LISTS!B106=0,AA132,LISTS!B106) -> Environment: Decarbonising and Safeguarding our World | AB133: =IF(LISTS!C106=0,AB132,LISTS!C106) -> Carbon emissions are reduced | AC133: Environment: Decarbonising and Safeguarding our World | AD133: Carbon emissions are reduced | AE133: =IF(AND($X133,MATCH(AC133,AC$36:AC$185,0)=Setup!$A133-4),AA133,"") ->  | AF133: =IF(AND($X133,MATCH(AD133,AD$36:AD$185,0)=Setup!$A133-4),AB133,"") ->  | AG133: =IF(AND($X133,MATCH(AC133,AC$32:AC$185,0)=Setup!$A133),AA133,"") ->  | AH133: =IF(AND($X133,MATCH(AD133,AD$32:AD$185,0)=Setup!$A133),AB133,"") ->  | AI133: 98 | AJ133: 98 | AK133: 102 | AL133: 102 | AM133: =IF(AND(NOT(ISBLANK(Setup!J133)),OR(ISNUMBER(Setup!K133),K133="Enter localised proxy in calculator")),Setup!J133,Setup!I133) -> % | AN133: =IF(ISNUMBER(Setup!H133),IF(AND(NOT(ISBLANK(Setup!J133)),ISNUMBER(Setup!K133)),Setup!H133*Setup!K133,Setup!H133),Setup!H133) -> Record only | AO133: 0 | AP133: =IF(AO133=1,INDEX('Needs and Priorities'!$D$49:$D$96,MATCH(Setup!D133,'Needs and Priorities'!$B$49:$B$96,0)),0) -> 0 | AQ133: =IFERROR(INDEX('Stakeholders Survey'!$K$24:$K$159,MATCH(D133&E133,'Stakeholders Survey'!$M$24:$M$159,0)),0) -> 0
A134: 103 | B134: =Setup!AG134 ->  | C134: =Setup!AH134 -> Air pollution is reduced | D134: =IF(ISBLANK(LISTS!D107),"",LISTS!D107) -> NT32 | E134: =IF(ISBLANK(LISTS!E107),"",LISTS!E107) -> RE46 | F134: =IF(ISBLANK(LISTS!L107),"",LISTS!L107) -> Car miles saved on the project as a result of a green transport programme or equivalent (e.g. cycle to work programmes, public transport or car pooling programmes, etc.) | G134: ✓ | H134: =IF(ISBLANK(LISTS!N107),"",LISTS!N107) -> 0.0262 | I134: =IF(ISBLANK(LISTS!O107),"",LISTS!O107) -> Miles saved | L134: =IF(ISNUMBER(H134),IF(NOT(ISBLANK(J134)),IF(NOT(ISNUMBER(K134)),"Please enter a valid conversion factor","£"&ROUND(H134*K134,2)&"/"&IF(RIGHT(J134,1)="s",LEFT(J134,LEN(J134)-1),J134)),""),"n/a") ->  | P134: =Setup!G134="✓" -> TRUE | Q134: =IF(NOT(ISBLANK(LISTS!F107)),1,0) -> 0 | R134: =IF(NOT(ISBLANK(LISTS!G107)),1,0) -> 1 | S134: =IF(NOT(ISBLANK(LISTS!H107)),1,0) -> 0 | T134: =IF(NOT(ISBLANK(LISTS!I107)),1,0) -> 0 | U134: =IF(NOT(ISBLANK(LISTS!J107)),1,0) -> 1 | V134: =IF(LISTS!K107="y",1,0) -> 0 | W134: TRUE | X134: TRUE | Y134: ✓ | Z134: TRUE | AA134: =IF(LISTS!B107=0,AA133,LISTS!B107) -> Environment: Decarbonising and Safeguarding our World | AB134: =IF(LISTS!C107=0,AB133,LISTS!C107) -> Air pollution is reduced | AC134: Environment: Decarbonising and Safeguarding our World | AD134: Air pollution is reduced | AE134: =IF(AND($X134,MATCH(AC134,AC$36:AC$185,0)=Setup!$A134-4),AA134,"") ->  | AF134: =IF(AND($X134,MATCH(AD134,AD$36:AD$185,0)=Setup!$A134-4),AB134,"") -> Air pollution is reduced | AG134: =IF(AND($X134,MATCH(AC134,AC$32:AC$185,0)=Setup!$A134),AA134,"") ->  | AH134: =IF(AND($X134,MATCH(AD134,AD$32:AD$185,0)=Setup!$A134),AB134,"") -> Air pollution is reduced | AI134: 99 | AJ134: 99 | AK134: 103 | AL134: 103 | AM134: =IF(AND(NOT(ISBLANK(Setup!J134)),OR(ISNUMBER(Setup!K134),K134="Enter localised proxy in calculator")),Setup!J134,Setup!I134) -> Miles saved | AN134: =IF(ISNUMBER(Setup!H134),IF(AND(NOT(ISBLANK(Setup!J134)),ISNUMBER(Setup!K134)),Setup!H134*Setup!K134,Setup!H134),Setup!H134) -> 0.0262 | AO134: 0 | AP134: =IF(AO134=1,INDEX('Needs and Priorities'!$D$49:$D$96,MATCH(Setup!D134,'Needs and Priorities'!$B$49:$B$96,0)),0) -> 0 | AQ134: =IFERROR(INDEX('Stakeholders Survey'!$K$24:$K$159,MATCH(D134&E134,'Stakeholders Survey'!$M$24:$M$159,0)),0) -> 0
A135: 104 | B135: =Setup!AG135 ->  | C135: =Setup!AH135 ->  | D135: =IF(ISBLANK(LISTS!D108),"",LISTS!D108) -> NT33 | E135: =IF(ISBLANK(LISTS!E108),"",LISTS!E108) -> RE47 | F135: =IF(ISBLANK(LISTS!L108),"",LISTS!L108) -> Car miles driven using low or no emission staff vehicles included on project as a result of a green transport programme | G135: ✓ | H135: =IF(ISBLANK(LISTS!N108),"",LISTS!N108) -> 0.01513 | I135: =IF(ISBLANK(LISTS!O108),"",LISTS!O108) -> Miles driven | L135: =IF(ISNUMBER(H135),IF(NOT(ISBLANK(J135)),IF(NOT(ISNUMBER(K135)),"Please enter a valid conversion factor","£"&ROUND(H135*K135,2)&"/"&IF(RIGHT(J135,1)="s",LEFT(J135,LEN(J135)-1),J135)),""),"n/a") ->  | P135: =Setup!G135="✓" -> TRUE | Q135: =IF(NOT(ISBLANK(LISTS!F108)),1,0) -> 0 | R135: =IF(NOT(ISBLANK(LISTS!G108)),1,0) -> 1 | S135: =IF(NOT(ISBLANK(LISTS!H108)),1,0) -> 0 | T135: =IF(NOT(ISBLANK(LISTS!I108)),1,0) -> 0 | U135: =IF(NOT(ISBLANK(LISTS!J108)),1,0) -> 1 | V135: =IF(LISTS!K108="y",1,0) -> 0 | W135: TRUE | X135: TRUE | Y135: ✓ | Z135: TRUE | AA135: =IF(LISTS!B108=0,AA134,LISTS!B108) -> Environment: Decarbonising and Safeguarding our World | AB135: =IF(LISTS!C108=0,AB134,LISTS!C108) -> Air pollution is reduced | AC135: Environment: Decarbonising and Safeguarding our World | AD135: Air pollution is reduced | AE135: =IF(AND($X135,MATCH(AC135,AC$36:AC$185,0)=Setup!$A135-4),AA135,"") ->  | AF135: =IF(AND($X135,MATCH(AD135,AD$36:AD$185,0)=Setup!$A135-4),AB135,"") ->  | AG135: =IF(AND($X135,MATCH(AC135,AC$32:AC$185,0)=Setup!$A135),AA135,"") ->  | AH135: =IF(AND($X135,MATCH(AD135,AD$32:AD$185,0)=Setup!$A135),AB135,"") ->  | AI135: 100 | AJ135: 100 | AK135: 104 | AL135: 104 | AM135: =IF(AND(NOT(ISBLANK(Setup!J135)),OR(ISNUMBER(Setup!K135),K135="Enter localised proxy in calculator")),Setup!J135,Setup!I135) -> Miles driven | AN135: =IF(ISNUMBER(Setup!H135),IF(AND(NOT(ISBLANK(Setup!J135)),ISNUMBER(Setup!K135)),Setup!H135*Setup!K135,Setup!H135),Setup!H135) -> 0.01513 | AO135: 0 | AP135: =IF(AO135=1,INDEX('Needs and Priorities'!$D$49:$D$96,MATCH(Setup!D135,'Needs and Priorities'!$B$49:$B$96,0)),0) -> 0 | AQ135: =IFERROR(INDEX('Stakeholders Survey'!$K$24:$K$159,MATCH(D135&E135,'Stakeholders Survey'!$M$24:$M$159,0)),0) -> 0
A136: 105 | B136: =Setup!AG136 ->  | C136: =Setup!AH136 ->  | D136: =IF(ISBLANK(LISTS!D109),"",LISTS!D109) -> NT46 | E136: =IF(ISBLANK(LISTS!E109),"",LISTS!E109) ->  | F136: =IF(ISBLANK(LISTS!L109),"",LISTS!L109) -> Corporate travel schemes available to employees on the contract (subsidised public transport, subsidised cycling schemes and storage, sustainable corporate transport such as electric bus from public station to corporate facilities) | G136: ✓ | H136: =IF(ISBLANK(LISTS!N109),"",LISTS!N109) -> Record only | I136: =IF(ISBLANK(LISTS!O109),"",LISTS!O109) -> Y/N - Provide description | J136: - | K136: - | L136: - | P136: =Setup!G136="✓" -> TRUE | Q136: =IF(NOT(ISBLANK(LISTS!F109)),1,0) -> 1 | R136: =IF(NOT(ISBLANK(LISTS!G109)),1,0) -> 0 | S136: =IF(NOT(ISBLANK(LISTS!H109)),1,0) -> 0 | T136: =IF(NOT(ISBLANK(LISTS!I109)),1,0) -> 0 | U136: =IF(NOT(ISBLANK(LISTS!J109)),1,0) -> 0 | V136: =IF(LISTS!K109="y",1,0) -> 0 | W136: TRUE | X136: TRUE | Y136: ✓ | Z136: TRUE | AA136: =IF(LISTS!B109=0,AA135,LISTS!B109) -> Environment: Decarbonising and Safeguarding our World | AB136: =IF(LISTS!C109=0,AB135,LISTS!C109) -> Air pollution is reduced | AC136: Environment: Decarbonising and Safeguarding our World | AD136: Air pollution is reduced | AE136: =IF(AND($X136,MATCH(AC136,AC$36:AC$185,0)=Setup!$A136-4),AA136,"") ->  | AF136: =IF(AND($X136,MATCH(AD136,AD$36:AD$185,0)=Setup!$A136-4),AB136,"") ->  | AG136: =IF(AND($X136,MATCH(AC136,AC$32:AC$185,0)=Setup!$A136),AA136,"") ->  | AH136: =IF(AND($X136,MATCH(AD136,AD$32:AD$185,0)=Setup!$A136),AB136,"") ->  | AI136: 101 | AJ136: 101 | AK136: 105 | AL136: 105 | AM136: =IF(AND(NOT(ISBLANK(Setup!J136)),OR(ISNUMBER(Setup!K136),K136="Enter localised proxy in calculator")),Setup!J136,Setup!I136) -> Y/N - Provide description | AN136: =IF(ISNUMBER(Setup!H136),IF(AND(NOT(ISBLANK(Setup!J136)),ISNUMBER(Setup!K136)),Setup!H136*Setup!K136,Setup!H136),Setup!H136) -> Record only | AO136: 1 | AP136: =IF(AO136=1,INDEX('Needs and Priorities'!$D$49:$D$96,MATCH(Setup!D136,'Needs and Priorities'!$B$49:$B$96,0)),0) -> 0 | AQ136: =IFERROR(INDEX('Stakeholders Survey'!$K$24:$K$159,MATCH(D136&E136,'Stakeholders Survey'!$M$24:$M$159,0)),0) -> 0
A137: 106 | B137: =Setup!AG137 ->  | C137: =Setup!AH137 ->  | D137: =IF(ISBLANK(LISTS!D110),"",LISTS!D110) -> NT65 | E137: =IF(ISBLANK(LISTS!E110),"",LISTS!E110) -> RE63 | F137: =IF(ISBLANK(LISTS!L110),"",LISTS!L110) -> Percentage of fleet or construction vehicles on the contract that is at Least Euro 6 or LEV | G137: ✓ | H137: =IF(ISBLANK(LISTS!N110),"",LISTS!N110) -> Record only | I137: =IF(ISBLANK(LISTS!O110),"",LISTS!O110) -> % | J137: - | K137: - | L137: - | P137: =Setup!G137="✓" -> TRUE | Q137: =IF(NOT(ISBLANK(LISTS!F110)),1,0) -> 0 | R137: =IF(NOT(ISBLANK(LISTS!G110)),1,0) -> 1 | S137: =IF(NOT(ISBLANK(LISTS!H110)),1,0) -> 0 | T137: =IF(NOT(ISBLANK(LISTS!I110)),1,0) -> 1 | U137: =IF(NOT(ISBLANK(LISTS!J110)),1,0) -> 0 | V137: =IF(LISTS!K110="y",1,0) -> 0 | W137: TRUE | X137: TRUE | Y137: ✓ | Z137: TRUE | AA137: =IF(LISTS!B110=0,AA136,LISTS!B110) -> Environment: Decarbonising and Safeguarding our World | AB137: =IF(LISTS!C110=0,AB136,LISTS!C110) -> Air pollution is reduced | AC137: Environment: Decarbonising and Safeguarding our World | AD137: Air pollution is reduced | AE137: =IF(AND($X137,MATCH(AC137,AC$36:AC$185,0)=Setup!$A137-4),AA137,"") ->  | AF137: =IF(AND($X137,MATCH(AD137,AD$36:AD$185,0)=Setup!$A137-4),AB137,"") ->  | AG137: =IF(AND($X137,MATCH(AC137,AC$32:AC$185,0)=Setup!$A137),AA137,"") ->  | AH137: =IF(AND($X137,MATCH(AD137,AD$32:AD$185,0)=Setup!$A137),AB137,"") ->  | AI137: 102 | AJ137: 102 | AK137: 106 | AL137: 106 | AM137: =IF(AND(NOT(ISBLANK(Setup!J137)),OR(ISNUMBER(Setup!K137),K137="Enter localised proxy in calculator")),Setup!J137,Setup!I137) -> % | AN137: =IF(ISNUMBER(Setup!H137),IF(AND(NOT(ISBLANK(Setup!J137)),ISNUMBER(Setup!K137)),Setup!H137*Setup!K137,Setup!H137),Setup!H137) -> Record only | AO137: 0 | AP137: =IF(AO137=1,INDEX('Needs and Priorities'!$D$49:$D$96,MATCH(Setup!D137,'Needs and Priorities'!$B$49:$B$96,0)),0) -> 0 | AQ137: =IFERROR(INDEX('Stakeholders Survey'!$K$24:$K$159,MATCH(D137&E137,'Stakeholders Survey'!$M$24:$M$159,0)),0) -> 0
A138: 107 | B138: =Setup!AG138 ->  | C138: =Setup!AH138 ->  | D138: =IF(ISBLANK(LISTS!D111),"",LISTS!D111) -> NT66 | E138: =IF(ISBLANK(LISTS!E111),"",LISTS!E111) -> RE64 | F138: =IF(ISBLANK(LISTS!L111),"",LISTS!L111) -> Fleet emissions monitoring programme on the contract, including data collection (miles, type of vehicle, engine type, emission standard) | G138: ✓ | H138: =IF(ISBLANK(LISTS!N111),"",LISTS!N111) -> Record only | I138: =IF(ISBLANK(LISTS!O111),"",LISTS!O111) -> Y/N - Provide description | J138: - | K138: - | L138: - | P138: =Setup!G138="✓" -> TRUE | Q138: =IF(NOT(ISBLANK(LISTS!F111)),1,0) -> 0 | R138: =IF(NOT(ISBLANK(LISTS!G111)),1,0) -> 1 | S138: =IF(NOT(ISBLANK(LISTS!H111)),1,0) -> 0 | T138: =IF(NOT(ISBLANK(LISTS!I111)),1,0) -> 1 | U138: =IF(NOT(ISBLANK(LISTS!J111)),1,0) -> 0 | V138: =IF(LISTS!K111="y",1,0) -> 0 | W138: TRUE | X138: TRUE | Y138: ✓ | Z138: TRUE | AA138: =IF(LISTS!B111=0,AA137,LISTS!B111) -> Environment: Decarbonising and Safeguarding our World | AB138: =IF(LISTS!C111=0,AB137,LISTS!C111) -> Air pollution is reduced | AC138: Environment: Decarbonising and Safeguarding our World | AD138: Air pollution is reduced | AE138: =IF(AND($X138,MATCH(AC138,AC$36:AC$185,0)=Setup!$A138-4),AA138,"") ->  | AF138: =IF(AND($X138,MATCH(AD138,AD$36:AD$185,0)=Setup!$A138-4),AB138,"") ->  | AG138: =IF(AND($X138,MATCH(AC138,AC$32:AC$185,0)=Setup!$A138),AA138,"") ->  | AH138: =IF(AND($X138,MATCH(AD138,AD$32:AD$185,0)=Setup!$A138),AB138,"") ->  | AI138: 103 | AJ138: 103 | AK138: 107 | AL138: 107 | AM138: =IF(AND(NOT(ISBLANK(Setup!J138)),OR(ISNUMBER(Setup!K138),K138="Enter localised proxy in calculator")),Setup!J138,Setup!I138) -> Y/N - Provide description | AN138: =IF(ISNUMBER(Setup!H138),IF(AND(NOT(ISBLANK(Setup!J138)),ISNUMBER(Setup!K138)),Setup!H138*Setup!K138,Setup!H138),Setup!H138) -> Record only | AO138: 0 | AP138: =IF(AO138=1,INDEX('Needs and Priorities'!$D$49:$D$96,MATCH(Setup!D138,'Needs and Priorities'!$B$49:$B$96,0)),0) -> 0 | AQ138: =IFERROR(INDEX('Stakeholders Survey'!$K$24:$K$159,MATCH(D138&E138,'Stakeholders Survey'!$M$24:$M$159,0)),0) -> 0
A139: 108 | B139: =Setup!AG139 ->  | C139: =Setup!AH139 -> Safeguarding the natural environment | D139: =IF(ISBLANK(LISTS!D112),"",LISTS!D112) ->  | E139: =IF(ISBLANK(LISTS!E112),"",LISTS!E112) -> RE65 | F139: =IF(ISBLANK(LISTS!L112),"",LISTS!L112) -> Offsets or mitigation initiatives on biodiversity delivered whenever restoration is not available, and when implemented beyond legislative or regulatory requirements: Natural Capital Approach carbon sequestration and air quality benefits | G139: ✓ | H139: =IF(ISBLANK(LISTS!N112),"",LISTS!N112) -> 1 | I139: =IF(ISBLANK(LISTS!O112),"",LISTS!O112) -> £ (Calculated Natural Capital Benefits) | L139: =IF(ISNUMBER(H139),IF(NOT(ISBLANK(J139)),IF(NOT(ISNUMBER(K139)),"Please enter a valid conversion factor","£"&ROUND(H139*K139,2)&"/"&IF(RIGHT(J139,1)="s",LEFT(J139,LEN(J139)-1),J139)),""),"n/a") ->  | P139: =Setup!G139="✓" -> TRUE | Q139: =IF(NOT(ISBLANK(LISTS!F112)),1,0) -> 0 | R139: =IF(NOT(ISBLANK(LISTS!G112)),1,0) -> 0 | S139: =IF(NOT(ISBLANK(LISTS!H112)),1,0) -> 0 | T139: =IF(NOT(ISBLANK(LISTS!I112)),1,0) -> 1 | U139: =IF(NOT(ISBLANK(LISTS!J112)),1,0) -> 0 | V139: =IF(LISTS!K112="y",1,0) -> 0 | W139: TRUE | X139: TRUE | Y139: ✓ | Z139: TRUE | AA139: =IF(LISTS!B112=0,AA138,LISTS!B112) -> Environment: Decarbonising and Safeguarding our World | AB139: =IF(LISTS!C112=0,AB138,LISTS!C112) -> Safeguarding the natural environment | AC139: Environment: Decarbonising and Safeguarding our World | AD139: Safeguarding the natural environment | AE139: =IF(AND($X139,MATCH(AC139,AC$36:AC$185,0)=Setup!$A139-4),AA139,"") ->  | AF139: =IF(AND($X139,MATCH(AD139,AD$36:AD$185,0)=Setup!$A139-4),AB139,"") -> Safeguarding the natural environment | AG139: =IF(AND($X139,MATCH(AC139,AC$32:AC$185,0)=Setup!$A139),AA139,"") ->  | AH139: =IF(AND($X139,MATCH(AD139,AD$32:AD$185,0)=Setup!$A139),AB139,"") -> Safeguarding the natural environment | AI139: 104 | AJ139: 104 | AK139: 108 | AL139: 108 | AM139: =IF(AND(NOT(ISBLANK(Setup!J139)),OR(ISNUMBER(Setup!K139),K139="Enter localised proxy in calculator")),Setup!J139,Setup!I139) -> £ (Calculated Natural Capital Benefits) | AN139: =IF(ISNUMBER(Setup!H139),IF(AND(NOT(ISBLANK(Setup!J139)),ISNUMBER(Setup!K139)),Setup!H139*Setup!K139,Setup!H139),Setup!H139) -> 1 | AO139: 0 | AP139: =IF(AO139=1,INDEX('Needs and Priorities'!$D$49:$D$96,MATCH(Setup!D139,'Needs and Priorities'!$B$49:$B$96,0)),0) -> 0 | AQ139: =IFERROR(INDEX('Stakeholders Survey'!$K$24:$K$159,MATCH(D139&E139,'Stakeholders Survey'!$M$24:$M$159,0)),0) -> 0
A140: 109 | B140: =Setup!AG140 ->  | C140: =Setup!AH140 ->  | D140: =IF(ISBLANK(LISTS!D113),"",LISTS!D113) -> NT67 | E140: =IF(ISBLANK(LISTS!E113),"",LISTS!E113) ->  | F140: =IF(ISBLANK(LISTS!L113),"",LISTS!L113) -> Donations or investments towards initiatives aimed at environmental and biodiversity conservations and sustainable management projects for both marine and terrestrial ecosystems | G140: ✓ | H140: =IF(ISBLANK(LISTS!N113),"",LISTS!N113) -> 1 | I140: =IF(ISBLANK(LISTS!O113),"",LISTS!O113) -> £ | L140: =IF(ISNUMBER(H140),IF(NOT(ISBLANK(J140)),IF(NOT(ISNUMBER(K140)),"Please enter a valid conversion factor","£"&ROUND(H140*K140,2)&"/"&IF(RIGHT(J140,1)="s",LEFT(J140,LEN(J140)-1),J140)),""),"n/a") ->  | P140: =Setup!G140="✓" -> TRUE | Q140: =IF(NOT(ISBLANK(LISTS!F113)),1,0) -> 0 | R140: =IF(NOT(ISBLANK(LISTS!G113)),1,0) -> 1 | S140: =IF(NOT(ISBLANK(LISTS!H113)),1,0) -> 0 | T140: =IF(NOT(ISBLANK(LISTS!I113)),1,0) -> 0 | U140: =IF(NOT(ISBLANK(LISTS!J113)),1,0) -> 0 | V140: =IF(LISTS!K113="y",1,0) -> 0 | W140: TRUE | X140: TRUE | Y140: ✓ | Z140: TRUE | AA140: =IF(LISTS!B113=0,AA139,LISTS!B113) -> Environment: Decarbonising and Safeguarding our World | AB140: =IF(LISTS!C113=0,AB139,LISTS!C113) -> Safeguarding the natural environment | AC140: Environment: Decarbonising and Safeguarding our World | AD140: Safeguarding the natural environment | AE140: =IF(AND($X140,MATCH(AC140,AC$36:AC$185,0)=Setup!$A140-4),AA140,"") ->  | AF140: =IF(AND($X140,MATCH(AD140,AD$36:AD$185,0)=Setup!$A140-4),AB140,"") ->  | AG140: =IF(AND($X140,MATCH(AC140,AC$32:AC$185,0)=Setup!$A140),AA140,"") ->  | AH140: =IF(AND($X140,MATCH(AD140,AD$32:AD$185,0)=Setup!$A140),AB140,"") ->  | AI140: 105 | AJ140: 105 | AK140: 109 | AL140: 109 | AM140: =IF(AND(NOT(ISBLANK(Setup!J140)),OR(ISNUMBER(Setup!K140),K140="Enter localised proxy in calculator")),Setup!J140,Setup!I140) -> £ | AN140: =IF(ISNUMBER(Setup!H140),IF(AND(NOT(ISBLANK(Setup!J140)),ISNUMBER(Setup!K140)),Setup!H140*Setup!K140,Setup!H140),Setup!H140) -> 1 | AO140: 0 | AP140: =IF(AO140=1,INDEX('Needs and Priorities'!$D$49:$D$96,MATCH(Setup!D140,'Needs and Priorities'!$B$49:$B$96,0)),0) -> 0 | AQ140: =IFERROR(INDEX('Stakeholders Survey'!$K$24:$K$159,MATCH(D140&E140,'Stakeholders Survey'!$M$24:$M$159,0)),0) -> 0
A141: 110 | B141: =Setup!AG141 ->  | C141: =Setup!AH141 ->  | D141: =IF(ISBLANK(LISTS!D114),"",LISTS!D114) -> NT47 | E141: =IF(ISBLANK(LISTS!E114),"",LISTS!E114) ->  | F141: =IF(ISBLANK(LISTS!L114),"",LISTS!L114) -> Donations or investments towards expert designed sustainable reforestation or afforestation initiatives | G141: ✓ | H141: =IF(ISBLANK(LISTS!N114),"",LISTS!N114) -> 1 | I141: =IF(ISBLANK(LISTS!O114),"",LISTS!O114) -> £ | L141: =IF(ISNUMBER(H141),IF(NOT(ISBLANK(J141)),IF(NOT(ISNUMBER(K141)),"Please enter a valid conversion factor","£"&ROUND(H141*K141,2)&"/"&IF(RIGHT(J141,1)="s",LEFT(J141,LEN(J141)-1),J141)),""),"n/a") ->  | P141: =Setup!G141="✓" -> TRUE | Q141: =IF(NOT(ISBLANK(LISTS!F114)),1,0) -> 1 | R141: =IF(NOT(ISBLANK(LISTS!G114)),1,0) -> 0 | S141: =IF(NOT(ISBLANK(LISTS!H114)),1,0) -> 0 | T141: =IF(NOT(ISBLANK(LISTS!I114)),1,0) -> 0 | U141: =IF(NOT(ISBLANK(LISTS!J114)),1,0) -> 0 | V141: =IF(LISTS!K114="y",1,0) -> 0 | W141: TRUE | X141: TRUE | Y141: ✓ | Z141: TRUE | AA141: =IF(LISTS!B114=0,AA140,LISTS!B114) -> Environment: Decarbonising and Safeguarding our World | AB141: =IF(LISTS!C114=0,AB140,LISTS!C114) -> Safeguarding the natural environment | AC141: Environment: Decarbonising and Safeguarding our World | AD141: Safeguarding the natural environment | AE141: =IF(AND($X141,MATCH(AC141,AC$36:AC$185,0)=Setup!$A141-4),AA141,"") ->  | AF141: =IF(AND($X141,MATCH(AD141,AD$36:AD$185,0)=Setup!$A141-4),AB141,"") ->  | AG141: =IF(AND($X141,MATCH(AC141,AC$32:AC$185,0)=Setup!$A141),AA141,"") ->  | AH141: =IF(AND($X141,MATCH(AD141,AD$32:AD$185,0)=Setup!$A141),AB141,"") ->  | AI141: 106 | AJ141: 106 | AK141: 110 | AL141: 110 | AM141: =IF(AND(NOT(ISBLANK(Setup!J141)),OR(ISNUMBER(Setup!K141),K141="Enter localised proxy in calculator")),Setup!J141,Setup!I141) -> £ | AN141: =IF(ISNUMBER(Setup!H141),IF(AND(NOT(ISBLANK(Setup!J141)),ISNUMBER(Setup!K141)),Setup!H141*Setup!K141,Setup!H141),Setup!H141) -> 1 | AO141: 1 | AP141: =IF(AO141=1,INDEX('Needs and Priorities'!$D$49:$D$96,MATCH(Setup!D141,'Needs and Priorities'!$B$49:$B$96,0)),0) -> 0 | AQ141: =IFERROR(INDEX('Stakeholders Survey'!$K$24:$K$159,MATCH(D141&E141,'Stakeholders Survey'!$M$24:$M$159,0)),0) -> 0
A142: 111 | B142: =Setup!AG142 ->  | C142: =Setup!AH142 ->  | D142: =IF(ISBLANK(LISTS!D115),"",LISTS!D115) ->  | E142: =IF(ISBLANK(LISTS!E115),"",LISTS!E115) -> RE48a | F142: =IF(ISBLANK(LISTS!L115),"",LISTS!L115) -> Volunteering with environmental conservation initiatives or engagement in multi-stakeholder and advocacy initiatives around environmental conservation and sustainable ecosystem management - resources invested including time, funds and in-kind contributions | G142: ✓ | H142: =IF(ISBLANK(LISTS!N115),"",LISTS!N115) -> 1 | I142: =IF(ISBLANK(LISTS!O115),"",LISTS!O115) -> £ | L142: =IF(ISNUMBER(H142),IF(NOT(ISBLANK(J142)),IF(NOT(ISNUMBER(K142)),"Please enter a valid conversion factor","£"&ROUND(H142*K142,2)&"/"&IF(RIGHT(J142,1)="s",LEFT(J142,LEN(J142)-1),J142)),""),"n/a") ->  | P142: =Setup!G142="✓" -> TRUE | Q142: =IF(NOT(ISBLANK(LISTS!F115)),1,0) -> 0 | R142: =IF(NOT(ISBLANK(LISTS!G115)),1,0) -> 0 | S142: =IF(NOT(ISBLANK(LISTS!H115)),1,0) -> 0 | T142: =IF(NOT(ISBLANK(LISTS!I115)),1,0) -> 1 | U142: =IF(NOT(ISBLANK(LISTS!J115)),1,0) -> 0 | V142: =IF(LISTS!K115="y",1,0) -> 0 | W142: TRUE | X142: TRUE | Y142: ✓ | Z142: TRUE | AA142: =IF(LISTS!B115=0,AA141,LISTS!B115) -> Environment: Decarbonising and Safeguarding our World | AB142: =IF(LISTS!C115=0,AB141,LISTS!C115) -> Safeguarding the natural environment | AC142: Environment: Decarbonising and Safeguarding our World | AD142: Safeguarding the natural environment | AE142: =IF(AND($X142,MATCH(AC142,AC$36:AC$185,0)=Setup!$A142-4),AA142,"") ->  | AF142: =IF(AND($X142,MATCH(AD142,AD$36:AD$185,0)=Setup!$A142-4),AB142,"") ->  | AG142: =IF(AND($X142,MATCH(AC142,AC$32:AC$185,0)=Setup!$A142),AA142,"") ->  | AH142: =IF(AND($X142,MATCH(AD142,AD$32:AD$185,0)=Setup!$A142),AB142,"") ->  | AI142: 107 | AJ142: 107 | AK142: 111 | AL142: 111 | AM142: =IF(AND(NOT(ISBLANK(Setup!J142)),OR(ISNUMBER(Setup!K142),K142="Enter localised proxy in calculator")),Setup!J142,Setup!I142) -> £ | AN142: =IF(ISNUMBER(Setup!H142),IF(AND(NOT(ISBLANK(Setup!J142)),ISNUMBER(Setup!K142)),Setup!H142*Setup!K142,Setup!H142),Setup!H142) -> 1 | AO142: 0 | AP142: =IF(AO142=1,INDEX('Needs and Priorities'!$D$49:$D$96,MATCH(Setup!D142,'Needs and Priorities'!$B$49:$B$96,0)),0) -> 0 | AQ142: =IFERROR(INDEX('Stakeholders Survey'!$K$24:$K$159,MATCH(D142&E142,'Stakeholders Survey'!$M$24:$M$159,0)),0) -> 0
A143: 112 | B143: =Setup!AG143 ->  | C143: =Setup!AH143 ->  | D143: =IF(ISBLANK(LISTS!D116),"",LISTS!D116) -> NT68 | E143: =IF(ISBLANK(LISTS!E116),"",LISTS!E116) -> RE74 | F143: =IF(ISBLANK(LISTS!L116),"",LISTS!L116) -> Plastic recycling rate on the contract ( to e.g. reduce microplastics) | G143: ✓ | H143: =IF(ISBLANK(LISTS!N116),"",LISTS!N116) -> Record only | I143: =IF(ISBLANK(LISTS!O116),"",LISTS!O116) -> % | J143: - | K143: - | L143: - | P143: =Setup!G143="✓" -> TRUE | Q143: =IF(NOT(ISBLANK(LISTS!F116)),1,0) -> 0 | R143: =IF(NOT(ISBLANK(LISTS!G116)),1,0) -> 1 | S143: =IF(NOT(ISBLANK(LISTS!H116)),1,0) -> 0 | T143: =IF(NOT(ISBLANK(LISTS!I116)),1,0) -> 0 | U143: =IF(NOT(ISBLANK(LISTS!J116)),1,0) -> 1 | V143: =IF(LISTS!K116="y",1,0) -> 0 | W143: TRUE | X143: TRUE | Y143: ✓ | Z143: TRUE | AA143: =IF(LISTS!B116=0,AA142,LISTS!B116) -> Environment: Decarbonising and Safeguarding our World | AB143: =IF(LISTS!C116=0,AB142,LISTS!C116) -> Safeguarding the natural environment | AC143: Environment: Decarbonising and Safeguarding our World | AD143: Safeguarding the natural environment | AE143: =IF(AND($X143,MATCH(AC143,AC$36:AC$185,0)=Setup!$A143-4),AA143,"") ->  | AF143: =IF(AND($X143,MATCH(AD143,AD$36:AD$185,0)=Setup!$A143-4),AB143,"") ->  | AG143: =IF(AND($X143,MATCH(AC143,AC$32:AC$185,0)=Setup!$A143),AA143,"") ->  | AH143: =IF(AND($X143,MATCH(AD143,AD$32:AD$185,0)=Setup!$A143),AB143,"") ->  | AI143: 108 | AJ143: 108 | AK143: 112 | AL143: 112 | AM143: =IF(AND(NOT(ISBLANK(Setup!J143)),OR(ISNUMBER(Setup!K143),K143="Enter localised proxy in calculator")),Setup!J143,Setup!I143) -> % | AN143: =IF(ISNUMBER(Setup!H143),IF(AND(NOT(ISBLANK(Setup!J143)),ISNUMBER(Setup!K143)),Setup!H143*Setup!K143,Setup!H143),Setup!H143) -> Record only | AO143: 0 | AP143: =IF(AO143=1,INDEX('Needs and Priorities'!$D$49:$D$96,MATCH(Setup!D143,'Needs and Priorities'!$B$49:$B$96,0)),0) -> 0 | AQ143: =IFERROR(INDEX('Stakeholders Survey'!$K$24:$K$159,MATCH(D143&E143,'Stakeholders Survey'!$M$24:$M$159,0)),0) -> 0
A144: 113 | B144: =Setup!AG144 ->  | C144: =Setup!AH144 -> Resource efficiency and circular economy solutions are promoted | D144: =IF(ISBLANK(LISTS!D117),"",LISTS!D117) -> NT69 | E144: =IF(ISBLANK(LISTS!E117),"",LISTS!E117) ->  | F144: =IF(ISBLANK(LISTS!L117),"",LISTS!L117) -> Support provided internally and to MSMEs and VCSEs within the supply chain to adopt Circular Economy solutions - business case and leadership for circular economy | G144: ✓ | H144: =IF(ISBLANK(LISTS!N117),"",LISTS!N117) -> 96.11 | I144: =IF(ISBLANK(LISTS!O117),"",LISTS!O117) -> No. staff expert hours | L144: =IF(ISNUMBER(H144),IF(NOT(ISBLANK(J144)),IF(NOT(ISNUMBER(K144)),"Please enter a valid conversion factor","£"&ROUND(H144*K144,2)&"/"&IF(RIGHT(J144,1)="s",LEFT(J144,LEN(J144)-1),J144)),""),"n/a") ->  | P144: =Setup!G144="✓" -> TRUE | Q144: =IF(NOT(ISBLANK(LISTS!F117)),1,0) -> 0 | R144: =IF(NOT(ISBLANK(LISTS!G117)),1,0) -> 1 | S144: =IF(NOT(ISBLANK(LISTS!H117)),1,0) -> 0 | T144: =IF(NOT(ISBLANK(LISTS!I117)),1,0) -> 0 | U144: =IF(NOT(ISBLANK(LISTS!J117)),1,0) -> 0 | V144: =IF(LISTS!K117="y",1,0) -> 0 | W144: TRUE | X144: TRUE | Y144: ✓ | Z144: TRUE | AA144: =IF(LISTS!B117=0,AA143,LISTS!B117) -> Environment: Decarbonising and Safeguarding our World | AB144: =IF(LISTS!C117=0,AB143,LISTS!C117) -> Resource efficiency and circular economy solutions are promoted | AC144: Environment: Decarbonising and Safeguarding our World | AD144: Resource efficiency and circular economy solutions are promoted | AE144: =IF(AND($X144,MATCH(AC144,AC$36:AC$185,0)=Setup!$A144-4),AA144,"") ->  | AF144: =IF(AND($X144,MATCH(AD144,AD$36:AD$185,0)=Setup!$A144-4),AB144,"") -> Resource efficiency and circular economy solutions are promoted | AG144: =IF(AND($X144,MATCH(AC144,AC$32:AC$185,0)=Setup!$A144),AA144,"") ->  | AH144: =IF(AND($X144,MATCH(AD144,AD$32:AD$185,0)=Setup!$A144),AB144,"") -> Resource efficiency and circular economy solutions are promoted | AI144: 109 | AJ144: 109 | AK144: 113 | AL144: 113 | AM144: =IF(AND(NOT(ISBLANK(Setup!J144)),OR(ISNUMBER(Setup!K144),K144="Enter localised proxy in calculator")),Setup!J144,Setup!I144) -> No. staff expert hours | AN144: =IF(ISNUMBER(Setup!H144),IF(AND(NOT(ISBLANK(Setup!J144)),ISNUMBER(Setup!K144)),Setup!H144*Setup!K144,Setup!H144),Setup!H144) -> 96.11 | AO144: 0 | AP144: =IF(AO144=1,INDEX('Needs and Priorities'!$D$49:$D$96,MATCH(Setup!D144,'Needs and Priorities'!$B$49:$B$96,0)),0) -> 0 | AQ144: =IFERROR(INDEX('Stakeholders Survey'!$K$24:$K$159,MATCH(D144&E144,'Stakeholders Survey'!$M$24:$M$159,0)),0) -> 0
A145: 114 | B145: =Setup!AG145 ->  | C145: =Setup!AH145 ->  | D145: =IF(ISBLANK(LISTS!D118),"",LISTS!D118) -> NT70 | E145: =IF(ISBLANK(LISTS!E118),"",LISTS!E118) ->  | F145: =IF(ISBLANK(LISTS!L118),"",LISTS!L118) -> Single-use plastic packaging eliminated through reusable packaging solutions or schemes (e.g. Loop or equivalent) on the contract | G145: ✓ | H145: =IF(ISBLANK(LISTS!N118),"",LISTS!N118) -> Record only | I145: =IF(ISBLANK(LISTS!O118),"",LISTS!O118) -> Kilos | J145: - | K145: - | L145: - | P145: =Setup!G145="✓" -> TRUE | Q145: =IF(NOT(ISBLANK(LISTS!F118)),1,0) -> 0 | R145: =IF(NOT(ISBLANK(LISTS!G118)),1,0) -> 1 | S145: =IF(NOT(ISBLANK(LISTS!H118)),1,0) -> 0 | T145: =IF(NOT(ISBLANK(LISTS!I118)),1,0) -> 0 | U145: =IF(NOT(ISBLANK(LISTS!J118)),1,0) -> 0 | V145: =IF(LISTS!K118="y",1,0) -> 0 | W145: TRUE | X145: TRUE | Y145: ✓ | Z145: TRUE | AA145: =IF(LISTS!B118=0,AA144,LISTS!B118) -> Environment: Decarbonising and Safeguarding our World | AB145: =IF(LISTS!C118=0,AB144,LISTS!C118) -> Resource efficiency and circular economy solutions are promoted | AC145: Environment: Decarbonising and Safeguarding our World | AD145: Resource efficiency and circular economy solutions are promoted | AE145: =IF(AND($X145,MATCH(AC145,AC$36:AC$185,0)=Setup!$A145-4),AA145,"") ->  | AF145: =IF(AND($X145,MATCH(AD145,AD$36:AD$185,0)=Setup!$A145-4),AB145,"") ->  | AG145: =IF(AND($X145,MATCH(AC145,AC$32:AC$185,0)=Setup!$A145),AA145,"") ->  | AH145: =IF(AND($X145,MATCH(AD145,AD$32:AD$185,0)=Setup!$A145),AB145,"") ->  | AI145: 110 | AJ145: 110 | AK145: 114 | AL145: 114 | AM145: =IF(AND(NOT(ISBLANK(Setup!J145)),OR(ISNUMBER(Setup!K145),K145="Enter localised proxy in calculator")),Setup!J145,Setup!I145) -> Kilos | AN145: =IF(ISNUMBER(Setup!H145),IF(AND(NOT(ISBLANK(Setup!J145)),ISNUMBER(Setup!K145)),Setup!H145*Setup!K145,Setup!H145),Setup!H145) -> Record only | AO145: 0 | AP145: =IF(AO145=1,INDEX('Needs and Priorities'!$D$49:$D$96,MATCH(Setup!D145,'Needs and Priorities'!$B$49:$B$96,0)),0) -> 0 | AQ145: =IFERROR(INDEX('Stakeholders Survey'!$K$24:$K$159,MATCH(D145&E145,'Stakeholders Survey'!$M$24:$M$159,0)),0) -> 0
A146: 115 | B146: =Setup!AG146 ->  | C146: =Setup!AH146 ->  | D146: =IF(ISBLANK(LISTS!D119),"",LISTS!D119) -> NT71 | E146: =IF(ISBLANK(LISTS!E119),"",LISTS!E119) ->  | F146: =IF(ISBLANK(LISTS!L119),"",LISTS!L119) -> Value of local partnerships to implement circular economy solutions | G146: ✓ | H146: =IF(ISBLANK(LISTS!N119),"",LISTS!N119) -> 1 | I146: =IF(ISBLANK(LISTS!O119),"",LISTS!O119) -> £ | L146: =IF(ISNUMBER(H146),IF(NOT(ISBLANK(J146)),IF(NOT(ISNUMBER(K146)),"Please enter a valid conversion factor","£"&ROUND(H146*K146,2)&"/"&IF(RIGHT(J146,1)="s",LEFT(J146,LEN(J146)-1),J146)),""),"n/a") ->  | P146: =Setup!G146="✓" -> TRUE | Q146: =IF(NOT(ISBLANK(LISTS!F119)),1,0) -> 0 | R146: =IF(NOT(ISBLANK(LISTS!G119)),1,0) -> 1 | S146: =IF(NOT(ISBLANK(LISTS!H119)),1,0) -> 0 | T146: =IF(NOT(ISBLANK(LISTS!I119)),1,0) -> 0 | U146: =IF(NOT(ISBLANK(LISTS!J119)),1,0) -> 0 | V146: =IF(LISTS!K119="y",1,0) -> 0 | W146: TRUE | X146: TRUE | Y146: ✓ | Z146: TRUE | AA146: =IF(LISTS!B119=0,AA145,LISTS!B119) -> Environment: Decarbonising and Safeguarding our World | AB146: =IF(LISTS!C119=0,AB145,LISTS!C119) -> Resource efficiency and circular economy solutions are promoted | AC146: Environment: Decarbonising and Safeguarding our World | AD146: Resource efficiency and circular economy solutions are promoted | AE146: =IF(AND($X146,MATCH(AC146,AC$36:AC$185,0)=Setup!$A146-4),AA146,"") ->  | AF146: =IF(AND($X146,MATCH(AD146,AD$36:AD$185,0)=Setup!$A146-4),AB146,"") ->  | AG146: =IF(AND($X146,MATCH(AC146,AC$32:AC$185,0)=Setup!$A146),AA146,"") ->  | AH146: =IF(AND($X146,MATCH(AD146,AD$32:AD$185,0)=Setup!$A146),AB146,"") ->  | AI146: 111 | AJ146: 111 | AK146: 115 | AL146: 115 | AM146: =IF(AND(NOT(ISBLANK(Setup!J146)),OR(ISNUMBER(Setup!K146),K146="Enter localised proxy in calculator")),Setup!J146,Setup!I146) -> £ | AN146: =IF(ISNUMBER(Setup!H146),IF(AND(NOT(ISBLANK(Setup!J146)),ISNUMBER(Setup!K146)),Setup!H146*Setup!K146,Setup!H146),Setup!H146) -> 1 | AO146: 0 | AP146: =IF(AO146=1,INDEX('Needs and Priorities'!$D$49:$D$96,MATCH(Setup!D146,'Needs and Priorities'!$B$49:$B$96,0)),0) -> 0 | AQ146: =IFERROR(INDEX('Stakeholders Survey'!$K$24:$K$159,MATCH(D146&E146,'Stakeholders Survey'!$M$24:$M$159,0)),0) -> 0
A147: 116 | B147: =Setup!AG147 ->  | C147: =Setup!AH147 ->  | D147: =IF(ISBLANK(LISTS!D120),"",LISTS!D120) -> NT72 | E147: =IF(ISBLANK(LISTS!E120),"",LISTS!E120) ->  | F147: =IF(ISBLANK(LISTS!L120),"",LISTS!L120) -> Hard to recycle waste diverted from landfill or incineration through specific recycling partnerships ( e.g. Terracycle or equivalent) | G147: ✓ | H147: =IF(ISBLANK(LISTS!N120),"",LISTS!N120) -> 94.15 | I147: =IF(ISBLANK(LISTS!O120),"",LISTS!O120) -> Tonnes | L147: =IF(ISNUMBER(H147),IF(NOT(ISBLANK(J147)),IF(NOT(ISNUMBER(K147)),"Please enter a valid conversion factor","£"&ROUND(H147*K147,2)&"/"&IF(RIGHT(J147,1)="s",LEFT(J147,LEN(J147)-1),J147)),""),"n/a") ->  | P147: =Setup!G147="✓" -> TRUE | Q147: =IF(NOT(ISBLANK(LISTS!F120)),1,0) -> 0 | R147: =IF(NOT(ISBLANK(LISTS!G120)),1,0) -> 1 | S147: =IF(NOT(ISBLANK(LISTS!H120)),1,0) -> 0 | T147: =IF(NOT(ISBLANK(LISTS!I120)),1,0) -> 0 | U147: =IF(NOT(ISBLANK(LISTS!J120)),1,0) -> 0 | V147: =IF(LISTS!K120="y",1,0) -> 0 | W147: TRUE | X147: TRUE | Y147: ✓ | Z147: TRUE | AA147: =IF(LISTS!B120=0,AA146,LISTS!B120) -> Environment: Decarbonising and Safeguarding our World | AB147: =IF(LISTS!C120=0,AB146,LISTS!C120) -> Resource efficiency and circular economy solutions are promoted | AC147: Environment: Decarbonising and Safeguarding our World | AD147: Resource efficiency and circular economy solutions are promoted | AE147: =IF(AND($X147,MATCH(AC147,AC$36:AC$185,0)=Setup!$A147-4),AA147,"") ->  | AF147: =IF(AND($X147,MATCH(AD147,AD$36:AD$185,0)=Setup!$A147-4),AB147,"") ->  | AG147: =IF(AND($X147,MATCH(AC147,AC$32:AC$185,0)=Setup!$A147),AA147,"") ->  | AH147: =IF(AND($X147,MATCH(AD147,AD$32:AD$185,0)=Setup!$A147),AB147,"") ->  | AI147: 112 | AJ147: 112 | AK147: 116 | AL147: 116 | AM147: =IF(AND(NOT(ISBLANK(Setup!J147)),OR(ISNUMBER(Setup!K147),K147="Enter localised proxy in calculator")),Setup!J147,Setup!I147) -> Tonnes | AN147: =IF(ISNUMBER(Setup!H147),IF(AND(NOT(ISBLANK(Setup!J147)),ISNUMBER(Setup!K147)),Setup!H147*Setup!K147,Setup!H147),Setup!H147) -> 94.15 | AO147: 0 | AP147: =IF(AO147=1,INDEX('Needs and Priorities'!$D$49:$D$96,MATCH(Setup!D147,'Needs and Priorities'!$B$49:$B$96,0)),0) -> 0 | AQ147: =IFERROR(INDEX('Stakeholders Survey'!$K$24:$K$159,MATCH(D147&E147,'Stakeholders Survey'!$M$24:$M$159,0)),0) -> 0
A148: 117 | B148: =Setup!AG148 ->  | C148: =Setup!AH148 ->  | D148: =IF(ISBLANK(LISTS!D121),"",LISTS!D121) ->  | E148: =IF(ISBLANK(LISTS!E121),"",LISTS!E121) -> RE66 | F148: =IF(ISBLANK(LISTS!L121),"",LISTS!L121) -> Waste management verification policies: audit hierarchy, downstream audits for waste stream | G148: ✓ | H148: =IF(ISBLANK(LISTS!N121),"",LISTS!N121) -> Record only | I148: =IF(ISBLANK(LISTS!O121),"",LISTS!O121) -> Y/N - Provide description | J148: - | K148: - | L148: - | P148: =Setup!G148="✓" -> TRUE | Q148: =IF(NOT(ISBLANK(LISTS!F121)),1,0) -> 0 | R148: =IF(NOT(ISBLANK(LISTS!G121)),1,0) -> 0 | S148: =IF(NOT(ISBLANK(LISTS!H121)),1,0) -> 0 | T148: =IF(NOT(ISBLANK(LISTS!I121)),1,0) -> 1 | U148: =IF(NOT(ISBLANK(LISTS!J121)),1,0) -> 0 | V148: =IF(LISTS!K121="y",1,0) -> 0 | W148: TRUE | X148: TRUE | Y148: ✓ | Z148: TRUE | AA148: =IF(LISTS!B121=0,AA147,LISTS!B121) -> Environment: Decarbonising and Safeguarding our World | AB148: =IF(LISTS!C121=0,AB147,LISTS!C121) -> Resource efficiency and circular economy solutions are promoted | AC148: Environment: Decarbonising and Safeguarding our World | AD148: Resource efficiency and circular economy solutions are promoted | AE148: =IF(AND($X148,MATCH(AC148,AC$36:AC$185,0)=Setup!$A148-4),AA148,"") ->  | AF148: =IF(AND($X148,MATCH(AD148,AD$36:AD$185,0)=Setup!$A148-4),AB148,"") ->  | AG148: =IF(AND($X148,MATCH(AC148,AC$32:AC$185,0)=Setup!$A148),AA148,"") ->  | AH148: =IF(AND($X148,MATCH(AD148,AD$32:AD$185,0)=Setup!$A148),AB148,"") ->  | AI148: 113 | AJ148: 113 | AK148: 117 | AL148: 117 | AM148: =IF(AND(NOT(ISBLANK(Setup!J148)),OR(ISNUMBER(Setup!K148),K148="Enter localised proxy in calculator")),Setup!J148,Setup!I148) -> Y/N - Provide description | AN148: =IF(ISNUMBER(Setup!H148),IF(AND(NOT(ISBLANK(Setup!J148)),ISNUMBER(Setup!K148)),Setup!H148*Setup!K148,Setup!H148),Setup!H148) -> Record only | AO148: 0 | AP148: =IF(AO148=1,INDEX('Needs and Priorities'!$D$49:$D$96,MATCH(Setup!D148,'Needs and Priorities'!$B$49:$B$96,0)),0) -> 0 | AQ148: =IFERROR(INDEX('Stakeholders Survey'!$K$24:$K$159,MATCH(D148&E148,'Stakeholders Survey'!$M$24:$M$159,0)),0) -> 0
A149: 118 | B149: =Setup!AG149 ->  | C149: =Setup!AH149 ->  | D149: =IF(ISBLANK(LISTS!D122),"",LISTS!D122) ->  | E149: =IF(ISBLANK(LISTS!E122),"",LISTS!E122) -> RE42 | F149: =IF(ISBLANK(LISTS!L122),"",LISTS!L122) -> WATER: Percentage of buildings meeting good practice benchmark (e.g. REEB) | G149: ✓ | H149: =IF(ISBLANK(LISTS!N122),"",LISTS!N122) -> Record only | I149: =IF(ISBLANK(LISTS!O122),"",LISTS!O122) -> % | J149: - | K149: - | L149: - | P149: =Setup!G149="✓" -> TRUE | Q149: =IF(NOT(ISBLANK(LISTS!F122)),1,0) -> 0 | R149: =IF(NOT(ISBLANK(LISTS!G122)),1,0) -> 0 | S149: =IF(NOT(ISBLANK(LISTS!H122)),1,0) -> 0 | T149: =IF(NOT(ISBLANK(LISTS!I122)),1,0) -> 0 | U149: =IF(NOT(ISBLANK(LISTS!J122)),1,0) -> 1 | V149: =IF(LISTS!K122="y",1,0) -> 0 | W149: TRUE | X149: TRUE | Y149: ✓ | Z149: TRUE | AA149: =IF(LISTS!B122=0,AA148,LISTS!B122) -> Environment: Decarbonising and Safeguarding our World | AB149: =IF(LISTS!C122=0,AB148,LISTS!C122) -> Resource efficiency and circular economy solutions are promoted | AC149: Environment: Decarbonising and Safeguarding our World | AD149: Resource efficiency and circular economy solutions are promoted | AE149: =IF(AND($X149,MATCH(AC149,AC$36:AC$185,0)=Setup!$A149-4),AA149,"") ->  | AF149: =IF(AND($X149,MATCH(AD149,AD$36:AD$185,0)=Setup!$A149-4),AB149,"") ->  | AG149: =IF(AND($X149,MATCH(AC149,AC$32:AC$185,0)=Setup!$A149),AA149,"") ->  | AH149: =IF(AND($X149,MATCH(AD149,AD$32:AD$185,0)=Setup!$A149),AB149,"") ->  | AI149: 114 | AJ149: 114 | AK149: 118 | AL149: 118 | AM149: =IF(AND(NOT(ISBLANK(Setup!J149)),OR(ISNUMBER(Setup!K149),K149="Enter localised proxy in calculator")),Setup!J149,Setup!I149) -> % | AN149: =IF(ISNUMBER(Setup!H149),IF(AND(NOT(ISBLANK(Setup!J149)),ISNUMBER(Setup!K149)),Setup!H149*Setup!K149,Setup!H149),Setup!H149) -> Record only | AO149: 0 | AP149: =IF(AO149=1,INDEX('Needs and Priorities'!$D$49:$D$96,MATCH(Setup!D149,'Needs and Priorities'!$B$49:$B$96,0)),0) -> 0 | AQ149: =IFERROR(INDEX('Stakeholders Survey'!$K$24:$K$159,MATCH(D149&E149,'Stakeholders Survey'!$M$24:$M$159,0)),0) -> 0
A150: 119 | B150: =Setup!AG150 ->  | C150: =Setup!AH150 ->  | D150: =IF(ISBLANK(LISTS!D123),"",LISTS!D123) ->  | E150: =IF(ISBLANK(LISTS!E123),"",LISTS!E123) -> RE43 | F150: =IF(ISBLANK(LISTS!L123),"",LISTS!L123) -> M3 water saved against relevant benchmark (e.g. REEB) | G150: ✓ | H150: =IF(ISBLANK(LISTS!N123),"",LISTS!N123) -> Record only | I150: =IF(ISBLANK(LISTS!O123),"",LISTS!O123) -> mᶾ | J150: - | K150: - | L150: - | P150: =Setup!G150="✓" -> TRUE | Q150: =IF(NOT(ISBLANK(LISTS!F123)),1,0) -> 0 | R150: =IF(NOT(ISBLANK(LISTS!G123)),1,0) -> 0 | S150: =IF(NOT(ISBLANK(LISTS!H123)),1,0) -> 0 | T150: =IF(NOT(ISBLANK(LISTS!I123)),1,0) -> 1 | U150: =IF(NOT(ISBLANK(LISTS!J123)),1,0) -> 0 | V150: =IF(LISTS!K123="y",1,0) -> 0 | W150: TRUE | X150: TRUE | Y150: ✓ | Z150: TRUE | AA150: =IF(LISTS!B123=0,AA149,LISTS!B123) -> Environment: Decarbonising and Safeguarding our World | AB150: =IF(LISTS!C123=0,AB149,LISTS!C123) -> Resource efficiency and circular economy solutions are promoted | AC150: Environment: Decarbonising and Safeguarding our World | AD150: Resource efficiency and circular economy solutions are promoted | AE150: =IF(AND($X150,MATCH(AC150,AC$36:AC$185,0)=Setup!$A150-4),AA150,"") ->  | AF150: =IF(AND($X150,MATCH(AD150,AD$36:AD$185,0)=Setup!$A150-4),AB150,"") ->  | AG150: =IF(AND($X150,MATCH(AC150,AC$32:AC$185,0)=Setup!$A150),AA150,"") ->  | AH150: =IF(AND($X150,MATCH(AD150,AD$32:AD$185,0)=Setup!$A150),AB150,"") ->  | AI150: 115 | AJ150: 115 | AK150: 119 | AL150: 119 | AM150: =IF(AND(NOT(ISBLANK(Setup!J150)),OR(ISNUMBER(Setup!K150),K150="Enter localised proxy in calculator")),Setup!J150,Setup!I150) -> mᶾ | AN150: =IF(ISNUMBER(Setup!H150),IF(AND(NOT(ISBLANK(Setup!J150)),ISNUMBER(Setup!K150)),Setup!H150*Setup!K150,Setup!H150),Setup!H150) -> Record only | AO150: 0 | AP150: =IF(AO150=1,INDEX('Needs and Priorities'!$D$49:$D$96,MATCH(Setup!D150,'Needs and Priorities'!$B$49:$B$96,0)),0) -> 0 | AQ150: =IFERROR(INDEX('Stakeholders Survey'!$K$24:$K$159,MATCH(D150&E150,'Stakeholders Survey'!$M$24:$M$159,0)),0) -> 0
A151: 120 | B151: =Setup!AG151 ->  | C151: =Setup!AH151 ->  | D151: =IF(ISBLANK(LISTS!D124),"",LISTS!D124) ->  | E151: =IF(ISBLANK(LISTS!E124),"",LISTS!E124) -> RE44 | F151: =IF(ISBLANK(LISTS!L124),"",LISTS!L124) -> WASTE: Percentage of buildings meeting good practice benchmark (e.g. REEB) | G151: ✓ | H151: =IF(ISBLANK(LISTS!N124),"",LISTS!N124) -> Record only | I151: =IF(ISBLANK(LISTS!O124),"",LISTS!O124) -> % | J151: - | K151: - | L151: - | P151: =Setup!G151="✓" -> TRUE | Q151: =IF(NOT(ISBLANK(LISTS!F124)),1,0) -> 0 | R151: =IF(NOT(ISBLANK(LISTS!G124)),1,0) -> 0 | S151: =IF(NOT(ISBLANK(LISTS!H124)),1,0) -> 0 | T151: =IF(NOT(ISBLANK(LISTS!I124)),1,0) -> 0 | U151: =IF(NOT(ISBLANK(LISTS!J124)),1,0) -> 1 | V151: =IF(LISTS!K124="y",1,0) -> 0 | W151: TRUE | X151: TRUE | Y151: ✓ | Z151: TRUE | AA151: =IF(LISTS!B124=0,AA150,LISTS!B124) -> Environment: Decarbonising and Safeguarding our World | AB151: =IF(LISTS!C124=0,AB150,LISTS!C124) -> Resource efficiency and circular economy solutions are promoted | AC151: Environment: Decarbonising and Safeguarding our World | AD151: Resource efficiency and circular economy solutions are promoted | AE151: =IF(AND($X151,MATCH(AC151,AC$36:AC$185,0)=Setup!$A151-4),AA151,"") ->  | AF151: =IF(AND($X151,MATCH(AD151,AD$36:AD$185,0)=Setup!$A151-4),AB151,"") ->  | AG151: =IF(AND($X151,MATCH(AC151,AC$32:AC$185,0)=Setup!$A151),AA151,"") ->  | AH151: =IF(AND($X151,MATCH(AD151,AD$32:AD$185,0)=Setup!$A151),AB151,"") ->  | AI151: 116 | AJ151: 116 | AK151: 120 | AL151: 120 | AM151: =IF(AND(NOT(ISBLANK(Setup!J151)),OR(ISNUMBER(Setup!K151),K151="Enter localised proxy in calculator")),Setup!J151,Setup!I151) -> % | AN151: =IF(ISNUMBER(Setup!H151),IF(AND(NOT(ISBLANK(Setup!J151)),ISNUMBER(Setup!K151)),Setup!H151*Setup!K151,Setup!H151),Setup!H151) -> Record only | AO151: 0 | AP151: =IF(AO151=1,INDEX('Needs and Priorities'!$D$49:$D$96,MATCH(Setup!D151,'Needs and Priorities'!$B$49:$B$96,0)),0) -> 0 | AQ151: =IFERROR(INDEX('Stakeholders Survey'!$K$24:$K$159,MATCH(D151&E151,'Stakeholders Survey'!$M$24:$M$159,0)),0) -> 0
A152: 121 | B152: =Setup!AG152 ->  | C152: =Setup!AH152 ->  | D152: =IF(ISBLANK(LISTS!D125),"",LISTS!D125) ->  | E152: =IF(ISBLANK(LISTS!E125),"",LISTS!E125) -> RE45 | F152: =IF(ISBLANK(LISTS!L125),"",LISTS!L125) -> Tonnes waste diverted against relevant benchmark (e.g. REEB) | G152: ✓ | H152: =IF(ISBLANK(LISTS!N125),"",LISTS!N125) -> Record only | I152: =IF(ISBLANK(LISTS!O125),"",LISTS!O125) -> % | J152: - | K152: - | L152: - | P152: =Setup!G152="✓" -> TRUE | Q152: =IF(NOT(ISBLANK(LISTS!F125)),1,0) -> 0 | R152: =IF(NOT(ISBLANK(LISTS!G125)),1,0) -> 0 | S152: =IF(NOT(ISBLANK(LISTS!H125)),1,0) -> 0 | T152: =IF(NOT(ISBLANK(LISTS!I125)),1,0) -> 1 | U152: =IF(NOT(ISBLANK(LISTS!J125)),1,0) -> 0 | V152: =IF(LISTS!K125="y",1,0) -> 0 | W152: TRUE | X152: TRUE | Y152: ✓ | Z152: TRUE | AA152: =IF(LISTS!B125=0,AA151,LISTS!B125) -> Environment: Decarbonising and Safeguarding our World | AB152: =IF(LISTS!C125=0,AB151,LISTS!C125) -> Resource efficiency and circular economy solutions are promoted | AC152: Environment: Decarbonising and Safeguarding our World | AD152: Resource efficiency and circular economy solutions are promoted | AE152: =IF(AND($X152,MATCH(AC152,AC$36:AC$185,0)=Setup!$A152-4),AA152,"") ->  | AF152: =IF(AND($X152,MATCH(AD152,AD$36:AD$185,0)=Setup!$A152-4),AB152,"") ->  | AG152: =IF(AND($X152,MATCH(AC152,AC$32:AC$185,0)=Setup!$A152),AA152,"") ->  | AH152: =IF(AND($X152,MATCH(AD152,AD$32:AD$185,0)=Setup!$A152),AB152,"") ->  | AI152: 117 | AJ152: 117 | AK152: 121 | AL152: 121 | AM152: =IF(AND(NOT(ISBLANK(Setup!J152)),OR(ISNUMBER(Setup!K152),K152="Enter localised proxy in calculator")),Setup!J152,Setup!I152) -> % | AN152: =IF(ISNUMBER(Setup!H152),IF(AND(NOT(ISBLANK(Setup!J152)),ISNUMBER(Setup!K152)),Setup!H152*Setup!K152,Setup!H152),Setup!H152) -> Record only | AO152: 0 | AP152: =IF(AO152=1,INDEX('Needs and Priorities'!$D$49:$D$96,MATCH(Setup!D152,'Needs and Priorities'!$B$49:$B$96,0)),0) -> 0 | AQ152: =IFERROR(INDEX('Stakeholders Survey'!$K$24:$K$159,MATCH(D152&E152,'Stakeholders Survey'!$M$24:$M$159,0)),0) -> 0
A153: 122 | B153: =Setup!AG153 ->  | C153: =Setup!AH153 ->  | D153: =IF(ISBLANK(LISTS!D126),"",LISTS!D126) ->  | E153: =IF(ISBLANK(LISTS!E126),"",LISTS!E126) -> RE75 | F153: =IF(ISBLANK(LISTS!L126),"",LISTS!L126) -> Percentage of of biocomposites and equivalent materials | G153: ✓ | H153: =IF(ISBLANK(LISTS!N126),"",LISTS!N126) -> Record only | I153: =IF(ISBLANK(LISTS!O126),"",LISTS!O126) -> % | J153: - | K153: - | L153: - | P153: =Setup!G153="✓" -> TRUE | Q153: =IF(NOT(ISBLANK(LISTS!F126)),1,0) -> 0 | R153: =IF(NOT(ISBLANK(LISTS!G126)),1,0) -> 0 | S153: =IF(NOT(ISBLANK(LISTS!H126)),1,0) -> 0 | T153: =IF(NOT(ISBLANK(LISTS!I126)),1,0) -> 0 | U153: =IF(NOT(ISBLANK(LISTS!J126)),1,0) -> 1 | V153: =IF(LISTS!K126="y",1,0) -> 0 | W153: TRUE | X153: TRUE | Y153: ✓ | Z153: TRUE | AA153: =IF(LISTS!B126=0,AA152,LISTS!B126) -> Environment: Decarbonising and Safeguarding our World | AB153: =IF(LISTS!C126=0,AB152,LISTS!C126) -> Resource efficiency and circular economy solutions are promoted | AC153: Environment: Decarbonising and Safeguarding our World | AD153: Resource efficiency and circular economy solutions are promoted | AE153: =IF(AND($X153,MATCH(AC153,AC$36:AC$185,0)=Setup!$A153-4),AA153,"") ->  | AF153: =IF(AND($X153,MATCH(AD153,AD$36:AD$185,0)=Setup!$A153-4),AB153,"") ->  | AG153: =IF(AND($X153,MATCH(AC153,AC$32:AC$185,0)=Setup!$A153),AA153,"") ->  | AH153: =IF(AND($X153,MATCH(AD153,AD$32:AD$185,0)=Setup!$A153),AB153,"") ->  | AI153: 118 | AJ153: 118 | AK153: 122 | AL153: 122 | AM153: =IF(AND(NOT(ISBLANK(Setup!J153)),OR(ISNUMBER(Setup!K153),K153="Enter localised proxy in calculator")),Setup!J153,Setup!I153) -> % | AN153: =IF(ISNUMBER(Setup!H153),IF(AND(NOT(ISBLANK(Setup!J153)),ISNUMBER(Setup!K153)),Setup!H153*Setup!K153,Setup!H153),Setup!H153) -> Record only | AO153: 0 | AP153: =IF(AO153=1,INDEX('Needs and Priorities'!$D$49:$D$96,MATCH(Setup!D153,'Needs and Priorities'!$B$49:$B$96,0)),0) -> 0 | AQ153: =IFERROR(INDEX('Stakeholders Survey'!$K$24:$K$159,MATCH(D153&E153,'Stakeholders Survey'!$M$24:$M$159,0)),0) -> 0
A154: 123 | B154: =Setup!AG154 ->  | C154: =Setup!AH154 -> Sustainable Procurement is promoted | D154: =IF(ISBLANK(LISTS!D127),"",LISTS!D127) -> NT35 | E154: =IF(ISBLANK(LISTS!E127),"",LISTS!E127) -> RE49 | F154: =IF(ISBLANK(LISTS!L127),"",LISTS!L127) -> Percentage of procurement contracts that includes sustainable procurement commitments or other relevant requirements and certifications (e.g. to use local produce, reduce food waste, and keep resources in circulation longer.) | G154: ✓ | H154: =IF(ISBLANK(LISTS!N127),"",LISTS!N127) -> Record only | I154: =IF(ISBLANK(LISTS!O127),"",LISTS!O127) -> % of contracts | J154: - | K154: - | L154: - | P154: =Setup!G154="✓" -> TRUE | Q154: =IF(NOT(ISBLANK(LISTS!F127)),1,0) -> 1 | R154: =IF(NOT(ISBLANK(LISTS!G127)),1,0) -> 0 | S154: =IF(NOT(ISBLANK(LISTS!H127)),1,0) -> 0 | T154: =IF(NOT(ISBLANK(LISTS!I127)),1,0) -> 1 | U154: =IF(NOT(ISBLANK(LISTS!J127)),1,0) -> 0 | V154: =IF(LISTS!K127="y",1,0) -> 0 | W154: TRUE | X154: TRUE | Y154: ✓ | Z154: TRUE | AA154: =IF(LISTS!B127=0,AA153,LISTS!B127) -> Environment: Decarbonising and Safeguarding our World | AB154: =IF(LISTS!C127=0,AB153,LISTS!C127) -> Sustainable Procurement is promoted | AC154: Environment: Decarbonising and Safeguarding our World | AD154: Sustainable Procurement is promoted | AE154: =IF(AND($X154,MATCH(AC154,AC$36:AC$185,0)=Setup!$A154-4),AA154,"") ->  | AF154: =IF(AND($X154,MATCH(AD154,AD$36:AD$185,0)=Setup!$A154-4),AB154,"") -> Sustainable Procurement is promoted | AG154: =IF(AND($X154,MATCH(AC154,AC$32:AC$185,0)=Setup!$A154),AA154,"") ->  | AH154: =IF(AND($X154,MATCH(AD154,AD$32:AD$185,0)=Setup!$A154),AB154,"") -> Sustainable Procurement is promoted | AI154: 119 | AJ154: 119 | AK154: 123 | AL154: 123 | AM154: =IF(AND(NOT(ISBLANK(Setup!J154)),OR(ISNUMBER(Setup!K154),K154="Enter localised proxy in calculator")),Setup!J154,Setup!I154) -> % of contracts | AN154: =IF(ISNUMBER(Setup!H154),IF(AND(NOT(ISBLANK(Setup!J154)),ISNUMBER(Setup!K154)),Setup!H154*Setup!K154,Setup!H154),Setup!H154) -> Record only | AO154: 1 | AP154: =IF(AO154=1,INDEX('Needs and Priorities'!$D$49:$D$96,MATCH(Setup!D154,'Needs and Priorities'!$B$49:$B$96,0)),0) -> 0 | AQ154: =IFERROR(INDEX('Stakeholders Survey'!$K$24:$K$159,MATCH(D154&E154,'Stakeholders Survey'!$M$24:$M$159,0)),0) -> 0
A155: 124 | B155: =Setup!AG155 ->  | C155: =Setup!AH155 ->  | D155: =IF(ISBLANK(LISTS!D128),"",LISTS!D128) -> NT73 | E155: =IF(ISBLANK(LISTS!E128),"",LISTS!E128) ->  | F155: =IF(ISBLANK(LISTS!L128),"",LISTS!L128) -> Percentage of contracts with the supply chain requiring contractors to operate low or zero emission vehicles | G155: ✓ | H155: =IF(ISBLANK(LISTS!N128),"",LISTS!N128) -> Record only | I155: =IF(ISBLANK(LISTS!O128),"",LISTS!O128) -> % of contracts | J155: - | K155: - | L155: - | P155: =Setup!G155="✓" -> TRUE | Q155: =IF(NOT(ISBLANK(LISTS!F128)),1,0) -> 0 | R155: =IF(NOT(ISBLANK(LISTS!G128)),1,0) -> 1 | S155: =IF(NOT(ISBLANK(LISTS!H128)),1,0) -> 0 | T155: =IF(NOT(ISBLANK(LISTS!I128)),1,0) -> 0 | U155: =IF(NOT(ISBLANK(LISTS!J128)),1,0) -> 0 | V155: =IF(LISTS!K128="y",1,0) -> 0 | W155: TRUE | X155: TRUE | Y155: ✓ | Z155: TRUE | AA155: =IF(LISTS!B128=0,AA154,LISTS!B128) -> Environment: Decarbonising and Safeguarding our World | AB155: =IF(LISTS!C128=0,AB154,LISTS!C128) -> Sustainable Procurement is promoted | AC155: Environment: Decarbonising and Safeguarding our World | AD155: Sustainable Procurement is promoted | AE155: =IF(AND($X155,MATCH(AC155,AC$36:AC$185,0)=Setup!$A155-4),AA155,"") ->  | AF155: =IF(AND($X155,MATCH(AD155,AD$36:AD$185,0)=Setup!$A155-4),AB155,"") ->  | AG155: =IF(AND($X155,MATCH(AC155,AC$32:AC$185,0)=Setup!$A155),AA155,"") ->  | AH155: =IF(AND($X155,MATCH(AD155,AD$32:AD$185,0)=Setup!$A155),AB155,"") ->  | AI155: 120 | AJ155: 120 | AK155: 124 | AL155: 124 | AM155: =IF(AND(NOT(ISBLANK(Setup!J155)),OR(ISNUMBER(Setup!K155),K155="Enter localised proxy in calculator")),Setup!J155,Setup!I155) -> % of contracts | AN155: =IF(ISNUMBER(Setup!H155),IF(AND(NOT(ISBLANK(Setup!J155)),ISNUMBER(Setup!K155)),Setup!H155*Setup!K155,Setup!H155),Setup!H155) -> Record only | AO155: 0 | AP155: =IF(AO155=1,INDEX('Needs and Priorities'!$D$49:$D$96,MATCH(Setup!D155,'Needs and Priorities'!$B$49:$B$96,0)),0) -> 0 | AQ155: =IFERROR(INDEX('Stakeholders Survey'!$K$24:$K$159,MATCH(D155&E155,'Stakeholders Survey'!$M$24:$M$159,0)),0) -> 0
A156: 125 | B156: =Setup!AG156 ->  | C156: =Setup!AH156 ->  | D156: =IF(ISBLANK(LISTS!D129),"",LISTS!D129) -> NT48 | E156: =IF(ISBLANK(LISTS!E129),"",LISTS!E129) ->  | F156: =IF(ISBLANK(LISTS!L129),"",LISTS!L129) -> Supply Chain Carbon Certification (Carbon Trust Standard for Supply Chain or equivalent independently verified) - achieved or to achieve for current year | G156: ✓ | H156: =IF(ISBLANK(LISTS!N129),"",LISTS!N129) -> Record only | I156: =IF(ISBLANK(LISTS!O129),"",LISTS!O129) -> Y/N - Provide Certification | J156: - | K156: - | L156: - | P156: =Setup!G156="✓" -> TRUE | Q156: =IF(NOT(ISBLANK(LISTS!F129)),1,0) -> 1 | R156: =IF(NOT(ISBLANK(LISTS!G129)),1,0) -> 0 | S156: =IF(NOT(ISBLANK(LISTS!H129)),1,0) -> 0 | T156: =IF(NOT(ISBLANK(LISTS!I129)),1,0) -> 0 | U156: =IF(NOT(ISBLANK(LISTS!J129)),1,0) -> 0 | V156: =IF(LISTS!K129="y",1,0) -> 0 | W156: TRUE | X156: TRUE | Y156: ✓ | Z156: TRUE | AA156: =IF(LISTS!B129=0,AA155,LISTS!B129) -> Environment: Decarbonising and Safeguarding our World | AB156: =IF(LISTS!C129=0,AB155,LISTS!C129) -> Sustainable Procurement is promoted | AC156: Environment: Decarbonising and Safeguarding our World | AD156: Sustainable Procurement is promoted | AE156: =IF(AND($X156,MATCH(AC156,AC$36:AC$185,0)=Setup!$A156-4),AA156,"") ->  | AF156: =IF(AND($X156,MATCH(AD156,AD$36:AD$185,0)=Setup!$A156-4),AB156,"") ->  | AG156: =IF(AND($X156,MATCH(AC156,AC$32:AC$185,0)=Setup!$A156),AA156,"") ->  | AH156: =IF(AND($X156,MATCH(AD156,AD$32:AD$185,0)=Setup!$A156),AB156,"") ->  | AI156: 121 | AJ156: 121 | AK156: 125 | AL156: 125 | AM156: =IF(AND(NOT(ISBLANK(Setup!J156)),OR(ISNUMBER(Setup!K156),K156="Enter localised proxy in calculator")),Setup!J156,Setup!I156) -> Y/N - Provide Certification | AN156: =IF(ISNUMBER(Setup!H156),IF(AND(NOT(ISBLANK(Setup!J156)),ISNUMBER(Setup!K156)),Setup!H156*Setup!K156,Setup!H156),Setup!H156) -> Record only | AO156: 1 | AP156: =IF(AO156=1,INDEX('Needs and Priorities'!$D$49:$D$96,MATCH(Setup!D156,'Needs and Priorities'!$B$49:$B$96,0)),0) -> 0 | AQ156: =IFERROR(INDEX('Stakeholders Survey'!$K$24:$K$159,MATCH(D156&E156,'Stakeholders Survey'!$M$24:$M$159,0)),0) -> 0
A157: 126 | B157: =Setup!AG157 ->  | C157: =Setup!AH157 ->  | D157: =IF(ISBLANK(LISTS!D130),"",LISTS!D130) -> NT49 | E157: =IF(ISBLANK(LISTS!E130),"",LISTS!E130) ->  | F157: =IF(ISBLANK(LISTS!L130),"",LISTS!L130) -> Requirements or support (for Micro or Small enterprises) for suppliers to demonstrate climate change and carbon reduction training for all staff - e.g. SDGs Academy courses (NTs) or (e.g. RE) Supply Chain Sustainability School bronze or higher or equivalent | G157: ✓ | H157: =IF(ISBLANK(LISTS!N130),"",LISTS!N130) -> 96.11 | I157: =IF(ISBLANK(LISTS!O130),"",LISTS!O130) -> No. hrs (total session duration)*no. attendees | L157: =IF(ISNUMBER(H157),IF(NOT(ISBLANK(J157)),IF(NOT(ISNUMBER(K157)),"Please enter a valid conversion factor","£"&ROUND(H157*K157,2)&"/"&IF(RIGHT(J157,1)="s",LEFT(J157,LEN(J157)-1),J157)),""),"n/a") ->  | P157: =Setup!G157="✓" -> TRUE | Q157: =IF(NOT(ISBLANK(LISTS!F130)),1,0) -> 1 | R157: =IF(NOT(ISBLANK(LISTS!G130)),1,0) -> 0 | S157: =IF(NOT(ISBLANK(LISTS!H130)),1,0) -> 0 | T157: =IF(NOT(ISBLANK(LISTS!I130)),1,0) -> 0 | U157: =IF(NOT(ISBLANK(LISTS!J130)),1,0) -> 0 | V157: =IF(LISTS!K130="y",1,0) -> 0 | W157: TRUE | X157: TRUE | Y157: ✓ | Z157: TRUE | AA157: =IF(LISTS!B130=0,AA156,LISTS!B130) -> Environment: Decarbonising and Safeguarding our World | AB157: =IF(LISTS!C130=0,AB156,LISTS!C130) -> Sustainable Procurement is promoted | AC157: Environment: Decarbonising and Safeguarding our World | AD157: Sustainable Procurement is promoted | AE157: =IF(AND($X157,MATCH(AC157,AC$36:AC$185,0)=Setup!$A157-4),AA157,"") ->  | AF157: =IF(AND($X157,MATCH(AD157,AD$36:AD$185,0)=Setup!$A157-4),AB157,"") ->  | AG157: =IF(AND($X157,MATCH(AC157,AC$32:AC$185,0)=Setup!$A157),AA157,"") ->  | AH157: =IF(AND($X157,MATCH(AD157,AD$32:AD$185,0)=Setup!$A157),AB157,"") ->  | AI157: 122 | AJ157: 122 | AK157: 126 | AL157: 126 | AM157: =IF(AND(NOT(ISBLANK(Setup!J157)),OR(ISNUMBER(Setup!K157),K157="Enter localised proxy in calculator")),Setup!J157,Setup!I157) -> No. hrs (total session duration)*no. attendees | AN157: =IF(ISNUMBER(Setup!H157),IF(AND(NOT(ISBLANK(Setup!J157)),ISNUMBER(Setup!K157)),Setup!H157*Setup!K157,Setup!H157),Setup!H157) -> 96.11 | AO157: 1 | AP157: =IF(AO157=1,INDEX('Needs and Priorities'!$D$49:$D$96,MATCH(Setup!D157,'Needs and Priorities'!$B$49:$B$96,0)),0) -> 0 | AQ157: =IFERROR(INDEX('Stakeholders Survey'!$K$24:$K$159,MATCH(D157&E157,'Stakeholders Survey'!$M$24:$M$159,0)),0) -> 0
A158: 127 | B158: =Setup!AG158 ->  | C158: =Setup!AH158 -> More buildings are certified | D158: =IF(ISBLANK(LISTS!D131),"",LISTS!D131) ->  | E158: =IF(ISBLANK(LISTS!E131),"",LISTS!E131) -> RE50 | F158: =IF(ISBLANK(LISTS!L131),"",LISTS!L131) -> Percentage of NEW buildings achieving BREEAM Rating | G158: ✓ | H158: =IF(ISBLANK(LISTS!N131),"",LISTS!N131) -> Record only | I158: =IF(ISBLANK(LISTS!O131),"",LISTS!O131) -> % | J158: - | K158: - | L158: - | P158: =Setup!G158="✓" -> TRUE | Q158: =IF(NOT(ISBLANK(LISTS!F131)),1,0) -> 0 | R158: =IF(NOT(ISBLANK(LISTS!G131)),1,0) -> 0 | S158: =IF(NOT(ISBLANK(LISTS!H131)),1,0) -> 0 | T158: =IF(NOT(ISBLANK(LISTS!I131)),1,0) -> 0 | U158: =IF(NOT(ISBLANK(LISTS!J131)),1,0) -> 1 | V158: =IF(LISTS!K131="y",1,0) -> 0 | W158: TRUE | X158: TRUE | Y158: ✓ | Z158: TRUE | AA158: =IF(LISTS!B131=0,AA157,LISTS!B131) -> Environment: Decarbonising and Safeguarding our World | AB158: =IF(LISTS!C131=0,AB157,LISTS!C131) -> More buildings are certified | AC158: Environment: Decarbonising and Safeguarding our World | AD158: More buildings are certified | AE158: =IF(AND($X158,MATCH(AC158,AC$36:AC$185,0)=Setup!$A158-4),AA158,"") ->  | AF158: =IF(AND($X158,MATCH(AD158,AD$36:AD$185,0)=Setup!$A158-4),AB158,"") -> More buildings are certified | AG158: =IF(AND($X158,MATCH(AC158,AC$32:AC$185,0)=Setup!$A158),AA158,"") ->  | AH158: =IF(AND($X158,MATCH(AD158,AD$32:AD$185,0)=Setup!$A158),AB158,"") -> More buildings are certified | AI158: 123 | AJ158: 123 | AK158: 127 | AL158: 127 | AM158: =IF(AND(NOT(ISBLANK(Setup!J158)),OR(ISNUMBER(Setup!K158),K158="Enter localised proxy in calculator")),Setup!J158,Setup!I158) -> % | AN158: =IF(ISNUMBER(Setup!H158),IF(AND(NOT(ISBLANK(Setup!J158)),ISNUMBER(Setup!K158)),Setup!H158*Setup!K158,Setup!H158),Setup!H158) -> Record only | AO158: 0 | AP158: =IF(AO158=1,INDEX('Needs and Priorities'!$D$49:$D$96,MATCH(Setup!D158,'Needs and Priorities'!$B$49:$B$96,0)),0) -> 0 | AQ158: =IFERROR(INDEX('Stakeholders Survey'!$K$24:$K$159,MATCH(D158&E158,'Stakeholders Survey'!$M$24:$M$159,0)),0) -> 0
A159: 128 | B159: =Setup!AG159 ->  | C159: =Setup!AH159 ->  | D159: =IF(ISBLANK(LISTS!D132),"",LISTS!D132) ->  | E159: =IF(ISBLANK(LISTS!E132),"",LISTS!E132) -> RE51 | F159: =IF(ISBLANK(LISTS!L132),"",LISTS!L132) -> Percentage of assets that have undergone a climate risk assessment | G159: ✓ | H159: =IF(ISBLANK(LISTS!N132),"",LISTS!N132) -> Record only | I159: =IF(ISBLANK(LISTS!O132),"",LISTS!O132) -> % | J159: - | K159: - | L159: - | P159: =Setup!G159="✓" -> TRUE | Q159: =IF(NOT(ISBLANK(LISTS!F132)),1,0) -> 0 | R159: =IF(NOT(ISBLANK(LISTS!G132)),1,0) -> 0 | S159: =IF(NOT(ISBLANK(LISTS!H132)),1,0) -> 0 | T159: =IF(NOT(ISBLANK(LISTS!I132)),1,0) -> 0 | U159: =IF(NOT(ISBLANK(LISTS!J132)),1,0) -> 1 | V159: =IF(LISTS!K132="y",1,0) -> 0 | W159: TRUE | X159: TRUE | Y159: ✓ | Z159: TRUE | AA159: =IF(LISTS!B132=0,AA158,LISTS!B132) -> Environment: Decarbonising and Safeguarding our World | AB159: =IF(LISTS!C132=0,AB158,LISTS!C132) -> More buildings are certified | AC159: Environment: Decarbonising and Safeguarding our World | AD159: More buildings are certified | AE159: =IF(AND($X159,MATCH(AC159,AC$36:AC$185,0)=Setup!$A159-4),AA159,"") ->  | AF159: =IF(AND($X159,MATCH(AD159,AD$36:AD$185,0)=Setup!$A159-4),AB159,"") ->  | AG159: =IF(AND($X159,MATCH(AC159,AC$32:AC$185,0)=Setup!$A159),AA159,"") ->  | AH159: =IF(AND($X159,MATCH(AD159,AD$32:AD$185,0)=Setup!$A159),AB159,"") ->  | AI159: 124 | AJ159: 124 | AK159: 128 | AL159: 128 | AM159: =IF(AND(NOT(ISBLANK(Setup!J159)),OR(ISNUMBER(Setup!K159),K159="Enter localised proxy in calculator")),Setup!J159,Setup!I159) -> % | AN159: =IF(ISNUMBER(Setup!H159),IF(AND(NOT(ISBLANK(Setup!J159)),ISNUMBER(Setup!K159)),Setup!H159*Setup!K159,Setup!H159),Setup!H159) -> Record only | AO159: 0 | AP159: =IF(AO159=1,INDEX('Needs and Priorities'!$D$49:$D$96,MATCH(Setup!D159,'Needs and Priorities'!$B$49:$B$96,0)),0) -> 0 | AQ159: =IFERROR(INDEX('Stakeholders Survey'!$K$24:$K$159,MATCH(D159&E159,'Stakeholders Survey'!$M$24:$M$159,0)),0) -> 0
A160: 129 | B160: =Setup!AG160 ->  | C160: =Setup!AH160 ->  | D160: =IF(ISBLANK(LISTS!D133),"",LISTS!D133) ->  | E160: =IF(ISBLANK(LISTS!E133),"",LISTS!E133) -> RE52 | F160: =IF(ISBLANK(LISTS!L133),"",LISTS!L133) -> Percentage of assets where sustainability risk has been reduced | G160: ✓ | H160: =IF(ISBLANK(LISTS!N133),"",LISTS!N133) -> Record only | I160: =IF(ISBLANK(LISTS!O133),"",LISTS!O133) -> % | J160: - | K160: - | L160: - | P160: =Setup!G160="✓" -> TRUE | Q160: =IF(NOT(ISBLANK(LISTS!F133)),1,0) -> 0 | R160: =IF(NOT(ISBLANK(LISTS!G133)),1,0) -> 0 | S160: =IF(NOT(ISBLANK(LISTS!H133)),1,0) -> 0 | T160: =IF(NOT(ISBLANK(LISTS!I133)),1,0) -> 0 | U160: =IF(NOT(ISBLANK(LISTS!J133)),1,0) -> 1 | V160: =IF(LISTS!K133="y",1,0) -> 0 | W160: =IF($P160<>$X160,$P160,OR(IncNTCore*$Q160,IncNTAdd*$R160,IncCOVID*$S160,IncRE*T160,IncREAdd*U160,IncStAdd*$V160)) -> TRUE | X160: TRUE | Y160: ✓ | Z160: TRUE | AA160: =IF(LISTS!B133=0,AA159,LISTS!B133) -> Environment: Decarbonising and Safeguarding our World | AB160: =IF(LISTS!C133=0,AB159,LISTS!C133) -> More buildings are certified | AC160: Environment: Decarbonising and Safeguarding our World | AD160: More buildings are certified | AE160: =IF(AND($X160,MATCH(AC160,AC$36:AC$185,0)=Setup!$A160-4),AA160,"") ->  | AF160: =IF(AND($X160,MATCH(AD160,AD$36:AD$185,0)=Setup!$A160-4),AB160,"") ->  | AG160: =IF(AND($X160,MATCH(AC160,AC$32:AC$185,0)=Setup!$A160),AA160,"") ->  | AH160: =IF(AND($X160,MATCH(AD160,AD$32:AD$185,0)=Setup!$A160),AB160,"") ->  | AI160: 125 | AJ160: 125 | AK160: 129 | AL160: 129 | AM160: =IF(AND(NOT(ISBLANK(Setup!J160)),OR(ISNUMBER(Setup!K160),K160="Enter localised proxy in calculator")),Setup!J160,Setup!I160) -> % | AN160: =IF(ISNUMBER(Setup!H160),IF(AND(NOT(ISBLANK(Setup!J160)),ISNUMBER(Setup!K160)),Setup!H160*Setup!K160,Setup!H160),Setup!H160) -> Record only | AO160: 0 | AP160: =IF(AO160=1,INDEX('Needs and Priorities'!$D$49:$D$96,MATCH(Setup!D160,'Needs and Priorities'!$B$49:$B$96,0)),0) -> 0 | AQ160: =IFERROR(INDEX('Stakeholders Survey'!$K$24:$K$159,MATCH(D160&E160,'Stakeholders Survey'!$M$24:$M$159,0)),0) -> 0
A161: 130 | B161: =Setup!AG161 ->  | C161: =Setup!AH161 ->  | D161: =IF(ISBLANK(LISTS!D134),"",LISTS!D134) ->  | E161: =IF(ISBLANK(LISTS!E134),"",LISTS!E134) -> RE53 | F161: =IF(ISBLANK(LISTS!L134),"",LISTS!L134) -> Percentage of buildings achieving BREEAM IN-USE | G161: ✓ | H161: =IF(ISBLANK(LISTS!N134),"",LISTS!N134) -> Record only | I161: =IF(ISBLANK(LISTS!O134),"",LISTS!O134) -> % | J161: - | K161: - | L161: - | P161: =Setup!G161="✓" -> TRUE | Q161: =IF(NOT(ISBLANK(LISTS!F134)),1,0) -> 0 | R161: =IF(NOT(ISBLANK(LISTS!G134)),1,0) -> 0 | S161: =IF(NOT(ISBLANK(LISTS!H134)),1,0) -> 0 | T161: =IF(NOT(ISBLANK(LISTS!I134)),1,0) -> 0 | U161: =IF(NOT(ISBLANK(LISTS!J134)),1,0) -> 1 | V161: =IF(LISTS!K134="y",1,0) -> 0 | W161: TRUE | X161: TRUE | Y161: ✓ | Z161: TRUE | AA161: =IF(LISTS!B134=0,AA160,LISTS!B134) -> Environment: Decarbonising and Safeguarding our World | AB161: =IF(LISTS!C134=0,AB160,LISTS!C134) -> More buildings are certified | AC161: Environment: Decarbonising and Safeguarding our World | AD161: More buildings are certified | AE161: =IF(AND($X161,MATCH(AC161,AC$36:AC$185,0)=Setup!$A161-4),AA161,"") ->  | AF161: =IF(AND($X161,MATCH(AD161,AD$36:AD$185,0)=Setup!$A161-4),AB161,"") ->  | AG161: =IF(AND($X161,MATCH(AC161,AC$32:AC$185,0)=Setup!$A161),AA161,"") ->  | AH161: =IF(AND($X161,MATCH(AD161,AD$32:AD$185,0)=Setup!$A161),AB161,"") ->  | AI161: 126 | AJ161: 126 | AK161: =IF(X161,1+AK160,AK160) -> 130 | AL161: =IF($X161,AK161,-1) -> 130 | AM161: =IF(AND(NOT(ISBLANK(Setup!J161)),OR(ISNUMBER(Setup!K161),K161="Enter localised proxy in calculator")),Setup!J161,Setup!I161) -> % | AN161: =IF(ISNUMBER(Setup!H161),IF(AND(NOT(ISBLANK(Setup!J161)),ISNUMBER(Setup!K161)),Setup!H161*Setup!K161,Setup!H161),Setup!H161) -> Record only | AO161: 0 | AP161: =IF(AO161=1,INDEX('Needs and Priorities'!$D$49:$D$96,MATCH(Setup!D161,'Needs and Priorities'!$B$49:$B$96,0)),0) -> 0 | AQ161: =IFERROR(INDEX('Stakeholders Survey'!$K$24:$K$159,MATCH(D161&E161,'Stakeholders Survey'!$M$24:$M$159,0)),0) -> 0
A162: 131 | B162: =Setup!AG162 -> Innovation: Promoting Social Innovation | C162: =Setup!AH162 -> Social innovation to create local skills and employment | D162: =IF(ISBLANK(LISTS!D135),"",LISTS!D135) -> NT50 | E162: =IF(ISBLANK(LISTS!E135),"",LISTS!E135) -> RE67 | F162: =IF(ISBLANK(LISTS!L135),"",LISTS!L135) -> Innovative measures to promote local skills and employment to be delivered on the contract - these could be e.g. co-designed with stakeholders or communities, or aiming at delivering benefits while minimising carbon footprint from initiatives, etc. | G162: ✓ | H162: =IF(ISBLANK(LISTS!N135),"",LISTS!N135) -> 1 | I162: =IF(ISBLANK(LISTS!O135),"",LISTS!O135) -> £ invested - including staff time (volunteering valued at £16.07 per hours, expert time valued at £96.11 per hour) and materials, equipment or other resources | L162: =IF(ISNUMBER(H162),IF(NOT(ISBLANK(J162)),IF(NOT(ISNUMBER(K162)),"Please enter a valid conversion factor","£"&ROUND(H162*K162,2)&"/"&IF(RIGHT(J162,1)="s",LEFT(J162,LEN(J162)-1),J162)),""),"n/a") ->  | M162: high | P162: =Setup!G162="✓" -> TRUE | Q162: =IF(NOT(ISBLANK(LISTS!F135)),1,0) -> 1 | R162: =IF(NOT(ISBLANK(LISTS!G135)),1,0) -> 0 | S162: =IF(NOT(ISBLANK(LISTS!H135)),1,0) -> 0 | T162: =IF(NOT(ISBLANK(LISTS!I135)),1,0) -> 1 | U162: =IF(NOT(ISBLANK(LISTS!J135)),1,0) -> 0 | V162: =IF(LISTS!K135="y",1,0) -> 0 | W162: TRUE | X162: TRUE | Y162: ✓ | Z162: TRUE | AA162: =IF(LISTS!B135=0,AA161,LISTS!B135) -> Innovation: Promoting Social Innovation | AB162: =IF(LISTS!C135=0,AB161,LISTS!C135) -> Social innovation to create local skills and employment | AC162: Innovation: Promoting Social Innovation | AD162: Social innovation to create local skills and employment | AE162: =IF(AND($X162,MATCH(AC162,AC$36:AC$185,0)=Setup!$A162-4),AA162,"") -> Innovation: Promoting Social Innovation | AF162: =IF(AND($X162,MATCH(AD162,AD$36:AD$185,0)=Setup!$A162-4),AB162,"") -> Social innovation to create local skills and employment | AG162: =IF(AND($X162,MATCH(AC162,AC$32:AC$185,0)=Setup!$A162),AA162,"") -> Innovation: Promoting Social Innovation | AH162: =IF(AND($X162,MATCH(AD162,AD$32:AD$185,0)=Setup!$A162),AB162,"") -> Social innovation to create local skills and employment | AI162: 127 | AJ162: 127 | AK162: 131 | AL162: 131 | AM162: =IF(AND(NOT(ISBLANK(Setup!J162)),OR(ISNUMBER(Setup!K162),K162="Enter localised proxy in calculator")),Setup!J162,Setup!I162) -> £ invested - including staff time (volunteering valued at £16.07 per hours, expert time valued at £96.11 per hour) and materials, equipment or other resources | AN162: =IF(ISNUMBER(Setup!H162),IF(AND(NOT(ISBLANK(Setup!J162)),ISNUMBER(Setup!K162)),Setup!H162*Setup!K162,Setup!H162),Setup!H162) -> 1 | AO162: 1 | AP162: =IF(AO162=1,INDEX('Needs and Priorities'!$D$49:$D$96,MATCH(Setup!D162,'Needs and Priorities'!$B$49:$B$96,0)),0) -> 0 | AQ162: =IFERROR(INDEX('Stakeholders Survey'!$K$24:$K$159,MATCH(D162&E162,'Stakeholders Survey'!$M$24:$M$159,0)),0) -> 0
A163: 132 | B163: =Setup!AG163 ->  | C163: =Setup!AH163 -> Social innovation to support responsible business | D163: =IF(ISBLANK(LISTS!D136),"",LISTS!D136) -> NT51 | E163: =IF(ISBLANK(LISTS!E136),"",LISTS!E136) -> RE68 | F163: =IF(ISBLANK(LISTS!L136),"",LISTS!L136) -> Innovative measures to promote and support responsible business be delivered on the contract - these could be e.g. co-designed with stakeholders or communities, or aiming at delivering benefits while minimising carbon footprint from initiatives, etc. | G163: ✓ | H163: =IF(ISBLANK(LISTS!N136),"",LISTS!N136) -> 1 | I163: =IF(ISBLANK(LISTS!O136),"",LISTS!O136) -> £ invested - including staff time (volunteering valued at £16.07 per hours, expert time valued at £96.11 per hour) and materials, equipment or other resources | M163: high | P163: =Setup!G163="✓" -> TRUE | Q163: =IF(NOT(ISBLANK(LISTS!F136)),1,0) -> 1 | R163: =IF(NOT(ISBLANK(LISTS!G136)),1,0) -> 0 | S163: =IF(NOT(ISBLANK(LISTS!H136)),1,0) -> 0 | T163: =IF(NOT(ISBLANK(LISTS!I136)),1,0) -> 1 | U163: =IF(NOT(ISBLANK(LISTS!J136)),1,0) -> 0 | V163: =IF(LISTS!K136="y",1,0) -> 0 | W163: TRUE | X163: TRUE | Y163: =IF(X163,"✓","✗") -> ✓ | Z163: =(W163=X163) -> TRUE | AA163: =IF(LISTS!B136=0,AA162,LISTS!B136) -> Innovation: Promoting Social Innovation | AB163: =IF(LISTS!C136=0,AB162,LISTS!C136) -> Social innovation to support responsible business | AC163: =IF($X163,AA163,"x") -> Innovation: Promoting Social Innovation | AD163: =IF($X163,AB163,"x") -> Social innovation to support responsible business | AE163: =IF(AND($X163,MATCH(AC163,AC$36:AC$185,0)=Setup!$A163-4),AA163,"") ->  | AF163: =IF(AND($X163,MATCH(AD163,AD$36:AD$185,0)=Setup!$A163-4),AB163,"") -> Social innovation to support responsible business | AG163: =IF(AND($X163,MATCH(AC163,AC$32:AC$185,0)=Setup!$A163),AA163,"") ->  | AH163: =IF(AND($X163,MATCH(AD163,AD$32:AD$185,0)=Setup!$A163),AB163,"") -> Social innovation to support responsible business | AI163: 128 | AJ163: 128 | AK163: 132 | AL163: 132 | AM163: =IF(AND(NOT(ISBLANK(Setup!J163)),OR(ISNUMBER(Setup!K163),K163="Enter localised proxy in calculator")),Setup!J163,Setup!I163) -> £ invested - including staff time (volunteering valued at £16.07 per hours, expert time valued at £96.11 per hour) and materials, equipment or other resources | AN163: =IF(ISNUMBER(Setup!H163),IF(AND(NOT(ISBLANK(Setup!J163)),ISNUMBER(Setup!K163)),Setup!H163*Setup!K163,Setup!H163),Setup!H163) -> 1 | AO163: 1 | AP163: =IF(AO163=1,INDEX('Needs and Priorities'!$D$49:$D$96,MATCH(Setup!D163,'Needs and Priorities'!$B$49:$B$96,0)),0) -> 0 | AQ163: =IFERROR(INDEX('Stakeholders Survey'!$K$24:$K$159,MATCH(D163&E163,'Stakeholders Survey'!$M$24:$M$159,0)),0) -> 0
A164: 133 | B164: =Setup!AG164 ->  | C164: =Setup!AH164 -> Social innovation to enable healthier safer and more resilient communities | D164: =IF(ISBLANK(LISTS!D137),"",LISTS!D137) -> NT52 | E164: =IF(ISBLANK(LISTS!E137),"",LISTS!E137) -> RE69 | F164: =IF(ISBLANK(LISTS!L137),"",LISTS!L137) -> Innovative measures to enable healthier, safer and more resilient communities to be delivered on the contract - these could be e.g. co-designed with stakeholders or communities, or aiming at delivering benefits while minimising carbon footprint from initiatives, etc. | G164: ✓ | H164: =IF(ISBLANK(LISTS!N137),"",LISTS!N137) -> 1 | I164: =IF(ISBLANK(LISTS!O137),"",LISTS!O137) -> £ invested - including staff time (volunteering valued at £16.07 per hours, expert time valued at £96.11 per hour) and materials, equipment or other resources | M164: high | P164: =Setup!G164="✓" -> TRUE | Q164: =IF(NOT(ISBLANK(LISTS!F137)),1,0) -> 1 | R164: =IF(NOT(ISBLANK(LISTS!G137)),1,0) -> 0 | S164: =IF(NOT(ISBLANK(LISTS!H137)),1,0) -> 0 | T164: =IF(NOT(ISBLANK(LISTS!I137)),1,0) -> 1 | U164: =IF(NOT(ISBLANK(LISTS!J137)),1,0) -> 0 | V164: =IF(LISTS!K137="y",1,0) -> 0 | W164: TRUE | X164: TRUE | Y164: ✓ | Z164: TRUE | AA164: =IF(LISTS!B137=0,AA163,LISTS!B137) -> Innovation: Promoting Social Innovation | AB164: =IF(LISTS!C137=0,AB163,LISTS!C137) -> Social innovation to enable healthier safer and more resilient communities | AC164: Innovation: Promoting Social Innovation | AD164: Social innovation to enable healthier safer and more resilient communities | AE164: =IF(AND($X164,MATCH(AC164,AC$36:AC$185,0)=Setup!$A164-4),AA164,"") ->  | AF164: =IF(AND($X164,MATCH(AD164,AD$36:AD$185,0)=Setup!$A164-4),AB164,"") -> Social innovation to enable healthier safer and more resilient communities | AG164: =IF(AND($X164,MATCH(AC164,AC$32:AC$185,0)=Setup!$A164),AA164,"") ->  | AH164: =IF(AND($X164,MATCH(AD164,AD$32:AD$185,0)=Setup!$A164),AB164,"") -> Social innovation to enable healthier safer and more resilient communities | AI164: =IF(X164,1+AI163,AI163) -> 129 | AJ164: =IF($X164,AI164,-1) -> 129 | AK164: 133 | AL164: 133 | AM164: =IF(AND(NOT(ISBLANK(Setup!J164)),OR(ISNUMBER(Setup!K164),K164="Enter localised proxy in calculator")),Setup!J164,Setup!I164) -> £ invested - including staff time (volunteering valued at £16.07 per hours, expert time valued at £96.11 per hour) and materials, equipment or other resources | AN164: =IF(ISNUMBER(Setup!H164),IF(AND(NOT(ISBLANK(Setup!J164)),ISNUMBER(Setup!K164)),Setup!H164*Setup!K164,Setup!H164),Setup!H164) -> 1 | AO164: 1 | AP164: =IF(AO164=1,INDEX('Needs and Priorities'!$D$49:$D$96,MATCH(Setup!D164,'Needs and Priorities'!$B$49:$B$96,0)),0) -> 0 | AQ164: =IFERROR(INDEX('Stakeholders Survey'!$K$24:$K$159,MATCH(D164&E164,'Stakeholders Survey'!$M$24:$M$159,0)),0) -> 0
